Workbook

Sheet 伝票入力 (hidden)
F1: 追加伝票数 | G1: 1 | H1: 伝票種別 | I1: 振替 | J1: 会社コード | K1: SU
F2: 1伝票明細数 | G2: 2 | H2: 伝票日付 | I2: =NOW() -> 2023-07-07T16:47:43.980 | J2: 伝票タイプ | K2: SA | N2: 借方合計 | O2: =SUMIF($N$7:$N$6212,"借方合計",$O$7:$O$6212) -> 191458923 | Q2: 差異
H3: 消込キー | I3: 消込 | J3: 通貨コード | K3: JPY | N3: 貸方合計 | O3: =SUMIF($N$7:$N$6212,"貸方合計",$O$7:$O$6212) -> 191458923 | Q3: =IF($O$2=$O$3,"OK",$O$2-$O$3) -> OK
A5: 伝票ヘッダ | F5: 伝票明細
A6: 0 | B6: 転記日付 | C6: 参照伝票番号 | D6: 伝 票 摘 要 | E6: 取引先 | F6: 明細 No. | G6: 部課 コード | H6: 部課 名称 | I6: ソートキー | J6: 貸借 | K6: 得意先または 仕入先コード | L6: 得意先または 仕入先名称 | M6: 勘定 コード | N6: 勘定名称 | O6: 金 額(税込) | P6: 税 | Q6: 支払日/ 入金日 | R6: 支払 方法 | S6: 明 細 摘 要
A7: 1 | B7: 20220613 | C7: No.15 | D7: フジワークス | F7: 1 | G7: SU-0200 | H7: 運送 | J7: 借方 | M7: 351260 | N7: 原価-福利厚生費 | O7: 12100 | P7: AA | S7: フジワークス 雨合羽６枚
A8: 1 | F8: 2 | I8: 消込 | J8: 貸方 | K8: SU-000043 | L8: (株)フジワーク | M8: 148100 | N8: 仮払金 | O8: 12100 | Q8: 20220615 | R8: T | S8: フジワークス 雨合羽６枚
A9: 1 | N9: 借方合計 | O9: =SUMIF(J7:J8,"借方",O7:O8) -> 12100
A10: 1 | N10: 貸方合計 | O10: =SUMIF(J7:J8,"貸方",O7:O8) -> 12100
A11: 2 | B11: 20220615 | C11: No.21 | D11: 小口現金補充 | F11: 1 | J11: 借方 | M11: 100020 | N11: 小口現金 | O11: 442512 | S11: 小口現金補充
A12: 2 | F12: 2 | J12: 貸方 | M12: 111012 | N12: 銀行01-普通 | O12: 442512 | S12: 小口現金補充
A13: 2 | N13: 借方合計 | O13: =SUMIF(J11:J12,"借方",O11:O12) -> 442512
A14: 2 | N14: 貸方合計 | O14: =SUMIF(J11:J12,"貸方",O11:O12) -> 442512
A15: 3 | B15: 20220616 | C15: No.29 | D15: さつき工業協同組合 | F15: 1 | G15: SU-0200 | H15: 運送 | J15: 借方 | M15: 351900 | N15: 原価-旅費交通費 | O15: 3780505 | P15: AA | S15: さつき工業協同組合 ５月ETC使用料 確定
A16: 3 | F16: 2 | G16: SU-0200 | H16: 運送 | J16: 借方 | M16: 352800 | N16: 原価-会費 | O16: 1000 | S16: さつき工業協同組合 ５月共済会費
A17: 3 | F17: 3 | J17: 貸方 | K17: SU-000025 | L17: さつき工業協同組合 | M17: 415100 | N17: 未払費用 | O17: 3781505 | Q17: 20220701 | R17: D | S17: さつき工業協同組合 ５月ETC使用料 確定
A18: 3 | N18: 借方合計 | O18: =SUMIF(J15:J17,"借方",O15:O17) -> 3781505
A19: 3 | N19: 貸方合計 | O19: =SUMIF(J15:J17,"貸方",O15:O17) -> 3781505
A20: 4 | B20: 20220620 | C20: No.36 | D20: 神奈川県自動車交通共済 | F20: 1 | J20: 借方 | M20: 142102 | N20: 前払金 | O20: 50000 | S20: 神奈川県自動車交通共済 １０回中１回目
A21: 4 | F21: 2 | J21: 貸方 | K21: SU-000018 | L21: 神奈川県自動車交通共済協同組合 | M21: 415100 | N21: 未払費用 | O21: 50000 | Q21: 20220731 | R21: D | S21: 神奈川県自動車交通共済 １０回中１回目
A22: 4 | N22: 借方合計 | O22: =SUMIF(J20:J21,"借方",O20:O21) -> 50000
A23: 4 | N23: 貸方合計 | O23: =SUMIF(J20:J21,"貸方",O20:O21) -> 50000
A24: 5 | B24: 20220622 | C24: No.41 | D24: 小口現金補充 | F24: 1 | J24: 借方 | M24: 100020 | N24: 小口現金 | O24: 482711 | S24: 小口現金補充
A25: 5 | F25: 2 | J25: 貸方 | M25: 111012 | N25: 銀行01-普通 | O25: 482711 | S25: 小口現金補充
A26: 5 | N26: 借方合計 | O26: =SUMIF(J24:J25,"借方",O24:O25) -> 482711
A27: 5 | N27: 貸方合計 | O27: =SUMIF(J24:J25,"貸方",O24:O25) -> 482711
A28: 6 | B28: 20220622 | C28: No.42 | D28: 三菱HCビジネス | F28: 1 | G28: SU-0400 | H28: 川崎営業所 | J28: 借方 | M28: 351600 | N28: 原価-賃借料 | O28: 83592 | P28: A8 | S28: 三菱HCビジネスリース 川崎 サーバーリース
A29: 6 | F29: 2 | J29: 貸方 | K29: SU-000082 | L29: 三菱HCビジネスリース㈱ | M29: 415100 | N29: 未払費用 | O29: 83592 | Q29: 20220630 | R29: T | S29: 三菱HCビジネスリース 川崎 サーバーリース
A30: 6 | N30: 借方合計 | O30: =SUMIF(J28:J29,"借方",O28:O29) -> 83592
A31: 6 | N31: 貸方合計 | O31: =SUMIF(J28:J29,"貸方",O28:O29) -> 83592
A32: 7 | B32: 20220622 | C32: No.43 | D32: ANT企業年金 | F32: 1 | J32: 借方 | K32: SU-000001 | L32: ANT企業年金基金 | M32: 415100 | N32: 未払費用 | O32: 1325 | Q32: 20220630 | R32: D | S32: ANT企業年金基金 退職金部分 差額調整
A33: 7 | F33: 2 | G33: SU-0200 | H33: 運送 | J33: 貸方 | M33: 351240 | N33: 原価-退職給付費用 | O33: 1325 | S33: ANT企業年金基金 退職金部分 差額調整
A34: 7 | F34: 3 | J34: 借方 | K34: SU-000001 | L34: ANT企業年金基金 | M34: 415100 | N34: 未払費用 | O34: 6520 | Q34: 20220630 | R34: D | S34: ANT企業年金基金 年金部分 差額調整
A35: 7 | F35: 4 | G35: SU-0200 | H35: 運送 | J35: 貸方 | M35: 351260 | N35: 原価-福利厚生費 | O35: 6520 | S35: ANT企業年金基金 年金部分 差額調整
A36: 7 | N36: 借方合計 | O36: =SUMIF(J32:J35,"借方",O32:O35) -> 7845
A37: 7 | N37: 貸方合計 | O37: =SUMIF(J32:J35,"貸方",O32:O35) -> 7845
A38: 8 | B38: 20220622 | C38: No.44 | D38: ANT企業年金 | F38: 1 | I38: 消込 | J38: 借方 | K38: SU-000001 | L38: ANT企業年金基金 | M38: 148100 | N38: 仮払金 | O38: 232261 | S38: ANT企業年金基金 退職金部分 振替5-117
A39: 8 | F39: 2 | I39: 消込 | J39: 借方 | K39: SU-000001 | L39: ANT企業年金基金 | M39: 148100 | N39: 仮払金 | O39: 311360 | S39: ANT企業年金基金 年金部分 振替5-118
A40: 8 | F40: 3 | I40: 消込 | J40: 貸方 | K40: SU-000001 | L40: ANT企業年金基金 | M40: 415100 | N40: 未払費用 | O40: 7845 | S40: ANT企業年金基金 退職金部分 振替5-117
A41: 8 | F41: 4 | J41: 貸方 | M41: 100500 | N41: UFJ当座 | O41: 535776 | Q41: 20220630 | R41: D | S41: ANT企業年金基金 退職金部分 振替5-117
A42: 8 | N42: 借方合計 | O42: =SUMIF(J38:J41,"借方",O38:O41) -> 543621
A43: 8 | N43: 貸方合計 | O43: =SUMIF(J38:J41,"貸方",O38:O41) -> 543621
A44: 9 | B44: 20220622 | C44: No.45 | D44: アフラック保険 | F44: 1 | J44: 借方 | M44: 417199 | N44: 預り金その他 | O44: 82878 | S44: アフラック保険 ６月分 従業員預り金
A45: 9 | F45: 2 | J45: 貸方 | M45: 827910 | N45: 管理-雑費金融 | O45: 330 | P45: AA | S45: アフラック保険 ６月分 振込手数料
A46: 9 | F46: 3 | J46: 貸方 | M46: 865710 | N46: 外収その他 | O46: 2735 | P46: UA | S46: アフラック保険 ６月分 事務手数料
A47: 9 | F47: 4 | J47: 貸方 | K47: SU-000011 | L47: アフラック保険 | M47: 415100 | N47: 未払費用 | O47: 79813 | Q47: 20220731 | R47: T | S47: アフラック保険 ６月分 従業員預り金
A48: 9 | N48: 借方合計 | O48: =SUMIF(J44:J47,"借方",O44:O47) -> 82878
A49: 9 | N49: 貸方合計 | O49: =SUMIF(J44:J47,"貸方",O44:O47) -> 82878
A50: 10 | B50: 20220623 | C50: No.48 | D50: 鶴見年金事務所 | F50: 1 | J50: 借方 | M50: 148100 | N50: 仮払金 | O50: 3575256 | S50: 鶴見年金事務所 ５月 会社負担分
A51: 10 | F51: 2 | J51: 貸方 | M51: 415100 | N51: 未払費用 | O51: 1822116 | Q51: 20220630 | R51: D | S51: 鶴見年金事務所 ５月 会社負担分 振替5-116
A52: 10 | F52: 3 | J52: 貸方 | M52: 415100 | N52: 未払費用 | O52: 1753140 | Q52: 20220630 | R52: D | S52: 鶴見年金事務所 ５月 個人負担分 振替6-30
A53: 10 | N53: 借方合計 | O53: =SUMIF(J50:J52,"借方",O50:O52) -> 3575256
A54: 10 | N54: 貸方合計 | O54: =SUMIF(J50:J52,"貸方",O50:O52) -> 3575256
A55: 11 | B55: 20220623 | C55: No.49 | D55: 日新健保組合 | F55: 1 | J55: 借方 | M55: 148100 | N55: 仮払金 | O55: 2144620 | S55: 日新健保組合 ５月 会社負担分
A56: 11 | F56: 2 | J56: 貸方 | M56: 415100 | N56: 未払費用 | O56: 1164007 | Q56: 20220630 | R56: T | S56: 日新健保組合 ５月 会社負担分 振替5-115
A57: 11 | F57: 3 | J57: 貸方 | M57: 415100 | N57: 未払費用 | O57: 980613 | Q57: 20220630 | R57: T | S57: 日新健保組合 ５月 個人負担分 振替6-30
A58: 11 | N58: 借方合計 | O58: =SUMIF(J55:J57,"借方",O55:O57) -> 2144620
A59: 11 | N59: 貸方合計 | O59: =SUMIF(J55:J57,"貸方",O55:O57) -> 2144620
A60: 12 | B60: 20220623 | C60: No.51 | D60: フジワークス | F60: 1 | J60: 借方 | M60: 351260 | N60: 原価-福利厚生費 | O60: 4059 | P60: AA | S60: フジワーク 安全靴 １足
A61: 12 | F61: 2 | J61: 貸方 | K61: SU-000043 | L61: (株)フジワーク | M61: 415100 | N61: 未払費用 | O61: 4059 | Q61: 20220630 | R61: T | S61: フジワーク 安全靴 １足
A62: 12 | N62: 借方合計 | O62: =SUMIF(J60:J61,"借方",O60:O61) -> 4059
A63: 12 | N63: 貸方合計 | O63: =SUMIF(J60:J61,"貸方",O60:O61) -> 4059
A64: 13 | B64: 20220624 | C64: No.57 | D64: 神奈川県自動車交通共済 | F64: 1 | J64: 借方 | M64: 148100 | N64: 仮払金 | S64: 神奈川県自動車交通共済 分割払初回金 7/1～
A65: 13 | F65: 2 | J65: 貸方 | K65: SU-000018 | L65: 神奈川県自動車交通共済協同組合 | M65: 415100 | N65: 未払費用 | Q65: 20220630 | S65: 神奈川県自動車交通共済 分割払初回金 7/1～
A66: 13 | N66: 借方合計 | O66: =SUMIF(J64:J65,"借方",O64:O65) -> 0
A67: 13 | N67: 貸方合計 | O67: =SUMIF(J64:J65,"貸方",O64:O65) -> 0
A68: 14 | B68: 20220624 | C68: No.58 | D68: 東京ガス | F68: 1 | G68: SU-0100 | H68: 本社 | J68: 借方 | M68: 825200 | N68: 管理-光熱水道費 | O68: 18860 | P68: AA | S68: 東京ガス ６月 ガス使用料
A69: 14 | F69: 2 | J69: 貸方 | K69: SU-000035 | L69: 東京ガス(株) | M69: 415100 | N69: 未払費用 | O69: 18860 | Q69: 20220706 | R69: D | S69: 東京ガス ６月 ガス使用料
A70: 14 | N70: 借方合計 | O70: =SUMIF(J68:J69,"借方",O68:O69) -> 18860
A71: 14 | N71: 貸方合計 | O71: =SUMIF(J68:J69,"貸方",O68:O69) -> 18860
A72: 15 | B72: 20220627 | C72: No.66 | D72: 富士フィルムビジネス | F72: 1 | G72: SU-0100 | H72: 本社 | J72: 借方 | M72: 827900 | N72: 管理-雑費 | O72: 12645 | P72: AA | S72: 富士フィルムビジネス 本社 ６月トータルサービス
A73: 15 | F73: 2 | G73: SU-0400 | H73: 川崎営業所 | J73: 借方 | M73: 352900 | N73: 原価-雑費 | O73: 9842 | P73: AA | S73: 富士フィルムビジネス 川崎 ６月トータルサービス
A74: 15 | F74: 3 | G74: SU-0200 | H74: 運送 | J74: 借方 | M74: 352900 | N74: 原価-雑費 | O74: 4400 | P74: AA | S74: 富士フィルムビジネス 業務 ６月トータルサービス
A75: 15 | F75: 4 | J75: 貸方 | K75: SU-000067 | L75: 富士フィルムビジネス | M75: 415100 | N75: 未払費用 | O75: 26887 | Q75: 20220715 | R75: T | S75: 富士フィルムビジネス ６月トータルサービス
A76: 15 | N76: 借方合計 | O76: =SUMIF(J72:J75,"借方",O72:O75) -> 26887
A77: 15 | N77: 貸方合計 | O77: =SUMIF(J72:J75,"貸方",O72:O75) -> 26887
A78: 16 | B78: 20220627 | C78: No.67 | D78: 神奈川県自動車交通共済 | F78: 1 | J78: 借方 | K78: SU-000018 | L78: 神奈川県自動車交通共済協同組合 | M78: 145100 | N78: 未収入金 | O78: 95595 | S78: 神奈川県自動車交通共済 配当金 手取り額
A79: 16 | F79: 2 | J79: 借方 | M79: 981000 | N79: 法人税 | O79: 255 | S79: 神奈川県自動車交通共済 配当金 源泉徴収税
A80: 16 | F80: 3 | J80: 貸方 | M80: 862000 | N80: 受取配当金 | O80: 1250 | S80: 神奈川県自動車交通共済 出資配当金
A81: 16 | F81: 4 | J81: 貸方 | M81: 865710 | N81: 外収その他 | O81: 94600 | P81: U0 | S81: 神奈川県自動車交通共済 利用分量配当金
A82: 16 | N82: 借方合計 | O82: =SUMIF(J78:J81,"借方",O78:O81) -> 95850
A83: 16 | N83: 貸方合計 | O83: =SUMIF(J78:J81,"貸方",O78:O81) -> 95850
A84: 17 | B84: 20220627 | C84: No.68 | D84: 神奈川県自動車交通共済 | F84: 1 | J84: 借方 | K84: SU-000018 | L84: 神奈川県自動車交通共済協同組合 | M84: 145100 | N84: 未収入金 | O84: 111679 | Q84: 20220705 | R84: T | S84: 神奈川県自動車交通共済 配当金 手取り額
A85: 17 | F85: 2 | J85: 借方 | M85: 981000 | N85: 法人税 | O85: 3011 | S85: 神奈川県自動車交通共済 配当金 源泉徴収税
A86: 17 | F86: 3 | J86: 貸方 | M86: 862000 | N86: 受取配当金 | O86: 14750 | S86: 神奈川県自動車交通共済 出資配当金
A87: 17 | F87: 4 | J87: 貸方 | M87: 865710 | N87: 外収その他 | O87: 99940 | P87: U0 | S87: 神奈川県自動車交通共済 利用分量配当金
A88: 17 | N88: 借方合計 | O88: =SUMIF(J84:J87,"借方",O84:O87) -> 114690
A89: 17 | N89: 貸方合計 | O89: =SUMIF(J84:J87,"貸方",O84:O87) -> 114690
A90: 18 | B90: 20220623 | C90: No.69 | D90: 昭和日タン株式会社 | F90: 1 | J90: 借方 | M90: 100500 | N90: UFJ当座 | O90: 133695 | S90: 昭和日タン株式会社 配当金 手取り額
A91: 18 | F91: 2 | J91: 借方 | M91: 981000 | N91: 法人税 | O91: 34305 | S91: 昭和日タン株式会社 配当金 源泉徴収税
A92: 18 | F92: 3 | J92: 貸方 | M92: 862000 | N92: 受取配当金 | O92: 168000 | S92: 昭和日タン株式会社 配当金
A93: 18 | N93: 借方合計 | O93: =SUMIF(J90:J92,"借方",O90:O92) -> 168000
A94: 18 | N94: 貸方合計 | O94: =SUMIF(J90:J92,"貸方",O90:O92) -> 168000
A95: 19 | B95: 20220627 | C95: No.70 | D95: 神奈川銀行 | F95: 1 | J95: 借方 | M95: 100500 | N95: UFJ当座 | O95: 223262 | S95: 神奈川銀行 配当金 手取り額
A96: 19 | F96: 2 | J96: 借方 | M96: 981000 | N96: 法人税 | O96: 57288 | S96: 神奈川銀行 配当金 源泉徴収税
A97: 19 | F97: 3 | J97: 貸方 | M97: 862000 | N97: 受取配当金 | O97: 280550 | S97: 神奈川銀行 配当金
A98: 19 | N98: 借方合計 | O98: =SUMIF(J95:J97,"借方",O95:O97) -> 280550
A99: 19 | N99: 貸方合計 | O99: =SUMIF(J95:J97,"貸方",O95:O97) -> 280550
A100: 20 | B100: 20220627 | C100: No.71 | D100: 旧・新栄運輸 | F100: 1 | J100: 借方 | M100: 100500 | N100: UFJ当座 | O100: 14949 | Q100: 20220630 | R100: T | S100: 旧・新栄運輸 筒井社長 住民税・アフラック６月
A101: 20 | F101: 2 | J101: 貸方 | M101: 417199 | N101: 預り金その他 | O101: 6200 | S101: 旧・新栄運輸 筒井社長 住民税６月
A102: 20 | F102: 3 | J102: 貸方 | M102: 417199 | N102: 預り金その他 | O102: 8749 | S102: 旧・新栄運輸 筒井社長 アフラック保険
A103: 20 | N103: 借方合計 | O103: =SUMIF(J100:J102,"借方",O100:O102) -> 14949
A104: 20 | N104: 貸方合計 | O104: =SUMIF(J100:J102,"貸方",O100:O102) -> 14949
A105: 21 | B105: 20220627 | C105: No.78 | D105: 神奈川県トラック協会 | F105: 1 | G105: SU-0100 | H105: 本社 | J105: 借方 | M105: 826900 | N105: 管理-会費 | O105: 24000 | S105: （一）神奈川県トラック協会 タンクトラック部会費
A106: 21 | F106: 2 | J106: 貸方 | M106: 415100 | N106: 未払費用 | O106: 24000 | Q106: 20220731 | R106: T | S106: （一）神奈川県トラック協会 タンクトラック部会費
A107: 21 | N107: 借方合計 | O107: =SUMIF(J105:J106,"借方",O105:O106) -> 24000
A108: 21 | N108: 貸方合計 | O108: =SUMIF(J105:J106,"貸方",O105:O106) -> 24000
A109: 22 | B109: 20220630 | C109: No.79 | D109: 小口現金補充 | F109: 1 | J109: 借方 | M109: 100020 | N109: 小口現金 | O109: 378545 | S109: 小口現金補充
A110: 22 | F110: 2 | J110: 貸方 | M110: 111012 | N110: 銀行01-普通 | O110: 378545 | S110: 小口現金補充
A111: 22 | N111: 借方合計 | O111: =SUMIF(J109:J110,"借方",O109:O110) -> 378545
A112: 22 | N112: 貸方合計 | O112: =SUMIF(J109:J110,"貸方",O109:O110) -> 378545
A113: 23 | B113: 20220630 | C113: No.82 | D113: 城南信金資金移動 | F113: 1 | J113: 借方 | M113: 111012 | N113: 銀行01-普通 | S113: 城南信金資金移動 月初200万円
A114: 23 | F114: 2 | J114: 貸方 | M114: 142102 | N114: 前払金 | S114: 城南信金資金移動 月初200万円
A115: 23 | N115: 借方合計 | O115: =SUMIF(J113:J114,"借方",O113:O114) -> 0
A116: 23 | N116: 貸方合計 | O116: =SUMIF(J113:J114,"貸方",O113:O114) -> 0
A117: 24 | B117: 20220630 | C117: No.83 | D117: 日新 経理事務手数料 | F117: 1 | G117: SU-0100 | H117: 本社 | J117: 借方 | M117: 825120 | N117: 管理-外部委託費 | O117: 55000 | P117: AA | S117: 日新 ６月 経理事務手数料
A118: 24 | F118: 2 | J118: 貸方 | K118: SU-0Z0100 | L118: (株)日新 | M118: 415100 | N118: 未払費用 | O118: 55000 | Q118: 20220731 | R118: T | S118: 日新 ６月 経理事務手数料
A119: 24 | N119: 借方合計 | O119: =SUMIF(J117:J118,"借方",O117:O118) -> 55000
A120: 24 | N120: 貸方合計 | O120: =SUMIF(J117:J118,"貸方",O117:O118) -> 55000
A121: 25 | B121: 20220630 | C121: No.84 | D121: 日新 社長人件費 | F121: 1 | G121: SU-0100 | H121: 本社 | J121: 借方 | M121: 824100 | N121: 管理-役員報酬 | O121: 858345 | S121: 日新 ６月 社長人件費
A122: 25 | F122: 2 | G122: SU-0100 | H122: 本社 | J122: 借方 | M122: 824320 | N122: 管理-通勤費 | O122: 43655 | P122: AA | S122: 日新 ６月 社長通勤費
A123: 25 | F123: 3 | J123: 貸方 | K123: SU-0Z0100 | L123: (株)日新 | M123: 415100 | N123: 未払費用 | O123: 902000 | Q123: 20220731 | R123: T | S123: 日新 ６月 社長人件費・通勤費
A124: 25 | N124: 借方合計 | O124: =SUMIF(J121:J123,"借方",O121:O123) -> 902000
A125: 25 | N125: 貸方合計 | O125: =SUMIF(J121:J123,"貸方",O121:O123) -> 902000
A126: 26 | B126: 20220630 | C126: No.86 | D126: 全国ビジネスネットワーク | F126: 1 | G126: SU-0100 | H126: 本社 | J126: 借方 | M126: 826900 | N126: 管理-会費 | O126: 3000 | P126: AA | S126: 全国ビジネスネットワーク 労災上乗せ保険 年会費
A127: 26 | F127: 2 | J127: 貸方 | M127: 415100 | N127: 未払費用 | O127: 3000 | Q127: 20220731 | R127: T | S127: 全国ビジネスネットワーク 労災上乗せ保険 年会費
A128: 26 | N128: 借方合計 | O128: =SUMIF(J126:J127,"借方",O126:O127) -> 3000
A129: 26 | N129: 貸方合計 | O129: =SUMIF(J126:J127,"貸方",O126:O127) -> 3000
A130: 27 | B130: 20220630 | C130: No.87 | D130: 楽天市場 | F130: 1 | G130: SU-0200 | H130: 運送 | J130: 借方 | M130: 352900 | N130: 原価-雑費 | O130: 29017 | P130: AA | S130: 楽天市場 6/27 運転員飲料水
A131: 27 | D131: 国土交通省 | F131: 2 | G131: SU-0200 | H131: 運送 | J131: 借方 | M131: 352900 | N131: 原価-雑費 | O131: 10400 | P131: A0 | S131: 国土交通省 中部地区 特車通行料
A132: 27 | D132: カインズ市原 | F132: 3 | G132: SU-0200 | H132: 運送 | J132: 借方 | M132: 352410 | N132: 原価-備品 | O132: 2360 | P132: AA | S132: カインズ市原 ジョイントケース２個
A133: 27 | D133: エネクスフリート | F133: 4 | G133: SU-0200 | H133: 運送 | I133: 油脂費 | J133: 借方 | M133: 351000 | N133: 売上原価 | O133: 1320 | P133: AA | S133: 油脂費 アドブルー #158 10L
A134: 27 | D134: モノタロウ | F134: 5 | G134: SU-0200 | H134: 運送 | J134: 借方 | M134: 352410 | N134: 原価-備品 | O134: 7681 | P134: AA | S134: モノタロウ 6/26 エタノールアミン用ゴム
A135: 27 | F135: 6 | J135: 貸方 | M135: 415100 | N135: 未払費用 | O135: 50778 | Q135: 20220701 | R135: A | S135: 小口未精算
A136: 27 | N136: 借方合計 | O136: =SUMIF(J130:J135,"借方",O130:O135) -> 50778
A137: 27 | N137: 貸方合計 | O137: =SUMIF(J130:J135,"貸方",O130:O135) -> 50778
A138: 28 | B138: 20220630 | C138: No.88 | D138: 京浜特坊協 | F138: 1 | G138: SU-0400 | H138: 川崎営業所 | J138: 借方 | M138: 352800 | N138: 原価-会費 | O138: 13220 | P138: AA | S138: 京浜特坊協 年会費
A139: 28 | D139: 川危連絡協議会 | F139: 2 | G139: SU-0400 | H139: 川崎営業所 | J139: 借方 | M139: 352800 | N139: 原価-会費 | O139: 12385 | P139: AA | S139: 川危連絡協議会 年会費
A140: 28 | D140: 大塚商会 | F140: 3 | G140: SU-0400 | H140: 川崎営業所 | J140: 借方 | M140: 351600 | N140: 原価-賃借料 | O140: 4180 | P140: AA | S140: 大塚商会 ５月メールサーバー利用料
A141: 28 | D141: ドンキホーテ | F141: 4 | G141: SU-0400 | H141: 川崎営業所 | J141: 借方 | M141: 352410 | N141: 原価-備品 | O141: 11919 | P141: AA | S141: ドンキホーテ ＬＥＤ直管ほか
A142: 28 | D142: ノジマ | F142: 5 | G142: SU-0400 | H142: 川崎営業所 | J142: 借方 | M142: 352420 | N142: 原価-事務用品代 | O142: 2926 | P142: AA | S142: ノジマ ＰＣマウス代
A143: 28 | D143: コーナン | F143: 6 | G143: SU-0400 | H143: 川崎営業所 | J143: 借方 | M143: 352410 | N143: 原価-備品 | O143: 50682 | P143: AA | S143: コーナン 冷蔵庫３台
A144: 28 | D144: ヤマダ電機 | F144: 7 | G144: SU-0400 | H144: 川崎営業所 | J144: 借方 | M144: 352420 | N144: 原価-事務用品代 | O144: 9578 | P144: AA | S144: ヤマダ電機 ＰＣ周辺機器
A145: 28 | D145: ビッグエー | F145: 8 | G145: SU-0400 | H145: 川崎営業所 | J145: 借方 | M145: 352900 | N145: 原価-雑費 | O145: 1995 | P145: AA | S145: ビッグエー アクエリアスほか
A146: 28 | D146: オーケー | F146: 9 | G146: SU-0400 | H146: 川崎営業所 | J146: 借方 | M146: 352900 | N146: 原価-雑費 | O146: 1645 | P146: AA | S146: オーケー スポーツドリンク代
A147: 28 | D147: 島忠ホームズ | F147: 10 | G147: SU-0400 | H147: 川崎営業所 | J147: 借方 | M147: 352410 | N147: 原価-備品 | O147: 34070 | P147: AA | S147: 島忠ホームズ 板材ほか
A148: 28 | D148: 丸五商店 | F148: 11 | G148: SU-0400 | H148: 川崎営業所 | J148: 借方 | M148: 351900 | N148: 原価-旅費交通費 | O148: 6598 | P148: AA | S148: 丸五商店 連絡車 燃料代
A149: 28 | F149: 12 | J149: 貸方 | M149: 415100 | N149: 未払費用 | O149: 149198 | Q149: 20220704 | R149: A | S149: 川崎営業所 小口未精算
A150: 28 | N150: 借方合計 | O150: =SUMIF(J138:J149,"借方",O138:O149) -> 149198
A151: 28 | N151: 貸方合計 | O151: =SUMIF(J138:J149,"貸方",O138:O149) -> 149198
A152: 29 | B152: 20220630 | C152: No.89 | D152: 石綿商店 | F152: 1 | G152: SU-0400 | H152: 川崎営業所 | J152: 借方 | M152: 352900 | N152: 原価-雑費 | O152: 16500 | P152: AA | S152: 石綿商店 ５月分 廃棄物処理費
A153: 29 | F153: 2 | J153: 貸方 | K153: SU-000012 | L153: (株)石綿商店 | M153: 415100 | N153: 未払費用 | O153: 16500 | Q153: 20220731 | R153: T | S153: 石綿商店 ５月分 廃棄物処理費
A154: 29 | D154: スズヨシガス | F154: 3 | G154: SU-0400 | H154: 川崎営業所 | J154: 借方 | M154: 351300 | N154: 原価-光熱水道費 | O154: 9944 | P154: AA | S154: スズヨシガス ６月 ガス使用料
A155: 29 | F155: 4 | J155: 貸方 | K155: SU-000090 | L155: #N/A | M155: 415100 | N155: 未払費用 | O155: 9944 | Q155: 20220731 | R155: T | S155: スズヨシガス ６月 ガス使用料
A156: 29 | D156: モノタロウ | F156: 5 | G156: SU-0400 | H156: 川崎営業所 | J156: 借方 | M156: 352900 | N156: 原価-雑費 | O156: 15378 | P156: AA | S156: モノタロウ ６月 セーフレーン他
A157: 29 | F157: 6 | J157: 貸方 | K157: SU-000105 | L157: モノタロウ | M157: 415100 | N157: 未払費用 | O157: 15378 | Q157: 20220731 | R157: T | S157: モノタロウ ６月 セーフレーン他
A158: 29 | D158: ロイヤル警備保障 | F158: 7 | G158: SU-0400 | H158: 川崎営業所 | J158: 借方 | M158: 352900 | N158: 原価-雑費 | O158: 713666 | P158: AA | S158: ロイヤル警備保障 ６月 夜間警備代
A159: 29 | F159: 8 | J159: 貸方 | K159: SU-000051 | L159: ロイヤル警備保障 | M159: 415100 | N159: 未払費用 | O159: 713666 | Q159: 20220731 | R159: T | S159: ロイヤル警備保障 ６月 夜間警備代
A160: 29 | D160: ユニマットライフ | F160: 9 | G160: SU-0400 | H160: 川崎営業所 | J160: 借方 | M160: 352410 | N160: 原価-備品 | O160: 38968 | P160: AA | S160: ユニマットライフ ５月６月 マット代
A161: 29 | F161: 10 | J161: 貸方 | M161: 415100 | N161: 未払費用 | O161: 38968 | Q161: 20220731 | R161: T | S161: ユニマットライフ ５月６月 マット代
A162: 29 | D162: 第一法規 | F162: 11 | G162: SU-0400 | H162: 川崎営業所 | J162: 借方 | M162: 352900 | N162: 原価-雑費 | O162: 4394 | P162: AA | S162: 第一法規 ６月 危険物法令集追補版
A163: 29 | F163: 12 | J163: 貸方 | K163: SU-000084 | L163: 第一法規㈱ | M163: 415100 | N163: 未払費用 | O163: 4394 | Q163: 20220731 | R163: T | S163: 第一法規 ６月 危険物法令集追補版
A164: 29 | D164: マクタ | F164: 13 | G164: SU-0400 | H164: 川崎営業所 | J164: 借方 | M164: 352900 | N164: 原価-雑費 | O164: 132242 | P164: AA | S164: マクタ 燐酸用ホース、ノズル
A165: 29 | F165: 14 | J165: 貸方 | K165: SU-000046 | L165: (株)マクタ | M165: 415100 | N165: 未払費用 | O165: 132242 | Q165: 20220731 | R165: T | S165: マクタ 燐酸用ホース、ノズル
A166: 29 | D166: トヨタエルアンドエフ | F166: 15 | G166: SU-0400 | H166: 川崎営業所 | J166: 借方 | M166: 352900 | N166: 原価-雑費 | O166: 330550 | P166: AA | S166: トヨタエルアンドエフ フォークリフト点検代
A167: 29 | F167: 16 | J167: 貸方 | K167: SU-000038 | L167: ﾄﾖﾀｴﾙ＆ｴﾌ神奈川(株) | M167: 415100 | N167: 未払費用 | O167: 330550 | Q167: 20220731 | R167: T | S167: トヨタエルアンドエフ フォークリフト点検代
A168: 29 | N168: 借方合計 | O168: =SUMIF(J152:J167,"借方",O152:O167) -> 1261642
A169: 29 | N169: 貸方合計 | O169: =SUMIF(J152:J167,"貸方",O152:O167) -> 1261642
A170: 30 | B170: 20220630 | C170: No.90 | D170: 広栄商会 | F170: 1 | G170: SU-0200 | H170: 運送 | J170: 借方 | M170: 351900 | N170: 原価-旅費交通費 | O170: 36287 | P170: AA | S170: 広栄商会 ６月 ガソリン代
A171: 30 | F171: 2 | J171: 貸方 | K171: SU-000022 | L171: (株)広栄商会 | M171: 415100 | N171: 未払費用 | O171: 36287 | Q171: 20220731 | R171: T | S171: 広栄商会 ６月 ガソリン代
A172: 30 | N172: 借方合計 | O172: =SUMIF(J170:J171,"借方",O170:O171) -> 36287
A173: 30 | N173: 貸方合計 | O173: =SUMIF(J170:J171,"貸方",O170:O171) -> 36287
A174: 31 | B174: 20220630 | C174: No.91 | D174: 広栄商会 | F174: 1 | G174: SU-0200 | H174: 運送 | J174: 借方 | M174: 351900 | N174: 原価-旅費交通費 | O174: 19237 | P174: AA | S174: 広栄商会 ６月 連絡車 ガソリン代
A175: 31 | F175: 2 | G175: SU-0200 | H175: 運送 | J175: 借方 | M175: 351700 | N175: 原価-保険 | O175: 161630 | P175: A9 | S175: 広栄商会 ６月 自賠責保険
A176: 31 | F176: 3 | J176: 貸方 | K176: SU-000022 | L176: (株)広栄商会 | M176: 415100 | N176: 未払費用 | O176: 180867 | Q176: 20220731 | R176: T | S176: 広栄商会 ６月 連絡車 ガソリン代
A177: 31 | N177: 借方合計 | O177: =SUMIF(J174:J176,"借方",O174:O176) -> 180867
A178: 31 | N178: 貸方合計 | O178: =SUMIF(J174:J176,"貸方",O174:O176) -> 180867
A179: 32 | B179: 20220630 | C179: No.92 | D179: Special Medico | F179: 1 | G179: SU-0100 | H179: 本社 | J179: 借方 | M179: 827900 | N179: 管理-雑費 | O179: 8800 | P179: AA | S179: Special Medico 産業医紹介費
A180: 32 | F180: 2 | J180: 貸方 | M180: 415100 | N180: 未払費用 | O180: 8800 | Q180: 20220731 | R180: T | S180: Special Medico 産業医紹介費
A181: 32 | N181: 借方合計 | O181: =SUMIF(J179:J180,"借方",O179:O180) -> 8800
A182: 32 | N182: 貸方合計 | O182: =SUMIF(J179:J180,"貸方",O179:O180) -> 8800
A183: 33 | B183: 20220630 | C183: No.93 | D183: 奥山 輝雄 | F183: 1 | G183: SU-0100 | H183: 本社 | J183: 借方 | M183: 827900 | N183: 管理-雑費 | O183: 40000 | S183: 奥山 輝雄 ６月 産業医基本料
A184: 33 | D184: 奥山 輝雄 | F184: 2 | G184: SU-0100 | H184: 本社 | J184: 借方 | M184: 826200 | N184: 管理-旅費交通費 | O184: 1190 | P184: AA | S184: 奥山 輝雄 ６月 交通費（当社まで）
A185: 33 | F185: 3 | J185: 貸方 | M185: 415100 | N185: 未払費用 | O185: 39965 | Q185: 20220731 | R185: T | S185: 振込金額
A186: 33 | F186: 4 | J186: 貸方 | M186: 417199 | N186: 預り金その他 | O186: 1225 | S186: 預り金（源泉所得税）
A187: 33 | N187: 借方合計 | O187: =SUMIF(J183:J186,"借方",O183:O186) -> 41190
A188: 33 | N188: 貸方合計 | O188: =SUMIF(J183:J186,"貸方",O183:O186) -> 41190
A189: 34 | B189: 20220630 | C189: No.94 | D189: 広栄運輸 | F189: 1 | G189: SU-0500 | H189: 修理 | J189: 借方 | K189: SU-009973 | L189: 広栄運輸(株) | M189: 113100 | N189: 売掛金 | O189: 394790 | Q189: 20220731 | R189: T | S189: 広栄運輸 ６月 社外車 整備費用
A190: 34 | F190: 2 | I190: 社外車修理収入 | J190: 貸方 | M190: 811100 | N190: 売上 | O190: 394790 | P190: UA | S190: 広栄運輸 ６月 社外車 整備費用
A191: 34 | N191: 借方合計 | O191: =SUMIF(J189:J190,"借方",O189:O190) -> 394790
A192: 34 | N192: 貸方合計 | O192: =SUMIF(J189:J190,"貸方",O189:O190) -> 394790
A193: 35 | B193: 20220630 | C193: No.98 | D193: 横浜市シルバー人材 | F193: 1 | G193: SU-0100 | H193: 本社 | J193: 借方 | M193: 827900 | N193: 管理-雑費 | O193: 37950 | P193: AA | S193: 横浜市シルバー人材 ６月 清掃費用
A194: 35 | F194: 2 | J194: 貸方 | K194: SU-000049 | L194: 公益財団法人横浜市シルバー人材センター | M194: 415100 | N194: 未払費用 | O194: 37950 | Q194: 20220731 | R194: T | S194: 横浜市シルバー人材 ６月 清掃費用
A195: 35 | N195: 借方合計 | O195: =SUMIF(J193:J194,"借方",O193:O194) -> 37950
A196: 35 | N196: 貸方合計 | O196: =SUMIF(J193:J194,"貸方",O193:O194) -> 37950
A197: 36 | B197: 20220630 | C197: No.99 | D197: アスクル | F197: 1 | G197: SU-0200 | H197: 運送 | J197: 借方 | M197: 352420 | N197: 原価-事務用品代 | O197: 52829 | P197: AA | S197: アスクル ６月 事務用品
A198: 36 | F198: 2 | G198: SU-0200 | H198: 運送 | J198: 借方 | M198: 351250 | N198: 原価-法定福利費 | O198: 8887 | P198: K8 | S198: アスクル ６月 運転員 飴代
A199: 36 | F199: 3 | J199: 貸方 | K199: SU-000096 | L199: ASUKL | M199: 415100 | N199: 未払費用 | O199: 61716 | Q199: 20220706 | R199: A | S199: アスクル ６月 事務用品
A200: 36 | N200: 借方合計 | O200: =SUMIF(J197:J199,"借方",O197:O199) -> 61716
A201: 36 | N201: 貸方合計 | O201: =SUMIF(J197:J199,"貸方",O197:O199) -> 61716
... 229 more rows

Sheet DEN
R1: 使い方
I2: 合計金額一致判定 | J2: =IF(SUM(N5:N300)/2=SUM(SUMIFS(OriginalData[仕入集計金額],OriginalData[仕入先コード],"0*"),SUMIFS(OriginalData[仕入消費税金額],OriginalData[仕入先コード],"0*")),"OK","NG") -> OK | L2: X | N2: 2023-06-01 | R2: ➀「データ取込」シートで「カクテルデータ取込」を押し、ファイルを選択。
R3: ➁「DEN」シートで当年月度を入力後、「BI作成」を押す。
A4: 取引先 | B4: 伝票日付 | C4: 会社 | D4: 転記日付 | E4: 伝票 タイプ | F4: 通貨 コード | G4: 換算 レート | H4: 参照伝票番号 | I4: ヘッダテキスト | J4: 税自動 計算 | K4: 転記 キー | L4: 勘定コード | M4: 特殊 GL | N4: 金額 | O4: 国内通貨額 | P4: 税 コード | Q4: 事業 領域 | R4: 原価センタ | S4: 利益センタ | T4: ソートキー | U4: 明細テキスト | V4: 起算日 | W4: 期日 | X4: 振出日 | Y4: 支払 方法 | Z4: 支払 保留 | AA4: 取引先銀行 | AB4: 取引銀行 | AC4: 中央銀行ＣＤ | AD4: 数量 | AE4: 数量単位 | AF4: 指図書 | AG4: ＷＢＳ | AH4: 得意先コード | AI4: 品目コード | AJ4: 販売組織 | AK4: 流通チャネル | AL4: 製品部門 | AM4: 品目グループ | AN4: 営業所 | AO4: 営業グループ | AP4: 需要家 | AQ4: 支払条件
B5: 20230707 | C5: KN | D5: 20230630 | E5: SA | F5: JPY | H5: 23-06-001 | I5: 三井物産(油脂加工) | J5: X | K5: 40 | L5: 351000 | N5: 1811352 | Q5: KN | R5: KN-0300 | T5: 当月仕入高 | U5: 三井物産㈱油脂・加工開発営業室 2023/06月分 | AQ5: =IFERROR(VLOOKUP(L5,Suppliers[[取引先コード （SAP）]:[支払条件]],6,0),"") -> 
K6: 40 | L6: 148100 | N6: 144909 | Q6: KN | T6: 仮払消費税 | U6: 三井物産㈱油脂・加工開発営業室 2023/06月分 | AQ6: =IFERROR(VLOOKUP(L6,Suppliers[[取引先コード （SAP）]:[支払条件]],6,0),"") -> 
K7: 31 | L7: KN-000017 | N7: 1956261 | Q7: KN | T7: 当月仕入高 | U7: 三井物産㈱油脂・加工開発営業室 2023/06月分 | W7: 20230915 | Y7: T | AQ7: =IFERROR(VLOOKUP(L7,Suppliers[[取引先コード （SAP）]:[支払条件]],6,0),"") -> 月末〆７５日後払
B8: 20230707 | C8: KN | D8: 20230630 | E8: SA | F8: JPY | H8: 23-06-002 | I8: 隅田商事 | J8: X | K8: 40 | L8: 351000 | N8: 89902 | Q8: KN | R8: KN-0300 | T8: 当月仕入高 | U8: 隅田商事㈱ 2023/06月分 | AQ8: =IFERROR(VLOOKUP(L8,Suppliers[[取引先コード （SAP）]:[支払条件]],6,0),"") -> 
K9: 40 | L9: 148100 | N9: 7252 | Q9: KN | T9: 仮払消費税 | U9: 隅田商事㈱ 2023/06月分 | AQ9: =IFERROR(VLOOKUP(L9,Suppliers[[取引先コード （SAP）]:[支払条件]],6,0),"") -> 
K10: 31 | L10: KN-000081 | N10: 97154 | Q10: KN | T10: 当月仕入高 | U10: 隅田商事㈱ 2023/06月分 | W10: 20230731 | Y10: T | AQ10: =IFERROR(VLOOKUP(L10,Suppliers[[取引先コード （SAP）]:[支払条件]],6,0),"") -> 月末〆３０日後払
B11: 20230707 | C11: KN | D11: 20230630 | E11: SA | F11: JPY | H11: 23-06-003 | I11: 三菱商事(はくばく) | J11: X | K11: 40 | L11: 351000 | N11: 8554275 | Q11: KN | R11: KN-0300 | T11: 当月仕入高 | U11: 三菱商事㈱ （はくばく・粉） 2023/06月分 | AQ11: =IFERROR(VLOOKUP(L11,Suppliers[[取引先コード （SAP）]:[支払条件]],6,0),"") -> 
K12: 40 | L12: 148100 | N12: 684342 | Q12: KN | T12: 仮払消費税 | U12: 三菱商事㈱ （はくばく・粉） 2023/06月分 | AQ12: =IFERROR(VLOOKUP(L12,Suppliers[[取引先コード （SAP）]:[支払条件]],6,0),"") -> 
K13: 31 | L13: KN-000123 | N13: 9238617 | Q13: KN | T13: 当月仕入高 | U13: 三菱商事㈱ （はくばく・粉） 2023/06月分 | W13: 20230731 | Y13: T | AQ13: =IFERROR(VLOOKUP(L13,Suppliers[[取引先コード （SAP）]:[支払条件]],6,0),"") -> 月末〆３０日後払
B14: 20230707 | C14: KN | D14: 20230630 | E14: SA | F14: JPY | H14: 23-06-004 | I14: 三菱商事(鳥越製粉) | J14: X | K14: 40 | L14: 351000 | N14: 9892 | Q14: KN | R14: KN-0300 | T14: 当月仕入高 | U14: 三菱商事㈱（鳥越製粉） 2023/06月分 | AQ14: =IFERROR(VLOOKUP(L14,Suppliers[[取引先コード （SAP）]:[支払条件]],6,0),"") -> 
K15: 40 | L15: 148100 | N15: 791 | Q15: KN | T15: 仮払消費税 | U15: 三菱商事㈱（鳥越製粉） 2023/06月分 | AQ15: =IFERROR(VLOOKUP(L15,Suppliers[[取引先コード （SAP）]:[支払条件]],6,0),"") -> 
K16: 31 | L16: KN-000154 | N16: 10683 | Q16: KN | T16: 当月仕入高 | U16: 三菱商事㈱（鳥越製粉） 2023/06月分 | W16: 20230731 | Y16: T | AQ16: =IFERROR(VLOOKUP(L16,Suppliers[[取引先コード （SAP）]:[支払条件]],6,0),"") -> 月末〆３０日後払
B17: 20230707 | C17: KN | D17: 20230630 | E17: SA | F17: JPY | H17: 23-06-005 | I17: ニップン商事 | J17: X | K17: 40 | L17: 351000 | N17: 6934586 | Q17: KN | R17: KN-0300 | T17: 当月仕入高 | U17: ㈱ニップン商事コ－ポレ－ション 2023/06月分 | AQ17: =IFERROR(VLOOKUP(L17,Suppliers[[取引先コード （SAP）]:[支払条件]],6,0),"") -> 
K18: 40 | L18: 148100 | N18: 554766 | Q18: KN | T18: 仮払消費税 | U18: ㈱ニップン商事コ－ポレ－ション 2023/06月分 | AQ18: =IFERROR(VLOOKUP(L18,Suppliers[[取引先コード （SAP）]:[支払条件]],6,0),"") -> 
K19: 31 | L19: KN-000215 | N19: 7489352 | Q19: KN | T19: 当月仕入高 | U19: ㈱ニップン商事コ－ポレ－ション 2023/06月分 | W19: 20230731 | Y19: T | AQ19: =IFERROR(VLOOKUP(L19,Suppliers[[取引先コード （SAP）]:[支払条件]],6,0),"") -> 月末〆３０日後払
B20: 20230707 | C20: KN | D20: 20230630 | E20: SA | F20: JPY | H20: 23-06-006 | I20: 三菱商事ﾗｲﾌｻｲｴﾝｽ | J20: X | K20: 40 | L20: 351000 | N20: 134170 | Q20: KN | R20: KN-0300 | T20: 当月仕入高 | U20: 三菱商事ﾗｲﾌｻｲｴﾝｽ㈱ 2023/06月分 | AQ20: =IFERROR(VLOOKUP(L20,Suppliers[[取引先コード （SAP）]:[支払条件]],6,0),"") -> 
K21: 40 | L21: 148100 | N21: 10734 | Q21: KN | T21: 仮払消費税 | U21: 三菱商事ﾗｲﾌｻｲｴﾝｽ㈱ 2023/06月分 | AQ21: =IFERROR(VLOOKUP(L21,Suppliers[[取引先コード （SAP）]:[支払条件]],6,0),"") -> 
K22: 31 | L22: KN-000253 | N22: 144904 | Q22: KN | T22: 当月仕入高 | U22: 三菱商事ﾗｲﾌｻｲｴﾝｽ㈱ 2023/06月分 | W22: 20230831 | Y22: T | AQ22: =IFERROR(VLOOKUP(L22,Suppliers[[取引先コード （SAP）]:[支払条件]],6,0),"") -> 月末〆６０日後払
B23: 20230707 | C23: KN | D23: 20230630 | E23: SA | F23: JPY | H23: 23-06-007 | I23: 長谷川商店 | J23: X | K23: 40 | L23: 351000 | N23: 4770 | Q23: KN | R23: KN-0300 | T23: 当月仕入高 | U23: ㈱長谷川商店 2023/06月分 | AQ23: =IFERROR(VLOOKUP(L23,Suppliers[[取引先コード （SAP）]:[支払条件]],6,0),"") -> 
K24: 40 | L24: 148100 | N24: 382 | Q24: KN | T24: 仮払消費税 | U24: ㈱長谷川商店 2023/06月分 | AQ24: =IFERROR(VLOOKUP(L24,Suppliers[[取引先コード （SAP）]:[支払条件]],6,0),"") -> 
K25: 31 | L25: KN-001111 | N25: 5152 | Q25: KN | T25: 当月仕入高 | U25: ㈱長谷川商店 2023/06月分 | W25: 20230731 | Y25: T | AQ25: =IFERROR(VLOOKUP(L25,Suppliers[[取引先コード （SAP）]:[支払条件]],6,0),"") -> 月末〆３０日後払
B26: 20230707 | C26: KN | D26: 20230630 | E26: SA | F26: JPY | H26: 23-06-008 | I26: コ－ビオンジャパン | J26: X | K26: 40 | L26: 351000 | N26: 69000 | Q26: KN | R26: KN-0300 | T26: 当月仕入高 | U26: コ－ビオンジャパン㈱ 2023/06月分 | AQ26: =IFERROR(VLOOKUP(L26,Suppliers[[取引先コード （SAP）]:[支払条件]],6,0),"") -> 
K27: 40 | L27: 148100 | N27: 5520 | Q27: KN | T27: 仮払消費税 | U27: コ－ビオンジャパン㈱ 2023/06月分 | AQ27: =IFERROR(VLOOKUP(L27,Suppliers[[取引先コード （SAP）]:[支払条件]],6,0),"") -> 
K28: 31 | L28: KN-001131 | N28: 74520 | Q28: KN | T28: 当月仕入高 | U28: コ－ビオンジャパン㈱ 2023/06月分 | W28: 20230831 | Y28: T | AQ28: =IFERROR(VLOOKUP(L28,Suppliers[[取引先コード （SAP）]:[支払条件]],6,0),"") -> 月末〆６０日後払
B29: 20230707 | C29: KN | D29: 20230630 | E29: SA | F29: JPY | H29: 23-06-009 | I29: 理研ビタミン | J29: X | K29: 40 | L29: 351000 | N29: 343600 | Q29: KN | R29: KN-0300 | T29: 当月仕入高 | U29: 理研ビタミン㈱ 2023/06月分 | AQ29: =IFERROR(VLOOKUP(L29,Suppliers[[取引先コード （SAP）]:[支払条件]],6,0),"") -> 
K30: 40 | L30: 148100 | N30: 27488 | Q30: KN | T30: 仮払消費税 | U30: 理研ビタミン㈱ 2023/06月分 | AQ30: =IFERROR(VLOOKUP(L30,Suppliers[[取引先コード （SAP）]:[支払条件]],6,0),"") -> 
K31: 31 | L31: KN-001171 | N31: 371088 | Q31: KN | T31: 当月仕入高 | U31: 理研ビタミン㈱ 2023/06月分 | W31: 20230831 | Y31: T | AQ31: =IFERROR(VLOOKUP(L31,Suppliers[[取引先コード （SAP）]:[支払条件]],6,0),"") -> 月末〆６０日後払
B32: 20230707 | C32: KN | D32: 20230630 | E32: SA | F32: JPY | H32: 23-06-010 | I32: 三井物産(オ－マイ) | J32: X | K32: 40 | L32: 351000 | N32: 43790 | Q32: KN | R32: KN-0300 | T32: 当月仕入高 | U32: 三井物産㈱ オ－マイ製品 2023/06月分 | AQ32: =IFERROR(VLOOKUP(L32,Suppliers[[取引先コード （SAP）]:[支払条件]],6,0),"") -> 
K33: 40 | L33: 148100 | N33: 3503 | Q33: KN | T33: 仮払消費税 | U33: 三井物産㈱ オ－マイ製品 2023/06月分 | AQ33: =IFERROR(VLOOKUP(L33,Suppliers[[取引先コード （SAP）]:[支払条件]],6,0),"") -> 
K34: 31 | L34: KN-001355 | N34: 47293 | Q34: KN | T34: 当月仕入高 | U34: 三井物産㈱ オ－マイ製品 2023/06月分 | W34: 20230831 | Y34: T | AQ34: =IFERROR(VLOOKUP(L34,Suppliers[[取引先コード （SAP）]:[支払条件]],6,0),"") -> 月末〆６０日後払
B35: 20230707 | C35: KN | D35: 20230630 | E35: SA | F35: JPY | H35: 23-06-011 | I35: はくばく | J35: X | K35: 40 | L35: 351000 | N35: 102821 | Q35: KN | R35: KN-0300 | T35: 当月仕入高 | U35: ㈱はくばく 2023/06月分 | AQ35: =IFERROR(VLOOKUP(L35,Suppliers[[取引先コード （SAP）]:[支払条件]],6,0),"") -> 
K36: 40 | L36: 148100 | N36: 8274 | Q36: KN | T36: 仮払消費税 | U36: ㈱はくばく 2023/06月分 | AQ36: =IFERROR(VLOOKUP(L36,Suppliers[[取引先コード （SAP）]:[支払条件]],6,0),"") -> 
K37: 31 | L37: KN-001430 | N37: 111095 | Q37: KN | T37: 当月仕入高 | U37: ㈱はくばく 2023/06月分 | W37: 20230815 | Y37: T | AQ37: =IFERROR(VLOOKUP(L37,Suppliers[[取引先コード （SAP）]:[支払条件]],6,0),"") -> 月末〆４５日後払
B38: 20230707 | C38: KN | D38: 20230630 | E38: SA | F38: JPY | H38: 23-06-012 | I38: 川光商事 | J38: X | K38: 40 | L38: 351000 | N38: 167377 | Q38: KN | R38: KN-0300 | T38: 当月仕入高 | U38: 川光商事㈱ 2023/06月分 | AQ38: =IFERROR(VLOOKUP(L38,Suppliers[[取引先コード （SAP）]:[支払条件]],6,0),"") -> 
K39: 40 | L39: 148100 | N39: 13406 | Q39: KN | T39: 仮払消費税 | U39: 川光商事㈱ 2023/06月分 | AQ39: =IFERROR(VLOOKUP(L39,Suppliers[[取引先コード （SAP）]:[支払条件]],6,0),"") -> 
K40: 31 | L40: KN-001577 | N40: 180783 | Q40: KN | T40: 当月仕入高 | U40: 川光商事㈱ 2023/06月分 | W40: 20230831 | Y40: T | AQ40: =IFERROR(VLOOKUP(L40,Suppliers[[取引先コード （SAP）]:[支払条件]],6,0),"") -> 月末〆６０日後払
B41: 20230707 | C41: KN | D41: 20230630 | E41: SA | F41: JPY | H41: 23-06-013 | I41: 三井物産(富士食品) | J41: X | K41: 40 | L41: 351000 | N41: 1806860 | Q41: KN | R41: KN-0300 | T41: 当月仕入高 | U41: 三井物産㈱ 富士食品製品 2023/06月分 | AQ41: =IFERROR(VLOOKUP(L41,Suppliers[[取引先コード （SAP）]:[支払条件]],6,0),"") -> 
K42: 40 | L42: 148100 | N42: 144554 | Q42: KN | T42: 仮払消費税 | U42: 三井物産㈱ 富士食品製品 2023/06月分 | AQ42: =IFERROR(VLOOKUP(L42,Suppliers[[取引先コード （SAP）]:[支払条件]],6,0),"") -> 
K43: 31 | L43: KN-001621 | N43: 1951414 | Q43: KN | T43: 当月仕入高 | U43: 三井物産㈱ 富士食品製品 2023/06月分 | W43: 20230831 | Y43: T | AQ43: =IFERROR(VLOOKUP(L43,Suppliers[[取引先コード （SAP）]:[支払条件]],6,0),"") -> 月末〆６０日後払
B44: 20230707 | C44: KN | D44: 20230630 | E44: SA | F44: JPY | H44: 23-06-014 | I44: 創味食品 | J44: X | K44: 40 | L44: 351000 | N44: 12750 | Q44: KN | R44: KN-0300 | T44: 当月仕入高 | U44: ㈱創味食品 2023/06月分 | AQ44: =IFERROR(VLOOKUP(L44,Suppliers[[取引先コード （SAP）]:[支払条件]],6,0),"") -> 
K45: 40 | L45: 148100 | N45: 1040 | Q45: KN | T45: 仮払消費税 | U45: ㈱創味食品 2023/06月分 | AQ45: =IFERROR(VLOOKUP(L45,Suppliers[[取引先コード （SAP）]:[支払条件]],6,0),"") -> 
K46: 31 | L46: KN-001645 | N46: 13790 | Q46: KN | T46: 当月仕入高 | U46: ㈱創味食品 2023/06月分 | W46: 20230831 | Y46: T | AQ46: =IFERROR(VLOOKUP(L46,Suppliers[[取引先コード （SAP）]:[支払条件]],6,0),"") -> 月末〆６０日後払
B47: 20230707 | C47: KN | D47: 20230630 | E47: SA | F47: JPY | H47: 23-06-015 | I47: 丸和油脂 | J47: X | K47: 40 | L47: 351000 | N47: 20720 | Q47: KN | R47: KN-0300 | T47: 当月仕入高 | U47: 丸和油脂㈱ 2023/06月分 | AQ47: =IFERROR(VLOOKUP(L47,Suppliers[[取引先コード （SAP）]:[支払条件]],6,0),"") -> 
K48: 40 | L48: 148100 | N48: 1695 | Q48: KN | T48: 仮払消費税 | U48: 丸和油脂㈱ 2023/06月分 | AQ48: =IFERROR(VLOOKUP(L48,Suppliers[[取引先コード （SAP）]:[支払条件]],6,0),"") -> 
K49: 31 | L49: KN-001720 | N49: 22415 | Q49: KN | T49: 当月仕入高 | U49: 丸和油脂㈱ 2023/06月分 | W49: 20230831 | Y49: T | AQ49: =IFERROR(VLOOKUP(L49,Suppliers[[取引先コード （SAP）]:[支払条件]],6,0),"") -> 月末〆６０日後払
B50: 20230707 | C50: KN | D50: 20230630 | E50: SA | F50: JPY | H50: 23-06-016 | I50: 国分首都圏 | J50: X | K50: 40 | L50: 351000 | N50: 406331 | Q50: KN | R50: KN-0300 | T50: 当月仕入高 | U50: 国分首都圏株式会社 2023/06月分 | AQ50: =IFERROR(VLOOKUP(L50,Suppliers[[取引先コード （SAP）]:[支払条件]],6,0),"") -> 
K51: 40 | L51: 148100 | N51: 32506 | Q51: KN | T51: 仮払消費税 | U51: 国分首都圏株式会社 2023/06月分
K52: 31 | L52: KN-001775 | N52: 438837 | Q52: KN | T52: 当月仕入高 | U52: 国分首都圏株式会社 2023/06月分 | W52: 20230831 | Y52: T
B53: 20230707 | C53: KN | D53: 20230630 | E53: SA | F53: JPY | H53: 23-06-017 | I53: 日本サンガリア | J53: X | K53: 40 | L53: 351000 | N53: 730020 | Q53: KN | R53: KN-0300 | T53: 当月仕入高 | U53: ㈱日本サンガリア 2023/06月分
K54: 40 | L54: 148100 | N54: 58395 | Q54: KN | T54: 仮払消費税 | U54: ㈱日本サンガリア 2023/06月分
K55: 31 | L55: KN-001959 | N55: 788415 | Q55: KN | T55: 当月仕入高 | U55: ㈱日本サンガリア 2023/06月分 | W55: 20230731 | Y55: T
B56: 20230707 | C56: KN | D56: 20230630 | E56: SA | F56: JPY | H56: 23-06-018 | I56: 三井物産(ｵｲﾙﾐﾙｽﾞ) | J56: X | K56: 40 | L56: 351000 | N56: 986910 | Q56: KN | R56: KN-0300 | T56: 当月仕入高 | U56: 三井物産㈱Ｊ－オイルミルズ 2023/06月分
K57: 40 | L57: 148100 | N57: 78953 | Q57: KN | T57: 仮払消費税 | U57: 三井物産㈱Ｊ－オイルミルズ 2023/06月分
K58: 31 | L58: KN-002013 | N58: 1065863 | Q58: KN | T58: 当月仕入高 | U58: 三井物産㈱Ｊ－オイルミルズ 2023/06月分 | W58: 20230831 | Y58: T
B59: 20230707 | C59: KN | D59: 20230630 | E59: SA | F59: JPY | H59: 23-06-019 | I59: 岩井の胡麻油 | J59: X | K59: 40 | L59: 351000 | N59: 854380 | Q59: KN | R59: KN-0300 | T59: 当月仕入高 | U59: 岩井の胡麻油㈱ 2023/06月分
K60: 40 | L60: 148100 | N60: 68347 | Q60: KN | T60: 仮払消費税 | U60: 岩井の胡麻油㈱ 2023/06月分
K61: 31 | L61: KN-002037 | N61: 922727 | Q61: KN | T61: 当月仕入高 | U61: 岩井の胡麻油㈱ 2023/06月分 | W61: 20230831 | Y61: T
B62: 20230707 | C62: KN | D62: 20230630 | E62: SA | F62: JPY | H62: 23-06-020 | I62: 三井物産(かどや) | J62: X | K62: 40 | L62: 351000 | N62: 85400 | Q62: KN | R62: KN-0300 | T62: 当月仕入高 | U62: 三井物産㈱ かどや製油 2023/06月分
K63: 40 | L63: 148100 | N63: 6832 | Q63: KN | T63: 仮払消費税 | U63: 三井物産㈱ かどや製油 2023/06月分
K64: 31 | L64: KN-002044 | N64: 92232 | Q64: KN | T64: 当月仕入高 | U64: 三井物産㈱ かどや製油 2023/06月分 | W64: 20230831 | Y64: T
B65: 20230707 | C65: KN | D65: 20230630 | E65: SA | F65: JPY | H65: 23-06-021 | I65: ユアサ・フナショク | J65: X | K65: 40 | L65: 351000 | N65: 419900 | Q65: KN | R65: KN-0300 | T65: 当月仕入高 | U65: ユアサ・フナショク株式会社 2023/06月分
K66: 40 | L66: 148100 | N66: 33592 | Q66: KN | T66: 仮払消費税 | U66: ユアサ・フナショク株式会社 2023/06月分
K67: 31 | L67: KN-002075 | N67: 453492 | Q67: KN | T67: 当月仕入高 | U67: ユアサ・フナショク株式会社 2023/06月分 | W67: 20230630 | Y67: T
B68: 20230707 | C68: KN | D68: 20230630 | E68: SA | F68: JPY | H68: 23-06-022 | I68: ダイヤスター | J68: X | K68: 40 | L68: 351000 | N68: 25000 | Q68: KN | R68: KN-0300 | T68: 当月仕入高 | U68: ㈱ダイヤスター 2023/06月分
K69: 40 | L69: 148100 | N69: 2000 | Q69: KN | T69: 仮払消費税 | U69: ㈱ダイヤスター 2023/06月分
K70: 31 | L70: KN-002150 | N70: 27000 | Q70: KN | T70: 当月仕入高 | U70: ㈱ダイヤスター 2023/06月分 | W70: 20230831 | Y70: T
B71: 20230707 | C71: KN | D71: 20230630 | E71: SA | F71: JPY | H71: 23-06-023 | I71: 上越スタ－チ | J71: X | K71: 40 | L71: 351000 | N71: 116200 | Q71: KN | R71: KN-0300 | T71: 当月仕入高 | U71: 上越スタ－チ㈱ 2023/06月分
K72: 40 | L72: 148100 | N72: 9296 | Q72: KN | T72: 仮払消費税 | U72: 上越スタ－チ㈱ 2023/06月分
K73: 31 | L73: KN-002235 | N73: 125496 | Q73: KN | T73: 当月仕入高 | U73: 上越スタ－チ㈱ 2023/06月分 | W73: 20230831 | Y73: T
B74: 20230707 | C74: KN | D74: 20230630 | E74: SA | F74: JPY | H74: 23-06-024 | I74: たかい食品 | J74: X | K74: 40 | L74: 351000 | N74: 8000 | Q74: KN | R74: KN-0300 | T74: 当月仕入高 | U74: たかい食品㈱ 2023/06月分
K75: 40 | L75: 148100 | N75: 664 | Q75: KN | T75: 仮払消費税 | U75: たかい食品㈱ 2023/06月分
K76: 31 | L76: KN-002265 | N76: 8664 | Q76: KN | T76: 当月仕入高 | U76: たかい食品㈱ 2023/06月分 | W76: 20230731 | Y76: T
B77: 20230707 | C77: KN | D77: 20230630 | E77: SA | F77: JPY | H77: 23-06-025 | I77: マスキチ | J77: X | K77: 40 | L77: 351000 | N77: 64650 | Q77: KN | R77: KN-0300 | T77: 当月仕入高 | U77: ㈱マスキチ 2023/06月分
K78: 40 | L78: 148100 | N78: 5172 | Q78: KN | T78: 仮払消費税 | U78: ㈱マスキチ 2023/06月分
K79: 31 | L79: KN-002440 | N79: 69822 | Q79: KN | T79: 当月仕入高 | U79: ㈱マスキチ 2023/06月分 | W79: 20230831 | Y79: T
B80: 20230707 | C80: KN | D80: 20230630 | E80: SA | F80: JPY | H80: 23-06-026 | I80: 横関油脂工業 | J80: X | K80: 40 | L80: 351000 | N80: 3435300 | Q80: KN | R80: KN-0300 | T80: 当月仕入高 | U80: 横関油脂工業㈱ 2023/06月分
K81: 40 | L81: 148100 | N81: 274824 | Q81: KN | T81: 仮払消費税 | U81: 横関油脂工業㈱ 2023/06月分
K82: 31 | L82: KN-002457 | N82: 3710124 | Q82: KN | T82: 当月仕入高 | U82: 横関油脂工業㈱ 2023/06月分 | W82: 20230831 | Y82: T
B83: 20230707 | C83: KN | D83: 20230630 | E83: SA | F83: JPY | H83: 23-06-027 | I83: J-NIKKAﾊﾟｰﾄﾅｰｽﾞ | J83: X | K83: 40 | L83: 351000 | N83: 189200 | Q83: KN | R83: KN-0300 | T83: 当月仕入高 | U83: ㈱J-NIKKAﾊﾟｰﾄﾅｰｽﾞ 2023/06月分
K84: 40 | L84: 148100 | N84: 15136 | Q84: KN | T84: 仮払消費税 | U84: ㈱J-NIKKAﾊﾟｰﾄﾅｰｽﾞ 2023/06月分
K85: 31 | L85: KN-002495 | N85: 204336 | Q85: KN | T85: 当月仕入高 | U85: ㈱J-NIKKAﾊﾟｰﾄﾅｰｽﾞ 2023/06月分 | W85: 20230831 | Y85: T
B86: 20230707 | C86: KN | D86: 20230630 | E86: SA | F86: JPY | H86: 23-06-028 | I86: 鈴木屋 | J86: X | K86: 40 | L86: 351000 | N86: 14847 | Q86: KN | R86: KN-0300 | T86: 当月仕入高 | U86: ㈱鈴木屋 2023/06月分
K87: 40 | L87: 148100 | N87: 1187 | Q87: KN | T87: 仮払消費税 | U87: ㈱鈴木屋 2023/06月分
K88: 31 | L88: KN-002549 | N88: 16034 | Q88: KN | T88: 当月仕入高 | U88: ㈱鈴木屋 2023/06月分 | W88: 20230831 | Y88: T
B89: 20230707 | C89: KN | D89: 20230630 | E89: SA | F89: JPY | H89: 23-06-029 | I89: 二葉化成株式会社 | J89: X | K89: 40 | L89: 351000 | N89: 17000 | Q89: KN | R89: KN-0300 | T89: 当月仕入高 | U89: 二葉化成株式会社 2023/06月分
K90: 40 | L90: 148100 | N90: 1360 | Q90: KN | T90: 仮払消費税 | U90: 二葉化成株式会社 2023/06月分
K91: 31 | L91: KN-002756 | N91: 18360 | Q91: KN | T91: 当月仕入高 | U91: 二葉化成株式会社 2023/06月分 | W91: 20230731 | Y91: T
B92: 20230707 | C92: KN | D92: 20230630 | E92: SA | F92: JPY | H92: 23-06-030 | I92: かね善 | J92: X | K92: 40 | L92: 351000 | N92: 8000 | Q92: KN | R92: KN-0300 | T92: 当月仕入高 | U92: ㈱かね善 2023/06月分
K93: 40 | L93: 148100 | N93: 640 | Q93: KN | T93: 仮払消費税 | U93: ㈱かね善 2023/06月分
K94: 31 | L94: KN-002884 | N94: 8640 | Q94: KN | T94: 当月仕入高 | U94: ㈱かね善 2023/06月分 | W94: 20230731 | Y94: T
B95: 20230707 | C95: KN | D95: 20230630 | E95: SA | F95: JPY | H95: 23-06-031 | I95: 住商ﾌｰｽﾞ | J95: X | K95: 40 | L95: 351000 | N95: 8514803 | Q95: KN | R95: KN-0300 | T95: 当月仕入高 | U95: 住商ﾌｰｽﾞ株式会社 2023/06月分
K96: 40 | L96: 148100 | N96: 681184 | Q96: KN | T96: 仮払消費税 | U96: 住商ﾌｰｽﾞ株式会社 2023/06月分
K97: 31 | L97: KN-000024 | N97: 9195987 | Q97: KN | T97: 当月仕入高 | U97: 住商ﾌｰｽﾞ株式会社 2023/06月分 | W97: 20230831 | Y97: T
B98: 20230707 | C98: KN | D98: 20230630 | E98: SA | F98: JPY | H98: 23-06-032 | I98: ユアサ・フナショク | J98: X | K98: 40 | L98: 351000 | N98: 396063 | Q98: KN | R98: KN-0300 | T98: 当月仕入高 | U98: ユアサ・フナショク㈱ 2023/06月分
K99: 40 | L99: 148100 | N99: 31685 | Q99: KN | T99: 仮払消費税 | U99: ユアサ・フナショク㈱ 2023/06月分
K100: 31 | L100: KN-000062 | N100: 427748 | Q100: KN | T100: 当月仕入高 | U100: ユアサ・フナショク㈱ 2023/06月分 | W100: 20230915 | Y100: T
B101: 20230707 | C101: KN | D101: 20230630 | E101: SA | F101: JPY | H101: 23-06-033 | I101: 千葉製粉 | J101: X | K101: 40 | L101: 351000 | N101: 110215 | Q101: KN | R101: KN-0300 | T101: 当月仕入高 | U101: 千葉製粉㈱ 2023/06月分
K102: 40 | L102: 148100 | N102: 8817 | Q102: KN | T102: 仮払消費税 | U102: 千葉製粉㈱ 2023/06月分
K103: 31 | L103: KN-000222 | N103: 119032 | Q103: KN | T103: 当月仕入高 | U103: 千葉製粉㈱ 2023/06月分 | W103: 20230820 | Y103: T
B104: 20230707 | C104: KN | D104: 20230630 | E104: SA | F104: JPY | H104: 23-06-034 | I104: ﾔﾏｼﾞｮｳ商事 | J104: X | K104: 40 | L104: 351000 | N104: 551154 | Q104: KN | R104: KN-0300 | T104: 当月仕入高 | U104: ﾔﾏｼﾞｮｳ商事㈱ 2023/06月分
K105: 40 | L105: 148100 | N105: 44092 | Q105: KN | T105: 仮払消費税 | U105: ﾔﾏｼﾞｮｳ商事㈱ 2023/06月分
K106: 31 | L106: KN-000280 | N106: 595246 | Q106: KN | T106: 当月仕入高 | U106: ﾔﾏｼﾞｮｳ商事㈱ 2023/06月分 | W106: 20230731 | Y106: T
B107: 20230707 | C107: KN | D107: 20230630 | E107: SA | F107: JPY | H107: 23-06-035 | I107: 杉山商事 | J107: X | K107: 40 | L107: 351000 | N107: 526900 | Q107: KN | R107: KN-0300 | T107: 当月仕入高 | U107: 杉山商事㈱ 2023/06月分
K108: 40 | L108: 148100 | N108: 42180 | Q108: KN | T108: 仮払消費税 | U108: 杉山商事㈱ 2023/06月分
K109: 31 | L109: KN-000351 | N109: 569080 | Q109: KN | T109: 当月仕入高 | U109: 杉山商事㈱ 2023/06月分 | W109: 20230731 | Y109: T
B110: 20230707 | C110: KN | D110: 20230630 | E110: SA | F110: JPY | H110: 23-06-036 | I110: 三井物産(サンヨ－) | J110: X | K110: 40 | L110: 351000 | N110: 955946 | Q110: KN | R110: KN-0300 | T110: 当月仕入高 | U110: 三井物産㈱ サンヨ－食品製品 2023/06月分
K111: 40 | L111: 148100 | N111: 76476 | Q111: KN | T111: 仮払消費税 | U111: 三井物産㈱ サンヨ－食品製品 2023/06月分
K112: 31 | L112: KN-001010 | N112: 1032422 | Q112: KN | T112: 当月仕入高 | U112: 三井物産㈱ サンヨ－食品製品 2023/06月分 | W112: 20230831 | Y112: T
B113: 20230707 | C113: KN | D113: 20230630 | E113: SA | F113: JPY | H113: 23-06-037 | I113: 明星食品 | J113: X | K113: 40 | L113: 351000 | N113: 169777 | Q113: KN | R113: KN-0300 | T113: 当月仕入高 | U113: 明星食品㈱ 2023/06月分
K114: 40 | L114: 148100 | N114: 13582 | Q114: KN | T114: 仮払消費税 | U114: 明星食品㈱ 2023/06月分
K115: 31 | L115: KN-001027 | N115: 183359 | Q115: KN | T115: 当月仕入高 | U115: 明星食品㈱ 2023/06月分 | W115: 20230815 | Y115: T
B116: 20230707 | C116: KN | D116: 20230630 | E116: SA | F116: JPY | H116: 23-06-038 | I116: 東洋水産 | J116: X | K116: 40 | L116: 351000 | N116: 65959 | Q116: KN | R116: KN-0300 | T116: 当月仕入高 | U116: 東洋水産㈱ 2023/06月分
K117: 40 | L117: 148100 | N117: 5275 | Q117: KN | T117: 仮払消費税 | U117: 東洋水産㈱ 2023/06月分
K118: 31 | L118: KN-001034 | N118: 71234 | Q118: KN | T118: 当月仕入高 | U118: 東洋水産㈱ 2023/06月分 | W118: 20230831 | Y118: T
B119: 20230707 | C119: KN | D119: 20230630 | E119: SA | F119: JPY | H119: 23-06-039 | I119: 赤城食品 | J119: X | K119: 40 | L119: 351000 | N119: 190000 | Q119: KN | R119: KN-0300 | T119: 当月仕入高 | U119: 赤城食品㈱ 2023/06月分
K120: 40 | L120: 148100 | N120: 15200 | Q120: KN | T120: 仮払消費税 | U120: 赤城食品㈱ 2023/06月分
K121: 31 | L121: KN-001081 | N121: 205200 | Q121: KN | T121: 当月仕入高 | U121: 赤城食品㈱ 2023/06月分 | W121: 20230731 | Y121: T
B122: 20230707 | C122: KN | D122: 20230630 | E122: SA | F122: JPY | H122: 23-06-040 | I122: 東海デキストリン | J122: X | K122: 40 | L122: 351000 | N122: 1344100 | Q122: KN | R122: KN-0300 | T122: 当月仕入高 | U122: 東海デキストリン株式会社 2023/06月分
K123: 40 | L123: 148100 | N123: 107525 | Q123: KN | T123: 仮払消費税 | U123: 東海デキストリン株式会社 2023/06月分
K124: 31 | L124: KN-001155 | N124: 1451625 | Q124: KN | T124: 当月仕入高 | U124: 東海デキストリン株式会社 2023/06月分 | W124: 20230731 | Y124: T
B125: 20230707 | C125: KN | D125: 20230630 | E125: SA | F125: JPY | H125: 23-06-041 | I125: 小堺化学工業 | J125: X | K125: 40 | L125: 351000 | N125: 195000 | Q125: KN | R125: KN-0300 | T125: 当月仕入高 | U125: 小堺化学工業㈱ 2023/06月分
K126: 40 | L126: 148100 | N126: 15600 | Q126: KN | T126: 仮払消費税 | U126: 小堺化学工業㈱ 2023/06月分
K127: 31 | L127: KN-001161 | N127: 210600 | Q127: KN | T127: 当月仕入高 | U127: 小堺化学工業㈱ 2023/06月分 | W127: 20230831 | Y127: T
B128: 20230707 | C128: KN | D128: 20230630 | E128: SA | F128: JPY | H128: 23-06-042 | I128: 太洋食化学 | J128: X | K128: 40 | L128: 351000 | N128: 79125 | Q128: KN | R128: KN-0300 | T128: 当月仕入高 | U128: ㈲太洋食化学 2023/06月分
K129: 40 | L129: 148100 | N129: 6351 | Q129: KN | T129: 仮払消費税 | U129: ㈲太洋食化学 2023/06月分
K130: 31 | L130: KN-001188 | N130: 85476 | Q130: KN | T130: 当月仕入高 | U130: ㈲太洋食化学 2023/06月分 | W130: 20230831 | Y130: T
B131: 20230707 | C131: KN | D131: 20230630 | E131: SA | F131: JPY | H131: 23-06-043 | I131: 真田物産 | J131: X | K131: 40 | L131: 351000 | N131: 130560 | Q131: KN | R131: KN-0300 | T131: 当月仕入高 | U131: 真田物産㈱ 2023/06月分
K132: 40 | L132: 148100 | N132: 10444 | Q132: KN | T132: 仮払消費税 | U132: 真田物産㈱ 2023/06月分
K133: 31 | L133: KN-001232 | N133: 141004 | Q133: KN | T133: 当月仕入高 | U133: 真田物産㈱ 2023/06月分 | W133: 20230831 | Y133: T
B134: 20230707 | C134: KN | D134: 20230630 | E134: SA | F134: JPY | H134: 23-06-044 | I134: 日本コロイド | J134: X | K134: 40 | L134: 351000 | N134: 253000 | Q134: KN | R134: KN-0300 | T134: 当月仕入高 | U134: 日本コロイド㈱ 2023/06月分
K135: 40 | L135: 148100 | N135: 20240 | Q135: KN | T135: 仮払消費税 | U135: 日本コロイド㈱ 2023/06月分
K136: 31 | L136: KN-001294 | N136: 273240 | Q136: KN | T136: 当月仕入高 | U136: 日本コロイド㈱ 2023/06月分 | W136: 20230831 | Y136: T
B137: 20230707 | C137: KN | D137: 20230630 | E137: SA | F137: JPY | H137: 23-06-045 | I137: 交易食品 | J137: X | K137: 40 | L137: 351000 | N137: 89100 | Q137: KN | R137: KN-0300 | T137: 当月仕入高 | U137: 交易食品㈱ 2023/06月分
K138: 40 | L138: 148100 | N138: 7128 | Q138: KN | T138: 仮払消費税 | U138: 交易食品㈱ 2023/06月分
K139: 31 | L139: KN-001300 | N139: 96228 | Q139: KN | T139: 当月仕入高 | U139: 交易食品㈱ 2023/06月分 | W139: 20230831 | Y139: T
B140: 20230707 | C140: KN | D140: 20230630 | E140: SA | F140: JPY | H140: 23-06-046 | I140: 山印醸造 | J140: X | K140: 40 | L140: 351000 | N140: 13500 | Q140: KN | R140: KN-0300 | T140: 当月仕入高 | U140: 山印醸造㈱ 2023/06月分
K141: 40 | L141: 148100 | N141: 1096 | Q141: KN | T141: 仮払消費税 | U141: 山印醸造㈱ 2023/06月分
K142: 31 | L142: KN-001348 | N142: 14596 | Q142: KN | T142: 当月仕入高 | U142: 山印醸造㈱ 2023/06月分 | W142: 20230831 | Y142: T
B143: 20230707 | C143: KN | D143: 20230630 | E143: SA | F143: JPY | H143: 23-06-047 | I143: 東洋水産(冷食) | J143: X | K143: 40 | L143: 351000 | N143: 149877 | Q143: KN | R143: KN-0300 | T143: 当月仕入高 | U143: 東洋水産㈱冷食 2023/06月分
K144: 40 | L144: 148100 | N144: 11991 | Q144: KN | T144: 仮払消費税 | U144: 東洋水産㈱冷食 2023/06月分
K145: 31 | L145: KN-001393 | N145: 161868 | Q145: KN | T145: 当月仕入高 | U145: 東洋水産㈱冷食 2023/06月分 | W145: 20230831 | Y145: T
B146: 20230707 | C146: KN | D146: 20230630 | E146: SA | F146: JPY | H146: 23-06-048 | I146: カネク | J146: X | K146: 40 | L146: 351000 | N146: 68443 | Q146: KN | R146: KN-0300 | T146: 当月仕入高 | U146: カネク株式会社 2023/06月分
K147: 40 | L147: 148100 | N147: 5476 | Q147: KN | T147: 仮払消費税 | U147: カネク株式会社 2023/06月分
K148: 31 | L148: KN-001423 | N148: 73919 | Q148: KN | T148: 当月仕入高 | U148: カネク株式会社 2023/06月分 | W148: 20230831 | Y148: T
B149: 20230707 | C149: KN | D149: 20230630 | E149: SA | F149: JPY | H149: 23-06-049 | I149: 森井食品 | J149: X | K149: 40 | L149: 351000 | N149: 28600 | Q149: KN | R149: KN-0300 | T149: 当月仕入高 | U149: 森井食品㈱ 2023/06月分
K150: 40 | L150: 148100 | N150: 2288 | Q150: KN | T150: 仮払消費税 | U150: 森井食品㈱ 2023/06月分
K151: 31 | L151: KN-001478 | N151: 30888 | Q151: KN | T151: 当月仕入高 | U151: 森井食品㈱ 2023/06月分 | W151: 20230831 | Y151: T
B152: 20230707 | C152: KN | D152: 20230630 | E152: SA | F152: JPY | H152: 23-06-050 | I152: フライスタ－ | J152: X | K152: 40 | L152: 351000 | N152: 281949 | Q152: KN | R152: KN-0300 | T152: 当月仕入高 | U152: フライスタ－㈱ 2023/06月分
K153: 40 | L153: 148100 | N153: 22554 | Q153: KN | T153: 仮払消費税 | U153: フライスタ－㈱ 2023/06月分
K154: 31 | L154: KN-001546 | N154: 304503 | Q154: KN | T154: 当月仕入高 | U154: フライスタ－㈱ 2023/06月分 | W154: 20230805 | Y154: T
B155: 20230707 | C155: KN | D155: 20230630 | E155: SA | F155: JPY | H155: 23-06-051 | I155: 横浜食糧 | J155: X | K155: 40 | L155: 351000 | N155: 1963 | Q155: KN | R155: KN-0300 | T155: 当月仕入高 | U155: 横浜食糧㈱ 2023/06月分
K156: 40 | L156: 148100 | N156: 157 | Q156: KN | T156: 仮払消費税 | U156: 横浜食糧㈱ 2023/06月分
K157: 31 | L157: KN-001553 | N157: 2120 | Q157: KN | T157: 当月仕入高 | U157: 横浜食糧㈱ 2023/06月分 | W157: 20230831 | Y157: T
B158: 20230707 | C158: KN | D158: 20230630 | E158: SA | F158: JPY | H158: 23-06-052 | I158: 真富士屋食品 | J158: X | K158: 40 | L158: 351000 | N158: 42006 | Q158: KN | R158: KN-0300 | T158: 当月仕入高 | U158: 真富士屋食品㈱ 2023/06月分
K159: 40 | L159: 148100 | N159: 3390 | Q159: KN | T159: 仮払消費税 | U159: 真富士屋食品㈱ 2023/06月分
K160: 31 | L160: KN-001652 | N160: 45396 | Q160: KN | T160: 当月仕入高 | U160: 真富士屋食品㈱ 2023/06月分 | W160: 20230831 | Y160: T
B161: 20230707 | C161: KN | D161: 20230630 | E161: SA | F161: JPY | H161: 23-06-053 | I161: エバラ食品工業 | J161: X | K161: 40 | L161: 351000 | N161: 20535 | Q161: KN | R161: KN-0300 | T161: 当月仕入高 | U161: エバラ食品工業㈱ 2023/06月分
K162: 40 | L162: 148100 | N162: 1643 | Q162: KN | T162: 仮払消費税 | U162: エバラ食品工業㈱ 2023/06月分
K163: 31 | L163: KN-001669 | N163: 22178 | Q163: KN | T163: 当月仕入高 | U163: エバラ食品工業㈱ 2023/06月分 | W163: 20230825 | Y163: T
B164: 20230707 | C164: KN | D164: 20230630 | E164: SA | F164: JPY | H164: 23-06-054 | I164: 榮村商店 | J164: X | K164: 40 | L164: 351000 | N164: 167905 | Q164: KN | R164: KN-0300 | T164: 当月仕入高 | U164: ㈱榮村商店 2023/06月分
K165: 40 | L165: 148100 | N165: 13432 | Q165: KN | T165: 仮払消費税 | U165: ㈱榮村商店 2023/06月分
K166: 31 | L166: KN-001676 | N166: 181337 | Q166: KN | T166: 当月仕入高 | U166: ㈱榮村商店 2023/06月分 | W166: 20230831 | Y166: T
B167: 20230707 | C167: KN | D167: 20230630 | E167: SA | F167: JPY | H167: 23-06-055 | I167: 三井物産(丸美屋) | J167: X | K167: 40 | L167: 351000 | N167: 35150 | Q167: KN | R167: KN-0300 | T167: 当月仕入高 | U167: 三井物産㈱ 丸美屋フ－ズ 2023/06月分
K168: 40 | L168: 148100 | N168: 2812 | Q168: KN | T168: 仮払消費税 | U168: 三井物産㈱ 丸美屋フ－ズ 2023/06月分
K169: 31 | L169: KN-001690 | N169: 37962 | Q169: KN | T169: 当月仕入高 | U169: 三井物産㈱ 丸美屋フ－ズ 2023/06月分 | W169: 20230831 | Y169: T
B170: 20230707 | C170: KN | D170: 20230630 | E170: SA | F170: JPY | H170: 23-06-056 | I170: 平和食品工業 | J170: X | K170: 40 | L170: 351000 | N170: 62700 | Q170: KN | R170: KN-0300 | T170: 当月仕入高 | U170: 平和食品工業㈱ 2023/06月分
K171: 40 | L171: 148100 | N171: 5016 | Q171: KN | T171: 仮払消費税 | U171: 平和食品工業㈱ 2023/06月分
K172: 31 | L172: KN-001737 | N172: 67716 | Q172: KN | T172: 当月仕入高 | U172: 平和食品工業㈱ 2023/06月分 | W172: 20230731 | Y172: T
B173: 20230707 | C173: KN | D173: 20230630 | E173: SA | F173: JPY | H173: 23-06-057 | I173: 太陽商事 | J173: X | K173: 40 | L173: 351000 | N173: 180450 | Q173: KN | R173: KN-0300 | T173: 当月仕入高 | U173: 太陽商事㈱ 2023/06月分
K174: 40 | L174: 148100 | N174: 14436 | Q174: KN | T174: 仮払消費税 | U174: 太陽商事㈱ 2023/06月分
K175: 31 | L175: KN-001751 | N175: 194886 | Q175: KN | T175: 当月仕入高 | U175: 太陽商事㈱ 2023/06月分 | W175: 20230831 | Y175: T
B176: 20230707 | C176: KN | D176: 20230630 | E176: SA | F176: JPY | H176: 23-06-058 | I176: 天狗缶詰 | J176: X | K176: 40 | L176: 351000 | N176: 190230 | Q176: KN | R176: KN-0300 | T176: 当月仕入高 | U176: 天狗缶詰株式会社 東京営業所 2023/06月分
K177: 40 | L177: 148100 | N177: 15214 | Q177: KN | T177: 仮払消費税 | U177: 天狗缶詰株式会社 東京営業所 2023/06月分
K178: 31 | L178: KN-001850 | N178: 205444 | Q178: KN | T178: 当月仕入高 | U178: 天狗缶詰株式会社 東京営業所 2023/06月分 | W178: 20230831 | Y178: T
B179: 20230707 | C179: KN | D179: 20230630 | E179: SA | F179: JPY | H179: 23-06-059 | I179: 三栄フーズ | J179: X | K179: 40 | L179: 351000 | N179: 85691 | Q179: KN | R179: KN-0300 | T179: 当月仕入高 | U179: 三栄フーズ株式会社 2023/06月分
K180: 40 | L180: 148100 | N180: 6874 | Q180: KN | T180: 仮払消費税 | U180: 三栄フーズ株式会社 2023/06月分
K181: 31 | L181: KN-001898 | N181: 92565 | Q181: KN | T181: 当月仕入高 | U181: 三栄フーズ株式会社 2023/06月分 | W181: 20230731 | Y181: T
B182: 20230707 | C182: KN | D182: 20230630 | E182: SA | F182: JPY | H182: 23-06-060 | I182: 三井物産 | J182: X | K182: 40 | L182: 351000 | N182: 75000 | Q182: KN | R182: KN-0300 | T182: 当月仕入高 | U182: 三井物産㈱ 2023/06月分
K183: 40 | L183: 148100 | N183: 6000 | Q183: KN | T183: 仮払消費税 | U183: 三井物産㈱ 2023/06月分
K184: 31 | L184: KN-002020 | N184: 81000 | Q184: KN | T184: 当月仕入高 | U184: 三井物産㈱ 2023/06月分 | W184: 20230831 | Y184: T
B185: 20230707 | C185: KN | D185: 20230630 | E185: SA | F185: JPY | H185: 23-06-061 | I185: 金田屋 | J185: X | K185: 40 | L185: 351000 | N185: 427234 | Q185: KN | R185: KN-0300 | T185: 当月仕入高 | U185: 金田屋㈱ 2023/06月分
K186: 40 | L186: 148100 | N186: 34178 | Q186: KN | T186: 仮払消費税 | U186: 金田屋㈱ 2023/06月分
K187: 31 | L187: KN-002303 | N187: 461412 | Q187: KN | T187: 当月仕入高 | U187: 金田屋㈱ 2023/06月分 | W187: 20230731 | Y187: T
B188: 20230707 | C188: KN | D188: 20230630 | E188: SA | F188: JPY | H188: 23-06-062 | I188: 丸松物産 | J188: X | K188: 40 | L188: 351000 | N188: 27000 | Q188: KN | R188: KN-0300 | T188: 当月仕入高 | U188: 丸松物産㈱ 2023/06月分
K189: 40 | L189: 148100 | N189: 2160 | Q189: KN | T189: 仮払消費税 | U189: 丸松物産㈱ 2023/06月分
K190: 31 | L190: KN-002655 | N190: 29160 | Q190: KN | T190: 当月仕入高 | U190: 丸松物産㈱ 2023/06月分 | W190: 20230831 | Y190: T
B191: 20230707 | C191: KN | D191: 20230630 | E191: SA | F191: JPY | H191: 23-06-063 | I191: 京浜貿易 | J191: X | K191: 40 | L191: 351000 | N191: 65000 | Q191: KN | R191: KN-0300 | T191: 当月仕入高 | U191: 京浜貿易㈱ 2023/06月分
K192: 40 | L192: 148100 | N192: 5200 | Q192: KN | T192: 仮払消費税 | U192: 京浜貿易㈱ 2023/06月分
K193: 31 | L193: KN-002661 | N193: 70200 | Q193: KN | T193: 当月仕入高 | U193: 京浜貿易㈱ 2023/06月分 | W193: 20230831 | Y193: T
B194: 20230707 | C194: KN | D194: 20230630 | E194: SA | F194: JPY | H194: 23-06-064 | I194: 佐川急便 | J194: X | K194: 40 | L194: 351000 | N194: 4800 | Q194: KN | R194: KN-0300 | T194: 当月仕入高 | U194: 佐川急便株式会社 2023/06月分
K195: 40 | L195: 148100 | N195: 480 | Q195: KN | T195: 仮払消費税 | U195: 佐川急便株式会社 2023/06月分
K196: 31 | L196: KN-002901 | N196: 5280 | Q196: KN | T196: 当月仕入高 | U196: 佐川急便株式会社 2023/06月分 | W196: 20230726 | Y196: T
B197: eof

Sheet マスタ管理 (hidden)
A1: 部課 コード | B1: 部課名称 | D1: 勘定 コード | E1: 勘定名称 | F1: 利/原 | H1: 仕入先コード （SAP） | I1: 取引先名称 | J1: 支払 方法 | L1: 統制 勘定 | M1: 勘定 タイプ | N1: 特殊仕訳テキスト | O1: 特殊仕訳 コード | P1: 借方 転記 | Q1: 貸方 転記 | S1: 貸借 | T1: 税 コード | U1: 税 | V1: 支払 方法 | W1: 支払 方法 | X1: 伝票 タイプ | Y1: 取引先 入力
D2: 100014 | E2: 現金 | H2: KN-0Z0100 | I2: (株)日新 | L2: 412100 | M2: K | N2: 買掛金 | P2: '21 | Q2: '31
A3: KN-0100 | B3: 本部 | D3: 100020 | E3: 小口現金 | H3: KN-000017 | I3: 三井物産㈱油脂・加工開発営業室 | L3: 411100 | M3: K | N3: 支払手形 | O3: W | P3: '29 | Q3: '39 | S3: 借方 | T3: AA | U3: 課税仕入 10% | V3: D | W3: 引落 | X3: SA | Y3: X
A4: KN-0200 | B4: 保険 | D4: 100500 | E4: UFJ当座 | H4: KN-000024 | I4: 住商ﾌｰｽﾞ株式会社 | L4: 415100 | M4: K | N4: 未払費用 | O4: K | P4: '29 | Q4: '39 | S4: 貸方 | T4: K8 | U4: 課税仕入 軽減8% | V4: T | W4: 総合振込 | X4: AB
A5: KN-0300 | B5: 食糧 | D5: 109999 | E5: 3ヶ月超定期預金 | H5: KN-000051 | I5: ㈱内外製粉 | L5: 414100 | M5: K | N5: 未払金 | O5: N | P5: '29 | Q5: '39 | T5: A8 | U5: 課税仕入 8% | V5: C | W5: 小切手
A6: KN-0400 | B6: 不動産 | D6: 111010 | E6: 銀行01-当座 | H6: KN-000062 | I6: ユアサ・フナショク㈱ | L6: 414300 | M6: K | N6: 未払金（有形固定資産） | O6: Q | P6: '29 | Q6: '39 | T6: A5 | U6: 課税仕入 5% | V6: B | W6: 手形
D7: 111011 | E7: 銀行01-当座(仮) | H7: KN-000081 | I7: 隅田商事㈱ | L7: 414400 | M7: K | N7: 未払金（無形固定資産） | O7: R | P7: '29 | Q7: '39 | T7: A0 | U7: 課税仕入 非課税 | V7: A | W7: 現金
D8: 111012 | E8: 銀行01-普通 | H8: KN-000123 | I8: 三菱商事㈱ （はくばく・粉） | L8: 418305 | M8: K | N8: 代理店勘定預り金 | O8: U | P8: '29 | Q8: '39 | T8: A9 | U8: 課税仕入 免税
D9: 111013 | E9: 銀行01-普通(仮) | H9: KN-000130 | I9: ヤマト食品㈱東京営業所 | L9: 441011 | M9: K | N9: 仮受金－運賃（特定） | O9: V | P9: '29 | Q9: '39 | T9: UA | U9: 課税売上 10%
D10: 111018 | E10: 銀行01-定期 | F10: 当座 | H10: KN-000141 | I10: ㈱蜜元研究所 | L10: 418307 | M10: K | N10: 海外代理店勘定（債務） | O10: Y | P10: '29 | Q10: '39 | T10: U8 | U10: 課税売上 8%
D11: 111020 | E11: 銀行02-当座 | F11: 普通 | H11: KN-000154 | I11: 三菱商事㈱（鳥越製粉） | L11: 113100 | M11: D | N11: 売掛金 | P11: '01 | Q11: '11 | T11: U5 | U11: 課税売上 5%
D12: 111021 | E12: 銀行02-当座(仮) | F12: 当座 | H12: KN-000215 | I12: ㈱ニップン商事コ－ポレ－ション | L12: 145150 | M12: D | N12: 固定資産売却未収入金 | O12: H | P12: '09 | Q12: '19 | T12: U0 | U12: 課税売上 非課税
D13: 111022 | E13: 銀行02-普通 | F13: 当座 | H13: KN-000222 | I13: 千葉製粉㈱ | L13: 145130 | M13: D | N13: 未収利息 | O13: L | P13: '09 | Q13: '19 | T13: U9 | U13: 課税売上 免税
D14: 111023 | E14: 銀行02-普通(仮) | H14: KN-000253 | I14: 三菱商事ﾗｲﾌｻｲｴﾝｽ㈱ | L14: 145100 | M14: D | N14: 未収入金 | O14: M | P14: '09 | Q14: '19 | U14: 対象外は空欄
D15: 111028 | E15: 銀行02-定期 | H15: KN-000270 | I15: かちどき製粉㈱ | L15: 147105 | M15: D | N15: 代理店勘定（債権) | O15: R | P15: '09 | Q15: '19
D16: 111030 | E16: 銀行03-当座 | H16: KN-000280 | I16: ﾔﾏｼﾞｮｳ商事㈱ | L16: 147107 | M16: D | N16: 海外代理店勘定(債権) | O16: S | P16: '09 | Q16: '19
D17: 111031 | E17: 銀行03-当座(仮) | H17: KN-000351 | I17: 杉山商事㈱ | L17: 147109 | M17: D | N17: 関係会社立替金 | O17: T | P17: '09 | Q17: '19
D18: 111032 | E18: 銀行03-普通 | H18: KN-001010 | I18: 三井物産㈱ サンヨ－食品製品 | L18: 147101 | M18: D | N18: 営業立替金 | O18: X | P18: '09 | Q18: '19
D19: 111033 | E19: 銀行03-普通(仮) | H19: KN-001027 | I19: 明星食品㈱ | L19: 416100 | M19: D | N19: 前受金 | O19: A | P19: '09 | Q19: '19
D20: 111040 | E20: 銀行04－当座 | H20: KN-001034 | I20: 東洋水産㈱ | L20: 112110 | M20: D | N20: 受取手形 | O20: W | P20: '09 | Q20: '19
D21: 111041 | E21: 銀行04－当座(仮) | H21: KN-001081 | I21: 赤城食品㈱ | L21: 441000 | M21: D | N21: 仮受金売掛金 | O21: C | P21: '09 | Q21: '19 | S21: ←2018.12.28追記
D22: 111042 | E22: 銀行04-普通 | H22: KN-001111 | I22: ㈱長谷川商店
D23: 111043 | E23: 銀行04-普通(仮) | H23: KN-001131 | I23: コ－ビオンジャパン㈱
D24: 112110 | E24: 受取手形 | H24: KN-001155 | I24: 東海デキストリン株式会社
D25: 113100 | E25: 売掛金 | H25: KN-001161 | I25: 小堺化学工業㈱
D26: 114001 | E26: 有価証券 | H26: KN-001171 | I26: 理研ビタミン㈱
D27: 127401 | E27: 貯蔵品 | H27: KN-001188 | I27: ㈲太洋食化学
D28: 142102 | E28: 前払金 | H28: KN-001195 | I28: ＡＤＥＫＡケミカルサプライ㈱
D29: 142103 | E29: 前払リース料 | H29: KN-001218 | I29: チヨダ㈱
D30: 144100 | E30: 短期貸付金 | H30: KN-001232 | I30: 真田物産㈱
D31: 144110 | E31: 従業員短期貸付金 | H31: KN-001256 | I31: ㈱みうら食品
D32: 144121 | E32: 連結間貸付金（CMS) | H32: KN-001273 | I32: ㈱マコト
D33: 145100 | E33: 未収入金 | H33: KN-001294 | I33: 日本コロイド㈱
D34: 145110 | E34: 未収消費税 | H34: KN-001300 | I34: 交易食品㈱
D35: 145130 | E35: 未収利息 | H35: KN-001348 | I35: 山印醸造㈱
D36: 145131 | E36: 未収利息(CMS) | H36: KN-001355 | I36: 三井物産㈱ オ－マイ製品
D37: 145140 | E37: 未収法人税 | H37: KN-001393 | I37: 東洋水産㈱冷食
D38: 145150 | E38: 固定資産売却未収金 | H38: KN-001411 | I38: 株式会社協和洋行
D39: 145199 | E39: 未収入金-調整 | H39: KN-001423 | I39: カネク株式会社
D40: 146100 | E40: 前渡金 | H40: KN-001430 | I40: ㈱はくばく
D41: 147100 | E41: 立替金（一般） | H41: KN-001451 | I41: 東京保存食糧㈱
D42: 147109 | E42: 関係会社立替金 | H42: KN-001478 | I42: 森井食品㈱
D43: 148100 | E43: 仮払金 | H43: KN-001495 | I43: 木村飲料㈱（吉田工場）
D44: 148102 | E44: 仮払旅費 | H44: KN-001522 | I44: 日本製麻㈱ボルガノ食品事業部
D45: 148103 | E45: 仮払給料 | H45: KN-001546 | I45: フライスタ－㈱
D46: 148105 | E46: 仮払社会保険料 | H46: KN-001553 | I46: 横浜食糧㈱
D47: 148108 | E47: 仮払事故費 | H47: KN-001577 | I47: 川光商事㈱
D48: 148115 | E48: 仮払税金(国税) | H48: KN-001614 | I48: 田中製餡㈱
D49: 148116 | E49: 仮払税金(地方税) | H49: KN-001621 | I49: 三井物産㈱ 富士食品製品
D50: 148200 | E50: 仮払消費税 | H50: KN-001645 | I50: ㈱創味食品
D51: 150000 | E51: 繰延税金資産(流動) | H51: KN-001652 | I51: 真富士屋食品㈱
D52: 170001 | E52: 貸倒引当金（流動） | H52: KN-001669 | I52: エバラ食品工業㈱
D53: 211100 | E53: 建物 | H53: KN-001676 | I53: ㈱榮村商店
D54: 211900 | E54: 償却累計額-建物 | H54: KN-001690 | I54: 三井物産㈱ 丸美屋フ－ズ
D55: 211950 | E55: 減損累計額-建物 | H55: KN-001713 | I55: 諸口
D56: 212100 | E56: 構築物 | H56: KN-001720 | I56: 丸和油脂㈱
D57: 212900 | E57: 償却累計額-構築物 | H57: KN-001737 | I57: 平和食品工業㈱
D58: 212950 | E58: 減損累計額-構築物 | H58: KN-001741 | I58: 和弘食品㈱
D59: 213100 | E59: 機械及び装置 | H59: KN-001751 | I59: 太陽商事㈱
D60: 213101 | E60: 機械及び装置(ﾘｰｽ) | H60: KN-001775 | I60: 国分首都圏株式会社
D61: 213900 | E61: 償却累計額-機械装置 | H61: KN-001818 | I61: 福）名古屋ﾗｲﾄﾊｳｽKAN食品開発ｾﾝﾀ
D62: 213902 | E62: 償却累計額-機装(ﾘｰｽ) | H62: KN-001831 | I62: 大信実業株式会社
D63: 215100 | E63: 車両運搬具 | H63: KN-001850 | I63: 天狗缶詰株式会社 東京営業所
D64: 215101 | E64: 車両運搬具(リース） | H64: KN-001855 | I64: ミドリ安全㈱
D65: 215900 | E65: 償却累計額-車両運搬 | H65: KN-001898 | I65: 三栄フーズ株式会社
D66: 215902 | E66: 償却累計額-車両(ﾘｰｽ) | H66: KN-001942 | I66: 東洋水産㈱スープ
D67: 215950 | E67: 減損累計額-車両運搬 | H67: KN-001959 | I67: ㈱日本サンガリア
D68: 216100 | E68: 工具器具備品 | H68: KN-001967 | I68: ㈱神明
D69: 216101 | E69: 工具器具備品(ﾘｰｽ) | H69: KN-001985 | I69: 宮島醤油㈱
D70: 216900 | E70: 償却累計額-工具器具 | H70: KN-002013 | I70: 三井物産㈱Ｊ－オイルミルズ
D71: 216902 | E71: 償却累計額-工具(ﾘｰｽ) | H71: KN-002020 | I71: 三井物産㈱
D72: 216950 | E72: 減損累計額-工具器具 | H72: KN-002037 | I72: 岩井の胡麻油㈱
D73: 221000 | E73: 土地 | H73: KN-002044 | I73: 三井物産㈱ かどや製油
D74: 227100 | E74: 建設仮勘定 | H74: KN-002075 | I74: ユアサ・フナショク株式会社
D75: 232100 | E75: 営業権 | H75: KN-002099 | I75: 日新蜂蜜㈱
D76: 234100 | E76: 借地権 | H76: KN-002150 | I76: ㈱ダイヤスター
D77: 234900 | E77: 償却累計額-借地権 | H77: KN-002198 | I77: ㈱内田からし
D78: 241100 | E78: ソフトウｪア | H78: KN-002230 | I78: ㈱シモヤマ
D79: 241501 | E79: ソフトウェア仮勘定 | H79: KN-002235 | I79: 上越スタ－チ㈱
D80: 241900 | E80: 償却累計額-ソフトウ | H80: KN-002245 | I80: 籠島澱粉㈱
D81: 242100 | E81: 電話利用権 | H81: KN-002265 | I81: たかい食品㈱
D82: 242150 | E82: 減損累計額-電話加入 | H82: KN-002285 | I82: 三幸食品株式会社
D83: 261101 | E83: 投資有価証券 | H83: KN-002297 | I83: 兼松食品㈱
D84: 261701 | E84: 関係会社株式 | H84: KN-002303 | I84: 金田屋㈱
D85: 262001 | E85: 出資金 | H85: KN-002305 | I85: ㈱鈴木屋（砂糖分）
D86: 263510 | E86: 長期貸付金 | H86: KN-002310 | I86: ㈱伊豆フェルメンテ
D87: 263531 | E87: 従業員長期貸付金 | H87: KN-002396 | I87: ㈱相原商店
D88: 263601 | E88: ゴルフ会員権 | H88: KN-002440 | I88: ㈱マスキチ
D89: 264001 | E89: 破産更生債権等 | H89: KN-002457 | I89: 横関油脂工業㈱
D90: 265000 | E90: 長期前払費用 | H90: KN-002495 | I90: ㈱J-NIKKAﾊﾟｰﾄﾅｰｽﾞ
D91: 265900 | E91: 償却累計額-長期前払 | H91: KN-002549 | I91: ㈱鈴木屋
D92: 266000 | E92: 繰延税金資産(固定) | H92: KN-002655 | I92: 丸松物産㈱
D93: 267100 | E93: 敷金 | H93: KN-002661 | I93: 京浜貿易㈱
D94: 268100 | E94: 差入保証金 | H94: KN-002716 | I94: 国光オブラート株式会社
D95: 268500 | E95: リサイクル預託金 | H95: KN-002755 | I95: 桜井製材
D96: 269001 | E96: 積立保険金 | H96: KN-002884 | I96: ㈱かね善
D97: 272001 | E97: 貸倒引当金（固定） | H97: KN-002901 | I97: 佐川急便株式会社
D98: 351000 | E98: 売上原価 | F98: C
D99: 351050 | E99: 原価-陸運(社有車) | F99: C
D100: 351051 | E100: 原価-陸運(傭車) | F100: C
D101: 351053 | E101: 原価-陸運(原価差額） | F101: C
D102: 351060 | E102: 原価-倉庫 | F102: C
D103: 351061 | E103: 原価-倉庫(原価差額) | F103: C
D104: 351090 | E104: 原価-不動産 | F104: C
D105: 351210 | E105: 原価-給与 | F105: C
D106: 351219 | E106: 原価-通勤費 | F106: C
D107: 351220 | E107: 原価-雑給与 | F107: C
D108: 351222 | E108: 原価-賞与引当金繰入 | F108: C
D109: 351230 | E109: 原価-賞与 | F109: C
D110: 351240 | E110: 原価-退職給付費用 | F110: C
D111: 351241 | E111: 原価-従業員退職金 | F111: C
D112: 351250 | E112: 原価-法定福利費 | F112: C
D113: 351260 | E113: 原価-福利厚生費 | F113: C
D114: 351300 | E114: 原価-光熱水道費 | F114: C
D115: 351400 | E115: 原価-修繕費 | F115: C
D116: 351600 | E116: 原価-賃借料 | F116: C
D117: 351610 | E117: 原価-賃借事務所 | F117: C
D118: 351650 | E118: 原価-賃借駐車場 | F118: C
D119: 351700 | E119: 原価-保険 | F119: C
D120: 351720 | E120: 原価-自動車保険 | F120: C
D121: 351900 | E121: 原価-旅費交通費 | F121: C
D122: 352000 | E122: 原価-会議費 | F122: C
D123: 352100 | E123: 原価-通信費 | F123: C
D124: 352310 | E124: 原価-租税公課 | F124: C
D125: 352400 | E125: 原価-用度品費 | F125: C
D126: 352410 | E126: 原価-備品 | F126: C
D127: 352420 | E127: 原価-事務用品代 | F127: C
D128: 352450 | E128: 原価-用紙代 | F128: C
D129: 352460 | E129: 原価-間接(一括償却資 | F129: C
D130: 352470 | E130: 原価-直接(一括償却資 | F130: C
D131: 352600 | E131: 原価-交際費 | F131: C
D132: 352800 | E132: 原価-会費 | F132: C
D133: 352820 | E133: 原価-会費聴講 | F133: C
D134: 352900 | E134: 原価-雑費 | F134: C
D135: 352910 | E135: 原価-雑費金融 | F135: C
D136: 352990 | E136: 原価-減価償却費(直) | F136: C
D137: 411100 | E137: 支払手形
D138: 411910 | E138: 割引手形
D139: 411920 | E139: 譲渡手形
D140: 412100 | E140: 買掛金
D141: 413110 | E141: 短期借入金
D142: 413410 | E142: 一年内返済長期借入金
D143: 413701 | E143: リース債務(流動）
D144: 413800 | E144: 連結会社間借入金（短
D145: 413900 | E145: 連結間借入金（CMS)
D146: 414100 | E146: 未払金
D147: 414200 | E147: 未払配当金
D148: 414300 | E148: 未払金（有形固定資産
D149: 414400 | E149: 未払金（無形固定資産
D150: 414500 | E150: 未払消費税等
D151: 414700 | E151: 未払事業所税
D152: 414800 | E152: 未払事業税
D153: 414900 | E153: 未払法人税等
D154: 415100 | E154: 未払費用
D155: 415102 | E155: 未払利息
D156: 415103 | E156: 未払リース料
D157: 415104 | E157: 未払利息(CMS)
D158: 415199 | E158: 未払費用その他
D159: 416000 | E159: 繰延税金負債（流動）
D160: 416100 | E160: 前受金
D161: 417199 | E161: 預り金その他
D162: 418100 | E162: 賞与引当金
D163: 422100 | E163: 仮受消費税
D164: 441000 | E164: 仮受金売掛金
D165: 441008 | E165: 仮受金（一般）
D166: 441033 | E166: 仮受金-UFJ東京営業
D167: 462100 | E167: 原価仮勘定
D168: 514100 | E168: 長期借入金
D169: 515000 | E169: リース債務(固定）
D170: 516000 | E170: 連結会社間借入金（長
D171: 568000 | E171: 繰延税金負債(固定)
D172: 572100 | E172: 退職給付引当金
D173: 572200 | E173: 役員退職慰労引当金
D174: 711000 | E174: 資本金
D175: 721000 | E175: 資本準備金
D176: 726000 | E176: 利益準備金
D177: 731400 | E177: 別途積立金
D178: 733100 | E178: 未処分利益-繰越利益
D179: 733200 | E179: 未処分利益-当期利益
D180: 733400 | E180: 当期未処分利益
D181: 733520 | E181: 中間配当金
D182: 741000 | E182: 他有価証券評価差額
D183: 811100 | E183: 売上 | F183: P
D184: 811150 | E184: 売上-陸運(社有車) | F184: P
D185: 811151 | E185: 売上-陸運(傭車) | F185: P
D186: 811160 | E186: 売上-倉庫 | F186: P
D187: 811190 | E187: 売上-不動産 | F187: P
D188: 824100 | E188: 管理-役員報酬 | F188: C
D189: 824200 | E189: 管理-職員給与 | F189: C
D190: 824300 | E190: 管理-雑給与 | F190: C
D191: 824310 | E191: 管理-派遣給与 | F191: C
D192: 824320 | E192: 管理-通勤費 | F192: C
D193: 824500 | E193: 管理-役員賞与 | F193: C
D194: 824600 | E194: 管理-賞与引当金繰入 | F194: C
D195: 824700 | E195: 管理-賞与 | F195: C
D196: 824800 | E196: 管理-退職給付費用 | F196: C
D197: 824810 | E197: 管理-従業員退職金 | F197: C
D198: 824900 | E198: 管理-法定福利費 | F198: C
D199: 825000 | E199: 管理-福利厚生費 | F199: C
D200: 825100 | E200: 管理-役退引当金繰入 | F200: C
... 51 more rows

Sheet 仕入先マスタ管理
A1: 取引先コード （カクテル） | B1: 取引先コード （SAP） | C1: 取引先名称 | D1: 省略名称（半角18,全角9文字以下） | E1: 文字数 （半角） | F1: 支払条件コード | G1: 支払条件 | H1: Month | I1: Day
A2: - | B2: KN-000001 | C2: 明治安田収納ビジネスサービス（株） | D2: 明治安田収納ﾋﾞｼﾞﾈｽ | E2: =LENB(Suppliers[[#This Row],[省略名称（半角18,全角9文字以下）]]) -> 18 | F2: 11VV | G2: =VLOOKUP(Suppliers[[#This Row],[支払条件コード]],PmtTerms[#All],2,0) -> 月末〆３０日後払 | H2: =IFERROR(VLOOKUP(Suppliers[[#This Row],[支払条件コード]],PmtTerms[],3,0),"") -> 2 | I2: =IFERROR(VLOOKUP(Suppliers[[#This Row],[支払条件コード]],PmtTerms[],4,0),"") -> 0 | K2: 取引先マスタが追加された際
A3: - | B3: KN-000002 | C3: （株）アプラス | D3: アプラス | E3: =LENB(Suppliers[[#This Row],[省略名称（半角18,全角9文字以下）]]) -> 8 | F3: 0001 | G3: =VLOOKUP(Suppliers[[#This Row],[支払条件コード]],PmtTerms[#All],2,0) -> 計上後即時 | H3: =IFERROR(VLOOKUP(Suppliers[[#This Row],[支払条件コード]],PmtTerms[],3,0),"") -> 0 | I3: =IFERROR(VLOOKUP(Suppliers[[#This Row],[支払条件コード]],PmtTerms[],4,0),"") -> 0 | K3: 1 | L3: 本シートで取引先マスタを追加してください。
A4: - | B4: KN-000003 | C4: 東京海上日動火災保険（株） | D4: 東京海上日動 | E4: =LENB(Suppliers[[#This Row],[省略名称（半角18,全角9文字以下）]]) -> 12 | F4: 11VV | G4: =VLOOKUP(Suppliers[[#This Row],[支払条件コード]],PmtTerms[#All],2,0) -> 月末〆３０日後払 | H4: =IFERROR(VLOOKUP(Suppliers[[#This Row],[支払条件コード]],PmtTerms[],3,0),"") -> 2 | I4: =IFERROR(VLOOKUP(Suppliers[[#This Row],[支払条件コード]],PmtTerms[],4,0),"") -> 0 | L4: ※「売掛金バッチシート」内の「得意先マスタ管理」には後で内容を反映させます。
A5: - | B5: KN-000004 | C5: アフラック生命保険株式会社 | D5: アフラック生命保険 | E5: =LENB(Suppliers[[#This Row],[省略名称（半角18,全角9文字以下）]]) -> 18 | F5: 11VV | G5: =VLOOKUP(Suppliers[[#This Row],[支払条件コード]],PmtTerms[#All],2,0) -> 月末〆３０日後払 | H5: =IFERROR(VLOOKUP(Suppliers[[#This Row],[支払条件コード]],PmtTerms[],3,0),"") -> 2 | I5: =IFERROR(VLOOKUP(Suppliers[[#This Row],[支払条件コード]],PmtTerms[],4,0),"") -> 0 | K5: 2 | L5: なお、「省略名称」が半額18,全角9文字を超えるとR3入力時にエラーが発生します。
A6: - | B6: KN-000005 | C6: SOMPOひまわり生命保険（株） | D6: SOMPOひまわり生命 | E6: =LENB(Suppliers[[#This Row],[省略名称（半角18,全角9文字以下）]]) -> 17 | F6: 11VV | G6: =VLOOKUP(Suppliers[[#This Row],[支払条件コード]],PmtTerms[#All],2,0) -> 月末〆３０日後払 | H6: =IFERROR(VLOOKUP(Suppliers[[#This Row],[支払条件コード]],PmtTerms[],3,0),"") -> 2 | I6: =IFERROR(VLOOKUP(Suppliers[[#This Row],[支払条件コード]],PmtTerms[],4,0),"") -> 0 | K6: 3 | L6: 「支払条件コード」は「支払条件コード」シートを参照し、入力してください。
A7: - | B7: KN-000006 | C7: 有限会社丸清製麺 | D7: 丸清製麺 | E7: =LENB(Suppliers[[#This Row],[省略名称（半角18,全角9文字以下）]]) -> 8 | F7: 0001 | G7: =VLOOKUP(Suppliers[[#This Row],[支払条件コード]],PmtTerms[#All],2,0) -> 計上後即時 | H7: =IFERROR(VLOOKUP(Suppliers[[#This Row],[支払条件コード]],PmtTerms[],3,0),"") -> 0 | I7: =IFERROR(VLOOKUP(Suppliers[[#This Row],[支払条件コード]],PmtTerms[],4,0),"") -> 0 | K7: 4 | L7: 「売掛金バッチシート」内の「得意先マスタ管理」にA～D列をコピペします。
A8: - | B8: KN-000007 | C8: 昭和日タン株式会社 | D8: 昭和日タン | E8: =LENB(Suppliers[[#This Row],[省略名称（半角18,全角9文字以下）]]) -> 10 | F8: 0001 | G8: =VLOOKUP(Suppliers[[#This Row],[支払条件コード]],PmtTerms[#All],2,0) -> 計上後即時 | H8: =IFERROR(VLOOKUP(Suppliers[[#This Row],[支払条件コード]],PmtTerms[],3,0),"") -> 0 | I8: =IFERROR(VLOOKUP(Suppliers[[#This Row],[支払条件コード]],PmtTerms[],4,0),"") -> 0
A9: - | B9: KN-000008 | C9: 昭和日タンマリタイム株式会社 | D9: 昭和日タンﾏﾘﾝﾀｲﾑ | E9: =LENB(Suppliers[[#This Row],[省略名称（半角18,全角9文字以下）]]) -> 16 | F9: 0001 | G9: =VLOOKUP(Suppliers[[#This Row],[支払条件コード]],PmtTerms[#All],2,0) -> 計上後即時 | H9: =IFERROR(VLOOKUP(Suppliers[[#This Row],[支払条件コード]],PmtTerms[],3,0),"") -> 0 | I9: =IFERROR(VLOOKUP(Suppliers[[#This Row],[支払条件コード]],PmtTerms[],4,0),"") -> 0
A10: - | B10: KN-000009 | C10: シノトランス株式会社 | D10: シノトランス | E10: =LENB(Suppliers[[#This Row],[省略名称（半角18,全角9文字以下）]]) -> 12 | F10: 0001 | G10: =VLOOKUP(Suppliers[[#This Row],[支払条件コード]],PmtTerms[#All],2,0) -> 計上後即時 | H10: =IFERROR(VLOOKUP(Suppliers[[#This Row],[支払条件コード]],PmtTerms[],3,0),"") -> 0 | I10: =IFERROR(VLOOKUP(Suppliers[[#This Row],[支払条件コード]],PmtTerms[],4,0),"") -> 0
A11: - | B11: KN-000010 | C11: 株式会社マルエス | D11: マルエス | E11: =LENB(Suppliers[[#This Row],[省略名称（半角18,全角9文字以下）]]) -> 8 | F11: 0001 | G11: =VLOOKUP(Suppliers[[#This Row],[支払条件コード]],PmtTerms[#All],2,0) -> 計上後即時 | H11: =IFERROR(VLOOKUP(Suppliers[[#This Row],[支払条件コード]],PmtTerms[],3,0),"") -> 0 | I11: =IFERROR(VLOOKUP(Suppliers[[#This Row],[支払条件コード]],PmtTerms[],4,0),"") -> 0
A12: 0000000000017 | B12: KN-000017 | C12: 三井物産㈱油脂・加工開発営業室 | D12: 三井物産(油脂加工) | E12: =LENB(Suppliers[[#This Row],[省略名称（半角18,全角9文字以下）]]) -> 18 | F12: 13VF | G12: =VLOOKUP(Suppliers[[#This Row],[支払条件コード]],PmtTerms[#All],2,0) -> 月末〆７５日後払 | H12: =IFERROR(VLOOKUP(Suppliers[[#This Row],[支払条件コード]],PmtTerms[],3,0),"") -> 3 | I12: =IFERROR(VLOOKUP(Suppliers[[#This Row],[支払条件コード]],PmtTerms[],4,0),"") -> 15
A13: - | B13: KN-000023 | C13: 新日石内航サービス株式会社 | D13: 新日石内航サービス | E13: =LENB(Suppliers[[#This Row],[省略名称（半角18,全角9文字以下）]]) -> 18 | F13: 0001 | G13: =VLOOKUP(Suppliers[[#This Row],[支払条件コード]],PmtTerms[#All],2,0) -> 計上後即時 | H13: =IFERROR(VLOOKUP(Suppliers[[#This Row],[支払条件コード]],PmtTerms[],3,0),"") -> 0 | I13: =IFERROR(VLOOKUP(Suppliers[[#This Row],[支払条件コード]],PmtTerms[],4,0),"") -> 0
A14: 0000000000024 | B14: KN-000024 | C14: 住商ﾌｰｽﾞ株式会社 | D14: 住商ﾌｰｽﾞ | E14: =LENB(Suppliers[[#This Row],[省略名称（半角18,全角9文字以下）]]) -> 8 | F14: 12VV | G14: =VLOOKUP(Suppliers[[#This Row],[支払条件コード]],PmtTerms[#All],2,0) -> 月末〆６０日後払 | H14: =IFERROR(VLOOKUP(Suppliers[[#This Row],[支払条件コード]],PmtTerms[],3,0),"") -> 3 | I14: =IFERROR(VLOOKUP(Suppliers[[#This Row],[支払条件コード]],PmtTerms[],4,0),"") -> 0
A15: - | B15: KN-000033 | C15: 株式会社博産 | D15: 博産 | E15: =LENB(Suppliers[[#This Row],[省略名称（半角18,全角9文字以下）]]) -> 4 | F15: 0001 | G15: =VLOOKUP(Suppliers[[#This Row],[支払条件コード]],PmtTerms[#All],2,0) -> 計上後即時 | H15: =IFERROR(VLOOKUP(Suppliers[[#This Row],[支払条件コード]],PmtTerms[],3,0),"") -> 0 | I15: =IFERROR(VLOOKUP(Suppliers[[#This Row],[支払条件コード]],PmtTerms[],4,0),"") -> 0
A16: - | B16: KN-000035 | C16: 株式会社PDN | D16: PDN | E16: =LENB(Suppliers[[#This Row],[省略名称（半角18,全角9文字以下）]]) -> 3 | F16: 0001 | G16: =VLOOKUP(Suppliers[[#This Row],[支払条件コード]],PmtTerms[#All],2,0) -> 計上後即時 | H16: =IFERROR(VLOOKUP(Suppliers[[#This Row],[支払条件コード]],PmtTerms[],3,0),"") -> 0 | I16: =IFERROR(VLOOKUP(Suppliers[[#This Row],[支払条件コード]],PmtTerms[],4,0),"") -> 0
A17: - | B17: KN-000036 | C17: アールケーエス株式会社 | D17: アールケーエス | E17: =LENB(Suppliers[[#This Row],[省略名称（半角18,全角9文字以下）]]) -> 14 | F17: 0001 | G17: =VLOOKUP(Suppliers[[#This Row],[支払条件コード]],PmtTerms[#All],2,0) -> 計上後即時 | H17: =IFERROR(VLOOKUP(Suppliers[[#This Row],[支払条件コード]],PmtTerms[],3,0),"") -> 0 | I17: =IFERROR(VLOOKUP(Suppliers[[#This Row],[支払条件コード]],PmtTerms[],4,0),"") -> 0
A18: - | B18: KN-000037 | C18: 株式会社アラキ製作所 | D18: アラキ製作所 | E18: =LENB(Suppliers[[#This Row],[省略名称（半角18,全角9文字以下）]]) -> 12 | F18: 0001 | G18: =VLOOKUP(Suppliers[[#This Row],[支払条件コード]],PmtTerms[#All],2,0) -> 計上後即時 | H18: =IFERROR(VLOOKUP(Suppliers[[#This Row],[支払条件コード]],PmtTerms[],3,0),"") -> 0 | I18: =IFERROR(VLOOKUP(Suppliers[[#This Row],[支払条件コード]],PmtTerms[],4,0),"") -> 0
A19: - | B19: KN-000038 | C19: 株式会社コクセン | D19: コクセン | E19: =LENB(Suppliers[[#This Row],[省略名称（半角18,全角9文字以下）]]) -> 8 | F19: 0001 | G19: =VLOOKUP(Suppliers[[#This Row],[支払条件コード]],PmtTerms[#All],2,0) -> 計上後即時 | H19: =IFERROR(VLOOKUP(Suppliers[[#This Row],[支払条件コード]],PmtTerms[],3,0),"") -> 0 | I19: =IFERROR(VLOOKUP(Suppliers[[#This Row],[支払条件コード]],PmtTerms[],4,0),"") -> 0
A20: - | B20: KN-000039 | C20: 有限会社マルカワ運輸 | D20: マルカワ運輸 | E20: =LENB(Suppliers[[#This Row],[省略名称（半角18,全角9文字以下）]]) -> 12 | F20: 0001 | G20: =VLOOKUP(Suppliers[[#This Row],[支払条件コード]],PmtTerms[#All],2,0) -> 計上後即時 | H20: =IFERROR(VLOOKUP(Suppliers[[#This Row],[支払条件コード]],PmtTerms[],3,0),"") -> 0 | I20: =IFERROR(VLOOKUP(Suppliers[[#This Row],[支払条件コード]],PmtTerms[],4,0),"") -> 0
A21: - | B21: KN-000040 | C21: 三光株式会社 | D21: 三光 | E21: =LENB(Suppliers[[#This Row],[省略名称（半角18,全角9文字以下）]]) -> 4 | F21: 0001 | G21: =VLOOKUP(Suppliers[[#This Row],[支払条件コード]],PmtTerms[#All],2,0) -> 計上後即時 | H21: =IFERROR(VLOOKUP(Suppliers[[#This Row],[支払条件コード]],PmtTerms[],3,0),"") -> 0 | I21: =IFERROR(VLOOKUP(Suppliers[[#This Row],[支払条件コード]],PmtTerms[],4,0),"") -> 0
A22: - | B22: KN-000041 | C22: 有限会社弘和 | D22: 弘和 | E22: =LENB(Suppliers[[#This Row],[省略名称（半角18,全角9文字以下）]]) -> 4 | F22: 0001 | G22: =VLOOKUP(Suppliers[[#This Row],[支払条件コード]],PmtTerms[#All],2,0) -> 計上後即時 | H22: =IFERROR(VLOOKUP(Suppliers[[#This Row],[支払条件コード]],PmtTerms[],3,0),"") -> 0 | I22: =IFERROR(VLOOKUP(Suppliers[[#This Row],[支払条件コード]],PmtTerms[],4,0),"") -> 0
A23: - | B23: KN-000042 | C23: 東京海上日動火災保険（株） | D23: 東京海上日動 | E23: =LENB(Suppliers[[#This Row],[省略名称（半角18,全角9文字以下）]]) -> 12 | F23: 11VV | G23: =VLOOKUP(Suppliers[[#This Row],[支払条件コード]],PmtTerms[#All],2,0) -> 月末〆３０日後払 | H23: =IFERROR(VLOOKUP(Suppliers[[#This Row],[支払条件コード]],PmtTerms[],3,0),"") -> 2 | I23: =IFERROR(VLOOKUP(Suppliers[[#This Row],[支払条件コード]],PmtTerms[],4,0),"") -> 0
A24: - | B24: KN-000043 | C24: 損害保険ジャパン（株） | D24: 損害保険ジャパン | E24: =LENB(Suppliers[[#This Row],[省略名称（半角18,全角9文字以下）]]) -> 16 | F24: 11VV | G24: =VLOOKUP(Suppliers[[#This Row],[支払条件コード]],PmtTerms[#All],2,0) -> 月末〆３０日後払 | H24: =IFERROR(VLOOKUP(Suppliers[[#This Row],[支払条件コード]],PmtTerms[],3,0),"") -> 2 | I24: =IFERROR(VLOOKUP(Suppliers[[#This Row],[支払条件コード]],PmtTerms[],4,0),"") -> 0
A25: - | B25: KN-000044 | C25: あいおいニッセイ同和損害保険（株） | D25: あいおいﾆｯｾｲ同和 | E25: =LENB(Suppliers[[#This Row],[省略名称（半角18,全角9文字以下）]]) -> 16 | F25: 11VV | G25: =VLOOKUP(Suppliers[[#This Row],[支払条件コード]],PmtTerms[#All],2,0) -> 月末〆３０日後払 | H25: =IFERROR(VLOOKUP(Suppliers[[#This Row],[支払条件コード]],PmtTerms[],3,0),"") -> 2 | I25: =IFERROR(VLOOKUP(Suppliers[[#This Row],[支払条件コード]],PmtTerms[],4,0),"") -> 0
A26: - | B26: KN-000045 | C26: トヨタファイナンス（株） | D26: トヨタファイナンス | E26: =LENB(Suppliers[[#This Row],[省略名称（半角18,全角9文字以下）]]) -> 18 | F26: 12VV | G26: =VLOOKUP(Suppliers[[#This Row],[支払条件コード]],PmtTerms[#All],2,0) -> 月末〆６０日後払 | H26: =IFERROR(VLOOKUP(Suppliers[[#This Row],[支払条件コード]],PmtTerms[],3,0),"") -> 3 | I26: =IFERROR(VLOOKUP(Suppliers[[#This Row],[支払条件コード]],PmtTerms[],4,0),"") -> 0
A27: - | B27: KN-000046 | C27: NTTファイナンス（株） | D27: NTTファイナンス | E27: =LENB(Suppliers[[#This Row],[省略名称（半角18,全角9文字以下）]]) -> 15 | F27: 11VV | G27: =VLOOKUP(Suppliers[[#This Row],[支払条件コード]],PmtTerms[#All],2,0) -> 月末〆３０日後払 | H27: =IFERROR(VLOOKUP(Suppliers[[#This Row],[支払条件コード]],PmtTerms[],3,0),"") -> 2 | I27: =IFERROR(VLOOKUP(Suppliers[[#This Row],[支払条件コード]],PmtTerms[],4,0),"") -> 0
A28: - | B28: KN-000047 | C28: 三井住友海上火災保険（株） | D28: 三井住友海上 | E28: =LENB(Suppliers[[#This Row],[省略名称（半角18,全角9文字以下）]]) -> 12 | F28: 11VV | G28: =VLOOKUP(Suppliers[[#This Row],[支払条件コード]],PmtTerms[#All],2,0) -> 月末〆３０日後払 | H28: =IFERROR(VLOOKUP(Suppliers[[#This Row],[支払条件コード]],PmtTerms[],3,0),"") -> 2 | I28: =IFERROR(VLOOKUP(Suppliers[[#This Row],[支払条件コード]],PmtTerms[],4,0),"") -> 0
A29: - | B29: KN-000048 | C29: （株）横浜銀行 | D29: 横浜銀行 | E29: =LENB(Suppliers[[#This Row],[省略名称（半角18,全角9文字以下）]]) -> 8 | F29: 11V5 | G29: =VLOOKUP(Suppliers[[#This Row],[支払条件コード]],PmtTerms[#All],2,0) -> 月末〆５日後払 | H29: =IFERROR(VLOOKUP(Suppliers[[#This Row],[支払条件コード]],PmtTerms[],3,0),"") -> 1 | I29: =IFERROR(VLOOKUP(Suppliers[[#This Row],[支払条件コード]],PmtTerms[],4,0),"") -> 5
A30: - | B30: KN-000049 | C30: （株）三菱UFJ銀行 | D30: 三菱UFJ銀行 | E30: =LENB(Suppliers[[#This Row],[省略名称（半角18,全角9文字以下）]]) -> 11 | F30: 11VK | G30: =VLOOKUP(Suppliers[[#This Row],[支払条件コード]],PmtTerms[#All],2,0) -> 月末〆２０日後払 | H30: =IFERROR(VLOOKUP(Suppliers[[#This Row],[支払条件コード]],PmtTerms[],3,0),"") -> 1 | I30: =IFERROR(VLOOKUP(Suppliers[[#This Row],[支払条件コード]],PmtTerms[],4,0),"") -> 20
A31: - | B31: KN-000050 | C31: 三菱オートリース（株） | D31: 三菱オートリース | E31: =LENB(Suppliers[[#This Row],[省略名称（半角18,全角9文字以下）]]) -> 16 | F31: 11VP | G31: =VLOOKUP(Suppliers[[#This Row],[支払条件コード]],PmtTerms[#All],2,0) -> 月末〆２５日後払 | H31: =IFERROR(VLOOKUP(Suppliers[[#This Row],[支払条件コード]],PmtTerms[],3,0),"") -> 1 | I31: =IFERROR(VLOOKUP(Suppliers[[#This Row],[支払条件コード]],PmtTerms[],4,0),"") -> 25
A32: 0000000000051 | B32: KN-000051 | C32: ㈱内外製粉 | D32: 内外製粉 | E32: =LENB(Suppliers[[#This Row],[省略名称（半角18,全角9文字以下）]]) -> 8 | F32: 11VV | G32: =VLOOKUP(Suppliers[[#This Row],[支払条件コード]],PmtTerms[#All],2,0) -> 月末〆３０日後払 | H32: =IFERROR(VLOOKUP(Suppliers[[#This Row],[支払条件コード]],PmtTerms[],3,0),"") -> 2 | I32: =IFERROR(VLOOKUP(Suppliers[[#This Row],[支払条件コード]],PmtTerms[],4,0),"") -> 0
A33: - | B33: KN-000052 | C33: ユニマットライフ | D33: ユニマットライフ | E33: =LENB(Suppliers[[#This Row],[省略名称（半角18,全角9文字以下）]]) -> 16 | F33: 11VP | G33: =VLOOKUP(Suppliers[[#This Row],[支払条件コード]],PmtTerms[#All],2,0) -> 月末〆２５日後払 | H33: =IFERROR(VLOOKUP(Suppliers[[#This Row],[支払条件コード]],PmtTerms[],3,0),"") -> 1 | I33: =IFERROR(VLOOKUP(Suppliers[[#This Row],[支払条件コード]],PmtTerms[],4,0),"") -> 25
A34: - | B34: KN-000053 | C34: コスモウォーター | D34: コスモウォーター | E34: =LENB(Suppliers[[#This Row],[省略名称（半角18,全角9文字以下）]]) -> 16 | F34: 11VR | G34: =VLOOKUP(Suppliers[[#This Row],[支払条件コード]],PmtTerms[#All],2,0) -> 月末〆２７日後払 | H34: =IFERROR(VLOOKUP(Suppliers[[#This Row],[支払条件コード]],PmtTerms[],3,0),"") -> 1 | I34: =IFERROR(VLOOKUP(Suppliers[[#This Row],[支払条件コード]],PmtTerms[],4,0),"") -> 27
A35: - | B35: KN-000054 | C35: ダイヤオフィスシステム（株） | D35: ﾀﾞｲﾔｵﾌｨｽｼｽﾃﾑ | E35: =LENB(Suppliers[[#This Row],[省略名称（半角18,全角9文字以下）]]) -> 12 | F35: 11VV | G35: =VLOOKUP(Suppliers[[#This Row],[支払条件コード]],PmtTerms[#All],2,0) -> 月末〆３０日後払 | H35: =IFERROR(VLOOKUP(Suppliers[[#This Row],[支払条件コード]],PmtTerms[],3,0),"") -> 2 | I35: =IFERROR(VLOOKUP(Suppliers[[#This Row],[支払条件コード]],PmtTerms[],4,0),"") -> 0
A36: - | B36: KN-000055 | C36: サイボウズ（株） | D36: サイボウズ | E36: =LENB(Suppliers[[#This Row],[省略名称（半角18,全角9文字以下）]]) -> 10 | F36: 12VV | G36: =VLOOKUP(Suppliers[[#This Row],[支払条件コード]],PmtTerms[#All],2,0) -> 月末〆６０日後払 | H36: =IFERROR(VLOOKUP(Suppliers[[#This Row],[支払条件コード]],PmtTerms[],3,0),"") -> 3 | I36: =IFERROR(VLOOKUP(Suppliers[[#This Row],[支払条件コード]],PmtTerms[],4,0),"") -> 0
A37: - | B37: KN-000056 | C37: NTTコミュニケーションズ（株） | D37: NTTｺﾐｭﾆｹｰｼｮﾝｽﾞ | E37: =LENB(Suppliers[[#This Row],[省略名称（半角18,全角9文字以下）]]) -> 14 | F37: 11VV | G37: =VLOOKUP(Suppliers[[#This Row],[支払条件コード]],PmtTerms[#All],2,0) -> 月末〆３０日後払 | H37: =IFERROR(VLOOKUP(Suppliers[[#This Row],[支払条件コード]],PmtTerms[],3,0),"") -> 2 | I37: =IFERROR(VLOOKUP(Suppliers[[#This Row],[支払条件コード]],PmtTerms[],4,0),"") -> 0
A38: - | B38: KN-000057 | C38: ソフトバンク（株） | D38: ソフトバンク | E38: =LENB(Suppliers[[#This Row],[省略名称（半角18,全角9文字以下）]]) -> 12 | F38: 11VP | G38: =VLOOKUP(Suppliers[[#This Row],[支払条件コード]],PmtTerms[#All],2,0) -> 月末〆２５日後払 | H38: =IFERROR(VLOOKUP(Suppliers[[#This Row],[支払条件コード]],PmtTerms[],3,0),"") -> 1 | I38: =IFERROR(VLOOKUP(Suppliers[[#This Row],[支払条件コード]],PmtTerms[],4,0),"") -> 25
A39: - | B39: KN-000058 | C39: シャープファイナンス | D39: ｼｬｰﾌﾟﾌｧｲﾅﾝｽ | E39: =LENB(Suppliers[[#This Row],[省略名称（半角18,全角9文字以下）]]) -> 11 | F39: 11K5 | G39: =VLOOKUP(Suppliers[[#This Row],[支払条件コード]],PmtTerms[#All],2,0) -> ２０日〆１５日後払 | H39: =IFERROR(VLOOKUP(Suppliers[[#This Row],[支払条件コード]],PmtTerms[],3,0),"") -> 1 | I39: =IFERROR(VLOOKUP(Suppliers[[#This Row],[支払条件コード]],PmtTerms[],4,0),"") -> 5
A40: - | B40: KN-000059 | C40: 三菱UFJニコス（株） | D40: 三菱UFJニコス | E40: =LENB(Suppliers[[#This Row],[省略名称（半角18,全角9文字以下）]]) -> 13 | F40: 12VA | G40: =VLOOKUP(Suppliers[[#This Row],[支払条件コード]],PmtTerms[#All],2,0) -> 月末〆４０日後払 | H40: =IFERROR(VLOOKUP(Suppliers[[#This Row],[支払条件コード]],PmtTerms[],3,0),"") -> 2 | I40: =IFERROR(VLOOKUP(Suppliers[[#This Row],[支払条件コード]],PmtTerms[],4,0),"") -> 10
A41: - | B41: KN-000060 | C41: 中小企業退職金共済事業本部 | D41: 中小企業退職金共済 | E41: =LENB(Suppliers[[#This Row],[省略名称（半角18,全角9文字以下）]]) -> 18 | F41: 11VK | G41: =VLOOKUP(Suppliers[[#This Row],[支払条件コード]],PmtTerms[#All],2,0) -> 月末〆２０日後払 | H41: =IFERROR(VLOOKUP(Suppliers[[#This Row],[支払条件コード]],PmtTerms[],3,0),"") -> 1 | I41: =IFERROR(VLOOKUP(Suppliers[[#This Row],[支払条件コード]],PmtTerms[],4,0),"") -> 20
A42: - | B42: KN-000061 | C42: （株）内田洋行 | D42: 内田洋行 | E42: =LENB(Suppliers[[#This Row],[省略名称（半角18,全角9文字以下）]]) -> 8 | F42: 11VV | G42: =VLOOKUP(Suppliers[[#This Row],[支払条件コード]],PmtTerms[#All],2,0) -> 月末〆３０日後払 | H42: =IFERROR(VLOOKUP(Suppliers[[#This Row],[支払条件コード]],PmtTerms[],3,0),"") -> 2 | I42: =IFERROR(VLOOKUP(Suppliers[[#This Row],[支払条件コード]],PmtTerms[],4,0),"") -> 0
A43: 0000000000062 | B43: KN-000062 | C43: ユアサ・フナショク㈱ | D43: ユアサ・フナショク | E43: =LENB(Suppliers[[#This Row],[省略名称（半角18,全角9文字以下）]]) -> 18 | F43: 13VF | G43: =VLOOKUP(Suppliers[[#This Row],[支払条件コード]],PmtTerms[#All],2,0) -> 月末〆７５日後払 | H43: =IFERROR(VLOOKUP(Suppliers[[#This Row],[支払条件コード]],PmtTerms[],3,0),"") -> 3 | I43: =IFERROR(VLOOKUP(Suppliers[[#This Row],[支払条件コード]],PmtTerms[],4,0),"") -> 15
A44: - | B44: KN-000063 | C44: 高野税理士事務所 | D44: 高野税理士事務所 | E44: =LENB(Suppliers[[#This Row],[省略名称（半角18,全角9文字以下）]]) -> 16 | F44: 11VV | G44: =VLOOKUP(Suppliers[[#This Row],[支払条件コード]],PmtTerms[#All],2,0) -> 月末〆３０日後払 | H44: =IFERROR(VLOOKUP(Suppliers[[#This Row],[支払条件コード]],PmtTerms[],3,0),"") -> 2 | I44: =IFERROR(VLOOKUP(Suppliers[[#This Row],[支払条件コード]],PmtTerms[],4,0),"") -> 0
A45: - | B45: KN-000064 | C45: トヨタL&F神奈川（株） | D45: トヨタL&F神奈川 | E45: =LENB(Suppliers[[#This Row],[省略名称（半角18,全角9文字以下）]]) -> 15 | F45: 11VV | G45: =VLOOKUP(Suppliers[[#This Row],[支払条件コード]],PmtTerms[#All],2,0) -> 月末〆３０日後払 | H45: =IFERROR(VLOOKUP(Suppliers[[#This Row],[支払条件コード]],PmtTerms[],3,0),"") -> 2 | I45: =IFERROR(VLOOKUP(Suppliers[[#This Row],[支払条件コード]],PmtTerms[],4,0),"") -> 0
A46: - | B46: KN-000065 | C46: 日新健康保険組合 | D46: 日新健康保険組合 | E46: =LENB(Suppliers[[#This Row],[省略名称（半角18,全角9文字以下）]]) -> 16 | F46: 11VV | G46: =VLOOKUP(Suppliers[[#This Row],[支払条件コード]],PmtTerms[#All],2,0) -> 月末〆３０日後払 | H46: =IFERROR(VLOOKUP(Suppliers[[#This Row],[支払条件コード]],PmtTerms[],3,0),"") -> 2 | I46: =IFERROR(VLOOKUP(Suppliers[[#This Row],[支払条件コード]],PmtTerms[],4,0),"") -> 0
A47: - | B47: KN-000066 | C47: 日新社員持株会 | D47: 日新社員持株会 | E47: =LENB(Suppliers[[#This Row],[省略名称（半角18,全角9文字以下）]]) -> 14 | F47: 0001 | G47: =VLOOKUP(Suppliers[[#This Row],[支払条件コード]],PmtTerms[#All],2,0) -> 計上後即時 | H47: =IFERROR(VLOOKUP(Suppliers[[#This Row],[支払条件コード]],PmtTerms[],3,0),"") -> 0 | I47: =IFERROR(VLOOKUP(Suppliers[[#This Row],[支払条件コード]],PmtTerms[],4,0),"") -> 0
A48: - | B48: KN-000067 | C48: 日本年金機構 | D48: 日本年金機構 | E48: =LENB(Suppliers[[#This Row],[省略名称（半角18,全角9文字以下）]]) -> 12 | F48: 11VV | G48: =VLOOKUP(Suppliers[[#This Row],[支払条件コード]],PmtTerms[#All],2,0) -> 月末〆３０日後払 | H48: =IFERROR(VLOOKUP(Suppliers[[#This Row],[支払条件コード]],PmtTerms[],3,0),"") -> 2 | I48: =IFERROR(VLOOKUP(Suppliers[[#This Row],[支払条件コード]],PmtTerms[],4,0),"") -> 0
A49: - | B49: KN-000068 | C49: 神奈川労働局 | D49: 神奈川労働局 | E49: =LENB(Suppliers[[#This Row],[省略名称（半角18,全角9文字以下）]]) -> 12 | F49: 0001 | G49: =VLOOKUP(Suppliers[[#This Row],[支払条件コード]],PmtTerms[#All],2,0) -> 計上後即時 | H49: =IFERROR(VLOOKUP(Suppliers[[#This Row],[支払条件コード]],PmtTerms[],3,0),"") -> 0 | I49: =IFERROR(VLOOKUP(Suppliers[[#This Row],[支払条件コード]],PmtTerms[],4,0),"") -> 0
A50: - | B50: KN-000069 | C50: 神奈川県小麦粉問屋懇意会 | D50: 小麦粉問屋懇意会 | E50: =LENB(Suppliers[[#This Row],[省略名称（半角18,全角9文字以下）]]) -> 16 | F50: 11VV | G50: =VLOOKUP(Suppliers[[#This Row],[支払条件コード]],PmtTerms[#All],2,0) -> 月末〆３０日後払 | H50: =IFERROR(VLOOKUP(Suppliers[[#This Row],[支払条件コード]],PmtTerms[],3,0),"") -> 2 | I50: =IFERROR(VLOOKUP(Suppliers[[#This Row],[支払条件コード]],PmtTerms[],4,0),"") -> 0
A51: - | B51: KN-000070 | C51: 横浜市麺業協同組合 | D51: 横浜市麺業協同組合 | E51: =LENB(Suppliers[[#This Row],[省略名称（半角18,全角9文字以下）]]) -> 18 | F51: 11VV | G51: =VLOOKUP(Suppliers[[#This Row],[支払条件コード]],PmtTerms[#All],2,0) -> 月末〆３０日後払 | H51: =IFERROR(VLOOKUP(Suppliers[[#This Row],[支払条件コード]],PmtTerms[],3,0),"") -> 2 | I51: =IFERROR(VLOOKUP(Suppliers[[#This Row],[支払条件コード]],PmtTerms[],4,0),"") -> 0
A52: - | B52: KN-000071 | C52: 花象わかしお会 | D52: 花象わかしお会 | E52: =LENB(Suppliers[[#This Row],[省略名称（半角18,全角9文字以下）]]) -> 14 | F52: 11VV | G52: =VLOOKUP(Suppliers[[#This Row],[支払条件コード]],PmtTerms[#All],2,0) -> 月末〆３０日後払 | H52: =IFERROR(VLOOKUP(Suppliers[[#This Row],[支払条件コード]],PmtTerms[],3,0),"") -> 2 | I52: =IFERROR(VLOOKUP(Suppliers[[#This Row],[支払条件コード]],PmtTerms[],4,0),"") -> 0
A53: - | B53: KN-000072 | C53: 神奈川日粉会 | D53: 神奈川日粉会 | E53: =LENB(Suppliers[[#This Row],[省略名称（半角18,全角9文字以下）]]) -> 12 | F53: 11VV | G53: =VLOOKUP(Suppliers[[#This Row],[支払条件コード]],PmtTerms[#All],2,0) -> 月末〆３０日後払 | H53: =IFERROR(VLOOKUP(Suppliers[[#This Row],[支払条件コード]],PmtTerms[],3,0),"") -> 2 | I53: =IFERROR(VLOOKUP(Suppliers[[#This Row],[支払条件コード]],PmtTerms[],4,0),"") -> 0
A54: - | B54: KN-000073 | C54: 神奈川県料理材料卸商協同組合 | D54: 料理材料卸商協組 | E54: =LENB(Suppliers[[#This Row],[省略名称（半角18,全角9文字以下）]]) -> 16 | F54: 11VV | G54: =VLOOKUP(Suppliers[[#This Row],[支払条件コード]],PmtTerms[#All],2,0) -> 月末〆３０日後払 | H54: =IFERROR(VLOOKUP(Suppliers[[#This Row],[支払条件コード]],PmtTerms[],3,0),"") -> 2 | I54: =IFERROR(VLOOKUP(Suppliers[[#This Row],[支払条件コード]],PmtTerms[],4,0),"") -> 0
A55: - | B55: KN-000074 | C55: 榮村EFG会 | D55: 榮村EFG会 | E55: =LENB(Suppliers[[#This Row],[省略名称（半角18,全角9文字以下）]]) -> 9 | F55: 11VV | G55: =VLOOKUP(Suppliers[[#This Row],[支払条件コード]],PmtTerms[#All],2,0) -> 月末〆３０日後払 | H55: =IFERROR(VLOOKUP(Suppliers[[#This Row],[支払条件コード]],PmtTerms[],3,0),"") -> 2 | I55: =IFERROR(VLOOKUP(Suppliers[[#This Row],[支払条件コード]],PmtTerms[],4,0),"") -> 0
A56: - | B56: KN-000075 | C56: 横浜総合アソシエイツ会 | D56: 横浜アソシエイツ会 | E56: =LENB(Suppliers[[#This Row],[省略名称（半角18,全角9文字以下）]]) -> 18 | F56: 11VV | G56: =VLOOKUP(Suppliers[[#This Row],[支払条件コード]],PmtTerms[#All],2,0) -> 月末〆３０日後払 | H56: =IFERROR(VLOOKUP(Suppliers[[#This Row],[支払条件コード]],PmtTerms[],3,0),"") -> 2 | I56: =IFERROR(VLOOKUP(Suppliers[[#This Row],[支払条件コード]],PmtTerms[],4,0),"") -> 0
A57: - | B57: KN-000076 | C57: 神奈川県損害保険代理店業協会 | D57: 損保代理店業協会 | E57: =LENB(Suppliers[[#This Row],[省略名称（半角18,全角9文字以下）]]) -> 16 | F57: 12VV | G57: =VLOOKUP(Suppliers[[#This Row],[支払条件コード]],PmtTerms[#All],2,0) -> 月末〆６０日後払 | H57: =IFERROR(VLOOKUP(Suppliers[[#This Row],[支払条件コード]],PmtTerms[],3,0),"") -> 3 | I57: =IFERROR(VLOOKUP(Suppliers[[#This Row],[支払条件コード]],PmtTerms[],4,0),"") -> 0
A58: - | B58: KN-000077 | C58: 横浜中法人会 | D58: 横浜中法人会 | E58: =LENB(Suppliers[[#This Row],[省略名称（半角18,全角9文字以下）]]) -> 12 | F58: 12VV | G58: =VLOOKUP(Suppliers[[#This Row],[支払条件コード]],PmtTerms[#All],2,0) -> 月末〆６０日後払 | H58: =IFERROR(VLOOKUP(Suppliers[[#This Row],[支払条件コード]],PmtTerms[],3,0),"") -> 3 | I58: =IFERROR(VLOOKUP(Suppliers[[#This Row],[支払条件コード]],PmtTerms[],4,0),"") -> 0
A59: - | B59: KN-000078 | C59: 横浜商工会議所 | D59: 横浜商工会議所 | E59: =LENB(Suppliers[[#This Row],[省略名称（半角18,全角9文字以下）]]) -> 14 | F59: 12VV | G59: =VLOOKUP(Suppliers[[#This Row],[支払条件コード]],PmtTerms[#All],2,0) -> 月末〆６０日後払 | H59: =IFERROR(VLOOKUP(Suppliers[[#This Row],[支払条件コード]],PmtTerms[],3,0),"") -> 3 | I59: =IFERROR(VLOOKUP(Suppliers[[#This Row],[支払条件コード]],PmtTerms[],4,0),"") -> 0
A60: - | B60: KN-000079 | C60: 神奈川県社会保険協会 | D60: 県社会保険協会 | E60: =LENB(Suppliers[[#This Row],[省略名称（半角18,全角9文字以下）]]) -> 14 | F60: 12VV | G60: =VLOOKUP(Suppliers[[#This Row],[支払条件コード]],PmtTerms[#All],2,0) -> 月末〆６０日後払 | H60: =IFERROR(VLOOKUP(Suppliers[[#This Row],[支払条件コード]],PmtTerms[],3,0),"") -> 3 | I60: =IFERROR(VLOOKUP(Suppliers[[#This Row],[支払条件コード]],PmtTerms[],4,0),"") -> 0
A61: - | B61: KN-000080 | C61: さくらインターネット株式会社 | D61: さくらｲﾝﾀｰﾈｯﾄ㈱ | E61: =LENB(Suppliers[[#This Row],[省略名称（半角18,全角9文字以下）]]) -> 15 | F61: 12VV | G61: =VLOOKUP(Suppliers[[#This Row],[支払条件コード]],PmtTerms[#All],2,0) -> 月末〆６０日後払 | H61: =IFERROR(VLOOKUP(Suppliers[[#This Row],[支払条件コード]],PmtTerms[],3,0),"") -> 3 | I61: =IFERROR(VLOOKUP(Suppliers[[#This Row],[支払条件コード]],PmtTerms[],4,0),"") -> 0
A62: 0000000000081 | B62: KN-000081 | C62: 隅田商事㈱ | D62: 隅田商事 | E62: =LENB(Suppliers[[#This Row],[省略名称（半角18,全角9文字以下）]]) -> 8 | F62: 11VV | G62: =VLOOKUP(Suppliers[[#This Row],[支払条件コード]],PmtTerms[#All],2,0) -> 月末〆３０日後払 | H62: =IFERROR(VLOOKUP(Suppliers[[#This Row],[支払条件コード]],PmtTerms[],3,0),"") -> 2 | I62: =IFERROR(VLOOKUP(Suppliers[[#This Row],[支払条件コード]],PmtTerms[],4,0),"") -> 0
A63: - | B63: KN-000082 | C63: 勤次郎株式会社 | D63: 勤次郎株式会社 | E63: =LENB(Suppliers[[#This Row],[省略名称（半角18,全角9文字以下）]]) -> 14 | F63: 12VV | G63: =VLOOKUP(Suppliers[[#This Row],[支払条件コード]],PmtTerms[#All],2,0) -> 月末〆６０日後払 | H63: =IFERROR(VLOOKUP(Suppliers[[#This Row],[支払条件コード]],PmtTerms[],3,0),"") -> 3 | I63: =IFERROR(VLOOKUP(Suppliers[[#This Row],[支払条件コード]],PmtTerms[],4,0),"") -> 0
A64: - | B64: KN-000083 | C64: 株式会社NTTデータ | D64: 株式会社NTTデータ | E64: =LENB(Suppliers[[#This Row],[省略名称（半角18,全角9文字以下）]]) -> 17 | F64: 10FV | G64: =VLOOKUP(Suppliers[[#This Row],[支払条件コード]],PmtTerms[#All],2,0) -> １５日〆１５日後払 | H64: =IFERROR(VLOOKUP(Suppliers[[#This Row],[支払条件コード]],PmtTerms[],3,0),"") -> 1 | I64: =IFERROR(VLOOKUP(Suppliers[[#This Row],[支払条件コード]],PmtTerms[],4,0),"") -> 0
A65: - | B65: KN-000084 | C65: 株式会社エイコー | D65: 株式会社エイコー | E65: =LENB(Suppliers[[#This Row],[省略名称（半角18,全角9文字以下）]]) -> 16 | F65: 11VV | G65: =VLOOKUP(Suppliers[[#This Row],[支払条件コード]],PmtTerms[#All],2,0) -> 月末〆３０日後払 | H65: =IFERROR(VLOOKUP(Suppliers[[#This Row],[支払条件コード]],PmtTerms[],3,0),"") -> 2 | I65: =IFERROR(VLOOKUP(Suppliers[[#This Row],[支払条件コード]],PmtTerms[],4,0),"") -> 0
A66: - | B66: KN-000085 | C66: 株式会社映像企画センター | D66: ㈱映像企画センター | E66: =LENB(Suppliers[[#This Row],[省略名称（半角18,全角9文字以下）]]) -> 18 | F66: 11VV | G66: =VLOOKUP(Suppliers[[#This Row],[支払条件コード]],PmtTerms[#All],2,0) -> 月末〆３０日後払 | H66: =IFERROR(VLOOKUP(Suppliers[[#This Row],[支払条件コード]],PmtTerms[],3,0),"") -> 2 | I66: =IFERROR(VLOOKUP(Suppliers[[#This Row],[支払条件コード]],PmtTerms[],4,0),"") -> 0
A67: - | B67: KN-000086 | C67: 日本郵便株式会社 | D67: 日本郵便株式会社 | E67: =LENB(Suppliers[[#This Row],[省略名称（半角18,全角9文字以下）]]) -> 16 | F67: 11VK | G67: =VLOOKUP(Suppliers[[#This Row],[支払条件コード]],PmtTerms[#All],2,0) -> 月末〆２０日後払 | H67: =IFERROR(VLOOKUP(Suppliers[[#This Row],[支払条件コード]],PmtTerms[],3,0),"") -> 1 | I67: =IFERROR(VLOOKUP(Suppliers[[#This Row],[支払条件コード]],PmtTerms[],4,0),"") -> 20
A68: - | B68: KN-000087 | C68: アフラック生命保険株式会社 | D68: アフラック生命保険 | E68: =LENB(Suppliers[[#This Row],[省略名称（半角18,全角9文字以下）]]) -> 18 | F68: 10FP | G68: =VLOOKUP(Suppliers[[#This Row],[支払条件コード]],PmtTerms[#All],2,0) -> １５日〆１０日後払 | H68: =IFERROR(VLOOKUP(Suppliers[[#This Row],[支払条件コード]],PmtTerms[],3,0),"") -> 0 | I68: =IFERROR(VLOOKUP(Suppliers[[#This Row],[支払条件コード]],PmtTerms[],4,0),"") -> 25
A69: - | B69: KN-000088 | C69: 住友生命保険株式会社 | D69: 住友生命保険㈱ | E69: =LENB(Suppliers[[#This Row],[省略名称（半角18,全角9文字以下）]]) -> 14 | F69: 10FP | G69: =VLOOKUP(Suppliers[[#This Row],[支払条件コード]],PmtTerms[#All],2,0) -> １５日〆１０日後払 | H69: =IFERROR(VLOOKUP(Suppliers[[#This Row],[支払条件コード]],PmtTerms[],3,0),"") -> 0 | I69: =IFERROR(VLOOKUP(Suppliers[[#This Row],[支払条件コード]],PmtTerms[],4,0),"") -> 25
A70: - | B70: KN-000089 | C70: 大樹生命株式会社 | D70: 大樹生命株式会社 | E70: =LENB(Suppliers[[#This Row],[省略名称（半角18,全角9文字以下）]]) -> 16 | F70: 10FP | G70: =VLOOKUP(Suppliers[[#This Row],[支払条件コード]],PmtTerms[#All],2,0) -> １５日〆１０日後払 | H70: =IFERROR(VLOOKUP(Suppliers[[#This Row],[支払条件コード]],PmtTerms[],3,0),"") -> 0 | I70: =IFERROR(VLOOKUP(Suppliers[[#This Row],[支払条件コード]],PmtTerms[],4,0),"") -> 25
A71: - | B71: KN-000090 | C71: 第一生命保険株式会社 | D71: 第一生命保険㈱ | E71: =LENB(Suppliers[[#This Row],[省略名称（半角18,全角9文字以下）]]) -> 14 | F71: 10FP | G71: =VLOOKUP(Suppliers[[#This Row],[支払条件コード]],PmtTerms[#All],2,0) -> １５日〆１０日後払 | H71: =IFERROR(VLOOKUP(Suppliers[[#This Row],[支払条件コード]],PmtTerms[],3,0),"") -> 0 | I71: =IFERROR(VLOOKUP(Suppliers[[#This Row],[支払条件コード]],PmtTerms[],4,0),"") -> 25
A72: - | B72: KN-000091 | C72: 日本生命保険相互会社 | D72: 日本生命保険 | E72: =LENB(Suppliers[[#This Row],[省略名称（半角18,全角9文字以下）]]) -> 12 | F72: 10FP | G72: =VLOOKUP(Suppliers[[#This Row],[支払条件コード]],PmtTerms[#All],2,0) -> １５日〆１０日後払 | H72: =IFERROR(VLOOKUP(Suppliers[[#This Row],[支払条件コード]],PmtTerms[],3,0),"") -> 0 | I72: =IFERROR(VLOOKUP(Suppliers[[#This Row],[支払条件コード]],PmtTerms[],4,0),"") -> 25
A73: - | B73: KN-000092 | C73: 明治安田生命保険相互会社 | D73: 明治安田生命保険 | E73: =LENB(Suppliers[[#This Row],[省略名称（半角18,全角9文字以下）]]) -> 16 | F73: 10FP | G73: =VLOOKUP(Suppliers[[#This Row],[支払条件コード]],PmtTerms[#All],2,0) -> １５日〆１０日後払 | H73: =IFERROR(VLOOKUP(Suppliers[[#This Row],[支払条件コード]],PmtTerms[],3,0),"") -> 0 | I73: =IFERROR(VLOOKUP(Suppliers[[#This Row],[支払条件コード]],PmtTerms[],4,0),"") -> 25
A74: - | B74: KN-000093 | C74: 株式会社ホンダカーズ横浜 | D74: ㈱ホンダカーズ横浜 | E74: =LENB(Suppliers[[#This Row],[省略名称（半角18,全角9文字以下）]]) -> 18 | F74: 10FV | G74: =VLOOKUP(Suppliers[[#This Row],[支払条件コード]],PmtTerms[#All],2,0) -> １５日〆１５日後払 | H74: =IFERROR(VLOOKUP(Suppliers[[#This Row],[支払条件コード]],PmtTerms[],3,0),"") -> 1 | I74: =IFERROR(VLOOKUP(Suppliers[[#This Row],[支払条件コード]],PmtTerms[],4,0),"") -> 0
A75: - | B75: KN-000094 | C75: 株式会社ダイトーフジテック | D75: ダイトーフジテック | E75: =LENB(Suppliers[[#This Row],[省略名称（半角18,全角9文字以下）]]) -> 18 | F75: 11VV | G75: =VLOOKUP(Suppliers[[#This Row],[支払条件コード]],PmtTerms[#All],2,0) -> 月末〆３０日後払 | H75: =IFERROR(VLOOKUP(Suppliers[[#This Row],[支払条件コード]],PmtTerms[],3,0),"") -> 2 | I75: =IFERROR(VLOOKUP(Suppliers[[#This Row],[支払条件コード]],PmtTerms[],4,0),"") -> 0
A76: - | B76: KN-000095 | C76: 湘南製麺協同組合 | D76: 湘南製麺協同組合 | E76: =LENB(Suppliers[[#This Row],[省略名称（半角18,全角9文字以下）]]) -> 16 | F76: 11VV | G76: =VLOOKUP(Suppliers[[#This Row],[支払条件コード]],PmtTerms[#All],2,0) -> 月末〆３０日後払 | H76: =IFERROR(VLOOKUP(Suppliers[[#This Row],[支払条件コード]],PmtTerms[],3,0),"") -> 2 | I76: =IFERROR(VLOOKUP(Suppliers[[#This Row],[支払条件コード]],PmtTerms[],4,0),"") -> 0
A77: - | B77: KN-000096 | C77: 南関東日野自動車株式会社 | D77: 南関東日野自動車㈱ | E77: =LENB(Suppliers[[#This Row],[省略名称（半角18,全角9文字以下）]]) -> 18 | F77: 11VV | G77: =VLOOKUP(Suppliers[[#This Row],[支払条件コード]],PmtTerms[#All],2,0) -> 月末〆３０日後払 | H77: =IFERROR(VLOOKUP(Suppliers[[#This Row],[支払条件コード]],PmtTerms[],3,0),"") -> 2 | I77: =IFERROR(VLOOKUP(Suppliers[[#This Row],[支払条件コード]],PmtTerms[],4,0),"") -> 0
A78: - | B78: KN-000097 | C78: 結核予防会神奈川県 | D78: 結核予防会神奈川県 | E78: =LENB(Suppliers[[#This Row],[省略名称（半角18,全角9文字以下）]]) -> 18 | F78: 11VV | G78: =VLOOKUP(Suppliers[[#This Row],[支払条件コード]],PmtTerms[#All],2,0) -> 月末〆３０日後払 | H78: =IFERROR(VLOOKUP(Suppliers[[#This Row],[支払条件コード]],PmtTerms[],3,0),"") -> 2 | I78: =IFERROR(VLOOKUP(Suppliers[[#This Row],[支払条件コード]],PmtTerms[],4,0),"") -> 0
A79: - | B79: KN-000098 | C79: 日新航空サービス株式会社 | D79: 日新航空サービス㈱ | E79: =LENB(Suppliers[[#This Row],[省略名称（半角18,全角9文字以下）]]) -> 18 | F79: 11VV | G79: =VLOOKUP(Suppliers[[#This Row],[支払条件コード]],PmtTerms[#All],2,0) -> 月末〆３０日後払 | H79: =IFERROR(VLOOKUP(Suppliers[[#This Row],[支払条件コード]],PmtTerms[],3,0),"") -> 2 | I79: =IFERROR(VLOOKUP(Suppliers[[#This Row],[支払条件コード]],PmtTerms[],4,0),"") -> 0
A80: - | B80: KN-000099 | C80: 佐久島弁財天奉賛会 | D80: 佐久島弁財天奉賛会 | E80: =LENB(Suppliers[[#This Row],[省略名称（半角18,全角9文字以下）]]) -> 18 | F80: 10FV | G80: =VLOOKUP(Suppliers[[#This Row],[支払条件コード]],PmtTerms[#All],2,0) -> １５日〆１５日後払 | H80: =IFERROR(VLOOKUP(Suppliers[[#This Row],[支払条件コード]],PmtTerms[],3,0),"") -> 1 | I80: =IFERROR(VLOOKUP(Suppliers[[#This Row],[支払条件コード]],PmtTerms[],4,0),"") -> 0
A81: 0000000000123 | B81: KN-000123 | C81: 三菱商事㈱ （はくばく・粉） | D81: 三菱商事(はくばく) | E81: =LENB(Suppliers[[#This Row],[省略名称（半角18,全角9文字以下）]]) -> 18 | F81: 11VV | G81: =VLOOKUP(Suppliers[[#This Row],[支払条件コード]],PmtTerms[#All],2,0) -> 月末〆３０日後払 | H81: =IFERROR(VLOOKUP(Suppliers[[#This Row],[支払条件コード]],PmtTerms[],3,0),"") -> 2 | I81: =IFERROR(VLOOKUP(Suppliers[[#This Row],[支払条件コード]],PmtTerms[],4,0),"") -> 0
A82: 0000000000130 | B82: KN-000130 | C82: ヤマト食品㈱東京営業所 | D82: ヤマト食品 | E82: =LENB(Suppliers[[#This Row],[省略名称（半角18,全角9文字以下）]]) -> 10 | F82: 11VV | G82: =VLOOKUP(Suppliers[[#This Row],[支払条件コード]],PmtTerms[#All],2,0) -> 月末〆３０日後払 | H82: =IFERROR(VLOOKUP(Suppliers[[#This Row],[支払条件コード]],PmtTerms[],3,0),"") -> 2 | I82: =IFERROR(VLOOKUP(Suppliers[[#This Row],[支払条件コード]],PmtTerms[],4,0),"") -> 0
A83: 0000000000141 | B83: KN-000141 | C83: ㈱蜜元研究所 | D83: 蜜元研究所 | E83: =LENB(Suppliers[[#This Row],[省略名称（半角18,全角9文字以下）]]) -> 10 | F83: 11VV | G83: =VLOOKUP(Suppliers[[#This Row],[支払条件コード]],PmtTerms[#All],2,0) -> 月末〆３０日後払 | H83: =IFERROR(VLOOKUP(Suppliers[[#This Row],[支払条件コード]],PmtTerms[],3,0),"") -> 2 | I83: =IFERROR(VLOOKUP(Suppliers[[#This Row],[支払条件コード]],PmtTerms[],4,0),"") -> 0
A84: 0000000000154 | B84: KN-000154 | C84: 三菱商事㈱（鳥越製粉） | D84: 三菱商事(鳥越製粉) | E84: =LENB(Suppliers[[#This Row],[省略名称（半角18,全角9文字以下）]]) -> 18 | F84: 11VV | G84: =VLOOKUP(Suppliers[[#This Row],[支払条件コード]],PmtTerms[#All],2,0) -> 月末〆３０日後払 | H84: =IFERROR(VLOOKUP(Suppliers[[#This Row],[支払条件コード]],PmtTerms[],3,0),"") -> 2 | I84: =IFERROR(VLOOKUP(Suppliers[[#This Row],[支払条件コード]],PmtTerms[],4,0),"") -> 0
A85: 0000000000215 | B85: KN-000215 | C85: ㈱ニップン商事コ－ポレ－ション | D85: ニップン商事 | E85: =LENB(Suppliers[[#This Row],[省略名称（半角18,全角9文字以下）]]) -> 12 | F85: 11VV | G85: =VLOOKUP(Suppliers[[#This Row],[支払条件コード]],PmtTerms[#All],2,0) -> 月末〆３０日後払 | H85: =IFERROR(VLOOKUP(Suppliers[[#This Row],[支払条件コード]],PmtTerms[],3,0),"") -> 2 | I85: =IFERROR(VLOOKUP(Suppliers[[#This Row],[支払条件コード]],PmtTerms[],4,0),"") -> 0
A86: 0000000000222 | B86: KN-000222 | C86: 千葉製粉㈱ | D86: 千葉製粉 | E86: =LENB(Suppliers[[#This Row],[省略名称（半角18,全角9文字以下）]]) -> 8 | F86: 12VK | G86: =VLOOKUP(Suppliers[[#This Row],[支払条件コード]],PmtTerms[#All],2,0) -> 月末〆５０日後払 | H86: =IFERROR(VLOOKUP(Suppliers[[#This Row],[支払条件コード]],PmtTerms[],3,0),"") -> 2 | I86: =IFERROR(VLOOKUP(Suppliers[[#This Row],[支払条件コード]],PmtTerms[],4,0),"") -> 20
A87: 0000000000253 | B87: KN-000253 | C87: 三菱商事ﾗｲﾌｻｲｴﾝｽ㈱ | D87: 三菱商事ﾗｲﾌｻｲｴﾝｽ | E87: =LENB(Suppliers[[#This Row],[省略名称（半角18,全角9文字以下）]]) -> 16 | F87: 12VV | G87: =VLOOKUP(Suppliers[[#This Row],[支払条件コード]],PmtTerms[#All],2,0) -> 月末〆６０日後払 | H87: =IFERROR(VLOOKUP(Suppliers[[#This Row],[支払条件コード]],PmtTerms[],3,0),"") -> 3 | I87: =IFERROR(VLOOKUP(Suppliers[[#This Row],[支払条件コード]],PmtTerms[],4,0),"") -> 0
A88: 0000000000270 | B88: KN-000270 | C88: かちどき製粉㈱ | D88: かちどき製粉 | E88: =LENB(Suppliers[[#This Row],[省略名称（半角18,全角9文字以下）]]) -> 12 | F88: 11VV | G88: =VLOOKUP(Suppliers[[#This Row],[支払条件コード]],PmtTerms[#All],2,0) -> 月末〆３０日後払 | H88: =IFERROR(VLOOKUP(Suppliers[[#This Row],[支払条件コード]],PmtTerms[],3,0),"") -> 2 | I88: =IFERROR(VLOOKUP(Suppliers[[#This Row],[支払条件コード]],PmtTerms[],4,0),"") -> 0
A89: 0000000000280 | B89: KN-000280 | C89: ﾔﾏｼﾞｮｳ商事㈱ | D89: ﾔﾏｼﾞｮｳ商事 | E89: =LENB(Suppliers[[#This Row],[省略名称（半角18,全角9文字以下）]]) -> 10 | F89: 11VV | G89: =VLOOKUP(Suppliers[[#This Row],[支払条件コード]],PmtTerms[#All],2,0) -> 月末〆３０日後払 | H89: =IFERROR(VLOOKUP(Suppliers[[#This Row],[支払条件コード]],PmtTerms[],3,0),"") -> 2 | I89: =IFERROR(VLOOKUP(Suppliers[[#This Row],[支払条件コード]],PmtTerms[],4,0),"") -> 0
A90: 0000000000351 | B90: KN-000351 | C90: 杉山商事㈱ | D90: 杉山商事 | E90: =LENB(Suppliers[[#This Row],[省略名称（半角18,全角9文字以下）]]) -> 8 | F90: 11VV | G90: =VLOOKUP(Suppliers[[#This Row],[支払条件コード]],PmtTerms[#All],2,0) -> 月末〆３０日後払 | H90: =IFERROR(VLOOKUP(Suppliers[[#This Row],[支払条件コード]],PmtTerms[],3,0),"") -> 2 | I90: =IFERROR(VLOOKUP(Suppliers[[#This Row],[支払条件コード]],PmtTerms[],4,0),"") -> 0
B91: KN-000400 | C91: 横浜市神奈川区役所 | D91: 横浜市神奈川区役所 | E91: =LENB(Suppliers[[#This Row],[省略名称（半角18,全角9文字以下）]]) -> 18 | F91: 11AA | G91: =VLOOKUP(Suppliers[[#This Row],[支払条件コード]],PmtTerms[#All],2,0) -> １０日〆３０日後払 | H91: =IFERROR(VLOOKUP(Suppliers[[#This Row],[支払条件コード]],PmtTerms[],3,0),"") -> 1 | I91: =IFERROR(VLOOKUP(Suppliers[[#This Row],[支払条件コード]],PmtTerms[],4,0),"") -> 10
B92: KN-000401 | C92: ヤマト運輸 株式会社 | D92: ヤマト運輸株式会社 | E92: =LENB(Suppliers[[#This Row],[省略名称（半角18,全角9文字以下）]]) -> 18 | F92: 11VQ | G92: =VLOOKUP(Suppliers[[#This Row],[支払条件コード]],PmtTerms[#All],2,0) -> 月末〆２６日後払 | H92: =IFERROR(VLOOKUP(Suppliers[[#This Row],[支払条件コード]],PmtTerms[],3,0),"") -> 1 | I92: =IFERROR(VLOOKUP(Suppliers[[#This Row],[支払条件コード]],PmtTerms[],4,0),"") -> 26
B93: KN-000402 | C93: 株式会社 麻生 | D93: 株式会社 麻生 | E93: =LENB(Suppliers[[#This Row],[省略名称（半角18,全角9文字以下）]]) -> 14 | F93: 11VV | G93: =VLOOKUP(Suppliers[[#This Row],[支払条件コード]],PmtTerms[#All],2,0) -> 月末〆３０日後払 | H93: =IFERROR(VLOOKUP(Suppliers[[#This Row],[支払条件コード]],PmtTerms[],3,0),"") -> 2 | I93: =IFERROR(VLOOKUP(Suppliers[[#This Row],[支払条件コード]],PmtTerms[],4,0),"") -> 0
A94: 0000000001010 | B94: KN-001010 | C94: 三井物産㈱ サンヨ－食品製品 | D94: 三井物産(サンヨ－) | E94: =LENB(Suppliers[[#This Row],[省略名称（半角18,全角9文字以下）]]) -> 18 | F94: 12VV | G94: =VLOOKUP(Suppliers[[#This Row],[支払条件コード]],PmtTerms[#All],2,0) -> 月末〆６０日後払 | H94: =IFERROR(VLOOKUP(Suppliers[[#This Row],[支払条件コード]],PmtTerms[],3,0),"") -> 3 | I94: =IFERROR(VLOOKUP(Suppliers[[#This Row],[支払条件コード]],PmtTerms[],4,0),"") -> 0
A95: 0000000001027 | B95: KN-001027 | C95: 明星食品㈱ | D95: 明星食品 | E95: =LENB(Suppliers[[#This Row],[省略名称（半角18,全角9文字以下）]]) -> 8 | F95: 12VF | G95: =VLOOKUP(Suppliers[[#This Row],[支払条件コード]],PmtTerms[#All],2,0) -> 月末〆４５日後払 | H95: =IFERROR(VLOOKUP(Suppliers[[#This Row],[支払条件コード]],PmtTerms[],3,0),"") -> 2 | I95: =IFERROR(VLOOKUP(Suppliers[[#This Row],[支払条件コード]],PmtTerms[],4,0),"") -> 15
A96: 0000000001034 | B96: KN-001034 | C96: 東洋水産㈱ | D96: 東洋水産 | E96: =LENB(Suppliers[[#This Row],[省略名称（半角18,全角9文字以下）]]) -> 8 | F96: 12VV | G96: =VLOOKUP(Suppliers[[#This Row],[支払条件コード]],PmtTerms[#All],2,0) -> 月末〆６０日後払 | H96: =IFERROR(VLOOKUP(Suppliers[[#This Row],[支払条件コード]],PmtTerms[],3,0),"") -> 3 | I96: =IFERROR(VLOOKUP(Suppliers[[#This Row],[支払条件コード]],PmtTerms[],4,0),"") -> 0
A97: 0000000001081 | B97: KN-001081 | C97: 赤城食品㈱ | D97: 赤城食品 | E97: =LENB(Suppliers[[#This Row],[省略名称（半角18,全角9文字以下）]]) -> 8 | F97: 11VV | G97: =VLOOKUP(Suppliers[[#This Row],[支払条件コード]],PmtTerms[#All],2,0) -> 月末〆３０日後払 | H97: =IFERROR(VLOOKUP(Suppliers[[#This Row],[支払条件コード]],PmtTerms[],3,0),"") -> 2 | I97: =IFERROR(VLOOKUP(Suppliers[[#This Row],[支払条件コード]],PmtTerms[],4,0),"") -> 0
A98: 0000000001111 | B98: KN-001111 | C98: ㈱長谷川商店 | D98: 長谷川商店 | E98: =LENB(Suppliers[[#This Row],[省略名称（半角18,全角9文字以下）]]) -> 10 | F98: 11VV | G98: =VLOOKUP(Suppliers[[#This Row],[支払条件コード]],PmtTerms[#All],2,0) -> 月末〆３０日後払 | H98: =IFERROR(VLOOKUP(Suppliers[[#This Row],[支払条件コード]],PmtTerms[],3,0),"") -> 2 | I98: =IFERROR(VLOOKUP(Suppliers[[#This Row],[支払条件コード]],PmtTerms[],4,0),"") -> 0
A99: 0000000001131 | B99: KN-001131 | C99: コ－ビオンジャパン㈱ | D99: コ－ビオンジャパン | E99: =LENB(Suppliers[[#This Row],[省略名称（半角18,全角9文字以下）]]) -> 18 | F99: 12VV | G99: =VLOOKUP(Suppliers[[#This Row],[支払条件コード]],PmtTerms[#All],2,0) -> 月末〆６０日後払 | H99: =IFERROR(VLOOKUP(Suppliers[[#This Row],[支払条件コード]],PmtTerms[],3,0),"") -> 3 | I99: =IFERROR(VLOOKUP(Suppliers[[#This Row],[支払条件コード]],PmtTerms[],4,0),"") -> 0
A100: 0000000001155 | B100: KN-001155 | C100: 東海デキストリン株式会社 | D100: 東海デキストリン | E100: =LENB(Suppliers[[#This Row],[省略名称（半角18,全角9文字以下）]]) -> 16 | F100: 11VV | G100: =VLOOKUP(Suppliers[[#This Row],[支払条件コード]],PmtTerms[#All],2,0) -> 月末〆３０日後払 | H100: =IFERROR(VLOOKUP(Suppliers[[#This Row],[支払条件コード]],PmtTerms[],3,0),"") -> 2 | I100: =IFERROR(VLOOKUP(Suppliers[[#This Row],[支払条件コード]],PmtTerms[],4,0),"") -> 0
A101: 0000000001161 | B101: KN-001161 | C101: 小堺化学工業㈱ | D101: 小堺化学工業 | E101: =LENB(Suppliers[[#This Row],[省略名称（半角18,全角9文字以下）]]) -> 12 | F101: 12VV | G101: =VLOOKUP(Suppliers[[#This Row],[支払条件コード]],PmtTerms[#All],2,0) -> 月末〆６０日後払 | H101: =IFERROR(VLOOKUP(Suppliers[[#This Row],[支払条件コード]],PmtTerms[],3,0),"") -> 3 | I101: =IFERROR(VLOOKUP(Suppliers[[#This Row],[支払条件コード]],PmtTerms[],4,0),"") -> 0
A102: 0000000001171 | B102: KN-001171 | C102: 理研ビタミン㈱ | D102: 理研ビタミン | E102: =LENB(Suppliers[[#This Row],[省略名称（半角18,全角9文字以下）]]) -> 12 | F102: 12VV | G102: =VLOOKUP(Suppliers[[#This Row],[支払条件コード]],PmtTerms[#All],2,0) -> 月末〆６０日後払 | H102: =IFERROR(VLOOKUP(Suppliers[[#This Row],[支払条件コード]],PmtTerms[],3,0),"") -> 3 | I102: =IFERROR(VLOOKUP(Suppliers[[#This Row],[支払条件コード]],PmtTerms[],4,0),"") -> 0
A103: 0000000001188 | B103: KN-001188 | C103: ㈲太洋食化学 | D103: 太洋食化学 | E103: =LENB(Suppliers[[#This Row],[省略名称（半角18,全角9文字以下）]]) -> 10 | F103: 12VV | G103: =VLOOKUP(Suppliers[[#This Row],[支払条件コード]],PmtTerms[#All],2,0) -> 月末〆６０日後払 | H103: =IFERROR(VLOOKUP(Suppliers[[#This Row],[支払条件コード]],PmtTerms[],3,0),"") -> 3 | I103: =IFERROR(VLOOKUP(Suppliers[[#This Row],[支払条件コード]],PmtTerms[],4,0),"") -> 0
A104: 0000000001195 | B104: KN-001195 | C104: ＡＤＥＫＡケミカルサプライ㈱ | D104: ADEKAｹﾐｶﾙｻﾌﾟﾗｲ | E104: =LENB(Suppliers[[#This Row],[省略名称（半角18,全角9文字以下）]]) -> 14 | F104: 12VV | G104: =VLOOKUP(Suppliers[[#This Row],[支払条件コード]],PmtTerms[#All],2,0) -> 月末〆６０日後払 | H104: =IFERROR(VLOOKUP(Suppliers[[#This Row],[支払条件コード]],PmtTerms[],3,0),"") -> 3 | I104: =IFERROR(VLOOKUP(Suppliers[[#This Row],[支払条件コード]],PmtTerms[],4,0),"") -> 0
A105: 0000000001218 | B105: KN-001218 | C105: チヨダ㈱ | D105: チヨダ | E105: =LENB(Suppliers[[#This Row],[省略名称（半角18,全角9文字以下）]]) -> 6 | F105: 11VV | G105: =VLOOKUP(Suppliers[[#This Row],[支払条件コード]],PmtTerms[#All],2,0) -> 月末〆３０日後払 | H105: =IFERROR(VLOOKUP(Suppliers[[#This Row],[支払条件コード]],PmtTerms[],3,0),"") -> 2 | I105: =IFERROR(VLOOKUP(Suppliers[[#This Row],[支払条件コード]],PmtTerms[],4,0),"") -> 0
A106: 0000000001232 | B106: KN-001232 | C106: 真田物産㈱ | D106: 真田物産 | E106: =LENB(Suppliers[[#This Row],[省略名称（半角18,全角9文字以下）]]) -> 8 | F106: 12VV | G106: =VLOOKUP(Suppliers[[#This Row],[支払条件コード]],PmtTerms[#All],2,0) -> 月末〆６０日後払 | H106: =IFERROR(VLOOKUP(Suppliers[[#This Row],[支払条件コード]],PmtTerms[],3,0),"") -> 3 | I106: =IFERROR(VLOOKUP(Suppliers[[#This Row],[支払条件コード]],PmtTerms[],4,0),"") -> 0
A107: 0000000001256 | B107: KN-001256 | C107: ㈱みうら食品 | D107: みうら食品 | E107: =LENB(Suppliers[[#This Row],[省略名称（半角18,全角9文字以下）]]) -> 10 | F107: 12VV | G107: =VLOOKUP(Suppliers[[#This Row],[支払条件コード]],PmtTerms[#All],2,0) -> 月末〆６０日後払 | H107: =IFERROR(VLOOKUP(Suppliers[[#This Row],[支払条件コード]],PmtTerms[],3,0),"") -> 3 | I107: =IFERROR(VLOOKUP(Suppliers[[#This Row],[支払条件コード]],PmtTerms[],4,0),"") -> 0
A108: 0000000001273 | B108: KN-001273 | C108: ㈱マコト | D108: マコト | E108: =LENB(Suppliers[[#This Row],[省略名称（半角18,全角9文字以下）]]) -> 6 | F108: 11VV | G108: =VLOOKUP(Suppliers[[#This Row],[支払条件コード]],PmtTerms[#All],2,0) -> 月末〆３０日後払 | H108: =IFERROR(VLOOKUP(Suppliers[[#This Row],[支払条件コード]],PmtTerms[],3,0),"") -> 2 | I108: =IFERROR(VLOOKUP(Suppliers[[#This Row],[支払条件コード]],PmtTerms[],4,0),"") -> 0
A109: 0000000001294 | B109: KN-001294 | C109: 日本コロイド㈱ | D109: 日本コロイド | E109: =LENB(Suppliers[[#This Row],[省略名称（半角18,全角9文字以下）]]) -> 12 | F109: 12VV | G109: =VLOOKUP(Suppliers[[#This Row],[支払条件コード]],PmtTerms[#All],2,0) -> 月末〆６０日後払 | H109: =IFERROR(VLOOKUP(Suppliers[[#This Row],[支払条件コード]],PmtTerms[],3,0),"") -> 3 | I109: =IFERROR(VLOOKUP(Suppliers[[#This Row],[支払条件コード]],PmtTerms[],4,0),"") -> 0
A110: 0000000001300 | B110: KN-001300 | C110: 交易食品㈱ | D110: 交易食品 | E110: =LENB(Suppliers[[#This Row],[省略名称（半角18,全角9文字以下）]]) -> 8 | F110: 12VV | G110: =VLOOKUP(Suppliers[[#This Row],[支払条件コード]],PmtTerms[#All],2,0) -> 月末〆６０日後払 | H110: =IFERROR(VLOOKUP(Suppliers[[#This Row],[支払条件コード]],PmtTerms[],3,0),"") -> 3 | I110: =IFERROR(VLOOKUP(Suppliers[[#This Row],[支払条件コード]],PmtTerms[],4,0),"") -> 0
A111: 0000000001348 | B111: KN-001348 | C111: 山印醸造㈱ | D111: 山印醸造 | E111: =LENB(Suppliers[[#This Row],[省略名称（半角18,全角9文字以下）]]) -> 8 | F111: 12VV | G111: =VLOOKUP(Suppliers[[#This Row],[支払条件コード]],PmtTerms[#All],2,0) -> 月末〆６０日後払 | H111: =IFERROR(VLOOKUP(Suppliers[[#This Row],[支払条件コード]],PmtTerms[],3,0),"") -> 3 | I111: =IFERROR(VLOOKUP(Suppliers[[#This Row],[支払条件コード]],PmtTerms[],4,0),"") -> 0
A112: 0000000001355 | B112: KN-001355 | C112: 三井物産㈱ オ－マイ製品 | D112: 三井物産(オ－マイ) | E112: =LENB(Suppliers[[#This Row],[省略名称（半角18,全角9文字以下）]]) -> 18 | F112: 12VV | G112: =VLOOKUP(Suppliers[[#This Row],[支払条件コード]],PmtTerms[#All],2,0) -> 月末〆６０日後払 | H112: =IFERROR(VLOOKUP(Suppliers[[#This Row],[支払条件コード]],PmtTerms[],3,0),"") -> 3 | I112: =IFERROR(VLOOKUP(Suppliers[[#This Row],[支払条件コード]],PmtTerms[],4,0),"") -> 0
A113: 0000000001393 | B113: KN-001393 | C113: 東洋水産㈱冷食 | D113: 東洋水産(冷食) | E113: =LENB(Suppliers[[#This Row],[省略名称（半角18,全角9文字以下）]]) -> 14 | F113: 12VV | G113: =VLOOKUP(Suppliers[[#This Row],[支払条件コード]],PmtTerms[#All],2,0) -> 月末〆６０日後払 | H113: =IFERROR(VLOOKUP(Suppliers[[#This Row],[支払条件コード]],PmtTerms[],3,0),"") -> 3 | I113: =IFERROR(VLOOKUP(Suppliers[[#This Row],[支払条件コード]],PmtTerms[],4,0),"") -> 0
A114: 0000000001411 | B114: KN-001411 | C114: 株式会社協和洋行 | D114: 協和洋行 | E114: =LENB(Suppliers[[#This Row],[省略名称（半角18,全角9文字以下）]]) -> 8 | F114: 11VV | G114: =VLOOKUP(Suppliers[[#This Row],[支払条件コード]],PmtTerms[#All],2,0) -> 月末〆３０日後払 | H114: =IFERROR(VLOOKUP(Suppliers[[#This Row],[支払条件コード]],PmtTerms[],3,0),"") -> 2 | I114: =IFERROR(VLOOKUP(Suppliers[[#This Row],[支払条件コード]],PmtTerms[],4,0),"") -> 0
A115: 0000000001423 | B115: KN-001423 | C115: カネク株式会社 | D115: カネク | E115: =LENB(Suppliers[[#This Row],[省略名称（半角18,全角9文字以下）]]) -> 6 | F115: 12VV | G115: =VLOOKUP(Suppliers[[#This Row],[支払条件コード]],PmtTerms[#All],2,0) -> 月末〆６０日後払 | H115: =IFERROR(VLOOKUP(Suppliers[[#This Row],[支払条件コード]],PmtTerms[],3,0),"") -> 3 | I115: =IFERROR(VLOOKUP(Suppliers[[#This Row],[支払条件コード]],PmtTerms[],4,0),"") -> 0
A116: 0000000001430 | B116: KN-001430 | C116: ㈱はくばく | D116: はくばく | E116: =LENB(Suppliers[[#This Row],[省略名称（半角18,全角9文字以下）]]) -> 8 | F116: 12VF | G116: =VLOOKUP(Suppliers[[#This Row],[支払条件コード]],PmtTerms[#All],2,0) -> 月末〆４５日後払 | H116: =IFERROR(VLOOKUP(Suppliers[[#This Row],[支払条件コード]],PmtTerms[],3,0),"") -> 2 | I116: =IFERROR(VLOOKUP(Suppliers[[#This Row],[支払条件コード]],PmtTerms[],4,0),"") -> 15
A117: 0000000001451 | B117: KN-001451 | C117: 東京保存食糧㈱ | D117: 東京保存食糧 | E117: =LENB(Suppliers[[#This Row],[省略名称（半角18,全角9文字以下）]]) -> 12 | F117: 11VK | G117: =VLOOKUP(Suppliers[[#This Row],[支払条件コード]],PmtTerms[#All],2,0) -> 月末〆２０日後払 | H117: =IFERROR(VLOOKUP(Suppliers[[#This Row],[支払条件コード]],PmtTerms[],3,0),"") -> 1 | I117: =IFERROR(VLOOKUP(Suppliers[[#This Row],[支払条件コード]],PmtTerms[],4,0),"") -> 20
A118: 0000000001478 | B118: KN-001478 | C118: 森井食品㈱ | D118: 森井食品 | E118: =LENB(Suppliers[[#This Row],[省略名称（半角18,全角9文字以下）]]) -> 8 | F118: 12VV | G118: =VLOOKUP(Suppliers[[#This Row],[支払条件コード]],PmtTerms[#All],2,0) -> 月末〆６０日後払 | H118: =IFERROR(VLOOKUP(Suppliers[[#This Row],[支払条件コード]],PmtTerms[],3,0),"") -> 3 | I118: =IFERROR(VLOOKUP(Suppliers[[#This Row],[支払条件コード]],PmtTerms[],4,0),"") -> 0
A119: 0000000001495 | B119: KN-001495 | C119: 木村飲料㈱（吉田工場） | D119: 木村飲料(吉田工場) | E119: =LENB(Suppliers[[#This Row],[省略名称（半角18,全角9文字以下）]]) -> 18 | F119: 12VV | G119: =VLOOKUP(Suppliers[[#This Row],[支払条件コード]],PmtTerms[#All],2,0) -> 月末〆６０日後払 | H119: =IFERROR(VLOOKUP(Suppliers[[#This Row],[支払条件コード]],PmtTerms[],3,0),"") -> 3 | I119: =IFERROR(VLOOKUP(Suppliers[[#This Row],[支払条件コード]],PmtTerms[],4,0),"") -> 0
A120: 0000000001522 | B120: KN-001522 | C120: 日本製麻㈱ボルガノ食品事業部 | D120: 日本製麻 | E120: =LENB(Suppliers[[#This Row],[省略名称（半角18,全角9文字以下）]]) -> 8 | F120: 12VV | G120: =VLOOKUP(Suppliers[[#This Row],[支払条件コード]],PmtTerms[#All],2,0) -> 月末〆６０日後払 | H120: =IFERROR(VLOOKUP(Suppliers[[#This Row],[支払条件コード]],PmtTerms[],3,0),"") -> 3 | I120: =IFERROR(VLOOKUP(Suppliers[[#This Row],[支払条件コード]],PmtTerms[],4,0),"") -> 0
A121: 0000000001546 | B121: KN-001546 | C121: フライスタ－㈱ | D121: フライスタ－ | E121: =LENB(Suppliers[[#This Row],[省略名称（半角18,全角9文字以下）]]) -> 12 | F121: 12V5 | G121: =VLOOKUP(Suppliers[[#This Row],[支払条件コード]],PmtTerms[#All],2,0) -> 月末〆３５日後払 | H121: =IFERROR(VLOOKUP(Suppliers[[#This Row],[支払条件コード]],PmtTerms[],3,0),"") -> 2 | I121: =IFERROR(VLOOKUP(Suppliers[[#This Row],[支払条件コード]],PmtTerms[],4,0),"") -> 5
A122: 0000000001553 | B122: KN-001553 | C122: 横浜食糧㈱ | D122: 横浜食糧 | E122: =LENB(Suppliers[[#This Row],[省略名称（半角18,全角9文字以下）]]) -> 8 | F122: 12VV | G122: =VLOOKUP(Suppliers[[#This Row],[支払条件コード]],PmtTerms[#All],2,0) -> 月末〆６０日後払 | H122: =IFERROR(VLOOKUP(Suppliers[[#This Row],[支払条件コード]],PmtTerms[],3,0),"") -> 3 | I122: =IFERROR(VLOOKUP(Suppliers[[#This Row],[支払条件コード]],PmtTerms[],4,0),"") -> 0
A123: 0000000001577 | B123: KN-001577 | C123: 川光商事㈱ | D123: 川光商事 | E123: =LENB(Suppliers[[#This Row],[省略名称（半角18,全角9文字以下）]]) -> 8 | F123: 12VV | G123: =VLOOKUP(Suppliers[[#This Row],[支払条件コード]],PmtTerms[#All],2,0) -> 月末〆６０日後払 | H123: =IFERROR(VLOOKUP(Suppliers[[#This Row],[支払条件コード]],PmtTerms[],3,0),"") -> 3 | I123: =IFERROR(VLOOKUP(Suppliers[[#This Row],[支払条件コード]],PmtTerms[],4,0),"") -> 0
A124: 0000000001614 | B124: KN-001614 | C124: 田中製餡㈱ | D124: 田中製餡 | E124: =LENB(Suppliers[[#This Row],[省略名称（半角18,全角9文字以下）]]) -> 8 | F124: 11VV | G124: =VLOOKUP(Suppliers[[#This Row],[支払条件コード]],PmtTerms[#All],2,0) -> 月末〆３０日後払 | H124: =IFERROR(VLOOKUP(Suppliers[[#This Row],[支払条件コード]],PmtTerms[],3,0),"") -> 2 | I124: =IFERROR(VLOOKUP(Suppliers[[#This Row],[支払条件コード]],PmtTerms[],4,0),"") -> 0
A125: 0000000001621 | B125: KN-001621 | C125: 三井物産㈱ 富士食品製品 | D125: 三井物産(富士食品) | E125: =LENB(Suppliers[[#This Row],[省略名称（半角18,全角9文字以下）]]) -> 18 | F125: 12VV | G125: =VLOOKUP(Suppliers[[#This Row],[支払条件コード]],PmtTerms[#All],2,0) -> 月末〆６０日後払 | H125: =IFERROR(VLOOKUP(Suppliers[[#This Row],[支払条件コード]],PmtTerms[],3,0),"") -> 3 | I125: =IFERROR(VLOOKUP(Suppliers[[#This Row],[支払条件コード]],PmtTerms[],4,0),"") -> 0
A126: 0000000001645 | B126: KN-001645 | C126: ㈱創味食品 | D126: 創味食品 | E126: =LENB(Suppliers[[#This Row],[省略名称（半角18,全角9文字以下）]]) -> 8 | F126: 12VV | G126: =VLOOKUP(Suppliers[[#This Row],[支払条件コード]],PmtTerms[#All],2,0) -> 月末〆６０日後払 | H126: =IFERROR(VLOOKUP(Suppliers[[#This Row],[支払条件コード]],PmtTerms[],3,0),"") -> 3 | I126: =IFERROR(VLOOKUP(Suppliers[[#This Row],[支払条件コード]],PmtTerms[],4,0),"") -> 0
A127: 0000000001652 | B127: KN-001652 | C127: 真富士屋食品㈱ | D127: 真富士屋食品 | E127: =LENB(Suppliers[[#This Row],[省略名称（半角18,全角9文字以下）]]) -> 12 | F127: 12VV | G127: =VLOOKUP(Suppliers[[#This Row],[支払条件コード]],PmtTerms[#All],2,0) -> 月末〆６０日後払 | H127: =IFERROR(VLOOKUP(Suppliers[[#This Row],[支払条件コード]],PmtTerms[],3,0),"") -> 3 | I127: =IFERROR(VLOOKUP(Suppliers[[#This Row],[支払条件コード]],PmtTerms[],4,0),"") -> 0
A128: 0000000001669 | B128: KN-001669 | C128: エバラ食品工業㈱ | D128: エバラ食品工業 | E128: =LENB(Suppliers[[#This Row],[省略名称（半角18,全角9文字以下）]]) -> 14 | F128: 12VP | G128: =VLOOKUP(Suppliers[[#This Row],[支払条件コード]],PmtTerms[#All],2,0) -> 月末〆５５日後払 | H128: =IFERROR(VLOOKUP(Suppliers[[#This Row],[支払条件コード]],PmtTerms[],3,0),"") -> 2 | I128: =IFERROR(VLOOKUP(Suppliers[[#This Row],[支払条件コード]],PmtTerms[],4,0),"") -> 25
A129: 0000000001676 | B129: KN-001676 | C129: ㈱榮村商店 | D129: 榮村商店 | E129: =LENB(Suppliers[[#This Row],[省略名称（半角18,全角9文字以下）]]) -> 8 | F129: 12VV | G129: =VLOOKUP(Suppliers[[#This Row],[支払条件コード]],PmtTerms[#All],2,0) -> 月末〆６０日後払 | H129: =IFERROR(VLOOKUP(Suppliers[[#This Row],[支払条件コード]],PmtTerms[],3,0),"") -> 3 | I129: =IFERROR(VLOOKUP(Suppliers[[#This Row],[支払条件コード]],PmtTerms[],4,0),"") -> 0
A130: 0000000001690 | B130: KN-001690 | C130: 三井物産㈱ 丸美屋フ－ズ | D130: 三井物産(丸美屋) | E130: =LENB(Suppliers[[#This Row],[省略名称（半角18,全角9文字以下）]]) -> 16 | F130: 12VV | G130: =VLOOKUP(Suppliers[[#This Row],[支払条件コード]],PmtTerms[#All],2,0) -> 月末〆６０日後払 | H130: =IFERROR(VLOOKUP(Suppliers[[#This Row],[支払条件コード]],PmtTerms[],3,0),"") -> 3 | I130: =IFERROR(VLOOKUP(Suppliers[[#This Row],[支払条件コード]],PmtTerms[],4,0),"") -> 0
A131: 0000000001713 | B131: KN-001713 | C131: 諸口 | D131: 諸口 | E131: =LENB(Suppliers[[#This Row],[省略名称（半角18,全角9文字以下）]]) -> 4 | F131: 10PV | G131: =VLOOKUP(Suppliers[[#This Row],[支払条件コード]],PmtTerms[#All],2,0) -> ２５日〆５日後払 | H131: =IFERROR(VLOOKUP(Suppliers[[#This Row],[支払条件コード]],PmtTerms[],3,0),"") -> 1 | I131: =IFERROR(VLOOKUP(Suppliers[[#This Row],[支払条件コード]],PmtTerms[],4,0),"") -> 0
A132: 0000000001720 | B132: KN-001720 | C132: 丸和油脂㈱ | D132: 丸和油脂 | E132: =LENB(Suppliers[[#This Row],[省略名称（半角18,全角9文字以下）]]) -> 8 | F132: 12VV | G132: =VLOOKUP(Suppliers[[#This Row],[支払条件コード]],PmtTerms[#All],2,0) -> 月末〆６０日後払 | H132: =IFERROR(VLOOKUP(Suppliers[[#This Row],[支払条件コード]],PmtTerms[],3,0),"") -> 3 | I132: =IFERROR(VLOOKUP(Suppliers[[#This Row],[支払条件コード]],PmtTerms[],4,0),"") -> 0
A133: 0000000001737 | B133: KN-001737 | C133: 平和食品工業㈱ | D133: 平和食品工業 | E133: =LENB(Suppliers[[#This Row],[省略名称（半角18,全角9文字以下）]]) -> 12 | F133: 11VV | G133: =VLOOKUP(Suppliers[[#This Row],[支払条件コード]],PmtTerms[#All],2,0) -> 月末〆３０日後払 | H133: =IFERROR(VLOOKUP(Suppliers[[#This Row],[支払条件コード]],PmtTerms[],3,0),"") -> 2 | I133: =IFERROR(VLOOKUP(Suppliers[[#This Row],[支払条件コード]],PmtTerms[],4,0),"") -> 0
A134: 0000000001741 | B134: KN-001741 | C134: 和弘食品㈱ | D134: 和弘食品 | E134: =LENB(Suppliers[[#This Row],[省略名称（半角18,全角9文字以下）]]) -> 8 | F134: 12VV | G134: =VLOOKUP(Suppliers[[#This Row],[支払条件コード]],PmtTerms[#All],2,0) -> 月末〆６０日後払 | H134: =IFERROR(VLOOKUP(Suppliers[[#This Row],[支払条件コード]],PmtTerms[],3,0),"") -> 3 | I134: =IFERROR(VLOOKUP(Suppliers[[#This Row],[支払条件コード]],PmtTerms[],4,0),"") -> 0
A135: 0000000001751 | B135: KN-001751 | C135: 太陽商事㈱ | D135: 太陽商事 | E135: =LENB(Suppliers[[#This Row],[省略名称（半角18,全角9文字以下）]]) -> 8 | F135: 12VV | G135: =VLOOKUP(Suppliers[[#This Row],[支払条件コード]],PmtTerms[#All],2,0) -> 月末〆６０日後払 | H135: =IFERROR(VLOOKUP(Suppliers[[#This Row],[支払条件コード]],PmtTerms[],3,0),"") -> 3 | I135: =IFERROR(VLOOKUP(Suppliers[[#This Row],[支払条件コード]],PmtTerms[],4,0),"") -> 0
A136: 0000000001775 | B136: KN-001775 | C136: 国分首都圏株式会社 | D136: 国分首都圏 | E136: =LENB(Suppliers[[#This Row],[省略名称（半角18,全角9文字以下）]]) -> 10 | F136: 12VV | G136: =VLOOKUP(Suppliers[[#This Row],[支払条件コード]],PmtTerms[#All],2,0) -> 月末〆６０日後払 | H136: =IFERROR(VLOOKUP(Suppliers[[#This Row],[支払条件コード]],PmtTerms[],3,0),"") -> 3 | I136: =IFERROR(VLOOKUP(Suppliers[[#This Row],[支払条件コード]],PmtTerms[],4,0),"") -> 0
A137: 0000000001818 | B137: KN-001818 | C137: 福）名古屋ﾗｲﾄﾊｳｽKAN食品開発ｾﾝﾀ | D137: 名古屋ﾗｲﾄﾊｳｽKAN | E137: =LENB(Suppliers[[#This Row],[省略名称（半角18,全角9文字以下）]]) -> 15 | F137: 11VV | G137: =VLOOKUP(Suppliers[[#This Row],[支払条件コード]],PmtTerms[#All],2,0) -> 月末〆３０日後払 | H137: =IFERROR(VLOOKUP(Suppliers[[#This Row],[支払条件コード]],PmtTerms[],3,0),"") -> 2 | I137: =IFERROR(VLOOKUP(Suppliers[[#This Row],[支払条件コード]],PmtTerms[],4,0),"") -> 0
A138: 0000000001831 | B138: KN-001831 | C138: 大信実業株式会社 | D138: 大信実業 | E138: =LENB(Suppliers[[#This Row],[省略名称（半角18,全角9文字以下）]]) -> 8 | F138: 12VV | G138: =VLOOKUP(Suppliers[[#This Row],[支払条件コード]],PmtTerms[#All],2,0) -> 月末〆６０日後払 | H138: =IFERROR(VLOOKUP(Suppliers[[#This Row],[支払条件コード]],PmtTerms[],3,0),"") -> 3 | I138: =IFERROR(VLOOKUP(Suppliers[[#This Row],[支払条件コード]],PmtTerms[],4,0),"") -> 0
A139: 0000000001850 | B139: KN-001850 | C139: 天狗缶詰株式会社 東京営業所 | D139: 天狗缶詰 | E139: =LENB(Suppliers[[#This Row],[省略名称（半角18,全角9文字以下）]]) -> 8 | F139: 12VV | G139: =VLOOKUP(Suppliers[[#This Row],[支払条件コード]],PmtTerms[#All],2,0) -> 月末〆６０日後払 | H139: =IFERROR(VLOOKUP(Suppliers[[#This Row],[支払条件コード]],PmtTerms[],3,0),"") -> 3 | I139: =IFERROR(VLOOKUP(Suppliers[[#This Row],[支払条件コード]],PmtTerms[],4,0),"") -> 0
A140: 0000000001855 | B140: KN-001855 | C140: ミドリ安全㈱ | D140: ミドリ安全 | E140: =LENB(Suppliers[[#This Row],[省略名称（半角18,全角9文字以下）]]) -> 10 | F140: 11VV | G140: =VLOOKUP(Suppliers[[#This Row],[支払条件コード]],PmtTerms[#All],2,0) -> 月末〆３０日後払 | H140: =IFERROR(VLOOKUP(Suppliers[[#This Row],[支払条件コード]],PmtTerms[],3,0),"") -> 2 | I140: =IFERROR(VLOOKUP(Suppliers[[#This Row],[支払条件コード]],PmtTerms[],4,0),"") -> 0
A141: 0000000001898 | B141: KN-001898 | C141: 三栄フーズ株式会社 | D141: 三栄フーズ | E141: =LENB(Suppliers[[#This Row],[省略名称（半角18,全角9文字以下）]]) -> 10 | F141: 11VV | G141: =VLOOKUP(Suppliers[[#This Row],[支払条件コード]],PmtTerms[#All],2,0) -> 月末〆３０日後払 | H141: =IFERROR(VLOOKUP(Suppliers[[#This Row],[支払条件コード]],PmtTerms[],3,0),"") -> 2 | I141: =IFERROR(VLOOKUP(Suppliers[[#This Row],[支払条件コード]],PmtTerms[],4,0),"") -> 0
A142: 0000000001942 | B142: KN-001942 | C142: 東洋水産㈱スープ | D142: 東洋水産(スープ) | E142: =LENB(Suppliers[[#This Row],[省略名称（半角18,全角9文字以下）]]) -> 16 | F142: 11VV | G142: =VLOOKUP(Suppliers[[#This Row],[支払条件コード]],PmtTerms[#All],2,0) -> 月末〆３０日後払 | H142: =IFERROR(VLOOKUP(Suppliers[[#This Row],[支払条件コード]],PmtTerms[],3,0),"") -> 2 | I142: =IFERROR(VLOOKUP(Suppliers[[#This Row],[支払条件コード]],PmtTerms[],4,0),"") -> 0
A143: 0000000001959 | B143: KN-001959 | C143: ㈱日本サンガリア | D143: 日本サンガリア | E143: =LENB(Suppliers[[#This Row],[省略名称（半角18,全角9文字以下）]]) -> 14 | F143: 11VV | G143: =VLOOKUP(Suppliers[[#This Row],[支払条件コード]],PmtTerms[#All],2,0) -> 月末〆３０日後払 | H143: =IFERROR(VLOOKUP(Suppliers[[#This Row],[支払条件コード]],PmtTerms[],3,0),"") -> 2 | I143: =IFERROR(VLOOKUP(Suppliers[[#This Row],[支払条件コード]],PmtTerms[],4,0),"") -> 0
A144: 0000000001967 | B144: KN-001967 | C144: ㈱神明 | D144: 神明 | E144: =LENB(Suppliers[[#This Row],[省略名称（半角18,全角9文字以下）]]) -> 4 | F144: 12VV | G144: =VLOOKUP(Suppliers[[#This Row],[支払条件コード]],PmtTerms[#All],2,0) -> 月末〆６０日後払 | H144: =IFERROR(VLOOKUP(Suppliers[[#This Row],[支払条件コード]],PmtTerms[],3,0),"") -> 3 | I144: =IFERROR(VLOOKUP(Suppliers[[#This Row],[支払条件コード]],PmtTerms[],4,0),"") -> 0
A145: 0000000001985 | B145: KN-001985 | C145: 宮島醤油㈱ | D145: 宮島醤油 | E145: =LENB(Suppliers[[#This Row],[省略名称（半角18,全角9文字以下）]]) -> 8 | F145: 12VV | G145: =VLOOKUP(Suppliers[[#This Row],[支払条件コード]],PmtTerms[#All],2,0) -> 月末〆６０日後払 | H145: =IFERROR(VLOOKUP(Suppliers[[#This Row],[支払条件コード]],PmtTerms[],3,0),"") -> 3 | I145: =IFERROR(VLOOKUP(Suppliers[[#This Row],[支払条件コード]],PmtTerms[],4,0),"") -> 0
A146: 0000000002013 | B146: KN-002013 | C146: 三井物産㈱Ｊ－オイルミルズ | D146: 三井物産(ｵｲﾙﾐﾙｽﾞ) | E146: =LENB(Suppliers[[#This Row],[省略名称（半角18,全角9文字以下）]]) -> 17 | F146: 12VV | G146: =VLOOKUP(Suppliers[[#This Row],[支払条件コード]],PmtTerms[#All],2,0) -> 月末〆６０日後払 | H146: =IFERROR(VLOOKUP(Suppliers[[#This Row],[支払条件コード]],PmtTerms[],3,0),"") -> 3 | I146: =IFERROR(VLOOKUP(Suppliers[[#This Row],[支払条件コード]],PmtTerms[],4,0),"") -> 0
A147: 0000000002020 | B147: KN-002020 | C147: 三井物産㈱ | D147: 三井物産 | E147: =LENB(Suppliers[[#This Row],[省略名称（半角18,全角9文字以下）]]) -> 8 | F147: 12VV | G147: =VLOOKUP(Suppliers[[#This Row],[支払条件コード]],PmtTerms[#All],2,0) -> 月末〆６０日後払 | H147: =IFERROR(VLOOKUP(Suppliers[[#This Row],[支払条件コード]],PmtTerms[],3,0),"") -> 3 | I147: =IFERROR(VLOOKUP(Suppliers[[#This Row],[支払条件コード]],PmtTerms[],4,0),"") -> 0
A148: 0000000002037 | B148: KN-002037 | C148: 岩井の胡麻油㈱ | D148: 岩井の胡麻油 | E148: =LENB(Suppliers[[#This Row],[省略名称（半角18,全角9文字以下）]]) -> 12 | F148: 12VV | G148: =VLOOKUP(Suppliers[[#This Row],[支払条件コード]],PmtTerms[#All],2,0) -> 月末〆６０日後払 | H148: =IFERROR(VLOOKUP(Suppliers[[#This Row],[支払条件コード]],PmtTerms[],3,0),"") -> 3 | I148: =IFERROR(VLOOKUP(Suppliers[[#This Row],[支払条件コード]],PmtTerms[],4,0),"") -> 0
A149: 0000000002044 | B149: KN-002044 | C149: 三井物産㈱ かどや製油 | D149: 三井物産(かどや) | E149: =LENB(Suppliers[[#This Row],[省略名称（半角18,全角9文字以下）]]) -> 16 | F149: 12VV | G149: =VLOOKUP(Suppliers[[#This Row],[支払条件コード]],PmtTerms[#All],2,0) -> 月末〆６０日後払 | H149: =IFERROR(VLOOKUP(Suppliers[[#This Row],[支払条件コード]],PmtTerms[],3,0),"") -> 3 | I149: =IFERROR(VLOOKUP(Suppliers[[#This Row],[支払条件コード]],PmtTerms[],4,0),"") -> 0
A150: 0000000002075 | B150: KN-002075 | C150: ユアサ・フナショク株式会社 | D150: ユアサ・フナショク | E150: =LENB(Suppliers[[#This Row],[省略名称（半角18,全角9文字以下）]]) -> 18 | F150: 10PV | G150: =VLOOKUP(Suppliers[[#This Row],[支払条件コード]],PmtTerms[#All],2,0) -> ２５日〆５日後払 | H150: =IFERROR(VLOOKUP(Suppliers[[#This Row],[支払条件コード]],PmtTerms[],3,0),"") -> 1 | I150: =IFERROR(VLOOKUP(Suppliers[[#This Row],[支払条件コード]],PmtTerms[],4,0),"") -> 0
A151: 0000000002099 | B151: KN-002099 | C151: 日新蜂蜜㈱ | D151: 日新蜂蜜 | E151: =LENB(Suppliers[[#This Row],[省略名称（半角18,全角9文字以下）]]) -> 8 | F151: 12VV | G151: =VLOOKUP(Suppliers[[#This Row],[支払条件コード]],PmtTerms[#All],2,0) -> 月末〆６０日後払 | H151: =IFERROR(VLOOKUP(Suppliers[[#This Row],[支払条件コード]],PmtTerms[],3,0),"") -> 3 | I151: =IFERROR(VLOOKUP(Suppliers[[#This Row],[支払条件コード]],PmtTerms[],4,0),"") -> 0
A152: 0000000002150 | B152: KN-002150 | C152: ㈱ダイヤスター | D152: ダイヤスター | E152: =LENB(Suppliers[[#This Row],[省略名称（半角18,全角9文字以下）]]) -> 12 | F152: 12VV | G152: =VLOOKUP(Suppliers[[#This Row],[支払条件コード]],PmtTerms[#All],2,0) -> 月末〆６０日後払 | H152: =IFERROR(VLOOKUP(Suppliers[[#This Row],[支払条件コード]],PmtTerms[],3,0),"") -> 3 | I152: =IFERROR(VLOOKUP(Suppliers[[#This Row],[支払条件コード]],PmtTerms[],4,0),"") -> 0
A153: 0000000002198 | B153: KN-002198 | C153: ㈱内田からし | D153: 内田からし | E153: =LENB(Suppliers[[#This Row],[省略名称（半角18,全角9文字以下）]]) -> 10 | F153: 11VV | G153: =VLOOKUP(Suppliers[[#This Row],[支払条件コード]],PmtTerms[#All],2,0) -> 月末〆３０日後払 | H153: =IFERROR(VLOOKUP(Suppliers[[#This Row],[支払条件コード]],PmtTerms[],3,0),"") -> 2 | I153: =IFERROR(VLOOKUP(Suppliers[[#This Row],[支払条件コード]],PmtTerms[],4,0),"") -> 0
A154: 0000000002230 | B154: KN-002230 | C154: ㈱シモヤマ | D154: シモヤマ | E154: =LENB(Suppliers[[#This Row],[省略名称（半角18,全角9文字以下）]]) -> 8 | F154: 11VV | G154: =VLOOKUP(Suppliers[[#This Row],[支払条件コード]],PmtTerms[#All],2,0) -> 月末〆３０日後払 | H154: =IFERROR(VLOOKUP(Suppliers[[#This Row],[支払条件コード]],PmtTerms[],3,0),"") -> 2 | I154: =IFERROR(VLOOKUP(Suppliers[[#This Row],[支払条件コード]],PmtTerms[],4,0),"") -> 0
A155: 0000000002235 | B155: KN-002235 | C155: 上越スタ－チ㈱ | D155: 上越スタ－チ | E155: =LENB(Suppliers[[#This Row],[省略名称（半角18,全角9文字以下）]]) -> 12 | F155: 12VV | G155: =VLOOKUP(Suppliers[[#This Row],[支払条件コード]],PmtTerms[#All],2,0) -> 月末〆６０日後払 | H155: =IFERROR(VLOOKUP(Suppliers[[#This Row],[支払条件コード]],PmtTerms[],3,0),"") -> 3 | I155: =IFERROR(VLOOKUP(Suppliers[[#This Row],[支払条件コード]],PmtTerms[],4,0),"") -> 0
A156: 0000000002245 | B156: KN-002245 | C156: 籠島澱粉㈱ | D156: 籠島澱粉 | E156: =LENB(Suppliers[[#This Row],[省略名称（半角18,全角9文字以下）]]) -> 8 | F156: 11VV | G156: =VLOOKUP(Suppliers[[#This Row],[支払条件コード]],PmtTerms[#All],2,0) -> 月末〆３０日後払 | H156: =IFERROR(VLOOKUP(Suppliers[[#This Row],[支払条件コード]],PmtTerms[],3,0),"") -> 2 | I156: =IFERROR(VLOOKUP(Suppliers[[#This Row],[支払条件コード]],PmtTerms[],4,0),"") -> 0
A157: 0000000002265 | B157: KN-002265 | C157: たかい食品㈱ | D157: たかい食品 | E157: =LENB(Suppliers[[#This Row],[省略名称（半角18,全角9文字以下）]]) -> 10 | F157: 11VV | G157: =VLOOKUP(Suppliers[[#This Row],[支払条件コード]],PmtTerms[#All],2,0) -> 月末〆３０日後払 | H157: =IFERROR(VLOOKUP(Suppliers[[#This Row],[支払条件コード]],PmtTerms[],3,0),"") -> 2 | I157: =IFERROR(VLOOKUP(Suppliers[[#This Row],[支払条件コード]],PmtTerms[],4,0),"") -> 0
A158: 0000000002285 | B158: KN-002285 | C158: 三幸食品株式会社 | D158: 三幸食品 | E158: =LENB(Suppliers[[#This Row],[省略名称（半角18,全角9文字以下）]]) -> 8 | F158: 0001 | G158: =VLOOKUP(Suppliers[[#This Row],[支払条件コード]],PmtTerms[#All],2,0) -> 計上後即時 | H158: =IFERROR(VLOOKUP(Suppliers[[#This Row],[支払条件コード]],PmtTerms[],3,0),"") -> 0 | I158: =IFERROR(VLOOKUP(Suppliers[[#This Row],[支払条件コード]],PmtTerms[],4,0),"") -> 0
A159: 0000000002297 | B159: KN-002297 | C159: 兼松食品㈱ | D159: 兼松食品 | E159: =LENB(Suppliers[[#This Row],[省略名称（半角18,全角9文字以下）]]) -> 8 | F159: 12VF | G159: =VLOOKUP(Suppliers[[#This Row],[支払条件コード]],PmtTerms[#All],2,0) -> 月末〆４５日後払 | H159: =IFERROR(VLOOKUP(Suppliers[[#This Row],[支払条件コード]],PmtTerms[],3,0),"") -> 2 | I159: =IFERROR(VLOOKUP(Suppliers[[#This Row],[支払条件コード]],PmtTerms[],4,0),"") -> 15
A160: 0000000002303 | B160: KN-002303 | C160: 金田屋㈱ | D160: 金田屋 | E160: =LENB(Suppliers[[#This Row],[省略名称（半角18,全角9文字以下）]]) -> 6 | F160: 11VV | G160: =VLOOKUP(Suppliers[[#This Row],[支払条件コード]],PmtTerms[#All],2,0) -> 月末〆３０日後払 | H160: =IFERROR(VLOOKUP(Suppliers[[#This Row],[支払条件コード]],PmtTerms[],3,0),"") -> 2 | I160: =IFERROR(VLOOKUP(Suppliers[[#This Row],[支払条件コード]],PmtTerms[],4,0),"") -> 0
A161: 0000000002305 | B161: KN-002305 | C161: ㈱鈴木屋（砂糖分） | D161: 鈴木屋（砂糖分） | E161: =LENB(Suppliers[[#This Row],[省略名称（半角18,全角9文字以下）]]) -> 16 | F161: 11VV | G161: =VLOOKUP(Suppliers[[#This Row],[支払条件コード]],PmtTerms[#All],2,0) -> 月末〆３０日後払 | H161: =IFERROR(VLOOKUP(Suppliers[[#This Row],[支払条件コード]],PmtTerms[],3,0),"") -> 2 | I161: =IFERROR(VLOOKUP(Suppliers[[#This Row],[支払条件コード]],PmtTerms[],4,0),"") -> 0
A162: 0000000002310 | B162: KN-002310 | C162: ㈱伊豆フェルメンテ | D162: 伊豆フェルメンテ | E162: =LENB(Suppliers[[#This Row],[省略名称（半角18,全角9文字以下）]]) -> 16 | F162: 12VV | G162: =VLOOKUP(Suppliers[[#This Row],[支払条件コード]],PmtTerms[#All],2,0) -> 月末〆６０日後払 | H162: =IFERROR(VLOOKUP(Suppliers[[#This Row],[支払条件コード]],PmtTerms[],3,0),"") -> 3 | I162: =IFERROR(VLOOKUP(Suppliers[[#This Row],[支払条件コード]],PmtTerms[],4,0),"") -> 0
A163: 0000000002396 | B163: KN-002396 | C163: ㈱相原商店 | D163: 相原商店 | E163: =LENB(Suppliers[[#This Row],[省略名称（半角18,全角9文字以下）]]) -> 8 | F163: 11VV | G163: =VLOOKUP(Suppliers[[#This Row],[支払条件コード]],PmtTerms[#All],2,0) -> 月末〆３０日後払 | H163: =IFERROR(VLOOKUP(Suppliers[[#This Row],[支払条件コード]],PmtTerms[],3,0),"") -> 2 | I163: =IFERROR(VLOOKUP(Suppliers[[#This Row],[支払条件コード]],PmtTerms[],4,0),"") -> 0
A164: 0000000002440 | B164: KN-002440 | C164: ㈱マスキチ | D164: マスキチ | E164: =LENB(Suppliers[[#This Row],[省略名称（半角18,全角9文字以下）]]) -> 8 | F164: 12VV | G164: =VLOOKUP(Suppliers[[#This Row],[支払条件コード]],PmtTerms[#All],2,0) -> 月末〆６０日後払 | H164: =IFERROR(VLOOKUP(Suppliers[[#This Row],[支払条件コード]],PmtTerms[],3,0),"") -> 3 | I164: =IFERROR(VLOOKUP(Suppliers[[#This Row],[支払条件コード]],PmtTerms[],4,0),"") -> 0
A165: 0000000002457 | B165: KN-002457 | C165: 横関油脂工業㈱ | D165: 横関油脂工業 | E165: =LENB(Suppliers[[#This Row],[省略名称（半角18,全角9文字以下）]]) -> 12 | F165: 12VV | G165: =VLOOKUP(Suppliers[[#This Row],[支払条件コード]],PmtTerms[#All],2,0) -> 月末〆６０日後払 | H165: =IFERROR(VLOOKUP(Suppliers[[#This Row],[支払条件コード]],PmtTerms[],3,0),"") -> 3 | I165: =IFERROR(VLOOKUP(Suppliers[[#This Row],[支払条件コード]],PmtTerms[],4,0),"") -> 0
A166: 0000000002495 | B166: KN-002495 | C166: ㈱J-NIKKAﾊﾟｰﾄﾅｰｽﾞ | D166: J-NIKKAﾊﾟｰﾄﾅｰｽﾞ | E166: =LENB(Suppliers[[#This Row],[省略名称（半角18,全角9文字以下）]]) -> 15 | F166: 12VV | G166: =VLOOKUP(Suppliers[[#This Row],[支払条件コード]],PmtTerms[#All],2,0) -> 月末〆６０日後払 | H166: =IFERROR(VLOOKUP(Suppliers[[#This Row],[支払条件コード]],PmtTerms[],3,0),"") -> 3 | I166: =IFERROR(VLOOKUP(Suppliers[[#This Row],[支払条件コード]],PmtTerms[],4,0),"") -> 0
A167: 0000000002549 | B167: KN-002549 | C167: ㈱鈴木屋 | D167: 鈴木屋 | E167: =LENB(Suppliers[[#This Row],[省略名称（半角18,全角9文字以下）]]) -> 6 | F167: 12VV | G167: =VLOOKUP(Suppliers[[#This Row],[支払条件コード]],PmtTerms[#All],2,0) -> 月末〆６０日後払 | H167: =IFERROR(VLOOKUP(Suppliers[[#This Row],[支払条件コード]],PmtTerms[],3,0),"") -> 3 | I167: =IFERROR(VLOOKUP(Suppliers[[#This Row],[支払条件コード]],PmtTerms[],4,0),"") -> 0
A168: 0000000002655 | B168: KN-002655 | C168: 丸松物産㈱ | D168: 丸松物産 | E168: =LENB(Suppliers[[#This Row],[省略名称（半角18,全角9文字以下）]]) -> 8 | F168: 12VV | G168: =VLOOKUP(Suppliers[[#This Row],[支払条件コード]],PmtTerms[#All],2,0) -> 月末〆６０日後払 | H168: =IFERROR(VLOOKUP(Suppliers[[#This Row],[支払条件コード]],PmtTerms[],3,0),"") -> 3 | I168: =IFERROR(VLOOKUP(Suppliers[[#This Row],[支払条件コード]],PmtTerms[],4,0),"") -> 0
A169: 0000000002661 | B169: KN-002661 | C169: 京浜貿易㈱ | D169: 京浜貿易 | E169: =LENB(Suppliers[[#This Row],[省略名称（半角18,全角9文字以下）]]) -> 8 | F169: 12VV | G169: =VLOOKUP(Suppliers[[#This Row],[支払条件コード]],PmtTerms[#All],2,0) -> 月末〆６０日後払 | H169: =IFERROR(VLOOKUP(Suppliers[[#This Row],[支払条件コード]],PmtTerms[],3,0),"") -> 3 | I169: =IFERROR(VLOOKUP(Suppliers[[#This Row],[支払条件コード]],PmtTerms[],4,0),"") -> 0
A170: 0000000002716 | B170: KN-002716 | C170: 国光オブラート株式会社 | D170: 国光オブラート | E170: =LENB(Suppliers[[#This Row],[省略名称（半角18,全角9文字以下）]]) -> 14 | F170: 12VV | G170: =VLOOKUP(Suppliers[[#This Row],[支払条件コード]],PmtTerms[#All],2,0) -> 月末〆６０日後払 | H170: =IFERROR(VLOOKUP(Suppliers[[#This Row],[支払条件コード]],PmtTerms[],3,0),"") -> 3 | I170: =IFERROR(VLOOKUP(Suppliers[[#This Row],[支払条件コード]],PmtTerms[],4,0),"") -> 0
A171: 0000000002755 | B171: KN-002755 | C171: 桜井製材 | D171: 桜井製材 | E171: =LENB(Suppliers[[#This Row],[省略名称（半角18,全角9文字以下）]]) -> 8 | F171: 11VV | G171: =VLOOKUP(Suppliers[[#This Row],[支払条件コード]],PmtTerms[#All],2,0) -> 月末〆３０日後払 | H171: =IFERROR(VLOOKUP(Suppliers[[#This Row],[支払条件コード]],PmtTerms[],3,0),"") -> 2 | I171: =IFERROR(VLOOKUP(Suppliers[[#This Row],[支払条件コード]],PmtTerms[],4,0),"") -> 0
A172: 0000000002884 | B172: KN-002884 | C172: ㈱かね善 | D172: かね善 | E172: =LENB(Suppliers[[#This Row],[省略名称（半角18,全角9文字以下）]]) -> 6 | F172: 11VV | G172: =VLOOKUP(Suppliers[[#This Row],[支払条件コード]],PmtTerms[#All],2,0) -> 月末〆３０日後払 | H172: =IFERROR(VLOOKUP(Suppliers[[#This Row],[支払条件コード]],PmtTerms[],3,0),"") -> 2 | I172: =IFERROR(VLOOKUP(Suppliers[[#This Row],[支払条件コード]],PmtTerms[],4,0),"") -> 0
A173: 0000000002901 | B173: KN-002901 | C173: 佐川急便株式会社 | D173: 佐川急便 | E173: =LENB(Suppliers[[#This Row],[省略名称（半角18,全角9文字以下）]]) -> 8 | F173: 11VQ | G173: =VLOOKUP(Suppliers[[#This Row],[支払条件コード]],PmtTerms[#All],2,0) -> 月末〆２６日後払 | H173: =IFERROR(VLOOKUP(Suppliers[[#This Row],[支払条件コード]],PmtTerms[],3,0),"") -> 1 | I173: =IFERROR(VLOOKUP(Suppliers[[#This Row],[支払条件コード]],PmtTerms[],4,0),"") -> 26
A174: - | B174: KN-009904 | C174: 株式会社愛知日新 | D174: 愛知日新 | E174: =LENB(Suppliers[[#This Row],[省略名称（半角18,全角9文字以下）]]) -> 8 | F174: 12VV | G174: =VLOOKUP(Suppliers[[#This Row],[支払条件コード]],PmtTerms[#All],2,0) -> 月末〆６０日後払 | H174: =IFERROR(VLOOKUP(Suppliers[[#This Row],[支払条件コード]],PmtTerms[],3,0),"") -> 3 | I174: =IFERROR(VLOOKUP(Suppliers[[#This Row],[支払条件コード]],PmtTerms[],4,0),"") -> 0
A175: - | B175: KN-009905 | C175: 鶴見倉庫株式会社 | D175: 鶴見倉庫 | E175: =LENB(Suppliers[[#This Row],[省略名称（半角18,全角9文字以下）]]) -> 8 | F175: 12VV | G175: =VLOOKUP(Suppliers[[#This Row],[支払条件コード]],PmtTerms[#All],2,0) -> 月末〆６０日後払 | H175: =IFERROR(VLOOKUP(Suppliers[[#This Row],[支払条件コード]],PmtTerms[],3,0),"") -> 3 | I175: =IFERROR(VLOOKUP(Suppliers[[#This Row],[支払条件コード]],PmtTerms[],4,0),"") -> 0
A176: - | B176: KN-009922 | C176: 日新航空サービス株式会社 | D176: 日新航空サービス | E176: =LENB(Suppliers[[#This Row],[省略名称（半角18,全角9文字以下）]]) -> 16 | F176: 12VV | G176: =VLOOKUP(Suppliers[[#This Row],[支払条件コード]],PmtTerms[#All],2,0) -> 月末〆６０日後払 | H176: =IFERROR(VLOOKUP(Suppliers[[#This Row],[支払条件コード]],PmtTerms[],3,0),"") -> 3 | I176: =IFERROR(VLOOKUP(Suppliers[[#This Row],[支払条件コード]],PmtTerms[],4,0),"") -> 0
A177: - | B177: KN-009924 | C177: 日新梱包株式会社 | D177: 日新梱包 | E177: =LENB(Suppliers[[#This Row],[省略名称（半角18,全角9文字以下）]]) -> 8 | F177: 12VV | G177: =VLOOKUP(Suppliers[[#This Row],[支払条件コード]],PmtTerms[#All],2,0) -> 月末〆６０日後払 | H177: =IFERROR(VLOOKUP(Suppliers[[#This Row],[支払条件コード]],PmtTerms[],3,0),"") -> 3 | I177: =IFERROR(VLOOKUP(Suppliers[[#This Row],[支払条件コード]],PmtTerms[],4,0),"") -> 0
A178: - | B178: KN-009926 | C178: 株式会社丸新 | D178: 丸新 | E178: =LENB(Suppliers[[#This Row],[省略名称（半角18,全角9文字以下）]]) -> 4 | F178: 12VV | G178: =VLOOKUP(Suppliers[[#This Row],[支払条件コード]],PmtTerms[#All],2,0) -> 月末〆６０日後払 | H178: =IFERROR(VLOOKUP(Suppliers[[#This Row],[支払条件コード]],PmtTerms[],3,0),"") -> 3 | I178: =IFERROR(VLOOKUP(Suppliers[[#This Row],[支払条件コード]],PmtTerms[],4,0),"") -> 0
A179: - | B179: KN-009929 | C179: 株式会社北海道日新 | D179: 北海道日新 | E179: =LENB(Suppliers[[#This Row],[省略名称（半角18,全角9文字以下）]]) -> 10 | F179: 12VV | G179: =VLOOKUP(Suppliers[[#This Row],[支払条件コード]],PmtTerms[#All],2,0) -> 月末〆６０日後払 | H179: =IFERROR(VLOOKUP(Suppliers[[#This Row],[支払条件コード]],PmtTerms[],3,0),"") -> 3 | I179: =IFERROR(VLOOKUP(Suppliers[[#This Row],[支払条件コード]],PmtTerms[],4,0),"") -> 0
A180: - | B180: KN-009930 | C180: 日新エアカーゴ株式会社 | D180: 日新エアカーゴ | E180: =LENB(Suppliers[[#This Row],[省略名称（半角18,全角9文字以下）]]) -> 14 | F180: 12VV | G180: =VLOOKUP(Suppliers[[#This Row],[支払条件コード]],PmtTerms[#All],2,0) -> 月末〆６０日後払 | H180: =IFERROR(VLOOKUP(Suppliers[[#This Row],[支払条件コード]],PmtTerms[],3,0),"") -> 3 | I180: =IFERROR(VLOOKUP(Suppliers[[#This Row],[支払条件コード]],PmtTerms[],4,0),"") -> 0
A181: - | B181: KN-009937 | C181: 株式会社エヌ・ディ・ティ | D181: エヌ・ディ・ティ | E181: =LENB(Suppliers[[#This Row],[省略名称（半角18,全角9文字以下）]]) -> 16 | F181: 12VV | G181: =VLOOKUP(Suppliers[[#This Row],[支払条件コード]],PmtTerms[#All],2,0) -> 月末〆６０日後払 | H181: =IFERROR(VLOOKUP(Suppliers[[#This Row],[支払条件コード]],PmtTerms[],3,0),"") -> 3 | I181: =IFERROR(VLOOKUP(Suppliers[[#This Row],[支払条件コード]],PmtTerms[],4,0),"") -> 0
A182: - | B182: KN-009938 | C182: 株式会社茨城日新 | D182: 茨城日新 | E182: =LENB(Suppliers[[#This Row],[省略名称（半角18,全角9文字以下）]]) -> 8 | F182: 12VV | G182: =VLOOKUP(Suppliers[[#This Row],[支払条件コード]],PmtTerms[#All],2,0) -> 月末〆６０日後払 | H182: =IFERROR(VLOOKUP(Suppliers[[#This Row],[支払条件コード]],PmtTerms[],3,0),"") -> 3 | I182: =IFERROR(VLOOKUP(Suppliers[[#This Row],[支払条件コード]],PmtTerms[],4,0),"") -> 0
A183: - | B183: KN-009940 | C183: 板橋運送株式会社 | D183: 板橋運送 | E183: =LENB(Suppliers[[#This Row],[省略名称（半角18,全角9文字以下）]]) -> 8 | F183: 12VV | G183: =VLOOKUP(Suppliers[[#This Row],[支払条件コード]],PmtTerms[#All],2,0) -> 月末〆６０日後払 | H183: =IFERROR(VLOOKUP(Suppliers[[#This Row],[支払条件コード]],PmtTerms[],3,0),"") -> 3 | I183: =IFERROR(VLOOKUP(Suppliers[[#This Row],[支払条件コード]],PmtTerms[],4,0),"") -> 0
A184: - | B184: KN-009941 | C184: 京浜不動産株式会社 | D184: 京浜不動産 | E184: =LENB(Suppliers[[#This Row],[省略名称（半角18,全角9文字以下）]]) -> 10 | F184: 11VV | G184: =VLOOKUP(Suppliers[[#This Row],[支払条件コード]],PmtTerms[#All],2,0) -> 月末〆３０日後払 | H184: =IFERROR(VLOOKUP(Suppliers[[#This Row],[支払条件コード]],PmtTerms[],3,0),"") -> 2 | I184: =IFERROR(VLOOKUP(Suppliers[[#This Row],[支払条件コード]],PmtTerms[],4,0),"") -> 0
A185: - | B185: KN-009949 | C185: 日新産業株式会社 | D185: 日新産業 | E185: =LENB(Suppliers[[#This Row],[省略名称（半角18,全角9文字以下）]]) -> 8 | F185: 12VV | G185: =VLOOKUP(Suppliers[[#This Row],[支払条件コード]],PmtTerms[#All],2,0) -> 月末〆６０日後払 | H185: =IFERROR(VLOOKUP(Suppliers[[#This Row],[支払条件コード]],PmtTerms[],3,0),"") -> 3 | I185: =IFERROR(VLOOKUP(Suppliers[[#This Row],[支払条件コード]],PmtTerms[],4,0),"") -> 0
A186: - | B186: KN-009950 | C186: 日誠港運株式会社 | D186: 日誠港運 | E186: =LENB(Suppliers[[#This Row],[省略名称（半角18,全角9文字以下）]]) -> 8 | F186: 12VV | G186: =VLOOKUP(Suppliers[[#This Row],[支払条件コード]],PmtTerms[#All],2,0) -> 月末〆６０日後払 | H186: =IFERROR(VLOOKUP(Suppliers[[#This Row],[支払条件コード]],PmtTerms[],3,0),"") -> 3 | I186: =IFERROR(VLOOKUP(Suppliers[[#This Row],[支払条件コード]],PmtTerms[],4,0),"") -> 0
A187: - | B187: KN-009953 | C187: 横海陸運株式会社 | D187: 横海陸運 | E187: =LENB(Suppliers[[#This Row],[省略名称（半角18,全角9文字以下）]]) -> 8 | F187: 12VV | G187: =VLOOKUP(Suppliers[[#This Row],[支払条件コード]],PmtTerms[#All],2,0) -> 月末〆６０日後払 | H187: =IFERROR(VLOOKUP(Suppliers[[#This Row],[支払条件コード]],PmtTerms[],3,0),"") -> 3 | I187: =IFERROR(VLOOKUP(Suppliers[[#This Row],[支払条件コード]],PmtTerms[],4,0),"") -> 0
A188: - | B188: KN-009954 | C188: 株式会社太洋マリーン | D188: 太洋マリーン | E188: =LENB(Suppliers[[#This Row],[省略名称（半角18,全角9文字以下）]]) -> 12 | F188: 12VV | G188: =VLOOKUP(Suppliers[[#This Row],[支払条件コード]],PmtTerms[#All],2,0) -> 月末〆６０日後払 | H188: =IFERROR(VLOOKUP(Suppliers[[#This Row],[支払条件コード]],PmtTerms[],3,0),"") -> 3 | I188: =IFERROR(VLOOKUP(Suppliers[[#This Row],[支払条件コード]],PmtTerms[],4,0),"") -> 0
A189: - | B189: KN-009955 | C189: 株式会社新港木材工業所 | D189: 新港木材工業所 | E189: =LENB(Suppliers[[#This Row],[省略名称（半角18,全角9文字以下）]]) -> 14 | F189: 12VV | G189: =VLOOKUP(Suppliers[[#This Row],[支払条件コード]],PmtTerms[#All],2,0) -> 月末〆６０日後払 | H189: =IFERROR(VLOOKUP(Suppliers[[#This Row],[支払条件コード]],PmtTerms[],3,0),"") -> 3 | I189: =IFERROR(VLOOKUP(Suppliers[[#This Row],[支払条件コード]],PmtTerms[],4,0),"") -> 0
A190: - | B190: KN-009956 | C190: 神港梱包株式会社 | D190: 神港梱包 | E190: =LENB(Suppliers[[#This Row],[省略名称（半角18,全角9文字以下）]]) -> 8 | F190: 12VV | G190: =VLOOKUP(Suppliers[[#This Row],[支払条件コード]],PmtTerms[#All],2,0) -> 月末〆６０日後払 | H190: =IFERROR(VLOOKUP(Suppliers[[#This Row],[支払条件コード]],PmtTerms[],3,0),"") -> 3 | I190: =IFERROR(VLOOKUP(Suppliers[[#This Row],[支払条件コード]],PmtTerms[],4,0),"") -> 0
A191: - | B191: KN-009965 | C191: 日新エアポートサービス株式会社 | D191: 日新ｴｱﾎﾟｰﾄｻｰﾋﾞｽ | E191: =LENB(Suppliers[[#This Row],[省略名称（半角18,全角9文字以下）]]) -> 15 | F191: 12VV | G191: =VLOOKUP(Suppliers[[#This Row],[支払条件コード]],PmtTerms[#All],2,0) -> 月末〆６０日後払 | H191: =IFERROR(VLOOKUP(Suppliers[[#This Row],[支払条件コード]],PmtTerms[],3,0),"") -> 3 | I191: =IFERROR(VLOOKUP(Suppliers[[#This Row],[支払条件コード]],PmtTerms[],4,0),"") -> 0
A192: - | B192: KN-009967 | C192: 東雪運輸株式会社 | D192: 東雪運輸 | E192: =LENB(Suppliers[[#This Row],[省略名称（半角18,全角9文字以下）]]) -> 8 | F192: 12VV | G192: =VLOOKUP(Suppliers[[#This Row],[支払条件コード]],PmtTerms[#All],2,0) -> 月末〆６０日後払 | H192: =IFERROR(VLOOKUP(Suppliers[[#This Row],[支払条件コード]],PmtTerms[],3,0),"") -> 3 | I192: =IFERROR(VLOOKUP(Suppliers[[#This Row],[支払条件コード]],PmtTerms[],4,0),"") -> 0
A193: - | B193: KN-009970 | C193: 株式会社滋賀日新 | D193: 滋賀日新 | E193: =LENB(Suppliers[[#This Row],[省略名称（半角18,全角9文字以下）]]) -> 8 | F193: 12VV | G193: =VLOOKUP(Suppliers[[#This Row],[支払条件コード]],PmtTerms[#All],2,0) -> 月末〆６０日後払 | H193: =IFERROR(VLOOKUP(Suppliers[[#This Row],[支払条件コード]],PmtTerms[],3,0),"") -> 3 | I193: =IFERROR(VLOOKUP(Suppliers[[#This Row],[支払条件コード]],PmtTerms[],4,0),"") -> 0
A194: - | B194: KN-009971 | C194: 株式会社九州日新 | D194: 九州日新 | E194: =LENB(Suppliers[[#This Row],[省略名称（半角18,全角9文字以下）]]) -> 8 | F194: 12VV | G194: =VLOOKUP(Suppliers[[#This Row],[支払条件コード]],PmtTerms[#All],2,0) -> 月末〆６０日後払 | H194: =IFERROR(VLOOKUP(Suppliers[[#This Row],[支払条件コード]],PmtTerms[],3,0),"") -> 3 | I194: =IFERROR(VLOOKUP(Suppliers[[#This Row],[支払条件コード]],PmtTerms[],4,0),"") -> 0
A195: - | B195: KN-009972 | C195: 新栄運輸株式会社 | D195: 新栄運輸 | E195: =LENB(Suppliers[[#This Row],[省略名称（半角18,全角9文字以下）]]) -> 8 | F195: 12VV | G195: =VLOOKUP(Suppliers[[#This Row],[支払条件コード]],PmtTerms[#All],2,0) -> 月末〆６０日後払 | H195: =IFERROR(VLOOKUP(Suppliers[[#This Row],[支払条件コード]],PmtTerms[],3,0),"") -> 3 | I195: =IFERROR(VLOOKUP(Suppliers[[#This Row],[支払条件コード]],PmtTerms[],4,0),"") -> 0
A196: 0000000010014 | B196: KN-010014 | C196: 諸口 | D196: 諸口 | E196: =LENB(Suppliers[[#This Row],[省略名称（半角18,全角9文字以下）]]) -> 4 | F196: 12VV | G196: =VLOOKUP(Suppliers[[#This Row],[支払条件コード]],PmtTerms[#All],2,0) -> 月末〆６０日後払 | H196: =IFERROR(VLOOKUP(Suppliers[[#This Row],[支払条件コード]],PmtTerms[],3,0),"") -> 3 | I196: =IFERROR(VLOOKUP(Suppliers[[#This Row],[支払条件コード]],PmtTerms[],4,0),"") -> 0
A197: 0000000011300 | B197: KN-011300 | C197: 月読企画(株)松製麺事業部 | D197: 月読企画 | E197: =LENB(Suppliers[[#This Row],[省略名称（半角18,全角9文字以下）]]) -> 8 | F197: 0001 | G197: =VLOOKUP(Suppliers[[#This Row],[支払条件コード]],PmtTerms[#All],2,0) -> 計上後即時 | H197: =IFERROR(VLOOKUP(Suppliers[[#This Row],[支払条件コード]],PmtTerms[],3,0),"") -> 0 | I197: =IFERROR(VLOOKUP(Suppliers[[#This Row],[支払条件コード]],PmtTerms[],4,0),"") -> 0
A198: 0000000011314 | B198: KN-011314 | C198: ㈲山長商店 | D198: 山長商店 | E198: =LENB(Suppliers[[#This Row],[省略名称（半角18,全角9文字以下）]]) -> 8 | F198: 11VK | G198: =VLOOKUP(Suppliers[[#This Row],[支払条件コード]],PmtTerms[#All],2,0) -> 月末〆２０日後払 | H198: =IFERROR(VLOOKUP(Suppliers[[#This Row],[支払条件コード]],PmtTerms[],3,0),"") -> 1 | I198: =IFERROR(VLOOKUP(Suppliers[[#This Row],[支払条件コード]],PmtTerms[],4,0),"") -> 20
A199: 0000000011439 | B199: KN-011439 | C199: ㈱メイン | D199: メイン | E199: =LENB(Suppliers[[#This Row],[省略名称（半角18,全角9文字以下）]]) -> 6 | F199: 11F5 | G199: =VLOOKUP(Suppliers[[#This Row],[支払条件コード]],PmtTerms[#All],2,0) -> １５日〆２０日後払 | H199: =IFERROR(VLOOKUP(Suppliers[[#This Row],[支払条件コード]],PmtTerms[],3,0),"") -> 1 | I199: =IFERROR(VLOOKUP(Suppliers[[#This Row],[支払条件コード]],PmtTerms[],4,0),"") -> 5
A200: 0000000011635 | B200: KN-011635 | C200: ㈲かじや製麺 | D200: かじや製麺 | E200: =LENB(Suppliers[[#This Row],[省略名称（半角18,全角9文字以下）]]) -> 10 | F200: 11VV | G200: =VLOOKUP(Suppliers[[#This Row],[支払条件コード]],PmtTerms[#All],2,0) -> 月末〆３０日後払 | H200: =IFERROR(VLOOKUP(Suppliers[[#This Row],[支払条件コード]],PmtTerms[],3,0),"") -> 2 | I200: =IFERROR(VLOOKUP(Suppliers[[#This Row],[支払条件コード]],PmtTerms[],4,0),"") -> 0
... 165 more rows

Sheet 支払条件コード
A1: PayT | B1: 支払条件 | C1: Month | D1: Day
A2: 0001 | B2: 計上後即時 | C2: 0 | D2: 0 | F2: 入力規則
A3: 000K | B3: 翌月分２０日払（前払） | F3: １．日数換算で30日を「1Month」とし、30日以下は「Day」としています。
A4: 000P | B4: 翌月分２５日払（前払） | F4: ２．月末〆15日後払いの場合、「30+15=45」となり、Month：「1」,Day：「15」と入力します。
A5: 000V | B5: 翌月分月末払（前払）
A6: 1058 | B6: ５日〆３日後（８日）払 | C6: 0 | D6: 8
A7: 105A | B7: ５日〆５日後払 | C7: 0 | D7: 10
A8: 105V | B8: ５日締め２５日後払 | C8: 1 | D8: 0
A9: 109A | B9: ９日〆１０日払 | C9: 0 | D9: 19
A10: 10AF | B10: １０日〆５日後払 | C10: 0 | D10: 15
A11: 10AG | B11: １０日〆６日後払 | C11: 0 | D11: 16
A12: 10AK | B12: １０日〆１０日後払 | C12: 0 | D12: 20
A13: 10AP | B13: １０日〆１５日後（２５日）払 | C13: 0 | D13: 25
A14: 10AV | B14: １０日〆２０日後払 | C14: 1 | D14: 0
A15: 10FI | B15: １５日〆３日後（１８日）払 | C15: 0 | D15: 18
A16: 10FK | B16: １５日〆５日後（２０日）払 | C16: 0 | D16: 20
A17: 10FP | B17: １５日〆１０日後払 | C17: 0 | D17: 25
A18: 10FV | B18: １５日〆１５日後払 | C18: 1 | D18: 0
A19: 10JK | B19: １９日〆２０日払 | C19: 1 | D19: 9
A20: 10KM | B20: ２０日〆２日後（２２日）払 | C20: 0 | D20: 22
A21: 10KP | B21: ２０日〆５日後（２５日）払 | C21: 0 | D21: 25
A22: 10KQ | B22: ２０日〆６日後（２６日）払 | C22: 0 | D22: 26
A23: 10KV | B23: ２０日〆１０後払 | C23: 1 | D23: 0
A24: 10PR | B24: ２５日〆２日後（２７日）払 | C24: 0 | D24: 27
A25: 10PV | B25: ２５日〆５日後払 | C25: 1 | D25: 0
A26: 114V | B26: ４日〆５６日後払 | C26: 2 | D26: 0
A27: 1155 | B27: ５日〆３０日後払 | C27: 1 | D27: 5
A28: 115V | B28: ５日〆５５日後払 | C28: 2 | D28: 0
A29: 11AA | B29: １０日〆３０日後払 | C29: 1 | D29: 10
A30: 11AK | B30: １０日〆４０日後払 | C30: 1 | D30: 20
A31: 11AV | B31: １０日〆５０日後払 | C31: 2 | D31: 0
A32: 11DD | B32: １３日〆３０日後払 | C32: 1 | D32: 13
A33: 11F5 | B33: １５日〆２０日後払 | C33: 1 | D33: 5
A34: 11FA | B34: １５日〆２５日後払 | C34: 1 | D34: 10
A35: 11FF | B35: １５日〆３０日後払 | C35: 1 | D35: 15
A36: 11FK | B36: １５日〆３５日後払 | C36: 1 | D36: 20
A37: 11FP | B37: １５日〆４０日後払 | C37: 1 | D37: 25
A38: 11FV | B38: １５日〆４５日後払 | C38: 2 | D38: 0
A39: 11JK | B39: １９日〆３１日後払 | C39: 1 | D39: 20
A40: 11K2 | B40: ２０日〆１２日後払 | C40: 1 | D40: 2
A41: 11K5 | B41: ２０日〆１５日後払 | C41: 1 | D41: 5
A42: 11KA | B42: ２０日〆２０日後払 | C42: 1 | D42: 10
A43: 11KB | B43: ２０日〆２１日後（１１日）払 | C43: 1 | D43: 11
A44: 11KC | B44: ２０日〆２２日後払 | C44: 1 | D44: 12
A45: 11KF | B45: ２０日〆２５日後払 | C45: 1 | D45: 15
A46: 11KH | B46: ２０日〆２７日後払 | C46: 1 | D46: 17
A47: 11KI | B47: ２０日〆２８日後払 | C47: 1 | D47: 18
A48: 11KK | B48: ２０日〆３０日後払 | C48: 1 | D48: 20
A49: 11KP | B49: ２０日〆３５日後払 | C49: 1 | D49: 25
A50: 11KQ | B50: ２０日〆３６日後払 | C50: 1 | D50: 26
A51: 11KV | B51: ２０日〆４０日後払 | C51: 2 | D51: 0
A52: 11P5 | B52: ２５日〆１０日後払 | C52: 1 | D52: 5
A53: 11PA | B53: ２５日〆１５日後払 | C53: 1 | D53: 10
A54: 11PF | B54: ２５日〆２０日後払 | C54: 1 | D54: 15
A55: 11PI | B55: ２５日〆２３日後（１８日）払 | C55: 1 | D55: 18
A56: 11PK | B56: ２５日〆２５日後払 | C56: 1 | D56: 20
A57: 11PL | B57: ２５日〆２６日後払 | C57: 1 | D57: 21
A58: 11PN | B58: ２５日〆２８日後払 | C58: 1 | D58: 23
A59: 11PP | B59: ２５日〆３０日後払 | C59: 1 | D59: 25
A60: 11PQ | B60: ２５日〆３１日後払 | C60: 1 | D60: 26
A61: 11PV | B61: ２５日〆３５日後払 | C61: 2 | D61: 0
A62: 11QQ | B62: ２６日〆３０日後払 | C62: 1 | D62: 26
A63: 11RV | B63: ２７日〆３３日後払 | C63: 2 | D63: 0
A64: 11SS | B64: ２８日〆３０日後払 | C64: 1 | D64: 28
A65: 11TV | B65: ２９日〆３１日後払 | C65: 2 | D65: 0
A66: 11V2 | B66: 月末〆２日後払 | C66: 1 | D66: 2
A67: 11V3 | B67: 月末〆３日後払 | C67: 1 | D67: 3
A68: 11V5 | B68: 月末〆５日後払 | C68: 1 | D68: 5
A69: 11V7 | B69: 月末〆７日後払 | C69: 1 | D69: 7
A70: 11VA | B70: 月末〆１０日後払 | C70: 1 | D70: 10
A71: 11VC | B71: 月末〆１２日後払 | C71: 1 | D71: 12
A72: 11VF | B72: 月末〆１５日後払 | C72: 1 | D72: 15
A73: 11VH | B73: 月末〆１７日後払 | C73: 1 | D73: 17
A74: 11VI | B74: 月末〆１８日後払 | C74: 1 | D74: 18
A75: 11VK | B75: 月末〆２０日後払 | C75: 1 | D75: 20
A76: 11VM | B76: 月末〆２２日後払 | C76: 1 | D76: 22
A77: 11VN | B77: 月末〆２３日後払 | C77: 1 | D77: 23
A78: 11VO | B78: 月末〆２４日後払 | C78: 1 | D78: 24
A79: 11VP | B79: 月末〆２５日後払 | C79: 1 | D79: 25
A80: 11VQ | B80: 月末〆２６日後払 | C80: 1 | D80: 26
A81: 11VR | B81: 月末〆２７日後払 | C81: 1 | D81: 27
A82: 11VS | B82: 月末〆２８日後払 | C82: 1 | D82: 28
A83: 11VT | B83: 月末〆２９日後払 | C83: 1 | D83: 29
A84: 11VV | B84: 月末〆３０日後払 | C84: 2 | D84: 0
A85: 1255 | B85: ５日〆６０日後払 | C85: 2 | D85: 5
A86: 12AA | B86: １０日〆６０日後払 | C86: 2 | D86: 10
A87: 12AK | B87: １０日〆７０日後払 | C87: 2 | D87: 20
A88: 12AV | B88: １０日〆８０日後払 | C88: 3 | D88: 0
A89: 12F5 | B89: １５日〆５０日後払 | C89: 2 | D89: 5
A90: 12FA | B90: １５日〆５５日後払 | C90: 2 | D90: 10
A91: 12FD | B91: １５日〆５８日後払 | C91: 2 | D91: 13
A92: 12FI | B92: １５日〆６３日後払 | C92: 2 | D92: 18
A93: 12FV | B93: １５日〆７５日後払 | C93: 3 | D93: 0
A94: 12K5 | B94: ２０日〆４５日後払 | C94: 2 | D94: 5
A95: 12KA | B95: ２０日〆５０日後払 | C95: 2 | D95: 10
A96: 12KF | B96: ２０日〆５５日後払 | C96: 2 | D96: 15
A97: 12KK | B97: ２０日〆６０日後払 | C97: 2 | D97: 20
A98: 12KP | B98: ２０日〆６５日後払 | C98: 2 | D98: 25
A99: 12KV | B99: ２０日〆７０日後払 | C99: 3 | D99: 0
A100: 12P5 | B100: ２５日〆４０日後払 | C100: 2 | D100: 5
A101: 12PA | B101: ２５日〆４５日後払 | C101: 2 | D101: 10
A102: 12PF | B102: ２５日〆５０日後払 | C102: 2 | D102: 15
A103: 12PK | B103: ２５日〆５５日後払 | C103: 2 | D103: 20
A104: 12PP | B104: ２５日〆６０日後払 | C104: 2 | D104: 25
A105: 12PV | B105: ２５日〆６５日後払 | C105: 3 | D105: 0
A106: 12V1 | B106: 月末〆３１日後払 | C106: 2 | D106: 1
A107: 12V5 | B107: 月末〆３５日後払 | C107: 2 | D107: 5
A108: 12V6 | B108: 月末〆３６日後払 | C108: 2 | D108: 6
A109: 12V7 | B109: 月末〆３７日後払 | C109: 2 | D109: 7
A110: 12V8 | B110: 月末〆３８日後払 | C110: 2 | D110: 8
A111: 12VA | B111: 月末〆４０日後払 | C111: 2 | D111: 10
A112: 12VB | B112: 月末〆４１日後払 | C112: 2 | D112: 11
A113: 12VC | B113: 月末〆４２日後払 | C113: 2 | D113: 12
A114: 12VF | B114: 月末〆４５日後払 | C114: 2 | D114: 15
A115: 12VG | B115: 月末〆４６日後払 | C115: 2 | D115: 16
A116: 12VH | B116: 月末〆４７日後払 | C116: 2 | D116: 17
A117: 12VJ | B117: 月末〆４９日後払 | C117: 2 | D117: 19
A118: 12VK | B118: 月末〆５０日後払 | C118: 2 | D118: 20
A119: 12VM | B119: 月末〆５２日後払 | C119: 2 | D119: 22
A120: 12VN | B120: 月末〆５３日後払 | C120: 2 | D120: 23
A121: 12VP | B121: 月末〆５５日後払 | C121: 2 | D121: 25
A122: 12VQ | B122: 月末〆５６日後払 | C122: 2 | D122: 26
A123: 12VR | B123: 月末〆５７日後払 | C123: 2 | D123: 27
A124: 12VS | B124: 月末〆５８日後払 | C124: 2 | D124: 28
A125: 12VV | B125: 月末〆６０日後払 | C125: 3 | D125: 0
A126: 13FK | B126: １５日〆９５日後払 | C126: 3 | D126: 20
A127: 13KA | B127: ２０日〆８０日後払 | C127: 3 | D127: 10
A128: 13KF | B128: ２０日〆８５日後払 | C128: 3 | D128: 15
A129: 13KV | B129: ２０日〆１００日後払 | C129: 4 | D129: 0
A130: 13PP | B130: ２５日〆９０日後払 | C130: 3 | D130: 25
A131: 13PV | B131: ２５日〆９５日後払 | C131: 3 | D131: 0
A132: 13V1 | B132: 月末〆６１日後払 | C132: 3 | D132: 1
A133: 13V2 | B133: 月末〆６２日後払 | C133: 3 | D133: 2
A134: 13V5 | B134: 月末〆６５日後払 | C134: 3 | D134: 5
A135: 13VA | B135: 月末〆７０日後払 | C135: 3 | D135: 10
A136: 13VC | B136: 月末〆７２日後払 | C136: 3 | D136: 12
A137: 13VF | B137: 月末〆７５日後払 | C137: 3 | D137: 15
A138: 13VH | B138: 月末〆７７日後払 | C138: 3 | D138: 17
A139: 13VK | B139: 月末〆８０日後払 | C139: 3 | D139: 20
A140: 13VP | B140: 月末〆８５日後払 | C140: 3 | D140: 25
A141: 13VV | B141: 月末〆９０日後払 | C141: 4 | D141: 0
A142: 14AA | B142: １０日〆１２０日後払 | C142: 4 | D142: 10
A143: 14FF | B143: １５日〆１２０日後払 | C143: 4 | D143: 15
A144: 14K5 | B144: ２０日〆１０５日後払 | C144: 4 | D144: 5
A145: 14PP | B145: ２５日〆１２０日後払 | C145: 4 | D145: 25
A146: 14V5 | B146: 月末〆９５日後払 | C146: 4 | D146: 5
A147: 14VA | B147: 月末〆１００日後払 | C147: 4 | D147: 10
A148: 14VC | B148: 月末〆１０２日後払 | C148: 4 | D148: 12
A149: 14VP | B149: 月末〆１１５日後払 | C149: 4 | D149: 25
A150: 14VV | B150: 月末〆１２０日後払 | C150: 5 | D150: 0
A151: 15KV | B151: ２０日〆１６０日後払 | C151: 6 | D151: 0
A152: 15V5 | B152: 月末〆１２５日後払 | C152: 5 | D152: 25
A153: 15VV | B153: 月末〆１５０日後払 | C153: 6 | D153: 0
A154: 16KB | B154: ２０日〆１７１日後払 | C154: 6 | D154: 11
A155: 16V5 | B155: 月末〆１５５日後払 | C155: 6 | D155: 5
A156: 16VV | B156: 月末〆１８０日後払 | C156: 7 | D156: 0
A157: Z003 | B157: 計上３日後 | C157: 0 | D157: 3
A158: Z007 | B158: 計上７日後 | C158: 0 | D158: 7
A159: Z010 | B159: 計上１０日後 | C159: 0 | D159: 10
A160: Z014 | B160: 計上１４日後 | C160: 0 | D160: 14
A161: Z020 | B161: 計上２０日後 | C161: 0 | D161: 20
A162: Z030 | B162: 計上３０日後 | C162: 1 | D162: 0
A163: Z060 | B163: 計上６０日後 | C163: 2 | D163: 0

Sheet データ取込
A1: 仕入先コード | B1: 仕入集計金額 | C1: 仕入消費税金額 | D1: 仕入先コード（SAP） | E1: 仕入先名称 | F1: 省略名称 | G1: 支払条件（月） | H1: 支払条件（日） | I1: 消費税率 | J1: 消費税コード
A2: 0000000000017 | B2: 1811352 | C2: 144909 | D2: =IF(A2="","",IFERROR(VLOOKUP(A2,Suppliers[],2,0),"未登録")) -> KN-000017 | E2: =IF(A2="","",IFERROR(VLOOKUP($A2,Suppliers[],3,0),"未登録")) -> 三井物産㈱油脂・加工開発営業室 | F2: =IF(A2="","",IFERROR(VLOOKUP($A2,Suppliers[],4,0),"未登録")) -> 三井物産(油脂加工) | G2: =IFERROR(VLOOKUP(A2,Suppliers[],8,0),"") -> 3 | H2: =IFERROR(VLOOKUP(A2,Suppliers[],9,0),"") -> 15 | I2: =IFERROR(ROUND(OriginalData[[#This Row],[仕入消費税金額]]/OriginalData[[#This Row],[仕入集計金額]],2),"") -> 0.08 | J2: =IF(OriginalData[[#This Row],[消費税率]]=0.08,"K8",IF(OriginalData[[#This Row],[消費税率]]=0.1,"AA","")) -> K8
A3: 0000000000081 | B3: 89902 | C3: 7252 | D3: =IF(A3="","",IFERROR(VLOOKUP(A3,Suppliers[],2,0),"未登録")) -> KN-000081 | E3: =IF(A3="","",IFERROR(VLOOKUP($A3,Suppliers[],3,0),"未登録")) -> 隅田商事㈱ | F3: =IF(A3="","",IFERROR(VLOOKUP($A3,Suppliers[],4,0),"未登録")) -> 隅田商事 | G3: =IFERROR(VLOOKUP(A3,Suppliers[],8,0),"") -> 2 | H3: =IFERROR(VLOOKUP(A3,Suppliers[],9,0),"") -> 0 | J3: =IF(OriginalData[[#This Row],[消費税率]]=0.08,"K8",IF(OriginalData[[#This Row],[消費税率]]=0.1,"AA","")) -> 
A4: 0000000000123 | B4: 8554275 | C4: 684342 | D4: =IF(A4="","",IFERROR(VLOOKUP(A4,Suppliers[],2,0),"未登録")) -> KN-000123 | E4: =IF(A4="","",IFERROR(VLOOKUP($A4,Suppliers[],3,0),"未登録")) -> 三菱商事㈱ （はくばく・粉） | F4: =IF(A4="","",IFERROR(VLOOKUP($A4,Suppliers[],4,0),"未登録")) -> 三菱商事(はくばく) | G4: =IFERROR(VLOOKUP(A4,Suppliers[],8,0),"") -> 2 | H4: =IFERROR(VLOOKUP(A4,Suppliers[],9,0),"") -> 0 | I4: =IFERROR(ROUND(OriginalData[[#This Row],[仕入消費税金額]]/OriginalData[[#This Row],[仕入集計金額]],2),"") -> 0.08 | J4: =IF(OriginalData[[#This Row],[消費税率]]=0.08,"K8",IF(OriginalData[[#This Row],[消費税率]]=0.1,"AA","")) -> K8
A5: 0000000000154 | B5: 9892 | C5: 791 | D5: =IF(A5="","",IFERROR(VLOOKUP(A5,Suppliers[],2,0),"未登録")) -> KN-000154 | E5: =IF(A5="","",IFERROR(VLOOKUP($A5,Suppliers[],3,0),"未登録")) -> 三菱商事㈱（鳥越製粉） | F5: =IF(A5="","",IFERROR(VLOOKUP($A5,Suppliers[],4,0),"未登録")) -> 三菱商事(鳥越製粉) | G5: =IFERROR(VLOOKUP(A5,Suppliers[],8,0),"") -> 2 | H5: =IFERROR(VLOOKUP(A5,Suppliers[],9,0),"") -> 0 | I5: =IFERROR(ROUND(OriginalData[[#This Row],[仕入消費税金額]]/OriginalData[[#This Row],[仕入集計金額]],2),"") -> 0.08 | J5: =IF(OriginalData[[#This Row],[消費税率]]=0.08,"K8",IF(OriginalData[[#This Row],[消費税率]]=0.1,"AA","")) -> K8
A6: 0000000000215 | B6: 6934586 | C6: 554766 | D6: =IF(A6="","",IFERROR(VLOOKUP(A6,Suppliers[],2,0),"未登録")) -> KN-000215 | E6: =IF(A6="","",IFERROR(VLOOKUP($A6,Suppliers[],3,0),"未登録")) -> ㈱ニップン商事コ－ポレ－ション | F6: =IF(A6="","",IFERROR(VLOOKUP($A6,Suppliers[],4,0),"未登録")) -> ニップン商事 | G6: =IFERROR(VLOOKUP(A6,Suppliers[],8,0),"") -> 2 | H6: =IFERROR(VLOOKUP(A6,Suppliers[],9,0),"") -> 0 | I6: =IFERROR(ROUND(OriginalData[[#This Row],[仕入消費税金額]]/OriginalData[[#This Row],[仕入集計金額]],2),"") -> 0.08 | J6: =IF(OriginalData[[#This Row],[消費税率]]=0.08,"K8",IF(OriginalData[[#This Row],[消費税率]]=0.1,"AA","")) -> K8
A7: 0000000000253 | B7: 134170 | C7: 10734 | D7: =IF(A7="","",IFERROR(VLOOKUP(A7,Suppliers[],2,0),"未登録")) -> KN-000253 | E7: =IF(A7="","",IFERROR(VLOOKUP($A7,Suppliers[],3,0),"未登録")) -> 三菱商事ﾗｲﾌｻｲｴﾝｽ㈱ | F7: =IF(A7="","",IFERROR(VLOOKUP($A7,Suppliers[],4,0),"未登録")) -> 三菱商事ﾗｲﾌｻｲｴﾝｽ | G7: =IFERROR(VLOOKUP(A7,Suppliers[],8,0),"") -> 3 | H7: =IFERROR(VLOOKUP(A7,Suppliers[],9,0),"") -> 0 | I7: =IFERROR(ROUND(OriginalData[[#This Row],[仕入消費税金額]]/OriginalData[[#This Row],[仕入集計金額]],2),"") -> 0.08 | J7: =IF(OriginalData[[#This Row],[消費税率]]=0.08,"K8",IF(OriginalData[[#This Row],[消費税率]]=0.1,"AA","")) -> K8
A8: 0000000000270 | B8: 0 | C8: 0 | D8: =IF(A8="","",IFERROR(VLOOKUP(A8,Suppliers[],2,0),"未登録")) -> KN-000270 | E8: =IF(A8="","",IFERROR(VLOOKUP($A8,Suppliers[],3,0),"未登録")) -> かちどき製粉㈱ | F8: =IF(A8="","",IFERROR(VLOOKUP($A8,Suppliers[],4,0),"未登録")) -> かちどき製粉 | G8: =IFERROR(VLOOKUP(A8,Suppliers[],8,0),"") -> 2 | H8: =IFERROR(VLOOKUP(A8,Suppliers[],9,0),"") -> 0 | I8: =IFERROR(ROUND(OriginalData[[#This Row],[仕入消費税金額]]/OriginalData[[#This Row],[仕入集計金額]],2),"") ->  | J8: =IF(OriginalData[[#This Row],[消費税率]]=0.08,"K8",IF(OriginalData[[#This Row],[消費税率]]=0.1,"AA","")) -> 
A9: 0000000001111 | B9: 4770 | C9: 382 | D9: =IF(A9="","",IFERROR(VLOOKUP(A9,Suppliers[],2,0),"未登録")) -> KN-001111 | E9: =IF(A9="","",IFERROR(VLOOKUP($A9,Suppliers[],3,0),"未登録")) -> ㈱長谷川商店 | F9: =IF(A9="","",IFERROR(VLOOKUP($A9,Suppliers[],4,0),"未登録")) -> 長谷川商店 | G9: =IFERROR(VLOOKUP(A9,Suppliers[],8,0),"") -> 2 | H9: =IFERROR(VLOOKUP(A9,Suppliers[],9,0),"") -> 0 | I9: =IFERROR(ROUND(OriginalData[[#This Row],[仕入消費税金額]]/OriginalData[[#This Row],[仕入集計金額]],2),"") -> 0.08 | J9: =IF(OriginalData[[#This Row],[消費税率]]=0.08,"K8",IF(OriginalData[[#This Row],[消費税率]]=0.1,"AA","")) -> K8
A10: 0000000001131 | B10: 69000 | C10: 5520 | D10: =IF(A10="","",IFERROR(VLOOKUP(A10,Suppliers[],2,0),"未登録")) -> KN-001131 | E10: =IF(A10="","",IFERROR(VLOOKUP($A10,Suppliers[],3,0),"未登録")) -> コ－ビオンジャパン㈱ | F10: =IF(A10="","",IFERROR(VLOOKUP($A10,Suppliers[],4,0),"未登録")) -> コ－ビオンジャパン | G10: =IFERROR(VLOOKUP(A10,Suppliers[],8,0),"") -> 3 | H10: =IFERROR(VLOOKUP(A10,Suppliers[],9,0),"") -> 0 | I10: =IFERROR(ROUND(OriginalData[[#This Row],[仕入消費税金額]]/OriginalData[[#This Row],[仕入集計金額]],2),"") -> 0.08 | J10: =IF(OriginalData[[#This Row],[消費税率]]=0.08,"K8",IF(OriginalData[[#This Row],[消費税率]]=0.1,"AA","")) -> K8
A11: 0000000001171 | B11: 343600 | C11: 27488 | D11: =IF(A11="","",IFERROR(VLOOKUP(A11,Suppliers[],2,0),"未登録")) -> KN-001171 | E11: =IF(A11="","",IFERROR(VLOOKUP($A11,Suppliers[],3,0),"未登録")) -> 理研ビタミン㈱ | F11: =IF(A11="","",IFERROR(VLOOKUP($A11,Suppliers[],4,0),"未登録")) -> 理研ビタミン | G11: =IFERROR(VLOOKUP(A11,Suppliers[],8,0),"") -> 3 | H11: =IFERROR(VLOOKUP(A11,Suppliers[],9,0),"") -> 0 | I11: =IFERROR(ROUND(OriginalData[[#This Row],[仕入消費税金額]]/OriginalData[[#This Row],[仕入集計金額]],2),"") -> 0.08 | J11: =IF(OriginalData[[#This Row],[消費税率]]=0.08,"K8",IF(OriginalData[[#This Row],[消費税率]]=0.1,"AA","")) -> K8
A12: 0000000001355 | B12: 43790 | C12: 3503 | D12: =IF(A12="","",IFERROR(VLOOKUP(A12,Suppliers[],2,0),"未登録")) -> KN-001355 | E12: =IF(A12="","",IFERROR(VLOOKUP($A12,Suppliers[],3,0),"未登録")) -> 三井物産㈱ オ－マイ製品 | F12: =IF(A12="","",IFERROR(VLOOKUP($A12,Suppliers[],4,0),"未登録")) -> 三井物産(オ－マイ) | G12: =IFERROR(VLOOKUP(A12,Suppliers[],8,0),"") -> 3 | H12: =IFERROR(VLOOKUP(A12,Suppliers[],9,0),"") -> 0 | I12: =IFERROR(ROUND(OriginalData[[#This Row],[仕入消費税金額]]/OriginalData[[#This Row],[仕入集計金額]],2),"") -> 0.08 | J12: =IF(OriginalData[[#This Row],[消費税率]]=0.08,"K8",IF(OriginalData[[#This Row],[消費税率]]=0.1,"AA","")) -> K8
A13: 0000000001430 | B13: 102821 | C13: 8274 | D13: =IF(A13="","",IFERROR(VLOOKUP(A13,Suppliers[],2,0),"未登録")) -> KN-001430 | E13: =IF(A13="","",IFERROR(VLOOKUP($A13,Suppliers[],3,0),"未登録")) -> ㈱はくばく | F13: =IF(A13="","",IFERROR(VLOOKUP($A13,Suppliers[],4,0),"未登録")) -> はくばく | G13: =IFERROR(VLOOKUP(A13,Suppliers[],8,0),"") -> 2 | H13: =IFERROR(VLOOKUP(A13,Suppliers[],9,0),"") -> 15 | I13: =IFERROR(ROUND(OriginalData[[#This Row],[仕入消費税金額]]/OriginalData[[#This Row],[仕入集計金額]],2),"") -> 0.08 | J13: =IF(OriginalData[[#This Row],[消費税率]]=0.08,"K8",IF(OriginalData[[#This Row],[消費税率]]=0.1,"AA","")) -> K8
A14: 0000000001451 | B14: 0 | C14: 0 | D14: =IF(A14="","",IFERROR(VLOOKUP(A14,Suppliers[],2,0),"未登録")) -> KN-001451 | E14: =IF(A14="","",IFERROR(VLOOKUP($A14,Suppliers[],3,0),"未登録")) -> 東京保存食糧㈱ | F14: =IF(A14="","",IFERROR(VLOOKUP($A14,Suppliers[],4,0),"未登録")) -> 東京保存食糧 | G14: =IFERROR(VLOOKUP(A14,Suppliers[],8,0),"") -> 1 | H14: =IFERROR(VLOOKUP(A14,Suppliers[],9,0),"") -> 20 | I14: =IFERROR(ROUND(OriginalData[[#This Row],[仕入消費税金額]]/OriginalData[[#This Row],[仕入集計金額]],2),"") ->  | J14: =IF(OriginalData[[#This Row],[消費税率]]=0.08,"K8",IF(OriginalData[[#This Row],[消費税率]]=0.1,"AA","")) -> 
A15: 0000000001577 | B15: 167377 | C15: 13406 | D15: =IF(A15="","",IFERROR(VLOOKUP(A15,Suppliers[],2,0),"未登録")) -> KN-001577 | E15: =IF(A15="","",IFERROR(VLOOKUP($A15,Suppliers[],3,0),"未登録")) -> 川光商事㈱ | F15: =IF(A15="","",IFERROR(VLOOKUP($A15,Suppliers[],4,0),"未登録")) -> 川光商事 | G15: =IFERROR(VLOOKUP(A15,Suppliers[],8,0),"") -> 3 | H15: =IFERROR(VLOOKUP(A15,Suppliers[],9,0),"") -> 0 | I15: =IFERROR(ROUND(OriginalData[[#This Row],[仕入消費税金額]]/OriginalData[[#This Row],[仕入集計金額]],2),"") -> 0.08 | J15: =IF(OriginalData[[#This Row],[消費税率]]=0.08,"K8",IF(OriginalData[[#This Row],[消費税率]]=0.1,"AA","")) -> K8
A16: 0000000001621 | B16: 1806860 | C16: 144554 | D16: =IF(A16="","",IFERROR(VLOOKUP(A16,Suppliers[],2,0),"未登録")) -> KN-001621 | E16: =IF(A16="","",IFERROR(VLOOKUP($A16,Suppliers[],3,0),"未登録")) -> 三井物産㈱ 富士食品製品 | F16: =IF(A16="","",IFERROR(VLOOKUP($A16,Suppliers[],4,0),"未登録")) -> 三井物産(富士食品) | G16: =IFERROR(VLOOKUP(A16,Suppliers[],8,0),"") -> 3 | H16: =IFERROR(VLOOKUP(A16,Suppliers[],9,0),"") -> 0 | I16: =IFERROR(ROUND(OriginalData[[#This Row],[仕入消費税金額]]/OriginalData[[#This Row],[仕入集計金額]],2),"") -> 0.08 | J16: =IF(OriginalData[[#This Row],[消費税率]]=0.08,"K8",IF(OriginalData[[#This Row],[消費税率]]=0.1,"AA","")) -> K8
A17: 0000000001645 | B17: 12750 | C17: 1040 | D17: =IF(A17="","",IFERROR(VLOOKUP(A17,Suppliers[],2,0),"未登録")) -> KN-001645 | E17: =IF(A17="","",IFERROR(VLOOKUP($A17,Suppliers[],3,0),"未登録")) -> ㈱創味食品 | F17: =IF(A17="","",IFERROR(VLOOKUP($A17,Suppliers[],4,0),"未登録")) -> 創味食品 | G17: =IFERROR(VLOOKUP(A17,Suppliers[],8,0),"") -> 3 | H17: =IFERROR(VLOOKUP(A17,Suppliers[],9,0),"") -> 0 | I17: =IFERROR(ROUND(OriginalData[[#This Row],[仕入消費税金額]]/OriginalData[[#This Row],[仕入集計金額]],2),"") -> 0.08 | J17: =IF(OriginalData[[#This Row],[消費税率]]=0.08,"K8",IF(OriginalData[[#This Row],[消費税率]]=0.1,"AA","")) -> K8
A18: 0000000001720 | B18: 20720 | C18: 1695 | D18: =IF(A18="","",IFERROR(VLOOKUP(A18,Suppliers[],2,0),"未登録")) -> KN-001720 | E18: =IF(A18="","",IFERROR(VLOOKUP($A18,Suppliers[],3,0),"未登録")) -> 丸和油脂㈱ | F18: =IF(A18="","",IFERROR(VLOOKUP($A18,Suppliers[],4,0),"未登録")) -> 丸和油脂 | G18: =IFERROR(VLOOKUP(A18,Suppliers[],8,0),"") -> 3 | H18: =IFERROR(VLOOKUP(A18,Suppliers[],9,0),"") -> 0 | I18: =IFERROR(ROUND(OriginalData[[#This Row],[仕入消費税金額]]/OriginalData[[#This Row],[仕入集計金額]],2),"") -> 0.08 | J18: =IF(OriginalData[[#This Row],[消費税率]]=0.08,"K8",IF(OriginalData[[#This Row],[消費税率]]=0.1,"AA","")) -> K8
A19: 0000000001741 | B19: 0 | C19: 0 | D19: =IF(A19="","",IFERROR(VLOOKUP(A19,Suppliers[],2,0),"未登録")) -> KN-001741 | E19: =IF(A19="","",IFERROR(VLOOKUP($A19,Suppliers[],3,0),"未登録")) -> 和弘食品㈱ | F19: =IF(A19="","",IFERROR(VLOOKUP($A19,Suppliers[],4,0),"未登録")) -> 和弘食品 | G19: =IFERROR(VLOOKUP(A19,Suppliers[],8,0),"") -> 3 | H19: =IFERROR(VLOOKUP(A19,Suppliers[],9,0),"") -> 0 | I19: =IFERROR(ROUND(OriginalData[[#This Row],[仕入消費税金額]]/OriginalData[[#This Row],[仕入集計金額]],2),"") ->  | J19: =IF(OriginalData[[#This Row],[消費税率]]=0.08,"K8",IF(OriginalData[[#This Row],[消費税率]]=0.1,"AA","")) -> 
A20: 0000000001775 | B20: 406331 | C20: 32506 | D20: =IF(A20="","",IFERROR(VLOOKUP(A20,Suppliers[],2,0),"未登録")) -> KN-001775 | E20: =IF(A20="","",IFERROR(VLOOKUP($A20,Suppliers[],3,0),"未登録")) -> 国分首都圏株式会社 | F20: =IF(A20="","",IFERROR(VLOOKUP($A20,Suppliers[],4,0),"未登録")) -> 国分首都圏 | G20: =IFERROR(VLOOKUP(A20,Suppliers[],8,0),"") -> 3 | H20: =IFERROR(VLOOKUP(A20,Suppliers[],9,0),"") -> 0 | I20: =IFERROR(ROUND(OriginalData[[#This Row],[仕入消費税金額]]/OriginalData[[#This Row],[仕入集計金額]],2),"") -> 0.08 | J20: =IF(OriginalData[[#This Row],[消費税率]]=0.08,"K8",IF(OriginalData[[#This Row],[消費税率]]=0.1,"AA","")) -> K8
A21: 0000000001959 | B21: 730020 | C21: 58395 | D21: =IF(A21="","",IFERROR(VLOOKUP(A21,Suppliers[],2,0),"未登録")) -> KN-001959 | E21: =IF(A21="","",IFERROR(VLOOKUP($A21,Suppliers[],3,0),"未登録")) -> ㈱日本サンガリア | F21: =IF(A21="","",IFERROR(VLOOKUP($A21,Suppliers[],4,0),"未登録")) -> 日本サンガリア | G21: =IFERROR(VLOOKUP(A21,Suppliers[],8,0),"") -> 2 | H21: =IFERROR(VLOOKUP(A21,Suppliers[],9,0),"") -> 0 | I21: =IFERROR(ROUND(OriginalData[[#This Row],[仕入消費税金額]]/OriginalData[[#This Row],[仕入集計金額]],2),"") -> 0.08 | J21: =IF(OriginalData[[#This Row],[消費税率]]=0.08,"K8",IF(OriginalData[[#This Row],[消費税率]]=0.1,"AA","")) -> K8
A22: 0000000002013 | B22: 986910 | C22: 78953 | D22: =IF(A22="","",IFERROR(VLOOKUP(A22,Suppliers[],2,0),"未登録")) -> KN-002013 | E22: =IF(A22="","",IFERROR(VLOOKUP($A22,Suppliers[],3,0),"未登録")) -> 三井物産㈱Ｊ－オイルミルズ | F22: =IF(A22="","",IFERROR(VLOOKUP($A22,Suppliers[],4,0),"未登録")) -> 三井物産(ｵｲﾙﾐﾙｽﾞ) | G22: =IFERROR(VLOOKUP(A22,Suppliers[],8,0),"") -> 3 | H22: =IFERROR(VLOOKUP(A22,Suppliers[],9,0),"") -> 0 | I22: =IFERROR(ROUND(OriginalData[[#This Row],[仕入消費税金額]]/OriginalData[[#This Row],[仕入集計金額]],2),"") -> 0.08 | J22: =IF(OriginalData[[#This Row],[消費税率]]=0.08,"K8",IF(OriginalData[[#This Row],[消費税率]]=0.1,"AA","")) -> K8
A23: 0000000002037 | B23: 854380 | C23: 68347 | D23: =IF(A23="","",IFERROR(VLOOKUP(A23,Suppliers[],2,0),"未登録")) -> KN-002037 | E23: =IF(A23="","",IFERROR(VLOOKUP($A23,Suppliers[],3,0),"未登録")) -> 岩井の胡麻油㈱ | F23: =IF(A23="","",IFERROR(VLOOKUP($A23,Suppliers[],4,0),"未登録")) -> 岩井の胡麻油 | G23: =IFERROR(VLOOKUP(A23,Suppliers[],8,0),"") -> 3 | H23: =IFERROR(VLOOKUP(A23,Suppliers[],9,0),"") -> 0 | I23: =IFERROR(ROUND(OriginalData[[#This Row],[仕入消費税金額]]/OriginalData[[#This Row],[仕入集計金額]],2),"") -> 0.08 | J23: =IF(OriginalData[[#This Row],[消費税率]]=0.08,"K8",IF(OriginalData[[#This Row],[消費税率]]=0.1,"AA","")) -> K8
A24: 0000000002044 | B24: 85400 | C24: 6832 | D24: =IF(A24="","",IFERROR(VLOOKUP(A24,Suppliers[],2,0),"未登録")) -> KN-002044 | E24: =IF(A24="","",IFERROR(VLOOKUP($A24,Suppliers[],3,0),"未登録")) -> 三井物産㈱ かどや製油 | F24: =IF(A24="","",IFERROR(VLOOKUP($A24,Suppliers[],4,0),"未登録")) -> 三井物産(かどや) | G24: =IFERROR(VLOOKUP(A24,Suppliers[],8,0),"") -> 3 | H24: =IFERROR(VLOOKUP(A24,Suppliers[],9,0),"") -> 0 | I24: =IFERROR(ROUND(OriginalData[[#This Row],[仕入消費税金額]]/OriginalData[[#This Row],[仕入集計金額]],2),"") -> 0.08 | J24: =IF(OriginalData[[#This Row],[消費税率]]=0.08,"K8",IF(OriginalData[[#This Row],[消費税率]]=0.1,"AA","")) -> K8
A25: 0000000002075 | B25: 419900 | C25: 33592 | D25: =IF(A25="","",IFERROR(VLOOKUP(A25,Suppliers[],2,0),"未登録")) -> KN-002075 | E25: =IF(A25="","",IFERROR(VLOOKUP($A25,Suppliers[],3,0),"未登録")) -> ユアサ・フナショク株式会社 | F25: =IF(A25="","",IFERROR(VLOOKUP($A25,Suppliers[],4,0),"未登録")) -> ユアサ・フナショク | G25: =IFERROR(VLOOKUP(A25,Suppliers[],8,0),"") -> 1 | H25: =IFERROR(VLOOKUP(A25,Suppliers[],9,0),"") -> 0 | I25: =IFERROR(ROUND(OriginalData[[#This Row],[仕入消費税金額]]/OriginalData[[#This Row],[仕入集計金額]],2),"") -> 0.08 | J25: =IF(OriginalData[[#This Row],[消費税率]]=0.08,"K8",IF(OriginalData[[#This Row],[消費税率]]=0.1,"AA","")) -> K8
A26: 0000000002150 | B26: 25000 | C26: 2000 | D26: =IF(A26="","",IFERROR(VLOOKUP(A26,Suppliers[],2,0),"未登録")) -> KN-002150 | E26: =IF(A26="","",IFERROR(VLOOKUP($A26,Suppliers[],3,0),"未登録")) -> ㈱ダイヤスター | F26: =IF(A26="","",IFERROR(VLOOKUP($A26,Suppliers[],4,0),"未登録")) -> ダイヤスター | G26: =IFERROR(VLOOKUP(A26,Suppliers[],8,0),"") -> 3 | H26: =IFERROR(VLOOKUP(A26,Suppliers[],9,0),"") -> 0 | I26: =IFERROR(ROUND(OriginalData[[#This Row],[仕入消費税金額]]/OriginalData[[#This Row],[仕入集計金額]],2),"") -> 0.08 | J26: =IF(OriginalData[[#This Row],[消費税率]]=0.08,"K8",IF(OriginalData[[#This Row],[消費税率]]=0.1,"AA","")) -> K8
A27: 0000000002198 | B27: 0 | C27: 0 | D27: =IF(A27="","",IFERROR(VLOOKUP(A27,Suppliers[],2,0),"未登録")) -> KN-002198 | E27: =IF(A27="","",IFERROR(VLOOKUP($A27,Suppliers[],3,0),"未登録")) -> ㈱内田からし | F27: =IF(A27="","",IFERROR(VLOOKUP($A27,Suppliers[],4,0),"未登録")) -> 内田からし | G27: =IFERROR(VLOOKUP(A27,Suppliers[],8,0),"") -> 2 | H27: =IFERROR(VLOOKUP(A27,Suppliers[],9,0),"") -> 0 | I27: =IFERROR(ROUND(OriginalData[[#This Row],[仕入消費税金額]]/OriginalData[[#This Row],[仕入集計金額]],2),"") ->  | J27: =IF(OriginalData[[#This Row],[消費税率]]=0.08,"K8",IF(OriginalData[[#This Row],[消費税率]]=0.1,"AA","")) -> 
A28: 0000000002235 | B28: 116200 | C28: 9296 | D28: =IF(A28="","",IFERROR(VLOOKUP(A28,Suppliers[],2,0),"未登録")) -> KN-002235 | E28: =IF(A28="","",IFERROR(VLOOKUP($A28,Suppliers[],3,0),"未登録")) -> 上越スタ－チ㈱ | F28: =IF(A28="","",IFERROR(VLOOKUP($A28,Suppliers[],4,0),"未登録")) -> 上越スタ－チ | G28: =IFERROR(VLOOKUP(A28,Suppliers[],8,0),"") -> 3 | H28: =IFERROR(VLOOKUP(A28,Suppliers[],9,0),"") -> 0 | I28: =IFERROR(ROUND(OriginalData[[#This Row],[仕入消費税金額]]/OriginalData[[#This Row],[仕入集計金額]],2),"") -> 0.08 | J28: =IF(OriginalData[[#This Row],[消費税率]]=0.08,"K8",IF(OriginalData[[#This Row],[消費税率]]=0.1,"AA","")) -> K8
A29: 0000000002265 | B29: 8000 | C29: 664 | D29: =IF(A29="","",IFERROR(VLOOKUP(A29,Suppliers[],2,0),"未登録")) -> KN-002265 | E29: =IF(A29="","",IFERROR(VLOOKUP($A29,Suppliers[],3,0),"未登録")) -> たかい食品㈱ | F29: =IF(A29="","",IFERROR(VLOOKUP($A29,Suppliers[],4,0),"未登録")) -> たかい食品 | G29: =IFERROR(VLOOKUP(A29,Suppliers[],8,0),"") -> 2 | H29: =IFERROR(VLOOKUP(A29,Suppliers[],9,0),"") -> 0 | I29: =IFERROR(ROUND(OriginalData[[#This Row],[仕入消費税金額]]/OriginalData[[#This Row],[仕入集計金額]],2),"") -> 0.08 | J29: =IF(OriginalData[[#This Row],[消費税率]]=0.08,"K8",IF(OriginalData[[#This Row],[消費税率]]=0.1,"AA","")) -> K8
A30: 0000000002297 | B30: 0 | C30: 0 | D30: =IF(A30="","",IFERROR(VLOOKUP(A30,Suppliers[],2,0),"未登録")) -> KN-002297 | E30: =IF(A30="","",IFERROR(VLOOKUP($A30,Suppliers[],3,0),"未登録")) -> 兼松食品㈱ | F30: =IF(A30="","",IFERROR(VLOOKUP($A30,Suppliers[],4,0),"未登録")) -> 兼松食品 | G30: =IFERROR(VLOOKUP(A30,Suppliers[],8,0),"") -> 2 | H30: =IFERROR(VLOOKUP(A30,Suppliers[],9,0),"") -> 15 | I30: =IFERROR(ROUND(OriginalData[[#This Row],[仕入消費税金額]]/OriginalData[[#This Row],[仕入集計金額]],2),"") ->  | J30: =IF(OriginalData[[#This Row],[消費税率]]=0.08,"K8",IF(OriginalData[[#This Row],[消費税率]]=0.1,"AA","")) -> 
A31: 0000000002440 | B31: 64650 | C31: 5172 | D31: =IF(A31="","",IFERROR(VLOOKUP(A31,Suppliers[],2,0),"未登録")) -> KN-002440 | E31: =IF(A31="","",IFERROR(VLOOKUP($A31,Suppliers[],3,0),"未登録")) -> ㈱マスキチ | F31: =IF(A31="","",IFERROR(VLOOKUP($A31,Suppliers[],4,0),"未登録")) -> マスキチ | G31: =IFERROR(VLOOKUP(A31,Suppliers[],8,0),"") -> 3 | H31: =IFERROR(VLOOKUP(A31,Suppliers[],9,0),"") -> 0 | I31: =IFERROR(ROUND(OriginalData[[#This Row],[仕入消費税金額]]/OriginalData[[#This Row],[仕入集計金額]],2),"") -> 0.08 | J31: =IF(OriginalData[[#This Row],[消費税率]]=0.08,"K8",IF(OriginalData[[#This Row],[消費税率]]=0.1,"AA","")) -> K8
A32: 0000000002457 | B32: 3435300 | C32: 274824 | D32: =IF(A32="","",IFERROR(VLOOKUP(A32,Suppliers[],2,0),"未登録")) -> KN-002457 | E32: =IF(A32="","",IFERROR(VLOOKUP($A32,Suppliers[],3,0),"未登録")) -> 横関油脂工業㈱ | F32: =IF(A32="","",IFERROR(VLOOKUP($A32,Suppliers[],4,0),"未登録")) -> 横関油脂工業 | G32: =IFERROR(VLOOKUP(A32,Suppliers[],8,0),"") -> 3 | H32: =IFERROR(VLOOKUP(A32,Suppliers[],9,0),"") -> 0 | I32: =IFERROR(ROUND(OriginalData[[#This Row],[仕入消費税金額]]/OriginalData[[#This Row],[仕入集計金額]],2),"") -> 0.08 | J32: =IF(OriginalData[[#This Row],[消費税率]]=0.08,"K8",IF(OriginalData[[#This Row],[消費税率]]=0.1,"AA","")) -> K8
A33: 0000000002495 | B33: 189200 | C33: 15136 | D33: =IF(A33="","",IFERROR(VLOOKUP(A33,Suppliers[],2,0),"未登録")) -> KN-002495 | E33: =IF(A33="","",IFERROR(VLOOKUP($A33,Suppliers[],3,0),"未登録")) -> ㈱J-NIKKAﾊﾟｰﾄﾅｰｽﾞ | F33: =IF(A33="","",IFERROR(VLOOKUP($A33,Suppliers[],4,0),"未登録")) -> J-NIKKAﾊﾟｰﾄﾅｰｽﾞ | G33: =IFERROR(VLOOKUP(A33,Suppliers[],8,0),"") -> 3 | H33: =IFERROR(VLOOKUP(A33,Suppliers[],9,0),"") -> 0 | I33: =IFERROR(ROUND(OriginalData[[#This Row],[仕入消費税金額]]/OriginalData[[#This Row],[仕入集計金額]],2),"") -> 0.08 | J33: =IF(OriginalData[[#This Row],[消費税率]]=0.08,"K8",IF(OriginalData[[#This Row],[消費税率]]=0.1,"AA","")) -> K8
A34: 0000000002549 | B34: 14847 | C34: 1187 | D34: =IF(A34="","",IFERROR(VLOOKUP(A34,Suppliers[],2,0),"未登録")) -> KN-002549 | E34: =IF(A34="","",IFERROR(VLOOKUP($A34,Suppliers[],3,0),"未登録")) -> ㈱鈴木屋 | F34: =IF(A34="","",IFERROR(VLOOKUP($A34,Suppliers[],4,0),"未登録")) -> 鈴木屋 | G34: =IFERROR(VLOOKUP(A34,Suppliers[],8,0),"") -> 3 | H34: =IFERROR(VLOOKUP(A34,Suppliers[],9,0),"") -> 0 | I34: =IFERROR(ROUND(OriginalData[[#This Row],[仕入消費税金額]]/OriginalData[[#This Row],[仕入集計金額]],2),"") -> 0.08 | J34: =IF(OriginalData[[#This Row],[消費税率]]=0.08,"K8",IF(OriginalData[[#This Row],[消費税率]]=0.1,"AA","")) -> K8
A35: 0000000002756 | B35: 17000 | C35: 1360 | D35: =IF(A35="","",IFERROR(VLOOKUP(A35,Suppliers[],2,0),"未登録")) -> KN-002756 | E35: =IF(A35="","",IFERROR(VLOOKUP($A35,Suppliers[],3,0),"未登録")) -> 二葉化成株式会社 | F35: =IF(A35="","",IFERROR(VLOOKUP($A35,Suppliers[],4,0),"未登録")) -> 二葉化成株式会社 | G35: =IFERROR(VLOOKUP(A35,Suppliers[],8,0),"") -> 2 | H35: =IFERROR(VLOOKUP(A35,Suppliers[],9,0),"") -> 0 | I35: =IFERROR(ROUND(OriginalData[[#This Row],[仕入消費税金額]]/OriginalData[[#This Row],[仕入集計金額]],2),"") -> 0.08 | J35: =IF(OriginalData[[#This Row],[消費税率]]=0.08,"K8",IF(OriginalData[[#This Row],[消費税率]]=0.1,"AA","")) -> K8
A36: 0000000002884 | B36: 8000 | C36: 640 | D36: =IF(A36="","",IFERROR(VLOOKUP(A36,Suppliers[],2,0),"未登録")) -> KN-002884 | E36: =IF(A36="","",IFERROR(VLOOKUP($A36,Suppliers[],3,0),"未登録")) -> ㈱かね善 | F36: =IF(A36="","",IFERROR(VLOOKUP($A36,Suppliers[],4,0),"未登録")) -> かね善 | G36: =IFERROR(VLOOKUP(A36,Suppliers[],8,0),"") -> 2 | H36: =IFERROR(VLOOKUP(A36,Suppliers[],9,0),"") -> 0 | I36: =IFERROR(ROUND(OriginalData[[#This Row],[仕入消費税金額]]/OriginalData[[#This Row],[仕入集計金額]],2),"") -> 0.08 | J36: =IF(OriginalData[[#This Row],[消費税率]]=0.08,"K8",IF(OriginalData[[#This Row],[消費税率]]=0.1,"AA","")) -> K8
A37: 0000000000024 | B37: 8514803 | C37: 681184 | D37: =IF(A37="","",IFERROR(VLOOKUP(A37,Suppliers[],2,0),"未登録")) -> KN-000024 | E37: =IF(A37="","",IFERROR(VLOOKUP($A37,Suppliers[],3,0),"未登録")) -> 住商ﾌｰｽﾞ株式会社 | F37: =IF(A37="","",IFERROR(VLOOKUP($A37,Suppliers[],4,0),"未登録")) -> 住商ﾌｰｽﾞ | G37: =IFERROR(VLOOKUP(A37,Suppliers[],8,0),"") -> 3 | H37: =IFERROR(VLOOKUP(A37,Suppliers[],9,0),"") -> 0 | I37: =IFERROR(ROUND(OriginalData[[#This Row],[仕入消費税金額]]/OriginalData[[#This Row],[仕入集計金額]],2),"") -> 0.08 | J37: =IF(OriginalData[[#This Row],[消費税率]]=0.08,"K8",IF(OriginalData[[#This Row],[消費税率]]=0.1,"AA","")) -> K8
A38: 0000000000062 | B38: 396063 | C38: 31685 | D38: =IF(A38="","",IFERROR(VLOOKUP(A38,Suppliers[],2,0),"未登録")) -> KN-000062 | E38: =IF(A38="","",IFERROR(VLOOKUP($A38,Suppliers[],3,0),"未登録")) -> ユアサ・フナショク㈱ | F38: =IF(A38="","",IFERROR(VLOOKUP($A38,Suppliers[],4,0),"未登録")) -> ユアサ・フナショク | G38: =IFERROR(VLOOKUP(A38,Suppliers[],8,0),"") -> 3 | H38: =IFERROR(VLOOKUP(A38,Suppliers[],9,0),"") -> 15 | I38: =IFERROR(ROUND(OriginalData[[#This Row],[仕入消費税金額]]/OriginalData[[#This Row],[仕入集計金額]],2),"") -> 0.08 | J38: =IF(OriginalData[[#This Row],[消費税率]]=0.08,"K8",IF(OriginalData[[#This Row],[消費税率]]=0.1,"AA","")) -> K8
A39: 0000000000222 | B39: 110215 | C39: 8817 | D39: =IF(A39="","",IFERROR(VLOOKUP(A39,Suppliers[],2,0),"未登録")) -> KN-000222 | E39: =IF(A39="","",IFERROR(VLOOKUP($A39,Suppliers[],3,0),"未登録")) -> 千葉製粉㈱ | F39: =IF(A39="","",IFERROR(VLOOKUP($A39,Suppliers[],4,0),"未登録")) -> 千葉製粉 | G39: =IFERROR(VLOOKUP(A39,Suppliers[],8,0),"") -> 2 | H39: =IFERROR(VLOOKUP(A39,Suppliers[],9,0),"") -> 20 | I39: =IFERROR(ROUND(OriginalData[[#This Row],[仕入消費税金額]]/OriginalData[[#This Row],[仕入集計金額]],2),"") -> 0.08 | J39: =IF(OriginalData[[#This Row],[消費税率]]=0.08,"K8",IF(OriginalData[[#This Row],[消費税率]]=0.1,"AA","")) -> K8
A40: 0000000000280 | B40: 551154 | C40: 44092 | D40: =IF(A40="","",IFERROR(VLOOKUP(A40,Suppliers[],2,0),"未登録")) -> KN-000280 | E40: =IF(A40="","",IFERROR(VLOOKUP($A40,Suppliers[],3,0),"未登録")) -> ﾔﾏｼﾞｮｳ商事㈱ | F40: =IF(A40="","",IFERROR(VLOOKUP($A40,Suppliers[],4,0),"未登録")) -> ﾔﾏｼﾞｮｳ商事 | G40: =IFERROR(VLOOKUP(A40,Suppliers[],8,0),"") -> 2 | H40: =IFERROR(VLOOKUP(A40,Suppliers[],9,0),"") -> 0 | I40: =IFERROR(ROUND(OriginalData[[#This Row],[仕入消費税金額]]/OriginalData[[#This Row],[仕入集計金額]],2),"") -> 0.08 | J40: =IF(OriginalData[[#This Row],[消費税率]]=0.08,"K8",IF(OriginalData[[#This Row],[消費税率]]=0.1,"AA","")) -> K8
A41: 0000000000351 | B41: 526900 | C41: 42180 | D41: =IF(A41="","",IFERROR(VLOOKUP(A41,Suppliers[],2,0),"未登録")) -> KN-000351 | E41: =IF(A41="","",IFERROR(VLOOKUP($A41,Suppliers[],3,0),"未登録")) -> 杉山商事㈱ | F41: =IF(A41="","",IFERROR(VLOOKUP($A41,Suppliers[],4,0),"未登録")) -> 杉山商事 | G41: =IFERROR(VLOOKUP(A41,Suppliers[],8,0),"") -> 2 | H41: =IFERROR(VLOOKUP(A41,Suppliers[],9,0),"") -> 0 | I41: =IFERROR(ROUND(OriginalData[[#This Row],[仕入消費税金額]]/OriginalData[[#This Row],[仕入集計金額]],2),"") -> 0.08 | J41: =IF(OriginalData[[#This Row],[消費税率]]=0.08,"K8",IF(OriginalData[[#This Row],[消費税率]]=0.1,"AA","")) -> K8
A42: 0000000001010 | B42: 955946 | C42: 76476 | D42: =IF(A42="","",IFERROR(VLOOKUP(A42,Suppliers[],2,0),"未登録")) -> KN-001010 | E42: =IF(A42="","",IFERROR(VLOOKUP($A42,Suppliers[],3,0),"未登録")) -> 三井物産㈱ サンヨ－食品製品 | F42: =IF(A42="","",IFERROR(VLOOKUP($A42,Suppliers[],4,0),"未登録")) -> 三井物産(サンヨ－) | G42: =IFERROR(VLOOKUP(A42,Suppliers[],8,0),"") -> 3 | H42: =IFERROR(VLOOKUP(A42,Suppliers[],9,0),"") -> 0 | I42: =IFERROR(ROUND(OriginalData[[#This Row],[仕入消費税金額]]/OriginalData[[#This Row],[仕入集計金額]],2),"") -> 0.08 | J42: =IF(OriginalData[[#This Row],[消費税率]]=0.08,"K8",IF(OriginalData[[#This Row],[消費税率]]=0.1,"AA","")) -> K8
A43: 0000000001027 | B43: 169777 | C43: 13582 | D43: =IF(A43="","",IFERROR(VLOOKUP(A43,Suppliers[],2,0),"未登録")) -> KN-001027 | E43: =IF(A43="","",IFERROR(VLOOKUP($A43,Suppliers[],3,0),"未登録")) -> 明星食品㈱ | F43: =IF(A43="","",IFERROR(VLOOKUP($A43,Suppliers[],4,0),"未登録")) -> 明星食品 | G43: =IFERROR(VLOOKUP(A43,Suppliers[],8,0),"") -> 2 | H43: =IFERROR(VLOOKUP(A43,Suppliers[],9,0),"") -> 15 | I43: =IFERROR(ROUND(OriginalData[[#This Row],[仕入消費税金額]]/OriginalData[[#This Row],[仕入集計金額]],2),"") -> 0.08 | J43: =IF(OriginalData[[#This Row],[消費税率]]=0.08,"K8",IF(OriginalData[[#This Row],[消費税率]]=0.1,"AA","")) -> K8
A44: 0000000001034 | B44: 65959 | C44: 5275 | D44: =IF(A44="","",IFERROR(VLOOKUP(A44,Suppliers[],2,0),"未登録")) -> KN-001034 | E44: =IF(A44="","",IFERROR(VLOOKUP($A44,Suppliers[],3,0),"未登録")) -> 東洋水産㈱ | F44: =IF(A44="","",IFERROR(VLOOKUP($A44,Suppliers[],4,0),"未登録")) -> 東洋水産 | G44: =IFERROR(VLOOKUP(A44,Suppliers[],8,0),"") -> 3 | H44: =IFERROR(VLOOKUP(A44,Suppliers[],9,0),"") -> 0 | I44: =IFERROR(ROUND(OriginalData[[#This Row],[仕入消費税金額]]/OriginalData[[#This Row],[仕入集計金額]],2),"") -> 0.08 | J44: =IF(OriginalData[[#This Row],[消費税率]]=0.08,"K8",IF(OriginalData[[#This Row],[消費税率]]=0.1,"AA","")) -> K8
A45: 0000000001081 | B45: 190000 | C45: 15200 | D45: =IF(A45="","",IFERROR(VLOOKUP(A45,Suppliers[],2,0),"未登録")) -> KN-001081 | E45: =IF(A45="","",IFERROR(VLOOKUP($A45,Suppliers[],3,0),"未登録")) -> 赤城食品㈱ | F45: =IF(A45="","",IFERROR(VLOOKUP($A45,Suppliers[],4,0),"未登録")) -> 赤城食品 | G45: =IFERROR(VLOOKUP(A45,Suppliers[],8,0),"") -> 2 | H45: =IFERROR(VLOOKUP(A45,Suppliers[],9,0),"") -> 0 | I45: =IFERROR(ROUND(OriginalData[[#This Row],[仕入消費税金額]]/OriginalData[[#This Row],[仕入集計金額]],2),"") -> 0.08 | J45: =IF(OriginalData[[#This Row],[消費税率]]=0.08,"K8",IF(OriginalData[[#This Row],[消費税率]]=0.1,"AA","")) -> K8
A46: 0000000001155 | B46: 1344100 | C46: 107525 | D46: =IF(A46="","",IFERROR(VLOOKUP(A46,Suppliers[],2,0),"未登録")) -> KN-001155 | E46: =IF(A46="","",IFERROR(VLOOKUP($A46,Suppliers[],3,0),"未登録")) -> 東海デキストリン株式会社 | F46: =IF(A46="","",IFERROR(VLOOKUP($A46,Suppliers[],4,0),"未登録")) -> 東海デキストリン | G46: =IFERROR(VLOOKUP(A46,Suppliers[],8,0),"") -> 2 | H46: =IFERROR(VLOOKUP(A46,Suppliers[],9,0),"") -> 0 | I46: =IFERROR(ROUND(OriginalData[[#This Row],[仕入消費税金額]]/OriginalData[[#This Row],[仕入集計金額]],2),"") -> 0.08 | J46: =IF(OriginalData[[#This Row],[消費税率]]=0.08,"K8",IF(OriginalData[[#This Row],[消費税率]]=0.1,"AA","")) -> K8
A47: 0000000001161 | B47: 195000 | C47: 15600 | D47: =IF(A47="","",IFERROR(VLOOKUP(A47,Suppliers[],2,0),"未登録")) -> KN-001161 | E47: =IF(A47="","",IFERROR(VLOOKUP($A47,Suppliers[],3,0),"未登録")) -> 小堺化学工業㈱ | F47: =IF(A47="","",IFERROR(VLOOKUP($A47,Suppliers[],4,0),"未登録")) -> 小堺化学工業 | G47: =IFERROR(VLOOKUP(A47,Suppliers[],8,0),"") -> 3 | H47: =IFERROR(VLOOKUP(A47,Suppliers[],9,0),"") -> 0 | I47: =IFERROR(ROUND(OriginalData[[#This Row],[仕入消費税金額]]/OriginalData[[#This Row],[仕入集計金額]],2),"") -> 0.08 | J47: =IF(OriginalData[[#This Row],[消費税率]]=0.08,"K8",IF(OriginalData[[#This Row],[消費税率]]=0.1,"AA","")) -> K8
A48: 0000000001188 | B48: 79125 | C48: 6351 | D48: =IF(A48="","",IFERROR(VLOOKUP(A48,Suppliers[],2,0),"未登録")) -> KN-001188 | E48: =IF(A48="","",IFERROR(VLOOKUP($A48,Suppliers[],3,0),"未登録")) -> ㈲太洋食化学 | F48: =IF(A48="","",IFERROR(VLOOKUP($A48,Suppliers[],4,0),"未登録")) -> 太洋食化学 | G48: =IFERROR(VLOOKUP(A48,Suppliers[],8,0),"") -> 3 | H48: =IFERROR(VLOOKUP(A48,Suppliers[],9,0),"") -> 0 | I48: =IFERROR(ROUND(OriginalData[[#This Row],[仕入消費税金額]]/OriginalData[[#This Row],[仕入集計金額]],2),"") -> 0.08 | J48: =IF(OriginalData[[#This Row],[消費税率]]=0.08,"K8",IF(OriginalData[[#This Row],[消費税率]]=0.1,"AA","")) -> K8
A49: 0000000001195 | B49: 0 | C49: 0 | D49: =IF(A49="","",IFERROR(VLOOKUP(A49,Suppliers[],2,0),"未登録")) -> KN-001195 | E49: =IF(A49="","",IFERROR(VLOOKUP($A49,Suppliers[],3,0),"未登録")) -> ＡＤＥＫＡケミカルサプライ㈱ | F49: =IF(A49="","",IFERROR(VLOOKUP($A49,Suppliers[],4,0),"未登録")) -> ADEKAｹﾐｶﾙｻﾌﾟﾗｲ | G49: =IFERROR(VLOOKUP(A49,Suppliers[],8,0),"") -> 3 | H49: =IFERROR(VLOOKUP(A49,Suppliers[],9,0),"") -> 0 | I49: =IFERROR(ROUND(OriginalData[[#This Row],[仕入消費税金額]]/OriginalData[[#This Row],[仕入集計金額]],2),"") ->  | J49: =IF(OriginalData[[#This Row],[消費税率]]=0.08,"K8",IF(OriginalData[[#This Row],[消費税率]]=0.1,"AA","")) -> 
A50: 0000000001232 | B50: 130560 | C50: 10444 | D50: =IF(A50="","",IFERROR(VLOOKUP(A50,Suppliers[],2,0),"未登録")) -> KN-001232 | E50: =IF(A50="","",IFERROR(VLOOKUP($A50,Suppliers[],3,0),"未登録")) -> 真田物産㈱ | F50: =IF(A50="","",IFERROR(VLOOKUP($A50,Suppliers[],4,0),"未登録")) -> 真田物産 | G50: =IFERROR(VLOOKUP(A50,Suppliers[],8,0),"") -> 3 | H50: =IFERROR(VLOOKUP(A50,Suppliers[],9,0),"") -> 0 | I50: =IFERROR(ROUND(OriginalData[[#This Row],[仕入消費税金額]]/OriginalData[[#This Row],[仕入集計金額]],2),"") -> 0.08 | J50: =IF(OriginalData[[#This Row],[消費税率]]=0.08,"K8",IF(OriginalData[[#This Row],[消費税率]]=0.1,"AA","")) -> K8
A51: 0000000001294 | B51: 253000 | C51: 20240 | D51: =IF(A51="","",IFERROR(VLOOKUP(A51,Suppliers[],2,0),"未登録")) -> KN-001294 | E51: =IF(A51="","",IFERROR(VLOOKUP($A51,Suppliers[],3,0),"未登録")) -> 日本コロイド㈱ | F51: =IF(A51="","",IFERROR(VLOOKUP($A51,Suppliers[],4,0),"未登録")) -> 日本コロイド | G51: =IFERROR(VLOOKUP(A51,Suppliers[],8,0),"") -> 3 | H51: =IFERROR(VLOOKUP(A51,Suppliers[],9,0),"") -> 0 | I51: =IFERROR(ROUND(OriginalData[[#This Row],[仕入消費税金額]]/OriginalData[[#This Row],[仕入集計金額]],2),"") -> 0.08 | J51: =IF(OriginalData[[#This Row],[消費税率]]=0.08,"K8",IF(OriginalData[[#This Row],[消費税率]]=0.1,"AA","")) -> K8
A52: 0000000001300 | B52: 89100 | C52: 7128 | D52: =IF(A52="","",IFERROR(VLOOKUP(A52,Suppliers[],2,0),"未登録")) -> KN-001300 | E52: =IF(A52="","",IFERROR(VLOOKUP($A52,Suppliers[],3,0),"未登録")) -> 交易食品㈱ | F52: =IF(A52="","",IFERROR(VLOOKUP($A52,Suppliers[],4,0),"未登録")) -> 交易食品 | G52: =IFERROR(VLOOKUP(A52,Suppliers[],8,0),"") -> 3 | H52: =IFERROR(VLOOKUP(A52,Suppliers[],9,0),"") -> 0 | I52: =IFERROR(ROUND(OriginalData[[#This Row],[仕入消費税金額]]/OriginalData[[#This Row],[仕入集計金額]],2),"") -> 0.08 | J52: =IF(OriginalData[[#This Row],[消費税率]]=0.08,"K8",IF(OriginalData[[#This Row],[消費税率]]=0.1,"AA","")) -> K8
A53: 0000000001348 | B53: 13500 | C53: 1096 | D53: =IF(A53="","",IFERROR(VLOOKUP(A53,Suppliers[],2,0),"未登録")) -> KN-001348 | E53: =IF(A53="","",IFERROR(VLOOKUP($A53,Suppliers[],3,0),"未登録")) -> 山印醸造㈱ | F53: =IF(A53="","",IFERROR(VLOOKUP($A53,Suppliers[],4,0),"未登録")) -> 山印醸造 | G53: =IFERROR(VLOOKUP(A53,Suppliers[],8,0),"") -> 3 | H53: =IFERROR(VLOOKUP(A53,Suppliers[],9,0),"") -> 0 | I53: =IFERROR(ROUND(OriginalData[[#This Row],[仕入消費税金額]]/OriginalData[[#This Row],[仕入集計金額]],2),"") -> 0.08 | J53: =IF(OriginalData[[#This Row],[消費税率]]=0.08,"K8",IF(OriginalData[[#This Row],[消費税率]]=0.1,"AA","")) -> K8
A54: 0000000001393 | B54: 149877 | C54: 11991 | D54: =IF(A54="","",IFERROR(VLOOKUP(A54,Suppliers[],2,0),"未登録")) -> KN-001393 | E54: =IF(A54="","",IFERROR(VLOOKUP($A54,Suppliers[],3,0),"未登録")) -> 東洋水産㈱冷食 | F54: =IF(A54="","",IFERROR(VLOOKUP($A54,Suppliers[],4,0),"未登録")) -> 東洋水産(冷食) | G54: =IFERROR(VLOOKUP(A54,Suppliers[],8,0),"") -> 3 | H54: =IFERROR(VLOOKUP(A54,Suppliers[],9,0),"") -> 0 | I54: =IFERROR(ROUND(OriginalData[[#This Row],[仕入消費税金額]]/OriginalData[[#This Row],[仕入集計金額]],2),"") -> 0.08 | J54: =IF(OriginalData[[#This Row],[消費税率]]=0.08,"K8",IF(OriginalData[[#This Row],[消費税率]]=0.1,"AA","")) -> K8
A55: 0000000001423 | B55: 68443 | C55: 5476 | D55: =IF(A55="","",IFERROR(VLOOKUP(A55,Suppliers[],2,0),"未登録")) -> KN-001423 | E55: =IF(A55="","",IFERROR(VLOOKUP($A55,Suppliers[],3,0),"未登録")) -> カネク株式会社 | F55: =IF(A55="","",IFERROR(VLOOKUP($A55,Suppliers[],4,0),"未登録")) -> カネク | G55: =IFERROR(VLOOKUP(A55,Suppliers[],8,0),"") -> 3 | H55: =IFERROR(VLOOKUP(A55,Suppliers[],9,0),"") -> 0 | I55: =IFERROR(ROUND(OriginalData[[#This Row],[仕入消費税金額]]/OriginalData[[#This Row],[仕入集計金額]],2),"") -> 0.08 | J55: =IF(OriginalData[[#This Row],[消費税率]]=0.08,"K8",IF(OriginalData[[#This Row],[消費税率]]=0.1,"AA","")) -> K8
A56: 0000000001478 | B56: 28600 | C56: 2288 | D56: =IF(A56="","",IFERROR(VLOOKUP(A56,Suppliers[],2,0),"未登録")) -> KN-001478 | E56: =IF(A56="","",IFERROR(VLOOKUP($A56,Suppliers[],3,0),"未登録")) -> 森井食品㈱ | F56: =IF(A56="","",IFERROR(VLOOKUP($A56,Suppliers[],4,0),"未登録")) -> 森井食品 | G56: =IFERROR(VLOOKUP(A56,Suppliers[],8,0),"") -> 3 | H56: =IFERROR(VLOOKUP(A56,Suppliers[],9,0),"") -> 0 | I56: =IFERROR(ROUND(OriginalData[[#This Row],[仕入消費税金額]]/OriginalData[[#This Row],[仕入集計金額]],2),"") -> 0.08 | J56: =IF(OriginalData[[#This Row],[消費税率]]=0.08,"K8",IF(OriginalData[[#This Row],[消費税率]]=0.1,"AA","")) -> K8
A57: 0000000001546 | B57: 281949 | C57: 22554 | D57: =IF(A57="","",IFERROR(VLOOKUP(A57,Suppliers[],2,0),"未登録")) -> KN-001546 | E57: =IF(A57="","",IFERROR(VLOOKUP($A57,Suppliers[],3,0),"未登録")) -> フライスタ－㈱ | F57: =IF(A57="","",IFERROR(VLOOKUP($A57,Suppliers[],4,0),"未登録")) -> フライスタ－ | G57: =IFERROR(VLOOKUP(A57,Suppliers[],8,0),"") -> 2 | H57: =IFERROR(VLOOKUP(A57,Suppliers[],9,0),"") -> 5 | I57: =IFERROR(ROUND(OriginalData[[#This Row],[仕入消費税金額]]/OriginalData[[#This Row],[仕入集計金額]],2),"") -> 0.08 | J57: =IF(OriginalData[[#This Row],[消費税率]]=0.08,"K8",IF(OriginalData[[#This Row],[消費税率]]=0.1,"AA","")) -> K8
A58: 0000000001553 | B58: 1963 | C58: 157 | D58: =IF(A58="","",IFERROR(VLOOKUP(A58,Suppliers[],2,0),"未登録")) -> KN-001553 | E58: =IF(A58="","",IFERROR(VLOOKUP($A58,Suppliers[],3,0),"未登録")) -> 横浜食糧㈱ | F58: =IF(A58="","",IFERROR(VLOOKUP($A58,Suppliers[],4,0),"未登録")) -> 横浜食糧 | G58: =IFERROR(VLOOKUP(A58,Suppliers[],8,0),"") -> 3 | H58: =IFERROR(VLOOKUP(A58,Suppliers[],9,0),"") -> 0 | I58: =IFERROR(ROUND(OriginalData[[#This Row],[仕入消費税金額]]/OriginalData[[#This Row],[仕入集計金額]],2),"") -> 0.08 | J58: =IF(OriginalData[[#This Row],[消費税率]]=0.08,"K8",IF(OriginalData[[#This Row],[消費税率]]=0.1,"AA","")) -> K8
A59: 0000000001652 | B59: 42006 | C59: 3390 | D59: =IF(A59="","",IFERROR(VLOOKUP(A59,Suppliers[],2,0),"未登録")) -> KN-001652 | E59: =IF(A59="","",IFERROR(VLOOKUP($A59,Suppliers[],3,0),"未登録")) -> 真富士屋食品㈱ | F59: =IF(A59="","",IFERROR(VLOOKUP($A59,Suppliers[],4,0),"未登録")) -> 真富士屋食品 | G59: =IFERROR(VLOOKUP(A59,Suppliers[],8,0),"") -> 3 | H59: =IFERROR(VLOOKUP(A59,Suppliers[],9,0),"") -> 0 | I59: =IFERROR(ROUND(OriginalData[[#This Row],[仕入消費税金額]]/OriginalData[[#This Row],[仕入集計金額]],2),"") -> 0.08 | J59: =IF(OriginalData[[#This Row],[消費税率]]=0.08,"K8",IF(OriginalData[[#This Row],[消費税率]]=0.1,"AA","")) -> K8
A60: 0000000001669 | B60: 20535 | C60: 1643 | D60: =IF(A60="","",IFERROR(VLOOKUP(A60,Suppliers[],2,0),"未登録")) -> KN-001669 | E60: =IF(A60="","",IFERROR(VLOOKUP($A60,Suppliers[],3,0),"未登録")) -> エバラ食品工業㈱ | F60: =IF(A60="","",IFERROR(VLOOKUP($A60,Suppliers[],4,0),"未登録")) -> エバラ食品工業 | G60: =IFERROR(VLOOKUP(A60,Suppliers[],8,0),"") -> 2 | H60: =IFERROR(VLOOKUP(A60,Suppliers[],9,0),"") -> 25 | I60: =IFERROR(ROUND(OriginalData[[#This Row],[仕入消費税金額]]/OriginalData[[#This Row],[仕入集計金額]],2),"") -> 0.08 | J60: =IF(OriginalData[[#This Row],[消費税率]]=0.08,"K8",IF(OriginalData[[#This Row],[消費税率]]=0.1,"AA","")) -> K8
A61: 0000000001676 | B61: 167905 | C61: 13432 | D61: =IF(A61="","",IFERROR(VLOOKUP(A61,Suppliers[],2,0),"未登録")) -> KN-001676 | E61: =IF(A61="","",IFERROR(VLOOKUP($A61,Suppliers[],3,0),"未登録")) -> ㈱榮村商店 | F61: =IF(A61="","",IFERROR(VLOOKUP($A61,Suppliers[],4,0),"未登録")) -> 榮村商店 | G61: =IFERROR(VLOOKUP(A61,Suppliers[],8,0),"") -> 3 | H61: =IFERROR(VLOOKUP(A61,Suppliers[],9,0),"") -> 0 | I61: =IFERROR(ROUND(OriginalData[[#This Row],[仕入消費税金額]]/OriginalData[[#This Row],[仕入集計金額]],2),"") -> 0.08 | J61: =IF(OriginalData[[#This Row],[消費税率]]=0.08,"K8",IF(OriginalData[[#This Row],[消費税率]]=0.1,"AA","")) -> K8
A62: 0000000001690 | B62: 35150 | C62: 2812 | D62: =IF(A62="","",IFERROR(VLOOKUP(A62,Suppliers[],2,0),"未登録")) -> KN-001690 | E62: =IF(A62="","",IFERROR(VLOOKUP($A62,Suppliers[],3,0),"未登録")) -> 三井物産㈱ 丸美屋フ－ズ | F62: =IF(A62="","",IFERROR(VLOOKUP($A62,Suppliers[],4,0),"未登録")) -> 三井物産(丸美屋) | G62: =IFERROR(VLOOKUP(A62,Suppliers[],8,0),"") -> 3 | H62: =IFERROR(VLOOKUP(A62,Suppliers[],9,0),"") -> 0 | I62: =IFERROR(ROUND(OriginalData[[#This Row],[仕入消費税金額]]/OriginalData[[#This Row],[仕入集計金額]],2),"") -> 0.08 | J62: =IF(OriginalData[[#This Row],[消費税率]]=0.08,"K8",IF(OriginalData[[#This Row],[消費税率]]=0.1,"AA","")) -> K8
A63: 0000000001737 | B63: 62700 | C63: 5016 | D63: =IF(A63="","",IFERROR(VLOOKUP(A63,Suppliers[],2,0),"未登録")) -> KN-001737 | E63: =IF(A63="","",IFERROR(VLOOKUP($A63,Suppliers[],3,0),"未登録")) -> 平和食品工業㈱ | F63: =IF(A63="","",IFERROR(VLOOKUP($A63,Suppliers[],4,0),"未登録")) -> 平和食品工業 | G63: =IFERROR(VLOOKUP(A63,Suppliers[],8,0),"") -> 2 | H63: =IFERROR(VLOOKUP(A63,Suppliers[],9,0),"") -> 0 | I63: =IFERROR(ROUND(OriginalData[[#This Row],[仕入消費税金額]]/OriginalData[[#This Row],[仕入集計金額]],2),"") -> 0.08 | J63: =IF(OriginalData[[#This Row],[消費税率]]=0.08,"K8",IF(OriginalData[[#This Row],[消費税率]]=0.1,"AA","")) -> K8
A64: 0000000001751 | B64: 180450 | C64: 14436 | D64: =IF(A64="","",IFERROR(VLOOKUP(A64,Suppliers[],2,0),"未登録")) -> KN-001751 | E64: =IF(A64="","",IFERROR(VLOOKUP($A64,Suppliers[],3,0),"未登録")) -> 太陽商事㈱ | F64: =IF(A64="","",IFERROR(VLOOKUP($A64,Suppliers[],4,0),"未登録")) -> 太陽商事 | G64: =IFERROR(VLOOKUP(A64,Suppliers[],8,0),"") -> 3 | H64: =IFERROR(VLOOKUP(A64,Suppliers[],9,0),"") -> 0 | I64: =IFERROR(ROUND(OriginalData[[#This Row],[仕入消費税金額]]/OriginalData[[#This Row],[仕入集計金額]],2),"") -> 0.08 | J64: =IF(OriginalData[[#This Row],[消費税率]]=0.08,"K8",IF(OriginalData[[#This Row],[消費税率]]=0.1,"AA","")) -> K8
A65: 0000000001831 | B65: 0 | C65: 0 | D65: =IF(A65="","",IFERROR(VLOOKUP(A65,Suppliers[],2,0),"未登録")) -> KN-001831 | E65: =IF(A65="","",IFERROR(VLOOKUP($A65,Suppliers[],3,0),"未登録")) -> 大信実業株式会社 | F65: =IF(A65="","",IFERROR(VLOOKUP($A65,Suppliers[],4,0),"未登録")) -> 大信実業 | G65: =IFERROR(VLOOKUP(A65,Suppliers[],8,0),"") -> 3 | H65: =IFERROR(VLOOKUP(A65,Suppliers[],9,0),"") -> 0 | I65: =IFERROR(ROUND(OriginalData[[#This Row],[仕入消費税金額]]/OriginalData[[#This Row],[仕入集計金額]],2),"") ->  | J65: =IF(OriginalData[[#This Row],[消費税率]]=0.08,"K8",IF(OriginalData[[#This Row],[消費税率]]=0.1,"AA","")) -> 
A66: 0000000001850 | B66: 190230 | C66: 15214 | D66: =IF(A66="","",IFERROR(VLOOKUP(A66,Suppliers[],2,0),"未登録")) -> KN-001850 | E66: =IF(A66="","",IFERROR(VLOOKUP($A66,Suppliers[],3,0),"未登録")) -> 天狗缶詰株式会社 東京営業所 | F66: =IF(A66="","",IFERROR(VLOOKUP($A66,Suppliers[],4,0),"未登録")) -> 天狗缶詰 | G66: =IFERROR(VLOOKUP(A66,Suppliers[],8,0),"") -> 3 | H66: =IFERROR(VLOOKUP(A66,Suppliers[],9,0),"") -> 0 | I66: =IFERROR(ROUND(OriginalData[[#This Row],[仕入消費税金額]]/OriginalData[[#This Row],[仕入集計金額]],2),"") -> 0.08 | J66: =IF(OriginalData[[#This Row],[消費税率]]=0.08,"K8",IF(OriginalData[[#This Row],[消費税率]]=0.1,"AA","")) -> K8
A67: 0000000001898 | B67: 85691 | C67: 6874 | D67: =IF(A67="","",IFERROR(VLOOKUP(A67,Suppliers[],2,0),"未登録")) -> KN-001898 | E67: =IF(A67="","",IFERROR(VLOOKUP($A67,Suppliers[],3,0),"未登録")) -> 三栄フーズ株式会社 | F67: =IF(A67="","",IFERROR(VLOOKUP($A67,Suppliers[],4,0),"未登録")) -> 三栄フーズ | G67: =IFERROR(VLOOKUP(A67,Suppliers[],8,0),"") -> 2 | H67: =IFERROR(VLOOKUP(A67,Suppliers[],9,0),"") -> 0 | I67: =IFERROR(ROUND(OriginalData[[#This Row],[仕入消費税金額]]/OriginalData[[#This Row],[仕入集計金額]],2),"") -> 0.08 | J67: =IF(OriginalData[[#This Row],[消費税率]]=0.08,"K8",IF(OriginalData[[#This Row],[消費税率]]=0.1,"AA","")) -> K8
A68: 0000000001967 | B68: 0 | C68: 0 | D68: =IF(A68="","",IFERROR(VLOOKUP(A68,Suppliers[],2,0),"未登録")) -> KN-001967 | E68: =IF(A68="","",IFERROR(VLOOKUP($A68,Suppliers[],3,0),"未登録")) -> ㈱神明 | F68: =IF(A68="","",IFERROR(VLOOKUP($A68,Suppliers[],4,0),"未登録")) -> 神明 | G68: =IFERROR(VLOOKUP(A68,Suppliers[],8,0),"") -> 3 | H68: =IFERROR(VLOOKUP(A68,Suppliers[],9,0),"") -> 0 | I68: =IFERROR(ROUND(OriginalData[[#This Row],[仕入消費税金額]]/OriginalData[[#This Row],[仕入集計金額]],2),"") ->  | J68: =IF(OriginalData[[#This Row],[消費税率]]=0.08,"K8",IF(OriginalData[[#This Row],[消費税率]]=0.1,"AA","")) -> 
A69: 0000000002020 | B69: 75000 | C69: 6000 | D69: =IF(A69="","",IFERROR(VLOOKUP(A69,Suppliers[],2,0),"未登録")) -> KN-002020 | E69: =IF(A69="","",IFERROR(VLOOKUP($A69,Suppliers[],3,0),"未登録")) -> 三井物産㈱ | F69: =IF(A69="","",IFERROR(VLOOKUP($A69,Suppliers[],4,0),"未登録")) -> 三井物産 | G69: =IFERROR(VLOOKUP(A69,Suppliers[],8,0),"") -> 3 | H69: =IFERROR(VLOOKUP(A69,Suppliers[],9,0),"") -> 0 | I69: =IFERROR(ROUND(OriginalData[[#This Row],[仕入消費税金額]]/OriginalData[[#This Row],[仕入集計金額]],2),"") -> 0.08 | J69: =IF(OriginalData[[#This Row],[消費税率]]=0.08,"K8",IF(OriginalData[[#This Row],[消費税率]]=0.1,"AA","")) -> K8
A70: 0000000002303 | B70: 427234 | C70: 34178 | D70: =IF(A70="","",IFERROR(VLOOKUP(A70,Suppliers[],2,0),"未登録")) -> KN-002303 | E70: =IF(A70="","",IFERROR(VLOOKUP($A70,Suppliers[],3,0),"未登録")) -> 金田屋㈱ | F70: =IF(A70="","",IFERROR(VLOOKUP($A70,Suppliers[],4,0),"未登録")) -> 金田屋 | G70: =IFERROR(VLOOKUP(A70,Suppliers[],8,0),"") -> 2 | H70: =IFERROR(VLOOKUP(A70,Suppliers[],9,0),"") -> 0 | I70: =IFERROR(ROUND(OriginalData[[#This Row],[仕入消費税金額]]/OriginalData[[#This Row],[仕入集計金額]],2),"") -> 0.08 | J70: =IF(OriginalData[[#This Row],[消費税率]]=0.08,"K8",IF(OriginalData[[#This Row],[消費税率]]=0.1,"AA","")) -> K8
A71: 0000000002655 | B71: 27000 | C71: 2160 | D71: =IF(A71="","",IFERROR(VLOOKUP(A71,Suppliers[],2,0),"未登録")) -> KN-002655 | E71: =IF(A71="","",IFERROR(VLOOKUP($A71,Suppliers[],3,0),"未登録")) -> 丸松物産㈱ | F71: =IF(A71="","",IFERROR(VLOOKUP($A71,Suppliers[],4,0),"未登録")) -> 丸松物産 | G71: =IFERROR(VLOOKUP(A71,Suppliers[],8,0),"") -> 3 | H71: =IFERROR(VLOOKUP(A71,Suppliers[],9,0),"") -> 0 | I71: =IFERROR(ROUND(OriginalData[[#This Row],[仕入消費税金額]]/OriginalData[[#This Row],[仕入集計金額]],2),"") -> 0.08 | J71: =IF(OriginalData[[#This Row],[消費税率]]=0.08,"K8",IF(OriginalData[[#This Row],[消費税率]]=0.1,"AA","")) -> K8
A72: 0000000002661 | B72: 65000 | C72: 5200 | D72: =IF(A72="","",IFERROR(VLOOKUP(A72,Suppliers[],2,0),"未登録")) -> KN-002661 | E72: =IF(A72="","",IFERROR(VLOOKUP($A72,Suppliers[],3,0),"未登録")) -> 京浜貿易㈱ | F72: =IF(A72="","",IFERROR(VLOOKUP($A72,Suppliers[],4,0),"未登録")) -> 京浜貿易 | G72: =IFERROR(VLOOKUP(A72,Suppliers[],8,0),"") -> 3 | H72: =IFERROR(VLOOKUP(A72,Suppliers[],9,0),"") -> 0 | I72: =IFERROR(ROUND(OriginalData[[#This Row],[仕入消費税金額]]/OriginalData[[#This Row],[仕入集計金額]],2),"") -> 0.08 | J72: =IF(OriginalData[[#This Row],[消費税率]]=0.08,"K8",IF(OriginalData[[#This Row],[消費税率]]=0.1,"AA","")) -> K8
A73: 0000000002901 | B73: 4800 | C73: 480 | D73: =IF(A73="","",IFERROR(VLOOKUP(A73,Suppliers[],2,0),"未登録")) -> KN-002901 | E73: =IF(A73="","",IFERROR(VLOOKUP($A73,Suppliers[],3,0),"未登録")) -> 佐川急便株式会社 | F73: =IF(A73="","",IFERROR(VLOOKUP($A73,Suppliers[],4,0),"未登録")) -> 佐川急便 | G73: =IFERROR(VLOOKUP(A73,Suppliers[],8,0),"") -> 1 | H73: =IFERROR(VLOOKUP(A73,Suppliers[],9,0),"") -> 26 | I73: =IFERROR(ROUND(OriginalData[[#This Row],[仕入消費税金額]]/OriginalData[[#This Row],[仕入集計金額]],2),"") -> 0.1 | J73: =IF(OriginalData[[#This Row],[消費税率]]=0.08,"K8",IF(OriginalData[[#This Row],[消費税率]]=0.1,"AA","")) -> AA
D74: =IF(A74="","",IFERROR(VLOOKUP(A74,Suppliers[],2,0),"未登録")) ->  | E74: =IF(A74="","",IFERROR(VLOOKUP($A74,Suppliers[],3,0),"未登録")) ->  | F74: =IF(A74="","",IFERROR(VLOOKUP($A74,Suppliers[],4,0),"未登録")) ->  | G74: =IFERROR(VLOOKUP(A74,Suppliers[],8,0),"") ->  | H74: =IFERROR(VLOOKUP(A74,Suppliers[],9,0),"") ->  | I74: =IFERROR(ROUND(OriginalData[[#This Row],[仕入消費税金額]]/OriginalData[[#This Row],[仕入集計金額]],2),"") ->  | J74: =IF(OriginalData[[#This Row],[消費税率]]=0.08,"K8",IF(OriginalData[[#This Row],[消費税率]]=0.1,"AA","")) -> 
D75: =IF(A75="","",IFERROR(VLOOKUP(A75,Suppliers[],2,0),"未登録")) ->  | E75: =IF(A75="","",IFERROR(VLOOKUP($A75,Suppliers[],3,0),"未登録")) ->  | F75: =IF(A75="","",IFERROR(VLOOKUP($A75,Suppliers[],4,0),"未登録")) ->  | G75: =IFERROR(VLOOKUP(A75,Suppliers[],8,0),"") ->  | H75: =IFERROR(VLOOKUP(A75,Suppliers[],9,0),"") ->  | I75: =IFERROR(ROUND(OriginalData[[#This Row],[仕入消費税金額]]/OriginalData[[#This Row],[仕入集計金額]],2),"") ->  | J75: =IF(OriginalData[[#This Row],[消費税率]]=0.08,"K8",IF(OriginalData[[#This Row],[消費税率]]=0.1,"AA","")) -> 
D76: =IF(A76="","",IFERROR(VLOOKUP(A76,Suppliers[],2,0),"未登録")) ->  | E76: =IF(A76="","",IFERROR(VLOOKUP($A76,Suppliers[],3,0),"未登録")) ->  | F76: =IF(A76="","",IFERROR(VLOOKUP($A76,Suppliers[],4,0),"未登録")) ->  | G76: =IFERROR(VLOOKUP(A76,Suppliers[],8,0),"") ->  | H76: =IFERROR(VLOOKUP(A76,Suppliers[],9,0),"") ->  | I76: =IFERROR(ROUND(OriginalData[[#This Row],[仕入消費税金額]]/OriginalData[[#This Row],[仕入集計金額]],2),"") ->  | J76: =IF(OriginalData[[#This Row],[消費税率]]=0.08,"K8",IF(OriginalData[[#This Row],[消費税率]]=0.1,"AA","")) -> 
D77: =IF(A77="","",IFERROR(VLOOKUP(A77,Suppliers[],2,0),"未登録")) ->  | E77: =IF(A77="","",IFERROR(VLOOKUP($A77,Suppliers[],3,0),"未登録")) ->  | F77: =IF(A77="","",IFERROR(VLOOKUP($A77,Suppliers[],4,0),"未登録")) ->  | G77: =IFERROR(VLOOKUP(A77,Suppliers[],8,0),"") ->  | H77: =IFERROR(VLOOKUP(A77,Suppliers[],9,0),"") ->  | I77: =IFERROR(ROUND(OriginalData[[#This Row],[仕入消費税金額]]/OriginalData[[#This Row],[仕入集計金額]],2),"") ->  | J77: =IF(OriginalData[[#This Row],[消費税率]]=0.08,"K8",IF(OriginalData[[#This Row],[消費税率]]=0.1,"AA","")) -> 
D78: =IF(A78="","",IFERROR(VLOOKUP(A78,Suppliers[],2,0),"未登録")) ->  | E78: =IF(A78="","",IFERROR(VLOOKUP($A78,Suppliers[],3,0),"未登録")) ->  | F78: =IF(A78="","",IFERROR(VLOOKUP($A78,Suppliers[],4,0),"未登録")) ->  | G78: =IFERROR(VLOOKUP(A78,Suppliers[],8,0),"") ->  | H78: =IFERROR(VLOOKUP(A78,Suppliers[],9,0),"") ->  | I78: =IFERROR(ROUND(OriginalData[[#This Row],[仕入消費税金額]]/OriginalData[[#This Row],[仕入集計金額]],2),"") ->  | J78: =IF(OriginalData[[#This Row],[消費税率]]=0.08,"K8",IF(OriginalData[[#This Row],[消費税率]]=0.1,"AA","")) -> 
D79: =IF(A79="","",IFERROR(VLOOKUP(A79,Suppliers[],2,0),"未登録")) ->  | E79: =IF(A79="","",IFERROR(VLOOKUP($A79,Suppliers[],3,0),"未登録")) ->  | F79: =IF(A79="","",IFERROR(VLOOKUP($A79,Suppliers[],4,0),"未登録")) ->  | G79: =IFERROR(VLOOKUP(A79,Suppliers[],8,0),"") ->  | H79: =IFERROR(VLOOKUP(A79,Suppliers[],9,0),"") ->  | I79: =IFERROR(ROUND(OriginalData[[#This Row],[仕入消費税金額]]/OriginalData[[#This Row],[仕入集計金額]],2),"") ->  | J79: =IF(OriginalData[[#This Row],[消費税率]]=0.08,"K8",IF(OriginalData[[#This Row],[消費税率]]=0.1,"AA","")) -> 
D80: =IF(A80="","",IFERROR(VLOOKUP(A80,Suppliers[],2,0),"未登録")) ->  | E80: =IF(A80="","",IFERROR(VLOOKUP($A80,Suppliers[],3,0),"未登録")) ->  | F80: =IF(A80="","",IFERROR(VLOOKUP($A80,Suppliers[],4,0),"未登録")) ->  | G80: =IFERROR(VLOOKUP(A80,Suppliers[],8,0),"") ->  | H80: =IFERROR(VLOOKUP(A80,Suppliers[],9,0),"") ->  | I80: =IFERROR(ROUND(OriginalData[[#This Row],[仕入消費税金額]]/OriginalData[[#This Row],[仕入集計金額]],2),"") ->  | J80: =IF(OriginalData[[#This Row],[消費税率]]=0.08,"K8",IF(OriginalData[[#This Row],[消費税率]]=0.1,"AA","")) -> 
D81: =IF(A81="","",IFERROR(VLOOKUP(A81,Suppliers[],2,0),"未登録")) ->  | E81: =IF(A81="","",IFERROR(VLOOKUP($A81,Suppliers[],3,0),"未登録")) ->  | F81: =IF(A81="","",IFERROR(VLOOKUP($A81,Suppliers[],4,0),"未登録")) ->  | G81: =IFERROR(VLOOKUP(A81,Suppliers[],8,0),"") ->  | H81: =IFERROR(VLOOKUP(A81,Suppliers[],9,0),"") ->  | I81: =IFERROR(ROUND(OriginalData[[#This Row],[仕入消費税金額]]/OriginalData[[#This Row],[仕入集計金額]],2),"") ->  | J81: =IF(OriginalData[[#This Row],[消費税率]]=0.08,"K8",IF(OriginalData[[#This Row],[消費税率]]=0.1,"AA","")) -> 
D82: =IF(A82="","",IFERROR(VLOOKUP(A82,Suppliers[],2,0),"未登録")) ->  | E82: =IF(A82="","",IFERROR(VLOOKUP($A82,Suppliers[],3,0),"未登録")) ->  | F82: =IF(A82="","",IFERROR(VLOOKUP($A82,Suppliers[],4,0),"未登録")) ->  | G82: =IFERROR(VLOOKUP(A82,Suppliers[],8,0),"") ->  | H82: =IFERROR(VLOOKUP(A82,Suppliers[],9,0),"") ->  | I82: =IFERROR(ROUND(OriginalData[[#This Row],[仕入消費税金額]]/OriginalData[[#This Row],[仕入集計金額]],2),"") ->  | J82: =IF(OriginalData[[#This Row],[消費税率]]=0.08,"K8",IF(OriginalData[[#This Row],[消費税率]]=0.1,"AA","")) -> 
D83: =IF(A83="","",IFERROR(VLOOKUP(A83,Suppliers[],2,0),"未登録")) ->  | E83: =IF(A83="","",IFERROR(VLOOKUP($A83,Suppliers[],3,0),"未登録")) ->  | F83: =IF(A83="","",IFERROR(VLOOKUP($A83,Suppliers[],4,0),"未登録")) ->  | G83: =IFERROR(VLOOKUP(A83,Suppliers[],8,0),"") ->  | H83: =IFERROR(VLOOKUP(A83,Suppliers[],9,0),"") ->  | I83: =IFERROR(ROUND(OriginalData[[#This Row],[仕入消費税金額]]/OriginalData[[#This Row],[仕入集計金額]],2),"") ->  | J83: =IF(OriginalData[[#This Row],[消費税率]]=0.08,"K8",IF(OriginalData[[#This Row],[消費税率]]=0.1,"AA","")) -> 
D84: =IF(A84="","",IFERROR(VLOOKUP(A84,Suppliers[],2,0),"未登録")) ->  | E84: =IF(A84="","",IFERROR(VLOOKUP($A84,Suppliers[],3,0),"未登録")) ->  | F84: =IF(A84="","",IFERROR(VLOOKUP($A84,Suppliers[],4,0),"未登録")) ->  | G84: =IFERROR(VLOOKUP(A84,Suppliers[],8,0),"") ->  | H84: =IFERROR(VLOOKUP(A84,Suppliers[],9,0),"") ->  | I84: =IFERROR(ROUND(OriginalData[[#This Row],[仕入消費税金額]]/OriginalData[[#This Row],[仕入集計金額]],2),"") ->  | J84: =IF(OriginalData[[#This Row],[消費税率]]=0.08,"K8",IF(OriginalData[[#This Row],[消費税率]]=0.1,"AA","")) -> 
D85: =IF(A85="","",IFERROR(VLOOKUP(A85,Suppliers[],2,0),"未登録")) ->  | E85: =IF(A85="","",IFERROR(VLOOKUP($A85,Suppliers[],3,0),"未登録")) ->  | F85: =IF(A85="","",IFERROR(VLOOKUP($A85,Suppliers[],4,0),"未登録")) ->  | G85: =IFERROR(VLOOKUP(A85,Suppliers[],8,0),"") ->  | H85: =IFERROR(VLOOKUP(A85,Suppliers[],9,0),"") ->  | I85: =IFERROR(ROUND(OriginalData[[#This Row],[仕入消費税金額]]/OriginalData[[#This Row],[仕入集計金額]],2),"") ->  | J85: =IF(OriginalData[[#This Row],[消費税率]]=0.08,"K8",IF(OriginalData[[#This Row],[消費税率]]=0.1,"AA","")) -> 
D86: =IF(A86="","",IFERROR(VLOOKUP(A86,Suppliers[],2,0),"未登録")) ->  | E86: =IF(A86="","",IFERROR(VLOOKUP($A86,Suppliers[],3,0),"未登録")) ->  | F86: =IF(A86="","",IFERROR(VLOOKUP($A86,Suppliers[],4,0),"未登録")) ->  | G86: =IFERROR(VLOOKUP(A86,Suppliers[],8,0),"") ->  | H86: =IFERROR(VLOOKUP(A86,Suppliers[],9,0),"") ->  | I86: =IFERROR(ROUND(OriginalData[[#This Row],[仕入消費税金額]]/OriginalData[[#This Row],[仕入集計金額]],2),"") ->  | J86: =IF(OriginalData[[#This Row],[消費税率]]=0.08,"K8",IF(OriginalData[[#This Row],[消費税率]]=0.1,"AA","")) -> 
D87: =IF(A87="","",IFERROR(VLOOKUP(A87,Suppliers[],2,0),"未登録")) ->  | E87: =IF(A87="","",IFERROR(VLOOKUP($A87,Suppliers[],3,0),"未登録")) ->  | F87: =IF(A87="","",IFERROR(VLOOKUP($A87,Suppliers[],4,0),"未登録")) ->  | G87: =IFERROR(VLOOKUP(A87,Suppliers[],8,0),"") ->  | H87: =IFERROR(VLOOKUP(A87,Suppliers[],9,0),"") ->  | I87: =IFERROR(ROUND(OriginalData[[#This Row],[仕入消費税金額]]/OriginalData[[#This Row],[仕入集計金額]],2),"") ->  | J87: =IF(OriginalData[[#This Row],[消費税率]]=0.08,"K8",IF(OriginalData[[#This Row],[消費税率]]=0.1,"AA","")) -> 
D88: =IF(A88="","",IFERROR(VLOOKUP(A88,Suppliers[],2,0),"未登録")) ->  | E88: =IF(A88="","",IFERROR(VLOOKUP($A88,Suppliers[],3,0),"未登録")) ->  | F88: =IF(A88="","",IFERROR(VLOOKUP($A88,Suppliers[],4,0),"未登録")) ->  | G88: =IFERROR(VLOOKUP(A88,Suppliers[],8,0),"") ->  | H88: =IFERROR(VLOOKUP(A88,Suppliers[],9,0),"") ->  | I88: =IFERROR(ROUND(OriginalData[[#This Row],[仕入消費税金額]]/OriginalData[[#This Row],[仕入集計金額]],2),"") ->  | J88: =IF(OriginalData[[#This Row],[消費税率]]=0.08,"K8",IF(OriginalData[[#This Row],[消費税率]]=0.1,"AA","")) -> 
D89: =IF(A89="","",IFERROR(VLOOKUP(A89,Suppliers[],2,0),"未登録")) ->  | E89: =IF(A89="","",IFERROR(VLOOKUP($A89,Suppliers[],3,0),"未登録")) ->  | F89: =IF(A89="","",IFERROR(VLOOKUP($A89,Suppliers[],4,0),"未登録")) ->  | G89: =IFERROR(VLOOKUP(A89,Suppliers[],8,0),"") ->  | H89: =IFERROR(VLOOKUP(A89,Suppliers[],9,0),"") ->  | I89: =IFERROR(ROUND(OriginalData[[#This Row],[仕入消費税金額]]/OriginalData[[#This Row],[仕入集計金額]],2),"") ->  | J89: =IF(OriginalData[[#This Row],[消費税率]]=0.08,"K8",IF(OriginalData[[#This Row],[消費税率]]=0.1,"AA","")) -> 
D90: =IF(A90="","",IFERROR(VLOOKUP(A90,Suppliers[],2,0),"未登録")) ->  | E90: =IF(A90="","",IFERROR(VLOOKUP($A90,Suppliers[],3,0),"未登録")) ->  | F90: =IF(A90="","",IFERROR(VLOOKUP($A90,Suppliers[],4,0),"未登録")) ->  | G90: =IFERROR(VLOOKUP(A90,Suppliers[],8,0),"") ->  | H90: =IFERROR(VLOOKUP(A90,Suppliers[],9,0),"") ->  | I90: =IFERROR(ROUND(OriginalData[[#This Row],[仕入消費税金額]]/OriginalData[[#This Row],[仕入集計金額]],2),"") ->  | J90: =IF(OriginalData[[#This Row],[消費税率]]=0.08,"K8",IF(OriginalData[[#This Row],[消費税率]]=0.1,"AA","")) -> 
D91: =IF(A91="","",IFERROR(VLOOKUP(A91,Suppliers[],2,0),"未登録")) ->  | E91: =IF(A91="","",IFERROR(VLOOKUP($A91,Suppliers[],3,0),"未登録")) ->  | F91: =IF(A91="","",IFERROR(VLOOKUP($A91,Suppliers[],4,0),"未登録")) ->  | G91: =IFERROR(VLOOKUP(A91,Suppliers[],8,0),"") ->  | H91: =IFERROR(VLOOKUP(A91,Suppliers[],9,0),"") ->  | I91: =IFERROR(ROUND(OriginalData[[#This Row],[仕入消費税金額]]/OriginalData[[#This Row],[仕入集計金額]],2),"") ->  | J91: =IF(OriginalData[[#This Row],[消費税率]]=0.08,"K8",IF(OriginalData[[#This Row],[消費税率]]=0.1,"AA","")) -> 
D92: =IF(A92="","",IFERROR(VLOOKUP(A92,Suppliers[],2,0),"未登録")) ->  | E92: =IF(A92="","",IFERROR(VLOOKUP($A92,Suppliers[],3,0),"未登録")) ->  | F92: =IF(A92="","",IFERROR(VLOOKUP($A92,Suppliers[],4,0),"未登録")) ->  | G92: =IFERROR(VLOOKUP(A92,Suppliers[],8,0),"") ->  | H92: =IFERROR(VLOOKUP(A92,Suppliers[],9,0),"") ->  | I92: =IFERROR(ROUND(OriginalData[[#This Row],[仕入消費税金額]]/OriginalData[[#This Row],[仕入集計金額]],2),"") ->  | J92: =IF(OriginalData[[#This Row],[消費税率]]=0.08,"K8",IF(OriginalData[[#This Row],[消費税率]]=0.1,"AA","")) -> 
D93: =IF(A93="","",IFERROR(VLOOKUP(A93,Suppliers[],2,0),"未登録")) ->  | E93: =IF(A93="","",IFERROR(VLOOKUP($A93,Suppliers[],3,0),"未登録")) ->  | F93: =IF(A93="","",IFERROR(VLOOKUP($A93,Suppliers[],4,0),"未登録")) ->  | G93: =IFERROR(VLOOKUP(A93,Suppliers[],8,0),"") ->  | H93: =IFERROR(VLOOKUP(A93,Suppliers[],9,0),"") ->  | I93: =IFERROR(ROUND(OriginalData[[#This Row],[仕入消費税金額]]/OriginalData[[#This Row],[仕入集計金額]],2),"") ->  | J93: =IF(OriginalData[[#This Row],[消費税率]]=0.08,"K8",IF(OriginalData[[#This Row],[消費税率]]=0.1,"AA","")) -> 
D94: =IF(A94="","",IFERROR(VLOOKUP(A94,Suppliers[],2,0),"未登録")) ->  | E94: =IF(A94="","",IFERROR(VLOOKUP($A94,Suppliers[],3,0),"未登録")) ->  | F94: =IF(A94="","",IFERROR(VLOOKUP($A94,Suppliers[],4,0),"未登録")) ->  | G94: =IFERROR(VLOOKUP(A94,Suppliers[],8,0),"") ->  | H94: =IFERROR(VLOOKUP(A94,Suppliers[],9,0),"") ->  | I94: =IFERROR(ROUND(OriginalData[[#This Row],[仕入消費税金額]]/OriginalData[[#This Row],[仕入集計金額]],2),"") ->  | J94: =IF(OriginalData[[#This Row],[消費税率]]=0.08,"K8",IF(OriginalData[[#This Row],[消費税率]]=0.1,"AA","")) -> 
D95: =IF(A95="","",IFERROR(VLOOKUP(A95,Suppliers[],2,0),"未登録")) ->  | E95: =IF(A95="","",IFERROR(VLOOKUP($A95,Suppliers[],3,0),"未登録")) ->  | F95: =IF(A95="","",IFERROR(VLOOKUP($A95,Suppliers[],4,0),"未登録")) ->  | G95: =IFERROR(VLOOKUP(A95,Suppliers[],8,0),"") ->  | H95: =IFERROR(VLOOKUP(A95,Suppliers[],9,0),"") ->  | I95: =IFERROR(ROUND(OriginalData[[#This Row],[仕入消費税金額]]/OriginalData[[#This Row],[仕入集計金額]],2),"") ->  | J95: =IF(OriginalData[[#This Row],[消費税率]]=0.08,"K8",IF(OriginalData[[#This Row],[消費税率]]=0.1,"AA","")) -> 
D96: =IF(A96="","",IFERROR(VLOOKUP(A96,Suppliers[],2,0),"未登録")) ->  | E96: =IF(A96="","",IFERROR(VLOOKUP($A96,Suppliers[],3,0),"未登録")) ->  | F96: =IF(A96="","",IFERROR(VLOOKUP($A96,Suppliers[],4,0),"未登録")) ->  | G96: =IFERROR(VLOOKUP(A96,Suppliers[],8,0),"") ->  | H96: =IFERROR(VLOOKUP(A96,Suppliers[],9,0),"") ->  | I96: =IFERROR(ROUND(OriginalData[[#This Row],[仕入消費税金額]]/OriginalData[[#This Row],[仕入集計金額]],2),"") ->  | J96: =IF(OriginalData[[#This Row],[消費税率]]=0.08,"K8",IF(OriginalData[[#This Row],[消費税率]]=0.1,"AA","")) -> 
D97: =IF(A97="","",IFERROR(VLOOKUP(A97,Suppliers[],2,0),"未登録")) ->  | E97: =IF(A97="","",IFERROR(VLOOKUP($A97,Suppliers[],3,0),"未登録")) ->  | F97: =IF(A97="","",IFERROR(VLOOKUP($A97,Suppliers[],4,0),"未登録")) ->  | G97: =IFERROR(VLOOKUP(A97,Suppliers[],8,0),"") ->  | H97: =IFERROR(VLOOKUP(A97,Suppliers[],9,0),"") ->  | I97: =IFERROR(ROUND(OriginalData[[#This Row],[仕入消費税金額]]/OriginalData[[#This Row],[仕入集計金額]],2),"") ->  | J97: =IF(OriginalData[[#This Row],[消費税率]]=0.08,"K8",IF(OriginalData[[#This Row],[消費税率]]=0.1,"AA","")) -> 
D98: =IF(A98="","",IFERROR(VLOOKUP(A98,Suppliers[],2,0),"未登録")) ->  | E98: =IF(A98="","",IFERROR(VLOOKUP($A98,Suppliers[],3,0),"未登録")) ->  | F98: =IF(A98="","",IFERROR(VLOOKUP($A98,Suppliers[],4,0),"未登録")) ->  | G98: =IFERROR(VLOOKUP(A98,Suppliers[],8,0),"") ->  | H98: =IFERROR(VLOOKUP(A98,Suppliers[],9,0),"") ->  | I98: =IFERROR(ROUND(OriginalData[[#This Row],[仕入消費税金額]]/OriginalData[[#This Row],[仕入集計金額]],2),"") ->  | J98: =IF(OriginalData[[#This Row],[消費税率]]=0.08,"K8",IF(OriginalData[[#This Row],[消費税率]]=0.1,"AA","")) -> 
D99: =IF(A99="","",IFERROR(VLOOKUP(A99,Suppliers[],2,0),"未登録")) ->  | E99: =IF(A99="","",IFERROR(VLOOKUP($A99,Suppliers[],3,0),"未登録")) ->  | F99: =IF(A99="","",IFERROR(VLOOKUP($A99,Suppliers[],4,0),"未登録")) ->  | G99: =IFERROR(VLOOKUP(A99,Suppliers[],8,0),"") ->  | H99: =IFERROR(VLOOKUP(A99,Suppliers[],9,0),"") ->  | I99: =IFERROR(ROUND(OriginalData[[#This Row],[仕入消費税金額]]/OriginalData[[#This Row],[仕入集計金額]],2),"") ->  | J99: =IF(OriginalData[[#This Row],[消費税率]]=0.08,"K8",IF(OriginalData[[#This Row],[消費税率]]=0.1,"AA","")) -> 
D100: =IF(A100="","",IFERROR(VLOOKUP(A100,Suppliers[],2,0),"未登録")) ->  | E100: =IF(A100="","",IFERROR(VLOOKUP($A100,Suppliers[],3,0),"未登録")) ->  | F100: =IF(A100="","",IFERROR(VLOOKUP($A100,Suppliers[],4,0),"未登録")) ->  | G100: =IFERROR(VLOOKUP(A100,Suppliers[],8,0),"") ->  | H100: =IFERROR(VLOOKUP(A100,Suppliers[],9,0),"") ->  | I100: =IFERROR(ROUND(OriginalData[[#This Row],[仕入消費税金額]]/OriginalData[[#This Row],[仕入集計金額]],2),"") ->  | J100: =IF(OriginalData[[#This Row],[消費税率]]=0.08,"K8",IF(OriginalData[[#This Row],[消費税率]]=0.1,"AA","")) -> 
D101: =IF(A101="","",IFERROR(VLOOKUP(A101,Suppliers[],2,0),"未登録")) ->  | E101: =IF(A101="","",IFERROR(VLOOKUP($A101,Suppliers[],3,0),"未登録")) ->  | F101: =IF(A101="","",IFERROR(VLOOKUP($A101,Suppliers[],4,0),"未登録")) ->  | G101: =IFERROR(VLOOKUP(A101,Suppliers[],8,0),"") ->  | H101: =IFERROR(VLOOKUP(A101,Suppliers[],9,0),"") ->  | I101: =IFERROR(ROUND(OriginalData[[#This Row],[仕入消費税金額]]/OriginalData[[#This Row],[仕入集計金額]],2),"") ->  | J101: =IF(OriginalData[[#This Row],[消費税率]]=0.08,"K8",IF(OriginalData[[#This Row],[消費税率]]=0.1,"AA","")) -> 
D102: =IF(A102="","",IFERROR(VLOOKUP(A102,Suppliers[],2,0),"未登録")) ->  | E102: =IF(A102="","",IFERROR(VLOOKUP($A102,Suppliers[],3,0),"未登録")) ->  | F102: =IF(A102="","",IFERROR(VLOOKUP($A102,Suppliers[],4,0),"未登録")) ->  | G102: =IFERROR(VLOOKUP(A102,Suppliers[],8,0),"") ->  | H102: =IFERROR(VLOOKUP(A102,Suppliers[],9,0),"") ->  | I102: =IFERROR(ROUND(OriginalData[[#This Row],[仕入消費税金額]]/OriginalData[[#This Row],[仕入集計金額]],2),"") ->  | J102: =IF(OriginalData[[#This Row],[消費税率]]=0.08,"K8",IF(OriginalData[[#This Row],[消費税率]]=0.1,"AA","")) -> 
D103: =IF(A103="","",IFERROR(VLOOKUP(A103,Suppliers[],2,0),"未登録")) ->  | E103: =IF(A103="","",IFERROR(VLOOKUP($A103,Suppliers[],3,0),"未登録")) ->  | F103: =IF(A103="","",IFERROR(VLOOKUP($A103,Suppliers[],4,0),"未登録")) ->  | G103: =IFERROR(VLOOKUP(A103,Suppliers[],8,0),"") ->  | H103: =IFERROR(VLOOKUP(A103,Suppliers[],9,0),"") ->  | I103: =IFERROR(ROUND(OriginalData[[#This Row],[仕入消費税金額]]/OriginalData[[#This Row],[仕入集計金額]],2),"") ->  | J103: =IF(OriginalData[[#This Row],[消費税率]]=0.08,"K8",IF(OriginalData[[#This Row],[消費税率]]=0.1,"AA","")) -> 
D104: =IF(A104="","",IFERROR(VLOOKUP(A104,Suppliers[],2,0),"未登録")) ->  | E104: =IF(A104="","",IFERROR(VLOOKUP($A104,Suppliers[],3,0),"未登録")) ->  | F104: =IF(A104="","",IFERROR(VLOOKUP($A104,Suppliers[],4,0),"未登録")) ->  | G104: =IFERROR(VLOOKUP(A104,Suppliers[],8,0),"") ->  | H104: =IFERROR(VLOOKUP(A104,Suppliers[],9,0),"") ->  | I104: =IFERROR(ROUND(OriginalData[[#This Row],[仕入消費税金額]]/OriginalData[[#This Row],[仕入集計金額]],2),"") ->  | J104: =IF(OriginalData[[#This Row],[消費税率]]=0.08,"K8",IF(OriginalData[[#This Row],[消費税率]]=0.1,"AA","")) -> 
D105: =IF(A105="","",IFERROR(VLOOKUP(A105,Suppliers[],2,0),"未登録")) ->  | E105: =IF(A105="","",IFERROR(VLOOKUP($A105,Suppliers[],3,0),"未登録")) ->  | F105: =IF(A105="","",IFERROR(VLOOKUP($A105,Suppliers[],4,0),"未登録")) ->  | G105: =IFERROR(VLOOKUP(A105,Suppliers[],8,0),"") ->  | H105: =IFERROR(VLOOKUP(A105,Suppliers[],9,0),"") ->  | I105: =IFERROR(ROUND(OriginalData[[#This Row],[仕入消費税金額]]/OriginalData[[#This Row],[仕入集計金額]],2),"") ->  | J105: =IF(OriginalData[[#This Row],[消費税率]]=0.08,"K8",IF(OriginalData[[#This Row],[消費税率]]=0.1,"AA","")) -> 
D106: =IF(A106="","",IFERROR(VLOOKUP(A106,Suppliers[],2,0),"未登録")) ->  | E106: =IF(A106="","",IFERROR(VLOOKUP($A106,Suppliers[],3,0),"未登録")) ->  | F106: =IF(A106="","",IFERROR(VLOOKUP($A106,Suppliers[],4,0),"未登録")) ->  | G106: =IFERROR(VLOOKUP(A106,Suppliers[],8,0),"") ->  | H106: =IFERROR(VLOOKUP(A106,Suppliers[],9,0),"") ->  | I106: =IFERROR(ROUND(OriginalData[[#This Row],[仕入消費税金額]]/OriginalData[[#This Row],[仕入集計金額]],2),"") ->  | J106: =IF(OriginalData[[#This Row],[消費税率]]=0.08,"K8",IF(OriginalData[[#This Row],[消費税率]]=0.1,"AA","")) -> 
D107: =IF(A107="","",IFERROR(VLOOKUP(A107,Suppliers[],2,0),"未登録")) ->  | E107: =IF(A107="","",IFERROR(VLOOKUP($A107,Suppliers[],3,0),"未登録")) ->  | F107: =IF(A107="","",IFERROR(VLOOKUP($A107,Suppliers[],4,0),"未登録")) ->  | G107: =IFERROR(VLOOKUP(A107,Suppliers[],8,0),"") ->  | H107: =IFERROR(VLOOKUP(A107,Suppliers[],9,0),"") ->  | I107: =IFERROR(ROUND(OriginalData[[#This Row],[仕入消費税金額]]/OriginalData[[#This Row],[仕入集計金額]],2),"") ->  | J107: =IF(OriginalData[[#This Row],[消費税率]]=0.08,"K8",IF(OriginalData[[#This Row],[消費税率]]=0.1,"AA","")) -> 
D108: =IF(A108="","",IFERROR(VLOOKUP(A108,Suppliers[],2,0),"未登録")) ->  | E108: =IF(A108="","",IFERROR(VLOOKUP($A108,Suppliers[],3,0),"未登録")) ->  | F108: =IF(A108="","",IFERROR(VLOOKUP($A108,Suppliers[],4,0),"未登録")) ->  | G108: =IFERROR(VLOOKUP(A108,Suppliers[],8,0),"") ->  | H108: =IFERROR(VLOOKUP(A108,Suppliers[],9,0),"") ->  | I108: =IFERROR(ROUND(OriginalData[[#This Row],[仕入消費税金額]]/OriginalData[[#This Row],[仕入集計金額]],2),"") ->  | J108: =IF(OriginalData[[#This Row],[消費税率]]=0.08,"K8",IF(OriginalData[[#This Row],[消費税率]]=0.1,"AA","")) -> 
D109: =IF(A109="","",IFERROR(VLOOKUP(A109,Suppliers[],2,0),"未登録")) ->  | E109: =IF(A109="","",IFERROR(VLOOKUP($A109,Suppliers[],3,0),"未登録")) ->  | F109: =IF(A109="","",IFERROR(VLOOKUP($A109,Suppliers[],4,0),"未登録")) ->  | G109: =IFERROR(VLOOKUP(A109,Suppliers[],8,0),"") ->  | H109: =IFERROR(VLOOKUP(A109,Suppliers[],9,0),"") ->  | I109: =IFERROR(ROUND(OriginalData[[#This Row],[仕入消費税金額]]/OriginalData[[#This Row],[仕入集計金額]],2),"") ->  | J109: =IF(OriginalData[[#This Row],[消費税率]]=0.08,"K8",IF(OriginalData[[#This Row],[消費税率]]=0.1,"AA","")) -> 
D110: =IF(A110="","",IFERROR(VLOOKUP(A110,Suppliers[],2,0),"未登録")) ->  | E110: =IF(A110="","",IFERROR(VLOOKUP($A110,Suppliers[],3,0),"未登録")) ->  | F110: =IF(A110="","",IFERROR(VLOOKUP($A110,Suppliers[],4,0),"未登録")) ->  | G110: =IFERROR(VLOOKUP(A110,Suppliers[],8,0),"") ->  | H110: =IFERROR(VLOOKUP(A110,Suppliers[],9,0),"") ->  | I110: =IFERROR(ROUND(OriginalData[[#This Row],[仕入消費税金額]]/OriginalData[[#This Row],[仕入集計金額]],2),"") ->  | J110: =IF(OriginalData[[#This Row],[消費税率]]=0.08,"K8",IF(OriginalData[[#This Row],[消費税率]]=0.1,"AA","")) -> 
D111: =IF(A111="","",IFERROR(VLOOKUP(A111,Suppliers[],2,0),"未登録")) ->  | E111: =IF(A111="","",IFERROR(VLOOKUP($A111,Suppliers[],3,0),"未登録")) ->  | F111: =IF(A111="","",IFERROR(VLOOKUP($A111,Suppliers[],4,0),"未登録")) ->  | G111: =IFERROR(VLOOKUP(A111,Suppliers[],8,0),"") ->  | H111: =IFERROR(VLOOKUP(A111,Suppliers[],9,0),"") ->  | I111: =IFERROR(ROUND(OriginalData[[#This Row],[仕入消費税金額]]/OriginalData[[#This Row],[仕入集計金額]],2),"") ->  | J111: =IF(OriginalData[[#This Row],[消費税率]]=0.08,"K8",IF(OriginalData[[#This Row],[消費税率]]=0.1,"AA","")) -> 
D112: =IF(A112="","",IFERROR(VLOOKUP(A112,Suppliers[],2,0),"未登録")) ->  | E112: =IF(A112="","",IFERROR(VLOOKUP($A112,Suppliers[],3,0),"未登録")) ->  | F112: =IF(A112="","",IFERROR(VLOOKUP($A112,Suppliers[],4,0),"未登録")) ->  | G112: =IFERROR(VLOOKUP(A112,Suppliers[],8,0),"") ->  | H112: =IFERROR(VLOOKUP(A112,Suppliers[],9,0),"") ->  | I112: =IFERROR(ROUND(OriginalData[[#This Row],[仕入消費税金額]]/OriginalData[[#This Row],[仕入集計金額]],2),"") ->  | J112: =IF(OriginalData[[#This Row],[消費税率]]=0.08,"K8",IF(OriginalData[[#This Row],[消費税率]]=0.1,"AA","")) -> 
D113: =IF(A113="","",IFERROR(VLOOKUP(A113,Suppliers[],2,0),"未登録")) ->  | E113: =IF(A113="","",IFERROR(VLOOKUP($A113,Suppliers[],3,0),"未登録")) ->  | F113: =IF(A113="","",IFERROR(VLOOKUP($A113,Suppliers[],4,0),"未登録")) ->  | G113: =IFERROR(VLOOKUP(A113,Suppliers[],8,0),"") ->  | H113: =IFERROR(VLOOKUP(A113,Suppliers[],9,0),"") ->  | I113: =IFERROR(ROUND(OriginalData[[#This Row],[仕入消費税金額]]/OriginalData[[#This Row],[仕入集計金額]],2),"") ->  | J113: =IF(OriginalData[[#This Row],[消費税率]]=0.08,"K8",IF(OriginalData[[#This Row],[消費税率]]=0.1,"AA","")) -> 
D114: =IF(A114="","",IFERROR(VLOOKUP(A114,Suppliers[],2,0),"未登録")) ->  | E114: =IF(A114="","",IFERROR(VLOOKUP($A114,Suppliers[],3,0),"未登録")) ->  | F114: =IF(A114="","",IFERROR(VLOOKUP($A114,Suppliers[],4,0),"未登録")) ->  | G114: =IFERROR(VLOOKUP(A114,Suppliers[],8,0),"") ->  | H114: =IFERROR(VLOOKUP(A114,Suppliers[],9,0),"") ->  | I114: =IFERROR(ROUND(OriginalData[[#This Row],[仕入消費税金額]]/OriginalData[[#This Row],[仕入集計金額]],2),"") ->  | J114: =IF(OriginalData[[#This Row],[消費税率]]=0.08,"K8",IF(OriginalData[[#This Row],[消費税率]]=0.1,"AA","")) -> 
D115: =IF(A115="","",IFERROR(VLOOKUP(A115,Suppliers[],2,0),"未登録")) ->  | E115: =IF(A115="","",IFERROR(VLOOKUP($A115,Suppliers[],3,0),"未登録")) ->  | F115: =IF(A115="","",IFERROR(VLOOKUP($A115,Suppliers[],4,0),"未登録")) ->  | G115: =IFERROR(VLOOKUP(A115,Suppliers[],8,0),"") ->  | H115: =IFERROR(VLOOKUP(A115,Suppliers[],9,0),"") ->  | I115: =IFERROR(ROUND(OriginalData[[#This Row],[仕入消費税金額]]/OriginalData[[#This Row],[仕入集計金額]],2),"") ->  | J115: =IF(OriginalData[[#This Row],[消費税率]]=0.08,"K8",IF(OriginalData[[#This Row],[消費税率]]=0.1,"AA","")) -> 
D116: =IF(A116="","",IFERROR(VLOOKUP(A116,Suppliers[],2,0),"未登録")) ->  | E116: =IF(A116="","",IFERROR(VLOOKUP($A116,Suppliers[],3,0),"未登録")) ->  | F116: =IF(A116="","",IFERROR(VLOOKUP($A116,Suppliers[],4,0),"未登録")) ->  | G116: =IFERROR(VLOOKUP(A116,Suppliers[],8,0),"") ->  | H116: =IFERROR(VLOOKUP(A116,Suppliers[],9,0),"") ->  | I116: =IFERROR(ROUND(OriginalData[[#This Row],[仕入消費税金額]]/OriginalData[[#This Row],[仕入集計金額]],2),"") ->  | J116: =IF(OriginalData[[#This Row],[消費税率]]=0.08,"K8",IF(OriginalData[[#This Row],[消費税率]]=0.1,"AA","")) -> 
D117: =IF(A117="","",IFERROR(VLOOKUP(A117,Suppliers[],2,0),"未登録")) ->  | E117: =IF(A117="","",IFERROR(VLOOKUP($A117,Suppliers[],3,0),"未登録")) ->  | F117: =IF(A117="","",IFERROR(VLOOKUP($A117,Suppliers[],4,0),"未登録")) ->  | G117: =IFERROR(VLOOKUP(A117,Suppliers[],8,0),"") ->  | H117: =IFERROR(VLOOKUP(A117,Suppliers[],9,0),"") ->  | I117: =IFERROR(ROUND(OriginalData[[#This Row],[仕入消費税金額]]/OriginalData[[#This Row],[仕入集計金額]],2),"") ->  | J117: =IF(OriginalData[[#This Row],[消費税率]]=0.08,"K8",IF(OriginalData[[#This Row],[消費税率]]=0.1,"AA","")) -> 
D118: =IF(A118="","",IFERROR(VLOOKUP(A118,Suppliers[],2,0),"未登録")) ->  | E118: =IF(A118="","",IFERROR(VLOOKUP($A118,Suppliers[],3,0),"未登録")) ->  | F118: =IF(A118="","",IFERROR(VLOOKUP($A118,Suppliers[],4,0),"未登録")) ->  | G118: =IFERROR(VLOOKUP(A118,Suppliers[],8,0),"") ->  | H118: =IFERROR(VLOOKUP(A118,Suppliers[],9,0),"") ->  | I118: =IFERROR(ROUND(OriginalData[[#This Row],[仕入消費税金額]]/OriginalData[[#This Row],[仕入集計金額]],2),"") ->  | J118: =IF(OriginalData[[#This Row],[消費税率]]=0.08,"K8",IF(OriginalData[[#This Row],[消費税率]]=0.1,"AA","")) -> 
D119: =IF(A119="","",IFERROR(VLOOKUP(A119,Suppliers[],2,0),"未登録")) ->  | E119: =IF(A119="","",IFERROR(VLOOKUP($A119,Suppliers[],3,0),"未登録")) ->  | F119: =IF(A119="","",IFERROR(VLOOKUP($A119,Suppliers[],4,0),"未登録")) ->  | G119: =IFERROR(VLOOKUP(A119,Suppliers[],8,0),"") ->  | H119: =IFERROR(VLOOKUP(A119,Suppliers[],9,0),"") ->  | I119: =IFERROR(ROUND(OriginalData[[#This Row],[仕入消費税金額]]/OriginalData[[#This Row],[仕入集計金額]],2),"") ->  | J119: =IF(OriginalData[[#This Row],[消費税率]]=0.08,"K8",IF(OriginalData[[#This Row],[消費税率]]=0.1,"AA","")) -> 
D120: =IF(A120="","",IFERROR(VLOOKUP(A120,Suppliers[],2,0),"未登録")) ->  | E120: =IF(A120="","",IFERROR(VLOOKUP($A120,Suppliers[],3,0),"未登録")) ->  | F120: =IF(A120="","",IFERROR(VLOOKUP($A120,Suppliers[],4,0),"未登録")) ->  | G120: =IFERROR(VLOOKUP(A120,Suppliers[],8,0),"") ->  | H120: =IFERROR(VLOOKUP(A120,Suppliers[],9,0),"") ->  | I120: =IFERROR(ROUND(OriginalData[[#This Row],[仕入消費税金額]]/OriginalData[[#This Row],[仕入集計金額]],2),"") ->  | J120: =IF(OriginalData[[#This Row],[消費税率]]=0.08,"K8",IF(OriginalData[[#This Row],[消費税率]]=0.1,"AA","")) -> 
D121: =IF(A121="","",IFERROR(VLOOKUP(A121,Suppliers[],2,0),"未登録")) ->  | E121: =IF(A121="","",IFERROR(VLOOKUP($A121,Suppliers[],3,0),"未登録")) ->  | F121: =IF(A121="","",IFERROR(VLOOKUP($A121,Suppliers[],4,0),"未登録")) ->  | G121: =IFERROR(VLOOKUP(A121,Suppliers[],8,0),"") ->  | H121: =IFERROR(VLOOKUP(A121,Suppliers[],9,0),"") ->  | I121: =IFERROR(ROUND(OriginalData[[#This Row],[仕入消費税金額]]/OriginalData[[#This Row],[仕入集計金額]],2),"") ->  | J121: =IF(OriginalData[[#This Row],[消費税率]]=0.08,"K8",IF(OriginalData[[#This Row],[消費税率]]=0.1,"AA","")) -> 

Sheet BTIN (hidden)
A1: 識別 | B1: フラグ | C1: 入力項目名 | D1: 入力値 | E1: 列 | F1: 画面項目名 | H1: INDEX
A2: P-01 | D2: 一般勘定－明細 | H2: P-01 | I2: =MATCH(H2,$A:$A,0)+1 -> 3
A3: 2 | C3: RF05A-NEWBS | E3: K | F3: 転記キー | H3: P-02 | I3: 25
A4: 2 | C4: RF05A-NEWKO | E4: L | F4: 勘定コード | H4: P-03 | I4: 52
A5: 2 | B5: ## | C5: BDC_OKCODE | D5: /EPG | H5: P-04 | I5: 76
A6: 1 | B6: ## | C6: SAPLF014 | D6: 0100 | H6: P-05 | I6: 97
A7: 2 | B7: ## | C7: RF014-VBUND | E7: A | F7: (連結)取引先 | H7: P-06 | I7: 123
A8: 2 | C8: BDC_OKCODE | D8: /00 | H8: P-07 | I8: 143
A9: 1 | B9: # | C9: SAPLKACB | D9: 0002 | H9: P-08 | I9: 163
A10: 2 | B10: # | C10: BDC_OKCODE | D10: /00 | H10: P-09 | I10: 183
A11: 1 | C11: SAPMF05A | D11: 0300 | H11: P-10 | I11: 208
A12: 2 | C12: BSEG-WRBTR | E12: N | F12: 金額 | H12: P-11 | I12: 236
A13: 2 | C13: BSEG-DMBTR | E13: O | F13: 国内通貨額 | H13: P-12 | I13: 279
A14: 2 | B14: X | C14: BSEG-MWSKZ | E14: P | F14: 消費税コード | H14: P-13 | I14: 297
A15: 2 | C15: BSEG-VALUT | E15: V | F15: 起算日 | H15: P-14 | I15: 317
A16: 2 | C16: BSEG-ZUONR | E16: T | F16: ソートキー
A17: 2 | C17: BSEG-SGTXT | E17: U | F17: 明細テキスト
A18: 2 | C18: BDC_OKCODE | D18: /00
A19: 1 | C19: SAPLKACB | D19: 0002
A20: 2 | C20: COBL-GSBER | E20: Q | F20: 事業領域
A21: 2 | C21: BDC_OKCODE | D21: /00
A22: 1 | C22: SAPMF05A | D22: 0300
A23: eof
A24: P-02 | D24: 原価要素－明細
A25: 2 | C25: RF05A-NEWBS | E25: K | F25: 転記キー
A26: 2 | C26: RF05A-NEWKO | E26: L | F26: 勘定コード
A27: 2 | B27: ## | C27: BDC_OKCODE | D27: /EPG
A28: 1 | B28: ## | C28: SAPLF014 | D28: 0100
A29: 2 | B29: ## | C29: RF014-VBUND | E29: A | F29: (連結)取引先
A30: 2 | C30: BDC_OKCODE | D30: /00
A31: 1 | B31: # | C31: SAPLKACB | D31: 0002
A32: 2 | B32: # | C32: BDC_OKCODE | D32: /00
A33: 1 | C33: SAPMF05A | D33: 0300
A34: 2 | C34: BSEG-WRBTR | E34: N | F34: 金額
A35: 2 | C35: BSEG-DMBTR | E35: O | F35: 国内通貨額
A36: 2 | B36: X | C36: BSEG-MWSKZ | E36: P | F36: 消費税コード
A37: 2 | C37: BSEG-ZUONR | E37: T | F37: ソートキー
A38: 2 | C38: BSEG-SGTXT | E38: U | F38: 明細テキスト
A39: 2 | C39: BSEG-MENGE | E39: AD | F39: 数量
A40: 2 | C40: BSEG-MEINS | E40: AE | F40: 数量単位
A41: 2 | C41: BDC_OKCODE | D41: /00
A42: 1 | C42: SAPLKACB | D42: 0002
A43: 2 | C43: COBL-GSBER | E43: Q | F43: 事業領域
A44: 2 | C44: COBL-KOSTL | E44: R | F44: 原価センタ
A45: 2 | C45: COBL-PRCTR | E45: S | F45: 利益センタ
A46: 2 | C46: COBL-AUFNR | E46: AF | F46: 指図書
A47: 2 | C47: COBL-PS_PSP_PNR | E47: AG | F47: ＷＢＳ要素
A48: 2 | C48: BDC_OKCODE | D48: /00
A49: 1 | C49: SAPMF05A | D49: 0300
A50: eof
A51: P-03 | D51: 棚卸資産－明細
A52: 2 | C52: RF05A-NEWBS | E52: K | F52: 転記キー
A53: 2 | C53: RF05A-NEWKO | E53: L | F53: 勘定コード
A54: 2 | B54: ## | C54: BDC_OKCODE | D54: /EPG
A55: 1 | B55: ## | C55: SAPLF014 | D55: 0100
A56: 2 | B56: ## | C56: RF014-VBUND | E56: A | F56: (連結)取引先
A57: 2 | C57: BDC_OKCODE | D57: /00
A58: 1 | B58: # | C58: SAPLKACB | D58: 0002
A59: 2 | B59: # | C59: BDC_OKCODE | D59: /00
A60: 1 | C60: SAPMF05A | D60: 0300
A61: 2 | C61: BSEG-WRBTR | E61: N | F61: 金額
A62: 2 | C62: BSEG-DMBTR | E62: O | F62: 国内通貨額
A63: 2 | B63: X | C63: BSEG-MWSKZ | E63: P | F63: 消費税コード
A64: 2 | C64: BSEG-VALUT | E64: V | F64: 起算日
A65: 2 | C65: BSEG-ZUONR | E65: T | F65: ソートキー
A66: 2 | C66: BSEG-SGTXT | E66: U | F66: 明細テキスト
A67: 2 | C67: BSEG-MENGE | E67: AD | F67: 数量
A68: 2 | C68: BSEG-MEINS | E68: AE | F68: 数量単位
A69: 2 | C69: BDC_OKCODE | D69: /00
A70: 1 | C70: SAPLKACB | D70: 0002
A71: 2 | C71: COBL-GSBER | E71: Q | F71: 事業領域
A72: 2 | C72: BDC_OKCODE | D72: /00
A73: 1 | C73: SAPMF05A | D73: 0300
A74: eof
A75: P-04 | D75: 売掛金－明細
A76: 2 | C76: RF05A-NEWBS | E76: K | F76: 転記キー
A77: 2 | C77: RF05A-NEWKO | E77: L | F77: 勘定コード
A78: 2 | B78: ## | C78: BDC_OKCODE | D78: /EPG
A79: 1 | B79: ## | C79: SAPLF014 | D79: 0100
A80: 2 | B80: ## | C80: RF014-VBUND | E80: A | F80: (連結)取引先
A81: 2 | C81: BDC_OKCODE | D81: /00
A82: 1 | B82: # | C82: SAPLKACB | D82: 0002
A83: 2 | B83: # | C83: BDC_OKCODE | D83: /00
A84: 1 | C84: SAPMF05A | D84: 0301
A85: 2 | C85: BSEG-WRBTR | E85: N | F85: 金額
A86: 2 | C86: BSEG-DMBTR | E86: O | F86: 国内通貨額
A87: 2 | C87: BSEG-MWSKZ | D87: **
A88: 2 | C88: BSEG-GSBER | E88: Q | F88: 事業領域
A89: 2 | C89: BSEG-ZFBDT | E89: W | F89: 支払基準日
A90: 2 | C90: BSEG-ZLSCH | E90: Y | F90: 支払方法
A91: 2 | B91: * | C91: BSEG-ZTERM | F91: 支払条件
A92: 2 | C92: BSEG-ZLSPR | E92: Z | F92: 支払保留
A93: 2 | C93: BSEG-ZUONR | E93: T | F93: ソートキー
A94: 2 | C94: BSEG-SGTXT | E94: U | F94: 明細テキスト
A95: eof
A96: P-05 | D96: 買掛金－明細
A97: 2 | C97: RF05A-NEWBS | E97: K | F97: 転記キー
A98: 2 | C98: RF05A-NEWKO | E98: L | F98: 勘定コード
A99: 2 | B99: ## | C99: BDC_OKCODE | D99: /EPG
A100: 1 | B100: ## | C100: SAPLF014 | D100: 0100
A101: 2 | B101: ## | C101: RF014-VBUND | E101: A | F101: (連結)取引先
A102: 2 | C102: BDC_OKCODE | D102: /00
A103: 1 | B103: # | C103: SAPLKACB | D103: 0002
A104: 2 | B104: # | C104: BDC_OKCODE | D104: /00
A105: 1 | C105: SAPMF05A | D105: 0302
A106: 2 | C106: BSEG-WRBTR | E106: N | F106: 金額
A107: 2 | C107: BSEG-DMBTR | E107: O | F107: 国内通貨額
A108: 2 | C108: BSEG-MWSKZ | D108: **
A109: 2 | C109: BSEG-GSBER | E109: Q | F109: 事業領域
A110: 2 | C110: BSEG-ZFBDT | E110: W | F110: 支払基準日
A111: 2 | C111: BSEG-ZLSCH | E111: Y | F111: 支払方法
A112: 2 | B112: * | C112: BSEG-ZTERM | F112: 支払条件
A113: 2 | C113: BSEG-ZLSPR | E113: Z | F113: 支払保留
A114: 2 | C114: BSEG-ZUONR | E114: T | F114: ソートキー
A115: 2 | C115: BSEG-SGTXT | E115: U | F115: 明細テキスト
A116: 2 | C116: BDC_OKCODE | D116: /07
A117: 1 | C117: SAPMF05A | D117: 0332
A118: 2 | C118: BSEG-BVTYP | E118: AA | F118: 取引先銀行
A119: 2 | C119: BSEG-HBKID | E119: AB | F119: 取引銀行
A120: 2 | C120: BSEG-LZBKZ | E120: AC | F120: 中央銀行CD
A121: eof
A122: P-06 | D122: 受取手形－明細
A123: 2 | C123: RF05A-NEWBS | E123: K | F123: 転記キー
A124: 2 | C124: RF05A-NEWKO | E124: L | F124: 勘定コード
A125: 2 | C125: RF05A-NEWUM | E125: M | F125: 特殊G/L
A126: 2 | B126: ## | C126: BDC_OKCODE | D126: /EPG
A127: 1 | B127: ## | C127: SAPLF014 | D127: 0100
A128: 2 | B128: ## | C128: RF014-VBUND | E128: A | F128: (連結)取引先
A129: 2 | C129: BDC_OKCODE | D129: /00
A130: 1 | B130: # | C130: SAPLKACB | D130: 0002
A131: 2 | B131: # | C131: BDC_OKCODE | D131: /00
A132: 1 | C132: SAPMF05A | D132: 2320
A133: 2 | C133: BSEG-WRBTR | E133: N | F133: 金額
A134: 2 | C134: BSEG-DMBTR | E134: O | F134: 国内通貨額
A135: 2 | C135: BSEG-GSBER | E135: Q | F135: 事業領域
A136: 2 | C136: BSEG-ZUONR | E136: T | F136: ソートキー
A137: 2 | C137: BSEG-SGTXT | E137: U | F137: 明細テキスト
A138: 2 | C138: BSEG-ZFBDT | E138: W | F138: 期日
A139: 2 | C139: BSED-WDATE | E139: X | F139: 振出日
A140: 2 | C140: BSEG-ZLSCH | E140: Y | F140: 支払方法
A141: eof
A142: P-07 | D142: 支払手形－明細
A143: 2 | C143: RF05A-NEWBS | E143: K | F143: 転記キー
A144: 2 | C144: RF05A-NEWKO | E144: L | F144: 勘定コード
A145: 2 | C145: RF05A-NEWUM | E145: M | F145: 特殊G/L
A146: 2 | B146: ## | C146: BDC_OKCODE | D146: /EPG
A147: 1 | B147: ## | C147: SAPLF014 | D147: 0100
A148: 2 | B148: ## | C148: RF014-VBUND | E148: A | F148: (連結)取引先
A149: 2 | C149: BDC_OKCODE | D149: /00
A150: 1 | B150: # | C150: SAPLKACB | D150: 0002
A151: 2 | B151: # | C151: BDC_OKCODE | D151: /00
A152: 1 | C152: SAPMF05A | D152: 2320
A153: 2 | C153: BSEG-WRBTR | E153: N | F153: 金額
A154: 2 | C154: BSEG-DMBTR | E154: O | F154: 国内通貨額
A155: 2 | C155: BSEG-GSBER | E155: Q | F155: 事業領域
A156: 2 | C156: BSEG-ZUONR | E156: T | F156: ソートキー
A157: 2 | C157: BSEG-SGTXT | E157: U | F157: 明細テキスト
A158: 2 | C158: BSEG-ZFBDT | E158: W | F158: 期日
A159: 2 | C159: BSED-WDATE | E159: X | F159: 振出日
A160: 2 | C160: BSEG-ZLSCH | E160: Y | F160: 支払方法
A161: eof
A162: P-08 | D162: 得意先(特殊仕訳)－明細
A163: 2 | C163: RF05A-NEWBS | E163: K | F163: 転記キー
A164: 2 | C164: RF05A-NEWKO | E164: L | F164: 勘定コード
A165: 2 | C165: RF05A-NEWUM | E165: M | F165: 特殊G/L
A166: 2 | B166: ## | C166: BDC_OKCODE | D166: /EPG
A167: 1 | B167: ## | C167: SAPLF014 | D167: 0100
A168: 2 | B168: ## | C168: RF014-VBUND | E168: A | F168: (連結)取引先
A169: 2 | C169: BDC_OKCODE | D169: /00
A170: 1 | B170: # | C170: SAPLKACB | D170: 0002
A171: 2 | B171: # | C171: BDC_OKCODE | D171: /00
A172: 1 | C172: SAPMF05A | D172: 0303
A173: 2 | C173: BSEG-WRBTR | E173: N | F173: 金額
A174: 2 | C174: BSEG-DMBTR | E174: O | F174: 国内通貨額
A175: 2 | C175: BSEG-GSBER | E175: Q | F175: 事業領域
A176: 2 | C176: BSEG-ZFBDT | E176: W | F176: 期日
A177: 2 | C177: BSEG-ZLSCH | E177: Y | F177: 支払方法
A178: 2 | C178: BSEG-ZLSPR | E178: Z | F178: 支払保留
A179: 2 | C179: BSEG-ZUONR | E179: T | F179: ソートキー
A180: 2 | C180: BSEG-SGTXT | E180: U | F180: 明細テキスト
A181: eof
A182: P-09 | D182: 仕入先(特殊仕訳)－明細
A183: 2 | C183: RF05A-NEWBS | E183: K | F183: 転記キー
A184: 2 | C184: RF05A-NEWKO | E184: L | F184: 勘定コード
A185: 2 | C185: RF05A-NEWUM | E185: M | F185: 特殊G/L
A186: 2 | B186: ## | C186: BDC_OKCODE | D186: /EPG
A187: 1 | B187: ## | C187: SAPLF014 | D187: 0100
A188: 2 | B188: ## | C188: RF014-VBUND | E188: A | F188: (連結)取引先
A189: 2 | C189: BDC_OKCODE | D189: /00
A190: 1 | B190: # | C190: SAPLKACB | D190: 0002
A191: 2 | B191: # | C191: BDC_OKCODE | D191: /00
A192: 1 | C192: SAPMF05A | D192: 0303
A193: 2 | C193: BSEG-WRBTR | E193: N | F193: 金額
A194: 2 | C194: BSEG-DMBTR | E194: O | F194: 国内通貨額
A195: 2 | C195: BSEG-GSBER | E195: Q | F195: 事業領域
A196: 2 | C196: BSEG-ZFBDT | E196: W | F196: 期日
A197: 2 | C197: BSEG-ZLSCH | E197: Y | F197: 支払方法
A198: 2 | C198: BSEG-ZLSPR | E198: Z | F198: 支払保留
A199: 2 | C199: BSEG-ZUONR | E199: T | F199: ソートキー
A200: 2 | C200: BSEG-SGTXT | E200: U | F200: 明細テキスト
... 133 more rows

Sheet TBL (hidden)
A1: 勘定 | B1: 行 | D1: 転記ｷｰ | E1: ﾀｲﾌﾟ | F1: 特殊 | G1: 勘定(開始) | H1: 勘定(終了) | I1: ﾊﾟﾀｰﾝ | J1: 勘定名 | N1: 転記ｷｰ | O1: ﾀｲﾌﾟ | P1: 特殊 | Q1: 勘定(開始) | R1: 勘定(終了) | S1: ﾊﾟﾀｰﾝ | T1: 勘定名 | X1: 転記ｷｰ | Y1: ﾀｲﾌﾟ | Z1: 特殊 | AA1: 勘定(開始) | AB1: 勘定(終了) | AC1: ﾊﾟﾀｰﾝ | AD1: 勘定名 | AH1: 転記ｷｰ | AI1: ﾀｲﾌﾟ | AJ1: 特殊 | AK1: 勘定(開始) | AL1: 勘定(終了) | AM1: ﾊﾟﾀｰﾝ | AN1: 勘定名 | AR1: 転記ｷｰ | AS1: ﾀｲﾌﾟ | AT1: 特殊 | AU1: 勘定(開始) | AV1: 勘定(終了) | AW1: ﾊﾟﾀｰﾝ | AX1: 勘定名
A2: 1 | B2: 2 | C2: 19 | D2: 40/50 | E2: Ｓ | G2: 100010 | H2: 109999 | I2: P-01 | J2: 現金／預金 | N2: 09/19 | O2: Ｄ | P2: W | Q2: 112110 | R2: 112119 | S2: P-06 | T2: 受取手形 | X2: 29/39 | Y2: Ｋ | Z2: W | AA2: 411100 | AB2: 411100 | AC2: P-07 | AD2: 支払手形 | AH2: 21/31 | AI2: K | AK2: 412100 | AL2: 412109 | AM2: P-05 | AN2: 買掛金 | AR2: 01/11 | AS2: D | AU2: 113100 | AV2: 113199 | AW2: P-04 | AX2: 売掛金
A3: 2 | B3: 20 | C3: 24 | D3: 40/50 | E3: Ｓ | G3: 113999 | H3: 113999 | I3: P-01 | J3: 売掛金-調整 | N3: 09/19 | O3: Ｄ | P3: M | Q3: 145100 | R3: 145100 | S3: P-08 | T3: 未収入金 | X3: 29/39 | Y3: Ｋ | Z3: N | AA3: 414100 | AB3: 414100 | AC3: P-09 | AD3: 未払金 | AH3: 21/31 | AI3: K | AK3: 415100 | AL3: 415100 | AM3: P-09 | AN3: 未払費用 | AR3: 01/11 | AS3: D | AU3: 113200 | AV3: 113200 | AW3: P-04 | AX3: 社内売掛金
A4: 3 | B4: 25 | C4: 28 | D4: 40/50 | E4: Ｓ | G4: 114000 | H4: 116099 | I4: P-01 | J4: 有価証券／自己株式／預け金 | N4: 09/19 | O4: Ｄ | P4: X | Q4: 147101 | R4: 147101 | S4: P-08 | T4: 営業立替金 | X4: 29/39 | Y4: Ｋ | Z4: Q | AA4: 414300 | AB4: 414300 | AC4: P-09 | AD4: 未払金（有形固定資産） | AH4: eof | AR4: eof
A5: 4 | B5: 29 | C5: 39 | D5: 40/50 | E5: Ｓ | G5: 121100 | H5: 127900 | I5: P-03 | J5: 棚卸資産 | N5: 09/19 | O5: Ｄ | P5: R | Q5: 147105 | R5: 147105 | S5: P-08 | T5: 代理店勘定（債権) | X5: 29/39 | Y5: Ｋ | Z5: R | AA5: 414400 | AB5: 414400 | AC5: P-09 | AD5: 未払金（無形固定資産）
A6: 5 | B6: 40 | C6: 41 | D6: 40/50 | E6: Ｓ | G6: 135000 | H6: 140199 | I6: P-02 | J6: 未成工事 | N6: 09/19 | O6: Ｄ | P6: S | Q6: 147107 | R6: 147107 | S6: P-08 | T6: 海外代理店勘定(債権) | X6: 29/39 | Y6: Ｋ | Z6: K | AA6: 415100 | AB6: 415100 | AC6: P-09 | AD6: 未払費用
A7: 7 | B7: 42 | C7: 43 | D7: 40/50 | E7: Ｓ | G7: 141101 | H7: 141199 | I7: P-01 | J7: 前渡金 | N7: 09/19 | O7: Ｄ | P7: T | Q7: 147109 | R7: 147109 | S7: P-08 | T7: 関係会社立替金 | X7: 29/39 | Y7: Ｋ | Z7: U | AA7: 418305 | AB7: 418305 | AC7: P-09 | AD7: 代理店勘定預り金
A8: 8 | B8: 44 | C8: 51 | D8: 40/50 | E8: Ｓ | G8: 142101 | H8: 142199 | I8: P-01 | J8: 前払費用 | N8: 09/19 | O8: Ｄ | P8: Q | Q8: 411910 | R8: 411919 | S8: P-08 | T8: 割引手形 | X8: 29/39 | Y8: Ｋ | Z8: Y | AA8: 418307 | AB8: 418307 | AC8: P-09 | AD8: 海外代理店勘定（債務）
A9: 9 | B9: 52 | C9: 53 | D9: 40/50 | E9: Ｓ | G9: 144100 | H9: 144199 | I9: P-01 | J9: 短期貸付金 | N9: 09/19 | O9: Ｄ | P9: U | Q9: 411920 | R9: 411929 | S9: P-08 | T9: 譲渡手形 | X9: 29/39 | Y9: Ｋ | Z9: V | AA9: 441011 | AB9: 441011 | AC9: P-09 | AD9: 仮受金－運賃（特定）
A10: eof | D10: 40/50 | E10: Ｓ | G10: 145110 | H10: 145199 | I10: P-01 | J10: 未収入金 | N10: 09/19 | O10: Ｄ | P10: A | Q10: 416100 | R10: 416100 | S10: P-13 | T10: 前受金 | X10: eof
D11: 40/50 | E11: Ｓ | G11: 146100 | H11: 146199 | I11: P-01 | J11: 前渡金 | N11: 09/19 | O11: Ｄ | P11: C | Q11: 441000 | R11: 441000 | S11: P-13 | T11: 仮受金-仮受売掛
D12: 40/50 | E12: Ｓ | G12: 147100 | H12: 147199 | I12: P-01 | J12: 社内立替金 | N12: eof
D13: 40/50 | E13: Ｓ | G13: 147200 | H13: 147299 | I13: P-01 | J13: 関係会社立替金
D14: 40/50 | E14: Ｓ | G14: 148100 | H14: 148199 | I14: P-01 | J14: 仮払金
D15: 40/50 | E15: Ｓ | G15: 148200 | H15: 148209 | I15: P-12 | J15: 仮払消費税
D16: 40/50 | E16: Ｓ | G16: 148210 | H16: 148210 | I16: P-01 | J16: 輸入消費税
D17: 40/50 | E17: Ｓ | G17: 148220 | H17: 148399 | I17: P-01 | J17: 仮払法人税／仮払利子割
D18: 40/50 | E18: Ｓ | G18: 148500 | H18: 170999 | I18: P-01 | J18: 立替金／引当金等
D20: 40/50 | E20: Ｓ | G20: 227000 | H20: 241500 | I20: P-02 | J20: 建設仮勘定
D21: 40/50 | E21: Ｓ | G21: 261100 | H21: 262999 | I21: P-01 | J21: 投資有価証券／株式／出資金
D22: 40/50 | E22: Ｓ | G22: 263500 | H22: 271099 | I22: P-01 | J22: 長期貸付金(他）
D23: 40/50 | E23: Ｓ | G23: 281000 | H23: 292999 | I23: P-01 | J23: 長期前払費用／貸倒引当金
D25: 40/50 | E25: Ｓ | G25: 351000 | H25: 359999 | I25: P-02 | J25: 生産原価
D26: 40/50 | E26: Ｓ | G26: 361000 | H26: 361000 | I26: P-02 | J26: 仕入原価
D27: 40/50 | E27: Ｓ | G27: 372001 | H27: 386400 | I27: P-01 | J27: 事業部勘定勘定
D29: 40/50 | E29: Ｓ | G29: 412999 | H29: 412999 | I29: P-01 | J29: 買掛金-調整
D30: 40/50 | E30: Ｓ | G30: 413100 | H30: 413699 | I30: P-01 | J30: 短期/長期借入金
D31: 40/50 | E31: Ｓ | G31: 414101 | H31: 415299 | I31: P-01 | J31: 未払金
D32: 40/50 | E32: Ｓ | G32: 416199 | H32: 416199 | I32: P-01 | J32: 前受金-調整
D33: 40/50 | E33: Ｓ | G33: 417100 | H33: 418399 | I33: P-01 | J33: 諸預り金
D34: 40/50 | E34: Ｓ | G34: 422100 | H34: 422199 | I34: P-12 | J34: 仮受消費税
D35: 40/50 | E35: Ｓ | G35: 422300 | H35: 422599 | I35: P-01 | J35: その他流動負債
D36: 40/50 | E36: Ｓ | G36: 441001 | H36: 441099 | I36: P-01 | J36: 仮受金
D37: 40/50 | E37: Ｓ | G37: 462100 | H37: 462199 | I37: P-01 | J37: 原価仮勘定
D38: 40/50 | E38: Ｓ | G38: 499000 | H38: 499000 | I38: P-01 | J38: 在庫初期化
D40: 40/50 | E40: Ｓ | G40: 510000 | H40: 599999 | I40: P-01 | J40: 長期借入金・引当金関係
D42: 40/50 | E42: Ｓ | G42: 700000 | H42: 7999999 | I42: P-01 | J42: 資本金
D44: 40/50 | E44: Ｓ | G44: 811100 | H44: 812999 | I44: P-11 | J44: 売上
D45: 40/50 | E45: Ｓ | G45: 820000 | H45: 823999 | I45: P-01 | J45: 原価
D46: 40/50 | E46: Ｓ | G46: 824100 | H46: 827999 | I46: P-02 | J46: 一般管理費
D47: 40/50 | E47: Ｓ | G47: 861000 | H47: 878399 | I47: P-10 | J47: 受取利息／営業収益／特別利益
D48: 40/50 | E48: Ｓ | G48: 881000 | H48: 882999 | I48: P-02 | J48: 支払利息／借入金利息／社債利息
D49: 40/50 | E49: Ｓ | G49: 883400 | H49: 883599 | I49: P-02 | J49: 原価差額
D50: 40/50 | E50: Ｓ | G50: 884000 | H50: 886999 | I50: P-02 | J50: 営業外費用／特別損失
D52: 40/50 | E52: Ｓ | G52: 980000 | H52: 9999999 | I52: P-01 | J52: 税その他
D54: eof
D55: ※タイプ(勘定ﾀｲﾌﾟ）・・・Ｓ：勘定コード，Ｄ：得意先コード，Ｋ：仕入先コード
A57: 勘定：勘定の最初の一桁
A58: 行：開始行

Sheet ソートキー管理 (hidden)
B2: 取引先 コード | C2: ソートキー | D2: 取引先名称
B3: KO-000002 | D3: 使用不可三菱東京ＵＦＪ銀行
B4: KO-000003 | D4: 横浜銀行（本店）
B5: KO-000004 | D5: 横浜信用金庫（本店）
B6: KO-000005 | D6: みずほ銀行（横浜）
B7: KO-000006 | D7: 三井住友銀行（横浜）
B8: KO-000007 | D8: 三菱UFJ銀行(横浜中央)
B9: KO-000011 | D9: 筒井 博
B10: KO-000012 | D10: 筒井 菊雄
B11: KO-000014 | D11: 横浜銀行（南部市場）
B12: KO-000021 | D12: 横浜中税務署
B13: KO-000022 | D13: 各市 ・ 区役所
B14: KO-000023 | D14: 金沢区役所
B15: KO-000024 | D15: 神奈川労働基準局
B16: KO-000025 | D16: 神奈川県税事務所
B17: KO-000026 | C17: 日新健保 | D17: 日新健康保険組合
B18: KO-000027 | C18: 中社会保険 | D18: 横浜中社会保険事務所
B19: KO-000028 | D19: みずほｲﾝﾍﾞｽﾀｰｽﾞ証券㈱
B20: KO-000029 | D20: 東金県税事務所
B21: KO-000031 | D21: 東京ガス
B22: KO-000032 | D22: 郵便局
B23: KO-000034 | D23: 原田港湾㈱
B24: KO-000035 | D24: 千葉県芝山町役場
B25: KO-000036 | D25: 金沢団地協同組合
B26: KO-000037 | D26: 東金労働基準監督署
B27: KO-000038 | D27: 千葉労働局
B28: KO-000039 | D28: 富里市役所
B29: KO-000040 | D29: 山武市役所
B30: KO-000100 | D30: ㈱日新
B31: KO-000201 | C31: ｱｻﾋﾈｯﾄ | D31: ㈱アサヒネット（ニコス）
B32: KO-000202 | D32: 浅野段ボール㈱
B33: KO-000203 | D33: ㈱石森製作所
B34: KO-000204 | D34: 新千葉カントリー倶楽部
B35: KO-000205 | D35: 住友生命保険
B36: KO-000206 | D36: ㈲ｴﾝﾀｰﾌﾟﾗｲｽﾞ野田
B37: KO-000207 | D37: 喜多村工業㈱
B38: KO-000208 | D38: 丸新港運㈱
B39: KO-000209 | D39: ㈱オリックス
B40: KO-000210 | D40: 日中平和観光㈱
B41: KO-000211 | D41: ㈱共同貨物運輸
B42: KO-000212 | D42: 群馬丸太運輸㈱
B43: KO-000213 | C43: ｼﾞｬﾊﾟﾝ建材 | D43: ジャパン建材㈱
B44: KO-000214 | D44: ㈱ジェネッツ
B45: KO-000215 | D45: ㈲ 鏡
B46: KO-000216 | D46: 使用不可 ㈱志正堂 | E46: KO-00633ﾘｺｰｿﾘｭｰｼﾞｮﾝｽﾞへ吸収
B47: KO-000217 | D47: 三菱重工ﾌｫｰｸﾘﾌﾄ販売㈱
B48: KO-000218 | D48: ㈱ｵｰﾋﾞｯｸｵﾌｨｽｵｰﾄﾒｰｼｮﾝ
B49: KO-000219 | D49: ㈱高島屋
B50: KO-000220 | D50: 市原 茂
B51: KO-000221 | D51: 西武運輸㈱
B52: KO-000222 | D52: ㈲土屋商店
B53: KO-000223 | D53: ㈱ﾎﾟｰﾄﾘﾘｰﾌｴﾝｼﾞﾆｱﾘﾝｸﾞ(駐車場）
B54: KO-000224 | D54: 第一生命保険相互会社
B55: KO-000225 | C55: ﾀﾆｯｸｽ | D55: ㈱タニックス
B56: KO-000226 | C56: 東京輸送 | D56: ㈱東京輸送
B57: KO-000227 | D57: ㈱コイケ
B58: KO-000228 | D58: ㈱トーカイ（ＴＯＫＡＩ）
B59: KO-000229 | C59: 南総通運 | D59: 南総通運㈱
B60: KO-000230 | C60: ｵｰﾋﾞｯｸﾋﾞｼﾞﾈｽｺﾝｻﾙ | D60: ㈱ｵｰﾋﾞｯｸﾋﾞｼﾞﾈｽｺﾝｻﾙﾀﾝﾄ
B61: KO-000231 | C61: 成田ﾄﾞﾗｲｱｲｽ | D61: 成田ドライアイス㈱
B62: KO-000232 | C62: 日本ｵｰﾁｽ | D62: 日本ｵｰﾁｽ・ｴﾚﾍﾞｰﾀ㈱
B63: KO-000233 | D63: ㈱イシカワ
B64: KO-000234 | C64: ｼﾞｪｲﾊﾟｯｸ | D64: ㈱ジェイパック
B65: KO-000235 | D65: ㈱オービス
B66: KO-000236 | D66: ㈱北辰産業
B67: KO-000237 | D67: 金沢火災予防協会
B68: KO-000238 | D68: 金沢交通安全協会
B69: KO-000239 | D69: 横浜中央ﾔｸﾙﾄ販売
B70: KO-000240 | D70: 横海陸運㈱
B71: KO-000241 | C71: 大木自動車 | D71: 大木自動車
B72: KO-000242 | D72: 使用不可 日本興亜損害保険㈱ | E72: 社名変更KO-000649へ
B73: KO-000243 | C73: ﾄﾖﾀﾌｧｲﾅﾝｽ | D73: トヨタファイナンス㈱
B74: KO-000244 | D74: 使用不可ニチユMHI東京㈱千葉 | E74: 社名変更KO-000681へ
B75: KO-000245 | D75: 日本シーム㈱
B76: KO-000246 | D76: ㈱ダイニチ
B77: KO-000247 | D77: スミセイ損害保険
B78: KO-000248 | D78: 新日産ﾀﾞｲﾔﾓﾝﾄﾞ工業㈱
B79: KO-000249 | D79: 使用不可 ㈶結核予防会神奈川県支部 | E79: 社名変更KO-000563
B80: KO-000250 | D80: 慶弔会
B81: KO-000251 | D81: ㈱青和機械
B82: KO-000252 | C82: 大澤電気管理事務所 | D82: 大澤電気管理事務所
B83: KO-000253 | D83: ㈶産業保健協会
B84: KO-000254 | D84: ㈱ウエノシステック
B85: KO-000255 | D85: 金子屋金物店
B86: KO-000256 | C86: NTTｺﾐｭﾆｹｰｼｮﾝｽﾞ | D86: ＮＴＴコミュニケーションズ
B87: KO-000257 | C87: 共立 | D87: ㈱共立
B88: KO-000258 | D88: 金子 直人
B89: KO-000259 | D89: 三友プラントサービス㈱
B90: KO-000260 | D90: エストロン㈱
B91: KO-000261 | C91: 小松産業 | D91: 小松産業㈱
B92: KO-000262 | C92: ﾃｨｰｴﾑﾄﾗﾝｽﾎﾟｰﾄ | D92: ㈱ティーエムトランスポート
B93: KO-000264 | C93: 三共 | D93: ㈱三共
B94: KO-000265 | C94: 庄司木材 | D94: 庄司木材㈱
B95: KO-000266 | D95: 東京ガスライフバル飯田㈱
B96: KO-000267 | C96: 新港木材工業所 | D96: ㈱新港木材工業所
B97: KO-000268 | D97: ㈱シンク・ラボラトリー
B98: KO-000269 | D98: 春日電設工業㈱
B99: KO-000270 | D99: Ｋ．Ｄ．Ｄ．Ｉ
B100: KO-000271 | D100: リコー販売㈱ 麹町
B101: KO-000272 | D101: 高木工業㈱
B102: KO-000273 | C102: 総武ｽﾁﾚﾝ | D102: 総武スチレン㈱
B103: KO-000274 | D103: ㈲ﾃｨｰ･ｴﾑ商会
B104: KO-000275 | C104: 東京植検 | D104: 東京植物検疫協会
B105: KO-000276 | D105: ㈱サンワ企業
B106: KO-000277 | D106: 日新商事㈱
B107: KO-000278 | C107: ﾆｭｰﾗｲﾝ | D107: ㈱ニューライン
B108: KO-000279 | C108: 西野ﾊﾟﾚｯﾄ工業 | D108: 西野ﾊﾟﾚｯﾄ工業㈱
B109: KO-000280 | D109: 浜銀ﾌｧｲﾅﾝｽ㈱
B110: KO-000281 | D110: 野村貿易㈱
B111: KO-000282 | D111: フジダン㈱
B112: KO-000283 | D112: ㈱富士通ﾜｲｴﾌｼｰ
B113: KO-000284 | D113: 三菱オートリース㈱
B114: KO-000285 | D114: ﾊﾟﾅｿﾆｯｸﾛｼﾞｽﾃｯｸｽ㈱
B115: KO-000286 | C115: 富士物流 | D115: 富士物流㈱
B116: KO-000287 | D116: 豊栄港運㈱
B117: KO-000288 | D117: ㈲繁の鮨
B118: KO-000289 | D118: 神奈川日産自動車㈱
B119: KO-000290 | D119: 水口梱包資材㈲
B120: KO-000291 | D120: ㈱ﾎﾟｰﾄﾘﾘｰﾌｴﾝｼﾞﾆｱﾘﾝｸﾞ(仕入）
B121: KO-000292 | D121: ㈱ユニマットライフ
B122: KO-000293 | C122: 山田金作商店 | D122: ㈱山田金作商店
B123: KO-000294 | D123: ㈱豊商会
B124: KO-000295 | D124: ㈱銀泉
B125: KO-000296 | D125: あいざわ㈱
B126: KO-000297 | C126: 相模印刷 | D126: 相模印刷㈲
B127: KO-000298 | D127: ㈱なかじま
B128: KO-000299 | D128: 東京電力
B129: KO-000300 | D129: 横浜市水道局
B130: KO-000301 | C130: NTT東日本 | D130: ＮＴＴ東日本
B131: KO-000302 | C131: 瀬崎林業 | D131: 瀬崎林業㈱
B132: KO-000303 | D132: ㈱原田ｴｺﾋﾞｼﾞﾈｽ
B133: KO-000304 | D133: 使用不可（中）全国木材検査・研究協会 | E133: 変更KO-000419
B134: KO-000305 | C134: ｱｲﾄｽ | D134: ㈱アイトス
B135: KO-000306 | C135: ｼｬｰﾌﾟﾌｧｲﾅﾝｽ | D135: シャープファイナンス㈱
B136: KO-000307 | D136: ㈱ベルズ
B137: KO-000308 | C137: 大和物流 | D137: 大和物流㈱
B138: KO-000309 | D138: 日本ベニア㈱
B139: KO-000310 | D139: ソニテック㈱
B140: KO-000311 | C140: 高橋ﾏｰｸ | D140: ㈲高橋マーク
B141: KO-000312 | D141: 日立物流
B142: KO-000313 | D142: ㈱ﾔﾏｸﾞﾁ
B143: KO-000314 | D143: 武田電機㈱
B144: KO-000315 | D144: ㈱ダイヤモンドホテル
B145: KO-000316 | D145: 使用不可ニチユMHI東京㈱横浜 | E145: 社名変更KO-000680へ
B146: KO-000317 | D146: 日新興産㈱
B147: KO-000318 | C147: ﾔﾏｼｮｳ | D147: ㈱ヤマショウ
B148: KO-000319 | D148: ㈱群馬総合土地販売
B149: KO-000320 | D149: 福山通運㈱ 横浜南支店
B150: KO-000321 | D150: ㈲モリヤマ
B151: KO-000322 | D151: ㈱ｱﾙﾌｧｼｽﾃﾑ ｼﾞｬﾊﾟﾝ
B152: KO-000323 | C152: 甲陽産業 | D152: 甲陽産業㈱
B153: KO-000324 | C153: ﾛｼﾞｽ･ﾜｰｸｽ | D153: ㈱ロジス・ワークス
B154: KO-000325 | C154: ｱﾙﾌﾟｽｶｰﾄﾝ | D154: ㈱アルプスカートン
B155: KO-000326 | D155: 使用不可 新和梱包㈱ | E155: 646と二重登録の為以後この番号は使用しない事
B156: KO-000327 | D156: 東京ヤクルト販売㈱ | E156: 石鹸・化粧品 今は使用していない
B157: KO-000328 | C157: 長島梱包 | D157: 長島梱包㈱
B158: KO-000329 | D158: ㈱エイコー（ﾄﾅｰ）
B159: KO-000330 | D159: ㈲栄進ホーム
B160: KO-000331 | D160: ﾊﾟﾅｿﾆｯｸﾎｰﾑｴﾚﾍﾞｰﾀ-㈱
B161: KO-000332 | D161: 福山通運㈱ 成田
B162: KO-000333 | D162: ㈱コスミック
B163: KO-000334 | D163: 三陸運輸㈱
B164: KO-000335 | C164: 大紀工業 | D164: 大紀工業㈱
B165: KO-000336 | C165: ｸﾛﾃｯｸ | D165: ㈱クロテック
B166: KO-000337 | D166: ㈱ﾖｺﾃﾞﾝ
B167: KO-000338 | C167: ﾄﾖﾀｴﾙｱﾝﾄﾞｴﾌ千葉 | D167: トヨタエルアンドエフ千葉㈱
B168: KO-000339 | C168: 大倉製作所 | D168: ㈱大倉製作所
B169: KO-000340 | D169: ㈱カンザキ
B170: KO-000341 | C170: ｶﾝﾀﾞ事務機 | D170: ㈲カンダ事務機
B171: KO-000342 | D171: リコー販売㈱ 金沢営業所
B172: KO-000343 | D172: リコー販売㈱ 成田
B173: KO-000344 | D173: ベル・ウッド・ジャパン㈱
B174: KO-000345 | C174: ｼﾝｾｲ | D174: ㈱シンセイ
B175: KO-000346 | D175: Ｎ．Ｈ．Ｋ
B176: KO-000347 | D176: ㈱紅中
B177: KO-000348 | C177: 日本ﾊﾟﾚｯﾄﾚﾝﾀﾙ | D177: 日本パレットレンタル㈱
B178: KO-000349 | D178: ハリマ梱包㈱
B179: KO-000350 | C179: 浅見工業 | D179: 浅見工業㈱
B180: KO-000351 | D180: ㈳日本ｸﾚｰﾝ協会
B181: KO-000352 | D181: ㈱新開ティ・エス
B182: KO-000353 | D182: アコマ医科工業㈱
B183: KO-000354 | D183: ㈱富士通ｾﾞﾈﾗﾙ情報ｼｽﾃﾑ
B184: KO-000355 | D184: ＹＣ杉田 （新聞）
B185: KO-000356 | C185: 親和ﾊﾟｯｹｰｼﾞ | D185: 親和パッケージ㈱
B186: KO-000357 | D186: 日本管財ｾﾝﾀｰ㈱
B187: KO-000358 | D187: ㈲佐藤防災商会
B188: KO-000359 | D188: ㈱ダイトーフジテック
B189: KO-000360 | C189: ﾖｺﾊﾏ機工 | D189: ㈱ヨコハマ機工
B190: KO-000361 | D190: 東日本梱包管理士会
B191: KO-000362 | D191: ㈱浜鮨
B192: KO-000363 | D192: 光ビジネスフォーム㈱
B193: KO-000364 | D193: 相模運輸倉庫㈱
B194: KO-000365 | D194: 住友建機販売㈱
B195: KO-000366 | C195: ｺｽﾓ化成工業 | D195: コスモ化成工業㈱
B196: KO-000367 | D196: 新和実業㈱
B197: KO-000368 | C197: 日本機販 | D197: 日本機販㈱
B198: KO-000369 | D198: 日新産業㈱
B199: KO-000370 | C199: ｹﾝｺｰ | D199: ㈱ケンコー
B200: KO-000371 | D200: ㈱トレードエキスプレス
B201: KO-000372 | D201: ㈱ﾕｶ
... 411 more rows
